Workbook

Sheet PI vs x
A1: Measurement | B1: Hall
A2: Type | B2: Off-axis
A4: Project | B4: ='10 x=-2'!B5 -> 504314
A5: PS serial no | B5: ='10 x=-2'!B7 -> 2410092
A7: Measurement date | B7: =LEFT('10 x=-2'!B4,10) -> 28-08-2024
C11: Nominal gap [mm] | D11: Encoder [counts] | E11: Encoder [mm] | F11: PI [T^2mm^3] | G11: x [mm] | H11: Encoder value at 10 mm gap:
B12: ='PI vs x'!$C$12 & "mm gap" -> 10mm gap | C12: ='10 x=-2'!B48 -> 10 | D12: ='10 x=-2'!$B$50 -> 19.5407 | E12: =D12-$H$12+10 -> 10 | F12: ='10 x=-2'!$K$3 -> 10674.75834 | G12: -2 | H12: 19.5407
C13: =C12 -> 10 | D13: ='10 x=-1'!$B$50 -> 19.5407 | E13: =D13-$H$12+10 -> 10 | F13: ='10 x=-1'!$K$3 -> 10678.43845 | G13: -1
C14: =C13 -> 10 | D14: ='10 x=0'!$B$50 -> 19.5407 | E14: 10 | F14: ='10 x=0'!$K$3 -> 10683.41913 | G14: 0
C15: 10 | D15: ='10 x=1'!$B$50 -> 19.5407 | E15: 10 | F15: ='10 x=1'!$K$3 -> 10678.95251 | G15: 1
C16: 10 | D16: ='10 x=2'!$B$50 -> 19.5407 | E16: 10 | F16: ='10 x=2'!$K$3 -> 10672.3188 | G16: 2
B17: ='PI vs x'!$C$17 & "mm gap" -> 30mm gap | C17: ='30 x=-2'!B48 -> 30 | D17: ='30 x=-2'!$B$50 -> 39.6086 | E17: 30.0679 | F17: ='30 x=-2'!$K$3 -> 2450.371657 | G17: =G12 -> -2
C18: 30 | D18: ='30 x=-1'!$B$50 -> 39.6086 | E18: 30.0679 | F18: ='30 x=-1'!$K$3 -> 2453.244142 | G18: =G13 -> -1
C19: 30 | D19: ='30 x=0'!$B$50 -> 39.6086 | E19: 30.0679 | F19: ='30 x=0'!$K$3 -> 2453.37673 | G19: 0
C20: 30 | D20: ='30 x=1'!$B$50 -> 39.6086 | E20: 30.0679 | F20: ='30 x=1'!$K$3 -> 2450.812296 | G20: 1
C21: 30 | D21: ='30 x=2'!$B$50 -> 39.6086 | E21: 30.0679 | F21: ='30 x=2'!$K$3 -> 2445.916271 | G21: 2

Sheet 10 x=-2
A1: =IF('DF raw data'!A1="","",'DF raw data'!A1) -> Number of header lines | B1: =IF('DF raw data'!B1="","",'DF raw data'!B1) -> 54 | C1: =IF('DF raw data'!C1="","",'DF raw data'!C1) ->  | D1: =IF('DF raw data'!D1="","",'DF raw data'!D1) ->  | F1: T_coeff | G1: -0.001 | H1: /degC | J1: IBy total | K1: =J1262*1000 -> -7.825802517 | L1: muTm | M1: =L1262*1000 -> 54.66313211 | R1: DF ref | S1: 1
A2: =IF('DF raw data'!A2="","",'DF raw data'!A2) -> Measured by | B2: =IF('DF raw data'!B2="","",'DF raw data'!B2) -> Danfysik | C2: =IF('DF raw data'!C2="","",'DF raw data'!C2) ->  | D2: =IF('DF raw data'!D2="","",'DF raw data'!D2) ->  | F2: Tcorr | G2: 20 | H2: degC | J2: JBy total | K2: =K1262 -> -15.49837464 | L2: muTm^2 | M2: =M1262 -> 19.33578044
A3: =IF('DF raw data'!A3="","",'DF raw data'!A3) -> Operator | B3: =IF('DF raw data'!B3="","",'DF raw data'!B3) -> PMHA | C3: =IF('DF raw data'!C3="","",'DF raw data'!C3) ->  | D3: =IF('DF raw data'!D3="","",'DF raw data'!D3) ->  | F3: Step | G3: =A63-A62 -> 0.5 | H3: mm | J3: PI total | K3: =N1262 -> 10674.75834 | L3: T^2mm^3
A4: =IF('DF raw data'!A4="","",'DF raw data'!A4) -> Data-time | B4: =IF('DF raw data'!B4="","",'DF raw data'!B4) -> 28-08-2024, 09:10:15 | C4: =IF('DF raw data'!C4="","",'DF raw data'!C4) ->  | D4: =IF('DF raw data'!D4="","",'DF raw data'!D4) -> 
A5: =IF('DF raw data'!A5="","",'DF raw data'!A5) -> Project | B5: =IF('DF raw data'!B5="","",'DF raw data'!B5) -> 504314 | C5: =IF('DF raw data'!C5="","",'DF raw data'!C5) ->  | D5: =IF('DF raw data'!D5="","",'DF raw data'!D5) -> 
A6: =IF('DF raw data'!A6="","",'DF raw data'!A6) -> Magnet type | B6: =IF('DF raw data'!B6="","",'DF raw data'!B6) -> Dipole | C6: =IF('DF raw data'!C6="","",'DF raw data'!C6) ->  | D6: =IF('DF raw data'!D6="","",'DF raw data'!D6) -> 
A7: =IF('DF raw data'!A7="","",'DF raw data'!A7) -> Magnet nr. | B7: =IF('DF raw data'!B7="","",'DF raw data'!B7) -> 2410092 | C7: =IF('DF raw data'!C7="","",'DF raw data'!C7) ->  | D7: =IF('DF raw data'!D7="","",'DF raw data'!D7) -> 
A8: =IF('DF raw data'!A8="","",'DF raw data'!A8) -> Meas. number | B8: =IF('DF raw data'!B8="","",'DF raw data'!B8) -> 213 | C8: =IF('DF raw data'!C8="","",'DF raw data'!C8) ->  | D8: =IF('DF raw data'!D8="","",'DF raw data'!D8) -> 
A9: =IF('DF raw data'!A9="","",'DF raw data'!A9) -> Add. info | B9: =IF('DF raw data'!B9="","",'DF raw data'!B9) -> X-alignment scan 1) | C9: =IF('DF raw data'!C9="","",'DF raw data'!C9) ->  | D9: =IF('DF raw data'!D9="","",'DF raw data'!D9) -> 
A10: =IF('DF raw data'!A10="","",'DF raw data'!A10) -> Device | B10: =IF('DF raw data'!B10="","",'DF raw data'!B10) -> (HAL) HALL-PROBE | C10: =IF('DF raw data'!C10="","",'DF raw data'!C10) ->  | D10: =IF('DF raw data'!D10="","",'DF raw data'!D10) -> 
A11: =IF('DF raw data'!A11="","",'DF raw data'!A11) -> Goal | B11: =IF('DF raw data'!B11="","",'DF raw data'!B11) -> (AXI) AXis Integral (Line, EFB) | C11: =IF('DF raw data'!C11="","",'DF raw data'!C11) ->  | D11: =IF('DF raw data'!D11="","",'DF raw data'!D11) -> 
A12: =IF('DF raw data'!A12="","",'DF raw data'!A12) -> Power supply mode | B12: =IF('DF raw data'!B12="","",'DF raw data'!B12) -> (PM) Permanent Magnet (no MPS in use) | C12: =IF('DF raw data'!C12="","",'DF raw data'!C12) ->  | D12: =IF('DF raw data'!D12="","",'DF raw data'!D12) -> 
A13: =IF('DF raw data'!A13="","",'DF raw data'!A13) -> Data format | B13: =IF('DF raw data'!B13="","",'DF raw data'!B13) -> Raw data text file | C13: =IF('DF raw data'!C13="","",'DF raw data'!C13) ->  | D13: =IF('DF raw data'!D13="","",'DF raw data'!D13) -> 
A14: =IF('DF raw data'!A14="","",'DF raw data'!A14) -> Direction of the pos. x-axis | B14: =IF('DF raw data'!B14="","",'DF raw data'!B14) -> See test program | C14: =IF('DF raw data'!C14="","",'DF raw data'!C14) ->  | D14: =IF('DF raw data'!D14="","",'DF raw data'!D14) -> 
A15: =IF('DF raw data'!A15="","",'DF raw data'!A15) -> Direction of the pos. y-axis | B15: =IF('DF raw data'!B15="","",'DF raw data'!B15) -> Vertical up | C15: =IF('DF raw data'!C15="","",'DF raw data'!C15) ->  | D15: =IF('DF raw data'!D15="","",'DF raw data'!D15) -> 
A16: =IF('DF raw data'!A16="","",'DF raw data'!A16) -> Direction of the pos. z-axis | B16: =IF('DF raw data'!B16="","",'DF raw data'!B16) -> See test program | C16: =IF('DF raw data'!C16="","",'DF raw data'!C16) ->  | D16: =IF('DF raw data'!D16="","",'DF raw data'!D16) -> 
A17: =IF('DF raw data'!A17="","",'DF raw data'!A17) -> Mapper type | B17: =IF('DF raw data'!B17="","",'DF raw data'!B17) -> Precision Hall Mapper | C17: =IF('DF raw data'!C17="","",'DF raw data'!C17) ->  | D17: =IF('DF raw data'!D17="","",'DF raw data'!D17) -> 
A18: =IF('DF raw data'!A18="","",'DF raw data'!A18) -> Mapper Danfysik Reg. Number | B18: =IF('DF raw data'!B18="","",'DF raw data'!B18) -> 2033-D (mapper 1) | C18: =IF('DF raw data'!C18="","",'DF raw data'!C18) ->  | D18: =IF('DF raw data'!D18="","",'DF raw data'!D18) -> 
A19: =IF('DF raw data'!A19="","",'DF raw data'!A19) -> Measurement consept | B19: =IF('DF raw data'!B19="","",'DF raw data'!B19) -> Square line grid | C19: =IF('DF raw data'!C19="","",'DF raw data'!C19) ->  | D19: =IF('DF raw data'!D19="","",'DF raw data'!D19) -> 
A20: =IF('DF raw data'!A20="","",'DF raw data'!A20) -> Mode | B20: =IF('DF raw data'!B20="","",'DF raw data'!B20) -> On-the-fly measurement | C20: =IF('DF raw data'!C20="","",'DF raw data'!C20) ->  | D20: =IF('DF raw data'!D20="","",'DF raw data'!D20) -> 
A21: =IF('DF raw data'!A21="","",'DF raw data'!A21) ->  | B21: =IF('DF raw data'!B21="","",'DF raw data'!B21) ->  | C21: =IF('DF raw data'!C21="","",'DF raw data'!C21) ->  | D21: =IF('DF raw data'!D21="","",'DF raw data'!D21) -> 
A22: =IF('DF raw data'!A22="","",'DF raw data'!A22) -> Probe Name | B22: =IF('DF raw data'!B22="","",'DF raw data'!B22) -> ID12_By | C22: =IF('DF raw data'!C22="","",'DF raw data'!C22) ->  | D22: =IF('DF raw data'!D22="","",'DF raw data'!D22) -> 
A23: =IF('DF raw data'!A23="","",'DF raw data'!A23) -> Probe Type | B23: =IF('DF raw data'!B23="","",'DF raw data'!B23) -> DF_ID_3D_Bxyz | C23: =IF('DF raw data'!C23="","",'DF raw data'!C23) ->  | D23: =IF('DF raw data'!D23="","",'DF raw data'!D23) -> 
A24: =IF('DF raw data'!A24="","",'DF raw data'!A24) -> Probe Danfysik Reg. Number | B24: =IF('DF raw data'!B24="","",'DF raw data'!B24) -> 2277 | C24: =IF('DF raw data'!C24="","",'DF raw data'!C24) ->  | D24: =IF('DF raw data'!D24="","",'DF raw data'!D24) -> 
A25: =IF('DF raw data'!A25="","",'DF raw data'!A25) -> Probe Axis | B25: =IF('DF raw data'!B25="","",'DF raw data'!B25) -> By | C25: =IF('DF raw data'!C25="","",'DF raw data'!C25) ->  | D25: =IF('DF raw data'!D25="","",'DF raw data'!D25) -> 
A26: =IF('DF raw data'!A26="","",'DF raw data'!A26) -> Probe Current Supply | B26: =IF('DF raw data'!B26="","",'DF raw data'!B26) -> 1825-D | C26: =IF('DF raw data'!C26="","",'DF raw data'!C26) ->  | D26: =IF('DF raw data'!D26="","",'DF raw data'!D26) -> 
A27: =IF('DF raw data'!A27="","",'DF raw data'!A27) -> Probe Gain Correction | B27: =IF('DF raw data'!B27="","",'DF raw data'!B27) -> 0.99615 | C27: =IF('DF raw data'!C27="","",'DF raw data'!C27) ->  | D27: =IF('DF raw data'!D27="","",'DF raw data'!D27) -> 
A28: =IF('DF raw data'!A28="","",'DF raw data'!A28) -> Probe Offset Correction | B28: =IF('DF raw data'!B28="","",'DF raw data'!B28) -> 0.0027485 | C28: =IF('DF raw data'!C28="","",'DF raw data'!C28) ->  | D28: =IF('DF raw data'!D28="","",'DF raw data'!D28) -> 
A29: =IF('DF raw data'!A29="","",'DF raw data'!A29) -> DVM Number | B29: =IF('DF raw data'!B29="","",'DF raw data'!B29) -> 2 | C29: =IF('DF raw data'!C29="","",'DF raw data'!C29) ->  | D29: =IF('DF raw data'!D29="","",'DF raw data'!D29) -> 
A30: =IF('DF raw data'!A30="","",'DF raw data'!A30) -> DVM Type | B30: =IF('DF raw data'!B30="","",'DF raw data'!B30) -> K2701 | C30: =IF('DF raw data'!C30="","",'DF raw data'!C30) ->  | D30: =IF('DF raw data'!D30="","",'DF raw data'!D30) -> 
A31: =IF('DF raw data'!A31="","",'DF raw data'!A31) -> DVM Danfysik Reg. Number | B31: =IF('DF raw data'!B31="","",'DF raw data'!B31) -> 1743-D | C31: =IF('DF raw data'!C31="","",'DF raw data'!C31) ->  | D31: =IF('DF raw data'!D31="","",'DF raw data'!D31) -> 
A32: =IF('DF raw data'!A32="","",'DF raw data'!A32) -> Probe Name | B32: =IF('DF raw data'!B32="","",'DF raw data'!B32) -> ID12_Bx | C32: =IF('DF raw data'!C32="","",'DF raw data'!C32) ->  | D32: =IF('DF raw data'!D32="","",'DF raw data'!D32) -> 
A33: =IF('DF raw data'!A33="","",'DF raw data'!A33) -> Probe Type | B33: =IF('DF raw data'!B33="","",'DF raw data'!B33) -> DF_ID_3D_Bxyz | C33: =IF('DF raw data'!C33="","",'DF raw data'!C33) ->  | D33: =IF('DF raw data'!D33="","",'DF raw data'!D33) -> 
A34: =IF('DF raw data'!A34="","",'DF raw data'!A34) -> Probe Danfysik Reg. Number | B34: =IF('DF raw data'!B34="","",'DF raw data'!B34) -> 2277 | C34: =IF('DF raw data'!C34="","",'DF raw data'!C34) ->  | D34: =IF('DF raw data'!D34="","",'DF raw data'!D34) -> 
A35: =IF('DF raw data'!A35="","",'DF raw data'!A35) -> Probe Axis | B35: =IF('DF raw data'!B35="","",'DF raw data'!B35) -> Bx | C35: =IF('DF raw data'!C35="","",'DF raw data'!C35) ->  | D35: =IF('DF raw data'!D35="","",'DF raw data'!D35) -> 
A36: =IF('DF raw data'!A36="","",'DF raw data'!A36) -> Probe Current Supply | B36: =IF('DF raw data'!B36="","",'DF raw data'!B36) -> 1825-D | C36: =IF('DF raw data'!C36="","",'DF raw data'!C36) ->  | D36: =IF('DF raw data'!D36="","",'DF raw data'!D36) -> 
A37: =IF('DF raw data'!A37="","",'DF raw data'!A37) -> Probe Gain Correction | B37: =IF('DF raw data'!B37="","",'DF raw data'!B37) -> 1 | C37: =IF('DF raw data'!C37="","",'DF raw data'!C37) ->  | D37: =IF('DF raw data'!D37="","",'DF raw data'!D37) -> 
A38: =IF('DF raw data'!A38="","",'DF raw data'!A38) -> Probe Offset Correction | B38: =IF('DF raw data'!B38="","",'DF raw data'!B38) -> -0.17548 | C38: =IF('DF raw data'!C38="","",'DF raw data'!C38) ->  | D38: =IF('DF raw data'!D38="","",'DF raw data'!D38) -> 
A39: =IF('DF raw data'!A39="","",'DF raw data'!A39) -> DVM Number | B39: =IF('DF raw data'!B39="","",'DF raw data'!B39) -> 3 | C39: =IF('DF raw data'!C39="","",'DF raw data'!C39) ->  | D39: =IF('DF raw data'!D39="","",'DF raw data'!D39) -> 
A40: =IF('DF raw data'!A40="","",'DF raw data'!A40) -> DVM Type | B40: =IF('DF raw data'!B40="","",'DF raw data'!B40) -> K2701 | C40: =IF('DF raw data'!C40="","",'DF raw data'!C40) ->  | D40: =IF('DF raw data'!D40="","",'DF raw data'!D40) -> 
A41: =IF('DF raw data'!A41="","",'DF raw data'!A41) -> DVM Danfysik Reg. Number | B41: =IF('DF raw data'!B41="","",'DF raw data'!B41) -> 1744-D | C41: =IF('DF raw data'!C41="","",'DF raw data'!C41) ->  | D41: =IF('DF raw data'!D41="","",'DF raw data'!D41) -> 
A42: =IF('DF raw data'!A42="","",'DF raw data'!A42) -> Probe Name | B42: =IF('DF raw data'!B42="","",'DF raw data'!B42) -> ID12_Bz | C42: =IF('DF raw data'!C42="","",'DF raw data'!C42) ->  | D42: =IF('DF raw data'!D42="","",'DF raw data'!D42) -> 
A43: =IF('DF raw data'!A43="","",'DF raw data'!A43) -> Probe Type | B43: =IF('DF raw data'!B43="","",'DF raw data'!B43) -> DF_ID_3D_Bxyz | C43: =IF('DF raw data'!C43="","",'DF raw data'!C43) ->  | D43: =IF('DF raw data'!D43="","",'DF raw data'!D43) -> 
A44: =IF('DF raw data'!A44="","",'DF raw data'!A44) -> Probe Danfysik Reg. Number | B44: =IF('DF raw data'!B44="","",'DF raw data'!B44) -> 2277 | C44: =IF('DF raw data'!C44="","",'DF raw data'!C44) ->  | D44: =IF('DF raw data'!D44="","",'DF raw data'!D44) -> 
A45: =IF('DF raw data'!A45="","",'DF raw data'!A45) -> Probe Axis | B45: =IF('DF raw data'!B45="","",'DF raw data'!B45) -> Bz | C45: =IF('DF raw data'!C45="","",'DF raw data'!C45) ->  | D45: =IF('DF raw data'!D45="","",'DF raw data'!D45) -> 
A46: =IF('DF raw data'!A46="","",'DF raw data'!A46) -> Probe Current Supply | B46: =IF('DF raw data'!B46="","",'DF raw data'!B46) -> 1825-D | C46: =IF('DF raw data'!C46="","",'DF raw data'!C46) ->  | D46: =IF('DF raw data'!D46="","",'DF raw data'!D46) -> 
A47: =IF('DF raw data'!A47="","",'DF raw data'!A47) -> Probe Gain Correction | B47: =IF('DF raw data'!B47="","",'DF raw data'!B47) -> 1 | C47: =IF('DF raw data'!C47="","",'DF raw data'!C47) ->  | D47: =IF('DF raw data'!D47="","",'DF raw data'!D47) -> 
A48: =IF('DF raw data'!A53="","",'DF raw data'!A53) -> PS-Gap: | B48: =IF('DF raw data'!B53="","",'DF raw data'!B53) -> 10 | C48: =IF('DF raw data'!C53="","",'DF raw data'!C53) ->  | D48: =IF('DF raw data'!D53="","",'DF raw data'!D53) -> 
A49: =IF('DF raw data'!A54="","",'DF raw data'!A54) -> PS-Temperature: | B49: =IF('DF raw data'!B54="","",'DF raw data'!B54) -> 24.8 | C49: =IF('DF raw data'!C54="","",'DF raw data'!C54) ->  | D49: =IF('DF raw data'!D54="","",'DF raw data'!D54) -> 
A50: =IF('DF raw data'!A55="","",'DF raw data'!A55) -> PS-Encoder: | B50: =IF('DF raw data'!B55="","",'DF raw data'!B55) -> 19.5407 | C50: =IF('DF raw data'!C55="","",'DF raw data'!C55) ->  | D50: =IF('DF raw data'!D55="","",'DF raw data'!D55) -> 
A51: =IF('DF raw data'!A56="","",'DF raw data'!A56) ->  | B51: =IF('DF raw data'!B56="","",'DF raw data'!B56) ->  | C51: =IF('DF raw data'!C56="","",'DF raw data'!C56) ->  | D51: =IF('DF raw data'!D56="","",'DF raw data'!D56) -> 
A52: =IF('DF raw data'!A57="","",'DF raw data'!A57) -> Monitor-Index | B52: =IF('DF raw data'!B57="","",'DF raw data'!B57) -> [1,1,4] | C52: =IF('DF raw data'!C57="","",'DF raw data'!C57) ->  | D52: =IF('DF raw data'!D57="","",'DF raw data'!D57) -> 
A53: =IF('DF raw data'!A58="","",'DF raw data'!A58) ->  | B53: =IF('DF raw data'!B58="","",'DF raw data'!B58) ->  | C53: =IF('DF raw data'!C58="","",'DF raw data'!C58) ->  | D53: =IF('DF raw data'!D58="","",'DF raw data'!D58) -> 
A54: =IF('DF raw data'!A59="","",'DF raw data'!A59) -> Time [s] | B54: =IF('DF raw data'!B59="","",'DF raw data'!B59) -> Y [mm] | C54: =IF('DF raw data'!C59="","",'DF raw data'!C59) -> X [mm] | D54: =IF('DF raw data'!D59="","",'DF raw data'!D59) -> Nominal current [A]
A55: =IF('DF raw data'!A60="","",'DF raw data'!A60) ->  | B55: =IF('DF raw data'!B60="","",'DF raw data'!B60) ->  | C55: =IF('DF raw data'!C60="","",'DF raw data'!C60) ->  | D55: =IF('DF raw data'!D60="","",'DF raw data'!D60) -> 
A56: =IF('DF raw data'!A61="","",'DF raw data'!A61) -> 245.9 | B56: =IF('DF raw data'!B61="","",'DF raw data'!B61) -> 31.16 | C56: =IF('DF raw data'!C61="","",'DF raw data'!C61) -> 299.8 | D56: =IF('DF raw data'!D61="","",'DF raw data'!D61) -> 0
A57: =IF('DF raw data'!A62="","",'DF raw data'!A62) ->  | B57: =IF('DF raw data'!B62="","",'DF raw data'!B62) ->  | C57: =IF('DF raw data'!C62="","",'DF raw data'!C62) ->  | D57: =IF('DF raw data'!D62="","",'DF raw data'!D62) -> 
A58: =IF('DF raw data'!A63="","",'DF raw data'!A63) -> Measurement-Index | B58: =IF('DF raw data'!B63="","",'DF raw data'!B63) -> [1,1,1201,2] | C58: =IF('DF raw data'!C63="","",'DF raw data'!C63) ->  | D58: =IF('DF raw data'!D63="","",'DF raw data'!D63) -> 
A59: =IF('DF raw data'!A64="","",'DF raw data'!A64) ->  | B59: =IF('DF raw data'!B64="","",'DF raw data'!B64) ->  | C59: =IF('DF raw data'!C64="","",'DF raw data'!C64) ->  | D59: =IF('DF raw data'!D64="","",'DF raw data'!D64) -> 
A60: =IF('DF raw data'!A65="","",'DF raw data'!A65) -> Z [mm] | B60: =IF('DF raw data'!B65="","",'DF raw data'!B65) -> By [T] | C60: =IF('DF raw data'!C65="","",'DF raw data'!C65) -> Bx [T] | D60: =IF('DF raw data'!D65="","",'DF raw data'!D65) -> Bz [T] | F60: By_corr | G60: Bx_corr | H60: Bz_corr | J60: Iy | K60: Jy | L60: Ix | M60: Jx | N60: PI
A62: =IF('DF raw data'!A67="","",'DF raw data'!A67) -> -300 | B62: =IF('DF raw data'!B67="","",'DF raw data'!B67) -> -2.47246e-05 | C62: =IF('DF raw data'!C67="","",'DF raw data'!C67) -> 0.000192101 | D62: =IF('DF raw data'!D67="","",'DF raw data'!D67) -> -1.90214e-05 | F62: =(1-$G$1*($B$49))*B62 -> -2.533777008e-05 | G62: =(1-$G$1*($B$49-$G$2))*C62 -> 0.0001930230848 | H62: =(1-$G$1*($B$49-$G$2))*D62 -> -1.911270272e-05 | J62: =F62*$G$3 -> -1.266888504e-05 | K62: =J62*$G$3 -> -6.33444252e-06 | L62: =G62*$G$3 -> 9.65115424e-05 | M62: =L62*$G$3 -> 4.82557712e-05 | N62: =(J62^2+L62^2)*$G$3 -> 4.737489232e-09
A63: =IF('DF raw data'!A68="","",'DF raw data'!A68) -> -299.5 | B63: =IF('DF raw data'!B68="","",'DF raw data'!B68) -> -3.2478e-05 | C63: =IF('DF raw data'!C68="","",'DF raw data'!C68) -> 0.000186649 | D63: =IF('DF raw data'!D68="","",'DF raw data'!D68) -> -1.84989e-05 | F63: =(1-$G$1*($B$49-$G$2))*B63 -> -3.26338944e-05 | G63: =(1-$G$1*($B$49-$G$2))*C63 -> 0.0001875449152 | H63: -1.858769472e-05 | J63: =F63*$G$3+J62 -> -2.898583224e-05 | K63: =J63*$G$3+K62 -> -2.082735864e-05 | L63: =G63*$G$3+L62 -> 0.000190284 | M63: =L63*$G$3+M62 -> 0.0001433977712 | N63: =(J63^2+L63^2)*$G$3+N62 -> 2.32615788e-08
A64: =IF('DF raw data'!A69="","",'DF raw data'!A69) -> -299 | B64: =IF('DF raw data'!B69="","",'DF raw data'!B69) -> -2.58145e-05 | C64: =IF('DF raw data'!C69="","",'DF raw data'!C69) -> 0.000184051 | D64: =IF('DF raw data'!D69="","",'DF raw data'!D69) -> -1.77578e-05 | F64: =(1-$G$1*($B$49-$G$2))*B64 -> -2.59384096e-05 | G64: 0.0001849344448 | H64: -1.784303744e-05 | J64: =F64*$G$3+J63 -> -4.195503704e-05 | K64: =J64*$G$3+K63 -> -4.180487716e-05 | L64: =G64*$G$3+L63 -> 0.0002827512224 | M64: =L64*$G$3+M63 -> 0.0002847733824 | N64: =(J64^2+L64^2)*$G$3+N63 -> 6.411581825e-08
A65: =IF('DF raw data'!A70="","",'DF raw data'!A70) -> -298.5 | B65: =IF('DF raw data'!B70="","",'DF raw data'!B70) -> -2.46613e-05 | C65: =IF('DF raw data'!C70="","",'DF raw data'!C70) -> 0.000182669 | D65: =IF('DF raw data'!D70="","",'DF raw data'!D70) -> -1.75222e-05 | F65: -2.477967424e-05 | G65: 0.0001835458112 | H65: -1.760630656e-05 | J65: -5.434487416e-05 | K65: -6.897731424e-05 | L65: 0.000374524128 | M65: 0.0004720354464 | N65: 1.357266621e-07
A66: =IF('DF raw data'!A71="","",'DF raw data'!A71) -> -298 | B66: =IF('DF raw data'!B71="","",'DF raw data'!B71) -> -2.40206e-05 | C66: =IF('DF raw data'!C71="","",'DF raw data'!C71) -> 0.000178343 | D66: =IF('DF raw data'!D71="","",'DF raw data'!D71) -> -1.75287e-05 | F66: -2.413589888e-05 | G66: 0.0001791990464 | H66: -1.761283776e-05 | J66: -6.64128236e-05 | K66: -0.000102183726 | L66: 0.0004641236512 | M66: 0.000704097272 | N66: 2.456373755e-07
A67: =IF('DF raw data'!A72="","",'DF raw data'!A72) -> -297.5 | B67: =IF('DF raw data'!B72="","",'DF raw data'!B72) -> -1.97276e-05 | C67: =IF('DF raw data'!C72="","",'DF raw data'!C72) -> 0.000181619 | D67: =IF('DF raw data'!D72="","",'DF raw data'!D72) -> -1.73655e-05 | F67: -1.982229248e-05 | G67: 0.0001824907712 | H67: -1.74488544e-05 | J67: -7.632396984e-05 | K67: -0.000140345711 | L67: 0.0005553690368 | M67: 0.0009817817904 | N67: 4.027674332e-07
A68: =IF('DF raw data'!A73="","",'DF raw data'!A73) -> -297 | B68: =IF('DF raw data'!B73="","",'DF raw data'!B73) -> -2.17781e-05 | C68: =IF('DF raw data'!C73="","",'DF raw data'!C73) -> 0.000181538 | D68: =IF('DF raw data'!D73="","",'DF raw data'!D73) -> -1.7078e-05 | F68: -2.188263488e-05 | G68: 0.0001824093824 | H68: -1.71599744e-05 | J68: -8.726528728e-05 | K68: -0.0001839783546 | L68: 0.000646573728 | M68: 0.001305068654 | N68: 6.156038413e-07
A69: =IF('DF raw data'!A74="","",'DF raw data'!A74) -> -296.5 | B69: =IF('DF raw data'!B74="","",'DF raw data'!B74) -> -1.0821e-05 | C69: =IF('DF raw data'!C74="","",'DF raw data'!C74) -> 0.000182225 | D69: =IF('DF raw data'!D74="","",'DF raw data'!D74) -> -1.72147e-05 | F69: -1.08729408e-05 | G69: 0.00018309968 | H69: -1.729733056e-05 | J69: -9.270175768e-05 | K69: -0.0002303292334 | L69: 0.000738123568 | M69: 0.001674130438 | N69: 8.9231385e-07
A70: =IF('DF raw data'!A75="","",'DF raw data'!A75) -> -296 | B70: =IF('DF raw data'!B75="","",'DF raw data'!B75) -> -1.23583e-05 | C70: =IF('DF raw data'!C75="","",'DF raw data'!C75) -> 0.000174375 | D70: =IF('DF raw data'!D75="","",'DF raw data'!D75) -> -1.7957e-05 | F70: -1.241761984e-05 | G70: 0.000175212 | H70: -1.80431936e-05 | J70: -9.89105676e-05 | K70: -0.0002797845172 | L70: 0.000825729568 | M70: 0.002086995222 | N70: 1.23812016e-06
A71: =IF('DF raw data'!A76="","",'DF raw data'!A76) -> -295.5 | B71: =IF('DF raw data'!B76="","",'DF raw data'!B76) -> -7.87225e-06 | C71: =IF('DF raw data'!C76="","",'DF raw data'!C76) -> 0.000174105 | D71: =IF('DF raw data'!D76="","",'DF raw data'!D76) -> -1.87833e-05 | F71: -7.9100368e-06 | G71: 0.000174940704 | H71: -1.887345984e-05 | J71: -0.000102865586 | K71: -0.0003312173102 | L71: 0.00091319992 | M71: 0.002543595182 | N71: 1.660377871e-06
A72: =IF('DF raw data'!A77="","",'DF raw data'!A77) -> -295 | B72: =IF('DF raw data'!B77="","",'DF raw data'!B77) -> -2.07518e-05 | C72: =IF('DF raw data'!C77="","",'DF raw data'!C77) -> 0.000176193 | D72: =IF('DF raw data'!D77="","",'DF raw data'!D77) -> -1.88959e-05 | F72: -2.085140864e-05 | G72: 0.0001770387264 | H72: -1.898660032e-05 | J72: -0.0001132912903 | K72: -0.0003878629554 | L72: 0.001001719283 | M72: 0.003044454824 | N72: 2.168516091e-06
A73: =IF('DF raw data'!A78="","",'DF raw data'!A78) -> -294.5 | B73: =IF('DF raw data'!B78="","",'DF raw data'!B78) -> -1.50493e-05 | C73: =IF('DF raw data'!C78="","",'DF raw data'!C78) -> 0.000170356 | D73: =IF('DF raw data'!D78="","",'DF raw data'!D78) -> -1.8465e-05 | F73: -1.512153664e-05 | G73: 0.0001711737088 | H73: -1.8553632e-05 | J73: -0.0001208520586 | K73: -0.0004482889847 | L73: 0.001087306138 | M73: 0.003588107893 | N73: 2.766936019e-06
A74: =IF('DF raw data'!A79="","",'DF raw data'!A79) -> -294 | B74: =IF('DF raw data'!B79="","",'DF raw data'!B79) -> -2.01117e-05 | C74: =IF('DF raw data'!C79="","",'DF raw data'!C79) -> 0.000180546 | D74: =IF('DF raw data'!D79="","",'DF raw data'!D79) -> -1.78304e-05 | F74: -2.020823616e-05 | G74: 0.0001814126208 | H74: -1.791598592e-05 | J74: -0.0001309561767 | K74: -0.0005137670731 | L74: 0.001178012448 | M74: 0.004177114117 | N74: 3.469367443e-06
A75: =IF('DF raw data'!A80="","",'DF raw data'!A80) -> -293.5 | B75: =IF('DF raw data'!B80="","",'DF raw data'!B80) -> -1.63315e-05 | C75: =IF('DF raw data'!C80="","",'DF raw data'!C80) -> 0.000184987 | D75: =IF('DF raw data'!D80="","",'DF raw data'!D80) -> -1.73761e-05 | F75: -1.64098912e-05 | G75: 0.0001858749376 | H75: -1.745950528e-05 | J75: -0.0001391611223 | K75: -0.0005833476342 | L75: 0.001270949917 | M75: 0.004812589075 | N75: 4.286707198e-06
A76: =IF('DF raw data'!A81="","",'DF raw data'!A81) -> -293 | B76: =IF('DF raw data'!B81="","",'DF raw data'!B81) -> -9.5394e-06 | C76: =IF('DF raw data'!C81="","",'DF raw data'!C81) -> 0.000179717 | D76: =IF('DF raw data'!D81="","",'DF raw data'!D81) -> -1.73199e-05 | F76: -9.58518912e-06 | G76: 0.0001805796416 | H76: -1.740303552e-05 | J76: -0.0001439537169 | K76: -0.0006553244927 | L76: 0.001361239738 | M76: 0.005493208944 | N76: 5.223555345e-06
A77: =IF('DF raw data'!A82="","",'DF raw data'!A82) -> -292.5 | B77: =IF('DF raw data'!B82="","",'DF raw data'!B82) -> -1.26147e-05 | C77: =IF('DF raw data'!C82="","",'DF raw data'!C82) -> 0.000181301 | D77: =IF('DF raw data'!D82="","",'DF raw data'!D82) -> -1.76661e-05 | F77: -1.267525056e-05 | G77: 0.0001821712448 | H77: -1.775089728e-05 | J77: -0.0001502913422 | K77: -0.0007304701638 | L77: 0.00145232536 | M77: 0.006219371624 | N77: 6.289473565e-06
A78: =IF('DF raw data'!A83="","",'DF raw data'!A83) -> -292 | B78: =IF('DF raw data'!B83="","",'DF raw data'!B83) -> -3.32305e-06 | C78: =IF('DF raw data'!C83="","",'DF raw data'!C83) -> 0.00018403 | D78: =IF('DF raw data'!D83="","",'DF raw data'!D83) -> -1.84577e-05 | F78: -3.33900064e-06 | G78: 0.000184913344 | H78: -1.854629696e-05 | J78: -0.0001519608425 | K78: -0.000806450585 | L78: 0.001544782032 | M78: 0.00699176264 | N78: 7.494195377e-06
A79: =IF('DF raw data'!A84="","",'DF raw data'!A84) -> -291.5 | B79: =IF('DF raw data'!B84="","",'DF raw data'!B84) -> -1.30634e-05 | C79: =IF('DF raw data'!C84="","",'DF raw data'!C84) -> 0.000189282 | D79: =IF('DF raw data'!D84="","",'DF raw data'!D84) -> -1.76394e-05 | F79: -1.312610432e-05 | G79: 0.0001901905536 | H79: -1.772406912e-05 | J79: -0.0001585238946 | K79: -0.0008857125323 | L79: 0.001639877309 | M79: 0.007811701294 | N79: 8.851359083e-06
A80: =IF('DF raw data'!A85="","",'DF raw data'!A85) -> -291 | B80: =IF('DF raw data'!B85="","",'DF raw data'!B85) -> -1.19053e-05 | C80: =IF('DF raw data'!C85="","",'DF raw data'!C85) -> 0.000190959 | D80: =IF('DF raw data'!D85="","",'DF raw data'!D85) -> -2.49447e-05 | F80: -1.196244544e-05 | G80: 0.0001918756032 | H80: -2.506443456e-05 | J80: -0.0001645051174 | K80: -0.000967965091 | L80: 0.00173581511 | M80: 0.00867960885 | N80: 1.03714171e-05
A81: =IF('DF raw data'!A86="","",'DF raw data'!A86) -> -290.5 | B81: =IF('DF raw data'!B86="","",'DF raw data'!B86) -> -2.8063e-05 | C81: =IF('DF raw data'!C86="","",'DF raw data'!C86) -> 0.000189955 | D81: =IF('DF raw data'!D86="","",'DF raw data'!D86) -> -8.95285e-06 | F81: -2.81977024e-05 | G81: 0.000190866784 | H81: -8.99582368e-06 | J81: -0.0001786039686 | K81: -0.001057267075 | L81: 0.001831248502 | M81: 0.009595233101 | N81: 1.206410233e-05
A82: =IF('DF raw data'!A87="","",'DF raw data'!A87) -> -290 | B82: =IF('DF raw data'!B87="","",'DF raw data'!B87) -> -1.24839e-05 | C82: =IF('DF raw data'!C87="","",'DF raw data'!C87) -> 0.000187977 | D82: =IF('DF raw data'!D87="","",'DF raw data'!D87) -> -2.18861e-05 | F82: -1.254382272e-05 | G82: 0.0001888792896 | H82: -2.199115328e-05 | J82: -0.0001848758799 | K82: -0.001149705015 | L82: 0.001925688147 | M82: 0.01055807717 | N82: 1.393532929e-05
A83: =IF('DF raw data'!A88="","",'DF raw data'!A88) -> -289.5 | B83: =IF('DF raw data'!B88="","",'DF raw data'!B88) -> -1.98584e-05 | C83: =IF('DF raw data'!C88="","",'DF raw data'!C88) -> 0.000187602 | D83: =IF('DF raw data'!D88="","",'DF raw data'!D88) -> -1.3219e-05 | F83: -1.995372032e-05 | G83: 0.0001885024896 | H83: -1.32824512e-05 | J83: -0.0001948527401 | K83: -0.001247131385 | L83: 0.002019939392 | M83: 0.01156804687 | N83: 1.599439066e-05
A84: =IF('DF raw data'!A89="","",'DF raw data'!A89) -> -289 | B84: =IF('DF raw data'!B89="","",'DF raw data'!B89) -> -1.38335e-05 | C84: =IF('DF raw data'!C89="","",'DF raw data'!C89) -> 0.000186338 | D84: =IF('DF raw data'!D89="","",'DF raw data'!D89) -> -1.58281e-05 | F84: -1.38999008e-05 | G84: 0.0001872324224 | H84: -1.590407488e-05 | J84: -0.0002018026905 | K84: -0.001348032731 | L84: 0.002113555603 | M84: 0.01262482467 | N84: 1.824831147e-05
A85: =IF('DF raw data'!A90="","",'DF raw data'!A90) -> -288.5 | B85: =IF('DF raw data'!B90="","",'DF raw data'!B90) -> -1.68407e-05 | C85: =IF('DF raw data'!C90="","",'DF raw data'!C90) -> 0.000188 | D85: =IF('DF raw data'!D90="","",'DF raw data'!D90) -> -2.25566e-05 | F85: -1.692153536e-05 | G85: 0.0001889024 | H85: -2.266487168e-05 | J85: -0.0002102634582 | K85: -0.00145316446 | L85: 0.002208006803 | M85: 0.01372882807 | N85: 2.070806385e-05
A86: =IF('DF raw data'!A91="","",'DF raw data'!A91) -> -288 | B86: =IF('DF raw data'!B91="","",'DF raw data'!B91) -> -3.11901e-05 | C86: =IF('DF raw data'!C91="","",'DF raw data'!C91) -> 0.000186562 | D86: =IF('DF raw data'!D91="","",'DF raw data'!D91) -> -2.85196e-05 | F86: -3.133981248e-05 | G86: 0.0001874574976 | H86: -2.865649408e-05 | J86: -0.0002259333644 | K86: -0.001566131142 | L86: 0.002301735552 | M86: 0.01487969585 | N86: 2.338258007e-05
A87: =IF('DF raw data'!A92="","",'DF raw data'!A92) -> -287.5 | B87: =IF('DF raw data'!B92="","",'DF raw data'!B92) -> -2.35703e-05 | C87: =IF('DF raw data'!C92="","",'DF raw data'!C92) -> 0.000194549 | D87: =IF('DF raw data'!D92="","",'DF raw data'!D92) -> -2.0021e-05 | F87: -2.368343744e-05 | G87: 0.0001954828352 | H87: -2.01171008e-05 | J87: -0.0002377750831 | K87: -0.001685018683 | L87: 0.00239947697 | M87: 0.01607943433 | N87: 2.628959343e-05
A88: =IF('DF raw data'!A93="","",'DF raw data'!A93) -> -287 | B88: =IF('DF raw data'!B93="","",'DF raw data'!B93) -> -2.65774e-05 | C88: =IF('DF raw data'!C93="","",'DF raw data'!C93) -> 0.000196433 | D88: =IF('DF raw data'!D93="","",'DF raw data'!D93) -> -2.70097e-05 | F88: -2.670497152e-05 | G88: 0.0001973758784 | H88: -2.713934656e-05 | J88: -0.0002511275689 | K88: -0.001810582468 | L88: 0.002498164909 | M88: 0.01732851679 | N88: 2.944153991e-05
A89: =IF('DF raw data'!A94="","",'DF raw data'!A94) -> -286.5 | B89: =IF('DF raw data'!B94="","",'DF raw data'!B94) -> -2.70976e-05 | C89: =IF('DF raw data'!C94="","",'DF raw data'!C94) -> 0.000183044 | D89: =IF('DF raw data'!D94="","",'DF raw data'!D94) -> -1.56992e-05 | F89: -2.722766848e-05 | G89: 0.0001839226112 | H89: -1.577455616e-05 | J89: -0.0002647414031 | K89: -0.001942953169 | L89: 0.002590126214 | M89: 0.0186235799 | N89: 3.283096082e-05
A90: =IF('DF raw data'!A95="","",'DF raw data'!A95) -> -286 | B90: =IF('DF raw data'!B95="","",'DF raw data'!B95) -> -2.53736e-05 | C90: =IF('DF raw data'!C95="","",'DF raw data'!C95) -> 0.000176686 | D90: =IF('DF raw data'!D95="","",'DF raw data'!D95) -> -6.2434e-06 | F90: -2.549539328e-05 | G90: 0.0001775340928 | H90: -6.27336832e-06 | J90: -0.0002774890998 | K90: -0.002081697719 | L90: 0.002678893261 | M90: 0.01996302653 | N90: 3.645769547e-05
A91: =IF('DF raw data'!A96="","",'DF raw data'!A96) -> -285.5 | B91: =IF('DF raw data'!B96="","",'DF raw data'!B96) -> -2.60738e-05 | C91: =IF('DF raw data'!C96="","",'DF raw data'!C96) -> 0.00018095 | D91: =IF('DF raw data'!D96="","",'DF raw data'!D96) -> -1.31545e-05 | F91: -2.619895424e-05 | G91: 0.00018181856 | H91: -1.32176416e-05 | J91: -0.0002905885769 | K91: -0.002226992008 | L91: 0.002769802541 | M91: 0.0213479278 | N91: 4.033581939e-05
A92: =IF('DF raw data'!A97="","",'DF raw data'!A97) -> -285 | B92: =IF('DF raw data'!B97="","",'DF raw data'!B97) -> -2.043e-05 | C92: =IF('DF raw data'!C97="","",'DF raw data'!C97) -> 0.000180406 | D92: =IF('DF raw data'!D97="","",'DF raw data'!D97) -> -2.08572e-05 | F92: -2.0528064e-05 | G92: 0.0001812719488 | H92: -2.095731456e-05 | J92: -0.0003008526089 | K92: -0.002377418312 | L92: 0.002860438515 | M92: 0.02277814705 | N92: 4.447212979e-05
A93: =IF('DF raw data'!A98="","",'DF raw data'!A98) -> -284.5 | B93: =IF('DF raw data'!B98="","",'DF raw data'!B98) -> -1.60124e-05 | C93: =IF('DF raw data'!C98="","",'DF raw data'!C98) -> 0.000175809 | D93: =IF('DF raw data'!D98="","",'DF raw data'!D98) -> -1.52644e-05 | F93: -1.608925952e-05 | G93: 0.0001766528832 | H93: -1.533766912e-05 | J93: -0.0003088972386 | K93: -0.002531866931 | L93: 0.002948764957 | M93: 0.02425252953 | N93: 4.886744592e-05
A94: =IF('DF raw data'!A99="","",'DF raw data'!A99) -> -284 | B94: =IF('DF raw data'!B99="","",'DF raw data'!B99) -> -2.4277e-05 | C94: =IF('DF raw data'!C99="","",'DF raw data'!C99) -> 0.000183908 | D94: =IF('DF raw data'!D99="","",'DF raw data'!D99) -> -1.73916e-05 | F94: -2.43935296e-05 | G94: 0.0001847907584 | H94: -1.747507968e-05 | J94: -0.0003210940034 | K94: -0.002692413933 | L94: 0.003041160336 | M94: 0.0257731097 | N94: 5.35433247e-05
A95: =IF('DF raw data'!A100="","",'DF raw data'!A100) -> -283.5 | B95: =IF('DF raw data'!B100="","",'DF raw data'!B100) -> -2.44664e-05 | C95: =IF('DF raw data'!C100="","",'DF raw data'!C100) -> 0.000177806 | D95: =IF('DF raw data'!D100="","",'DF raw data'!D100) -> -2.19054e-05 | F95: -2.458383872e-05 | G95: 0.0001786594688 | H95: -2.201054592e-05 | J95: -0.0003333859228 | K95: -0.002859106895 | L95: 0.00313049007 | M95: 0.02733835474 | N95: 5.849888182e-05
A96: =IF('DF raw data'!A101="","",'DF raw data'!A101) -> -283 | B96: =IF('DF raw data'!B101="","",'DF raw data'!B101) -> -2.95913e-05 | C96: =IF('DF raw data'!C101="","",'DF raw data'!C101) -> 0.000170564 | D96: =IF('DF raw data'!D101="","",'DF raw data'!D101) -> -2.35908e-05 | F96: -2.973333824e-05 | G96: 0.0001713827072 | H96: -2.370403584e-05 | J96: -0.0003482525919 | K96: -0.003033233191 | L96: 0.003216181424 | M96: 0.02894644545 | N96: 6.373143323e-05
A97: =IF('DF raw data'!A102="","",'DF raw data'!A102) -> -282.5 | B97: =IF('DF raw data'!B102="","",'DF raw data'!B102) -> -2.72301e-05 | C97: =IF('DF raw data'!C102="","",'DF raw data'!C102) -> 0.000169114 | D97: =IF('DF raw data'!D102="","",'DF raw data'!D102) -> -9.00515e-06 | F97: -2.736080448e-05 | G97: 0.0001699257472 | H97: -9.04837472e-06 | J97: -0.0003619329942 | K97: -0.003214199688 | L97: 0.003301144298 | M97: 0.0305970176 | N97: 6.924570782e-05
A98: =IF('DF raw data'!A103="","",'DF raw data'!A103) -> -282 | B98: =IF('DF raw data'!B103="","",'DF raw data'!B103) -> -2.88952e-05 | C98: =IF('DF raw data'!C103="","",'DF raw data'!C103) -> 0.000172726 | D98: =IF('DF raw data'!D103="","",'DF raw data'!D103) -> -1.02984e-05 | F98: -2.903389696e-05 | G98: 0.0001735550848 | H98: -1.034783232e-05 | J98: -0.0003764499426 | K98: -0.003402424659 | L98: 0.00338792184 | M98: 0.03229097852 | N98: 7.505557229e-05
A99: =IF('DF raw data'!A104="","",'DF raw data'!A104) -> -281.5 | B99: =IF('DF raw data'!B104="","",'DF raw data'!B104) -> -3.46618e-05 | C99: =IF('DF raw data'!C104="","",'DF raw data'!C104) -> 0.000170965 | D99: =IF('DF raw data'!D104="","",'DF raw data'!D104) -> -1.08195e-05 | F99: -3.482817664e-05 | G99: 0.000171785632 | H99: -1.08714336e-05 | J99: -0.000393864031 | K99: -0.003599356674 | L99: 0.003473814656 | M99: 0.03402788584 | N99: 8.116683086e-05
A100: =IF('DF raw data'!A105="","",'DF raw data'!A105) -> -281 | B100: =IF('DF raw data'!B105="","",'DF raw data'!B105) -> -2.72872e-05 | C100: =IF('DF raw data'!C105="","",'DF raw data'!C105) -> 0.000174954 | D100: =IF('DF raw data'!D105="","",'DF raw data'!D105) -> -1.95406e-05 | F100: -2.741817856e-05 | G100: 0.0001757937792 | H100: -1.963439488e-05 | J100: -0.0004075731202 | K100: -0.003803143235 | L100: 0.003561711546 | M100: 0.03580874162 | N100: 8.759278335e-05
A101: =IF('DF raw data'!A106="","",'DF raw data'!A106) -> -280.5 | B101: =IF('DF raw data'!B106="","",'DF raw data'!B106) -> -3.28623e-05 | C101: =IF('DF raw data'!C106="","",'DF raw data'!C106) -> 0.0001655 | D101: =IF('DF raw data'!D106="","",'DF raw data'!D106) -> -1.92513e-05 | F101: -3.302003904e-05 | G101: 0.0001662944 | H101: -1.934370624e-05 | J101: -0.0004240831398 | K101: -0.004015184804 | L101: 0.003644858746 | M101: 0.03763117099 | N101: 9.432520425e-05
A102: =IF('DF raw data'!A107="","",'DF raw data'!A107) -> -280 | B102: =IF('DF raw data'!B107="","",'DF raw data'!B107) -> -2.52369e-05 | C102: =IF('DF raw data'!C107="","",'DF raw data'!C107) -> 0.000165879 | D102: =IF('DF raw data'!D107="","",'DF raw data'!D107) -> -1.94839e-05 | F102: -2.535803712e-05 | G102: 0.0001666752192 | H102: -1.957742272e-05 | J102: -0.0004367621583 | K102: -0.004233565884 | L102: 0.003728196355 | M102: 0.03949526917 | N102: 0.0001013703089
A103: =IF('DF raw data'!A108="","",'DF raw data'!A108) -> -279.5 | B103: =IF('DF raw data'!B108="","",'DF raw data'!B108) -> -2.71549e-05 | C103: =IF('DF raw data'!C108="","",'DF raw data'!C108) -> 0.000185012 | D103: =IF('DF raw data'!D108="","",'DF raw data'!D108) -> -2.5997e-05 | F103: -2.728524352e-05 | G103: 0.0001859000576 | H103: -2.61217856e-05 | J103: -0.0004504047801 | K103: -0.004458768274 | L103: 0.003821146384 | M103: 0.04140584236 | N103: 0.0001087723209
A104: =IF('DF raw data'!A109="","",'DF raw data'!A109) -> -279 | B104: =IF('DF raw data'!B109="","",'DF raw data'!B109) -> -1.53655e-05 | C104: =IF('DF raw data'!C109="","",'DF raw data'!C109) -> 0.000181418 | D104: =IF('DF raw data'!D109="","",'DF raw data'!D109) -> -2.47539e-05 | F104: -1.54392544e-05 | G104: 0.0001822888064 | H104: -2.487271872e-05 | J104: -0.0004581244073 | K104: -0.004687830477 | L104: 0.003912290787 | M104: 0.04336198775 | N104: 0.0001165302695
A105: =IF('DF raw data'!A110="","",'DF raw data'!A110) -> -278.5 | B105: =IF('DF raw data'!B110="","",'DF raw data'!B110) -> -2.37632e-05 | C105: =IF('DF raw data'!C110="","",'DF raw data'!C110) -> 0.000182798 | D105: =IF('DF raw data'!D110="","",'DF raw data'!D110) -> -1.92357e-05 | F105: -2.387726336e-05 | G105: 0.0001836754304 | H105: -1.932803136e-05 | J105: -0.000470063039 | K105: -0.004922861997 | L105: 0.004004128502 | M105: 0.045364052 | N105: 0.0001246572717
A106: =IF('DF raw data'!A111="","",'DF raw data'!A111) -> -278 | B106: =IF('DF raw data'!B111="","",'DF raw data'!B111) -> -8.13005e-06 | C106: =IF('DF raw data'!C111="","",'DF raw data'!C111) -> 0.00018431 | D106: =IF('DF raw data'!D111="","",'DF raw data'!D111) -> -1.64783e-05 | F106: -8.16907424e-06 | G106: 0.000185194688 | H106: -1.655739584e-05 | J106: -0.0004741475761 | K106: -0.005159935785 | L106: 0.004096725846 | M106: 0.04741241493 | N106: 0.000133161261
A107: =IF('DF raw data'!A112="","",'DF raw data'!A112) -> -277.5 | B107: =IF('DF raw data'!B112="","",'DF raw data'!B112) -> -2.66542e-05 | C107: =IF('DF raw data'!C112="","",'DF raw data'!C112) -> 0.000181998 | D107: =IF('DF raw data'!D112="","",'DF raw data'!D112) -> -7.62373e-06 | F107: -2.678214016e-05 | G107: 0.0001828715904 | H107: -7.660323904e-06 | J107: -0.0004875386462 | K107: -0.005403705108 | L107: 0.004188161642 | M107: 0.04950649575 | N107: 0.0001420504569
A108: =IF('DF raw data'!A113="","",'DF raw data'!A113) -> -277 | B108: =IF('DF raw data'!B113="","",'DF raw data'!B113) -> -2.50463e-05 | C108: =IF('DF raw data'!C113="","",'DF raw data'!C113) -> 0.000177355 | D108: =IF('DF raw data'!D113="","",'DF raw data'!D113) -> -1.67947e-05 | F108: -2.516652224e-05 | G108: 0.000178206304 | H108: -1.687531456e-05 | J108: -0.0005001219073 | K108: -0.005653766061 | L108: 0.004277264794 | M108: 0.05164512815 | N108: 0.0001513230149
A109: =IF('DF raw data'!A114="","",'DF raw data'!A114) -> -276.5 | B109: =IF('DF raw data'!B114="","",'DF raw data'!B114) -> -4.47591e-06 | C109: =IF('DF raw data'!C114="","",'DF raw data'!C114) -> 0.000165131 | D109: =IF('DF raw data'!D114="","",'DF raw data'!D114) -> -1.91977e-05 | F109: -4.497394368e-06 | G109: 0.0001659236288 | H109: -1.928984896e-05 | J109: -0.0005023706045 | K109: -0.005904951364 | L109: 0.004360226608 | M109: 0.05382524145 | N109: 0.0001609549911
A110: =IF('DF raw data'!A115="","",'DF raw data'!A115) -> -276 | B110: =IF('DF raw data'!B115="","",'DF raw data'!B115) -> -1.51751e-05 | C110: =IF('DF raw data'!C115="","",'DF raw data'!C115) -> 0.000175666 | D110: =IF('DF raw data'!D115="","",'DF raw data'!D115) -> -2.21466e-05 | F110: -1.524794048e-05 | G110: 0.0001765091968 | H110: -2.225290368e-05 | J110: -0.0005099945747 | K110: -0.006159948651 | L110: 0.004448481206 | M110: 0.05604948205 | N110: 0.0001709795308
A111: =IF('DF raw data'!A116="","",'DF raw data'!A116) -> -275.5 | B111: =IF('DF raw data'!B116="","",'DF raw data'!B116) -> -1.90869e-05 | C111: =IF('DF raw data'!C116="","",'DF raw data'!C116) -> 0.000186206 | D111: =IF('DF raw data'!D116="","",'DF raw data'!D116) -> -1.73678e-05 | F111: -1.917851712e-05 | G111: 0.0001870997888 | H111: -1.745116544e-05 | J111: -0.0005195838333 | K111: -0.006419740568 | L111: 0.004542031101 | M111: 0.0583204976 | N111: 0.0001814295378
A112: =IF('DF raw data'!A117="","",'DF raw data'!A117) -> -275 | B112: =IF('DF raw data'!B117="","",'DF raw data'!B117) -> -2.67162e-05 | C112: =IF('DF raw data'!C117="","",'DF raw data'!C117) -> 0.000183491 | D112: =IF('DF raw data'!D117="","",'DF raw data'!D117) -> -1.05675e-05 | F112: -2.684443776e-05 | G112: 0.0001843717568 | H112: -1.0618224e-05 | J112: -0.0005330060521 | K112: -0.006686243594 | L112: 0.004634216979 | M112: 0.06063760609 | N112: 0.000192309569
A113: =IF('DF raw data'!A118="","",'DF raw data'!A118) -> -274.5 | B113: =IF('DF raw data'!B118="","",'DF raw data'!B118) -> -2.23037e-05 | C113: =IF('DF raw data'!C118="","",'DF raw data'!C118) -> 0.000180868 | D113: =IF('DF raw data'!D118="","",'DF raw data'!D118) -> 2.81778e-06 | F113: -2.241075776e-05 | G113: 0.0001817361664 | H113: 2.831305344e-06 | J113: -0.000544211431 | K113: -0.006958349309 | L113: 0.004725085062 | M113: 0.06300014862 | N113: 0.0002036208665
A114: =IF('DF raw data'!A119="","",'DF raw data'!A119) -> -274 | B114: =IF('DF raw data'!B119="","",'DF raw data'!B119) -> -1.56871e-05 | C114: =IF('DF raw data'!C119="","",'DF raw data'!C119) -> 0.000181494 | D114: =IF('DF raw data'!D119="","",'DF raw data'!D119) -> -2.30401e-05 | F114: -1.576239808e-05 | G114: 0.0001823651712 | H114: -2.315069248e-05 | J114: -0.0005520926301 | K114: -0.007234395624 | L114: 0.004816267648 | M114: 0.06540828245 | N114: 0.0002153714866
A115: =IF('DF raw data'!A120="","",'DF raw data'!A120) -> -273.5 | B115: =IF('DF raw data'!B120="","",'DF raw data'!B120) -> -1.42209e-05 | C115: =IF('DF raw data'!C120="","",'DF raw data'!C120) -> 0.000174172 | D115: =IF('DF raw data'!D120="","",'DF raw data'!D120) -> -1.12783e-05 | F115: -1.428916032e-05 | G115: 0.0001750080256 | H115: -1.133243584e-05 | J115: -0.0005592372102 | K115: -0.007514014229 | L115: 0.004903771661 | M115: 0.06786016828 | N115: 0.000227551348
A116: =IF('DF raw data'!A121="","",'DF raw data'!A121) -> -273 | B116: =IF('DF raw data'!B121="","",'DF raw data'!B121) -> -1.8958e-05 | C116: =IF('DF raw data'!C121="","",'DF raw data'!C121) -> 0.000177729 | D116: =IF('DF raw data'!D121="","",'DF raw data'!D121) -> -1.83912e-05 | F116: -1.90489984e-05 | G116: 0.0001785820992 | H116: -1.847947776e-05 | J116: -0.0005687617094 | K116: -0.007798395084 | L116: 0.00499306271 | M116: 0.07035669963 | N116: 0.0002401784306
A117: =IF('DF raw data'!A122="","",'DF raw data'!A122) -> -272.5 | B117: =IF('DF raw data'!B122="","",'DF raw data'!B122) -> -1.0686e-05 | C117: =IF('DF raw data'!C122="","",'DF raw data'!C122) -> 0.000189758 | D117: =IF('DF raw data'!D122="","",'DF raw data'!D122) -> -2.77191e-05 | F117: -1.07372928e-05 | G117: 0.0001906688384 | H117: -2.785215168e-05 | J117: -0.0005741303558 | K117: -0.008085460262 | L117: 0.00508839713 | M117: 0.0729008982 | N117: 0.0002532891361
A118: =IF('DF raw data'!A123="","",'DF raw data'!A123) -> -272 | B118: =IF('DF raw data'!B123="","",'DF raw data'!B123) -> -2.47852e-05 | C118: =IF('DF raw data'!C123="","",'DF raw data'!C123) -> 0.000192757 | D118: =IF('DF raw data'!D123="","",'DF raw data'!D123) -> -2.41852e-05 | F118: -2.490416896e-05 | G118: 0.0001936822336 | H118: -2.430128896e-05 | J118: -0.0005865824403 | K118: -0.008378751482 | L118: 0.005185238246 | M118: 0.07549351732 | N118: 0.0002669045234
A119: =IF('DF raw data'!A124="","",'DF raw data'!A124) -> -271.5 | B119: =IF('DF raw data'!B124="","",'DF raw data'!B124) -> -2.09495e-05 | C119: =IF('DF raw data'!C124="","",'DF raw data'!C124) -> 0.000184406 | D119: =IF('DF raw data'!D124="","",'DF raw data'!D124) -> -1.06815e-05 | F119: -2.10500576e-05 | G119: 0.0001852911488 | H119: -1.07327712e-05 | J119: -0.0005971074691 | K119: -0.008677305217 | L119: 0.005277883821 | M119: 0.07813245923 | N119: 0.0002810108209
A120: =IF('DF raw data'!A125="","",'DF raw data'!A125) -> -271 | B120: =IF('DF raw data'!B125="","",'DF raw data'!B125) -> -3.15271e-05 | C120: =IF('DF raw data'!C125="","",'DF raw data'!C125) -> 0.000186591 | D120: =IF('DF raw data'!D125="","",'DF raw data'!D125) -> -3.08571e-06 | F120: -3.167843008e-05 | G120: 0.0001874866368 | H120: -3.100521408e-06 | J120: -0.0006129466841 | K120: -0.008983778559 | L120: 0.005371627139 | M120: 0.0808182728 | N120: 0.0002956258618
A121: =IF('DF raw data'!A126="","",'DF raw data'!A126) -> -270.5 | B121: =IF('DF raw data'!B126="","",'DF raw data'!B126) -> -1.71686e-05 | C121: =IF('DF raw data'!C126="","",'DF raw data'!C126) -> 0.000184491 | D121: =IF('DF raw data'!D126="","",'DF raw data'!D126) -> -1.07602e-05 | F121: -1.725100928e-05 | G121: 0.0001853765568 | H121: -1.081184896e-05 | J121: -0.0006215721888 | K121: -0.009294564653 | L121: 0.005464315418 | M121: 0.08355043051 | N121: 0.0003107484092
A122: =IF('DF raw data'!A127="","",'DF raw data'!A127) -> -270 | B122: =IF('DF raw data'!B127="","",'DF raw data'!B127) -> -2.15858e-05 | C122: =IF('DF raw data'!C127="","",'DF raw data'!C127) -> 0.000178337 | D122: =IF('DF raw data'!D127="","",'DF raw data'!D127) -> -1.75483e-05 | F122: -2.168941184e-05 | G122: 0.0001791930176 | H122: -1.763253184e-05 | J122: -0.0006324168947 | K122: -0.009610773101 | L122: 0.005553911926 | M122: 0.08632738647 | N122: 0.0003263713537
A123: =IF('DF raw data'!A128="","",'DF raw data'!A128) -> -269.5 | B123: =IF('DF raw data'!B128="","",'DF raw data'!B128) -> -2.61441e-05 | C123: =IF('DF raw data'!C128="","",'DF raw data'!C128) -> 0.000185282 | D123: =IF('DF raw data'!D128="","",'DF raw data'!D128) -> -3.8614e-06 | F123: -2.626959168e-05 | G123: 0.0001861713536 | H123: -3.87993472e-06 | J123: -0.0006455516905 | K123: -0.009933548946 | L123: 0.005646997603 | M123: 0.08915088528 | N123: 0.0003425240131
A124: =IF('DF raw data'!A129="","",'DF raw data'!A129) -> -269 | B124: =IF('DF raw data'!B129="","",'DF raw data'!B129) -> -1.72952e-05 | C124: =IF('DF raw data'!C129="","",'DF raw data'!C129) -> 0.000192528 | D124: =IF('DF raw data'!D129="","",'DF raw data'!D129) -> -1.32144e-05 | F124: -1.737821696e-05 | G124: 0.0001934521344 | H124: -1.327782912e-05 | J124: -0.000654240799 | K124: -0.01026066935 | L124: 0.00574372367 | M124: 0.09202274711 | N124: 0.0003592332094
A125: =IF('DF raw data'!A130="","",'DF raw data'!A130) -> -268.5 | B125: =IF('DF raw data'!B130="","",'DF raw data'!B130) -> -2.45995e-05 | C125: =IF('DF raw data'!C130="","",'DF raw data'!C130) -> 0.000188342 | D125: =IF('DF raw data'!D130="","",'DF raw data'!D130) -> -1.42813e-05 | F125: -2.47175776e-05 | G125: 0.0001892460416 | H125: -1.434985024e-05 | J125: -0.0006665995878 | K125: -0.01059396914 | L125: 0.005838346691 | M125: 0.09494192046 | N125: 0.000376498533
A126: =IF('DF raw data'!A131="","",'DF raw data'!A131) -> -268 | B126: =IF('DF raw data'!B131="","",'DF raw data'!B131) -> -2.0246e-05 | C126: =IF('DF raw data'!C131="","",'DF raw data'!C131) -> 0.000179538 | D126: =IF('DF raw data'!D131="","",'DF raw data'!D131) -> -8.44737e-06 | F126: -2.03431808e-05 | G126: 0.0001803997824 | H126: -8.487917376e-06 | J126: -0.0006767711782 | K126: -0.01093235473 | L126: 0.005928546582 | M126: 0.09790619375 | N126: 0.0003943013749
A127: =IF('DF raw data'!A132="","",'DF raw data'!A132) -> -267.5 | B127: =IF('DF raw data'!B132="","",'DF raw data'!B132) -> -1.10236e-05 | C127: =IF('DF raw data'!C132="","",'DF raw data'!C132) -> 0.000174253 | D127: =IF('DF raw data'!D132="","",'DF raw data'!D132) -> -1.01957e-06 | F127: -1.107651328e-05 | G127: 0.0001750894144 | H127: -1.024463936e-06 | J127: -0.0006823094349 | K127: -0.01127350945 | L127: 0.00601609129 | M127: 0.1009142394 | N127: 0.0004126308252
A128: =IF('DF raw data'!A133="","",'DF raw data'!A133) -> -267 | B128: =IF('DF raw data'!B133="","",'DF raw data'!B133) -> -2.15225e-05 | C128: =IF('DF raw data'!C133="","",'DF raw data'!C133) -> 0.000165933 | D128: =IF('DF raw data'!D133="","",'DF raw data'!D133) -> -1.6151e-05 | F128: =(1-$G$1*($B$49-$G$2))*B128 -> -2.1625808e-05 | G128: 0.0001667294784 | H128: -1.62285248e-05 | J128: =F128*$G$3+J127 -> -0.0006931223389 | K128: =J128*$G$3+K127 -> -0.01162007062 | L128: =G128*$G$3+L127 -> 0.006099456029 | M128: =L128*$G$3+M127 -> 0.1039639674 | N128: =(J128^2+L128^2)*$G$3+N127 -> 0.0004314727164
A129: =IF('DF raw data'!A134="","",'DF raw data'!A134) -> -266.5 | B129: =IF('DF raw data'!B134="","",'DF raw data'!B134) -> -2.04906e-05 | C129: =IF('DF raw data'!C134="","",'DF raw data'!C134) -> 0.000176296 | D129: =IF('DF raw data'!D134="","",'DF raw data'!D134) -> -2.63727e-05 | F129: -2.058895488e-05 | G129: 0.0001771422208 | H129: -2.649928896e-05 | J129: -0.0007034168163 | K129: -0.01197177902 | L129: 0.006188027139 | M129: 0.107057981 | N129: 0.0004508659539
A130: =IF('DF raw data'!A135="","",'DF raw data'!A135) -> -266 | B130: =IF('DF raw data'!B135="","",'DF raw data'!B135) -> -2.92719e-05 | C130: =IF('DF raw data'!C135="","",'DF raw data'!C135) -> 0.000180244 | D130: =IF('DF raw data'!D135="","",'DF raw data'!D135) -> -2.22417e-05 | F130: -2.941240512e-05 | G130: 0.0001811091712 | H130: -2.234846016e-05 | J130: -0.0007181230189 | K130: -0.01233084053 | L130: 0.006278581725 | M130: 0.1101972718 | N130: 0.0004708340985
A131: =IF('DF raw data'!A136="","",'DF raw data'!A136) -> -265.5 | B131: =IF('DF raw data'!B136="","",'DF raw data'!B136) -> -2.19007e-05 | C131: =IF('DF raw data'!C136="","",'DF raw data'!C136) -> 0.000178754 | D131: =IF('DF raw data'!D136="","",'DF raw data'!D136) -> -2.57469e-05 | F131: -2.200582336e-05 | G131: 0.0001796120192 | H131: -2.587048512e-05 | J131: -0.0007291259305 | K131: -0.0126954035 | L131: 0.006368387734 | M131: 0.1133814657 | N131: 0.000491378092
A132: =IF('DF raw data'!A137="","",'DF raw data'!A137) -> -265 | B132: =IF('DF raw data'!B137="","",'DF raw data'!B137) -> -2.17742e-05 | C132: =IF('DF raw data'!C137="","",'DF raw data'!C137) -> 0.000172371 | D132: =IF('DF raw data'!D137="","",'DF raw data'!D137) -> -2.31486e-05 | F132: -2.187871616e-05 | G132: 0.0001731983808 | H132: -2.325971328e-05 | J132: -0.0007400652886 | K132: -0.01306543614 | L132: 0.006454986925 | M132: 0.1166089592 | N132: 0.0005124853684
A133: =IF('DF raw data'!A138="","",'DF raw data'!A138) -> -264.5 | B133: =IF('DF raw data'!B138="","",'DF raw data'!B138) -> -2.2991e-05 | C133: =IF('DF raw data'!C138="","",'DF raw data'!C138) -> 0.000178478 | D133: =IF('DF raw data'!D138="","",'DF raw data'!D138) -> -2.4271e-05 | F133: -2.31013568e-05 | G133: 0.0001793346944 | H133: -2.43875008e-05 | J133: -0.000751615967 | K133: -0.01344124413 | L133: 0.006544654272 | M133: 0.1198812863 | N133: 0.0005341840814
A134: =IF('DF raw data'!A139="","",'DF raw data'!A139) -> -264 | B134: =IF('DF raw data'!B139="","",'DF raw data'!B139) -> -2.49782e-05 | C134: =IF('DF raw data'!C139="","",'DF raw data'!C139) -> 0.000178142 | D134: =IF('DF raw data'!D139="","",'DF raw data'!D139) -> -2.32157e-05 | F134: -2.509809536e-05 | G134: 0.0001789970816 | H134: -2.332713536e-05 | J134: -0.0007641650147 | K134: -0.01382332663 | L134: 0.006634152813 | M134: 0.1231983627 | N134: 0.0005564820473
A135: =IF('DF raw data'!A140="","",'DF raw data'!A140) -> -263.5 | B135: =IF('DF raw data'!B140="","",'DF raw data'!B140) -> -1.74163e-05 | C135: =IF('DF raw data'!C140="","",'DF raw data'!C140) -> 0.000172595 | D135: =IF('DF raw data'!D140="","",'DF raw data'!D140) -> -2.40105e-05 | F135: -1.749989824e-05 | G135: 0.000173423456 | H135: -2.41257504e-05 | J135: -0.0007729149638 | K135: -0.01420978412 | L135: 0.006720864541 | M135: 0.126558795 | N135: 0.0005793657562
A136: =IF('DF raw data'!A141="","",'DF raw data'!A141) -> -263 | B136: =IF('DF raw data'!B141="","",'DF raw data'!B141) -> -2.66383e-05 | C136: =IF('DF raw data'!C141="","",'DF raw data'!C141) -> 0.000171728 | D136: =IF('DF raw data'!D141="","",'DF raw data'!D141) -> -3.21644e-05 | F136: -2.676616384e-05 | G136: 0.0001725522944 | H136: -3.231878912e-05 | J136: -0.0007862980457 | K136: -0.01460293314 | L136: 0.006807140688 | M136: 0.1299623653 | N136: 0.0006028434706
A137: =IF('DF raw data'!A142="","",'DF raw data'!A142) -> -262.5 | B137: =IF('DF raw data'!B142="","",'DF raw data'!B142) -> -4.08643e-05 | C137: =IF('DF raw data'!C142="","",'DF raw data'!C142) -> 0.000170685 | D137: =IF('DF raw data'!D142="","",'DF raw data'!D142) -> -3.06582e-05 | F137: -4.106044864e-05 | G137: 0.000171504288 | H137: -3.080535936e-05 | J137: -0.0008068282701 | K137: -0.01500634727 | L137: 0.006892892832 | M137: 0.1334088117 | N137: 0.0006269249424
A138: =IF('DF raw data'!A143="","",'DF raw data'!A143) -> -262 | B138: =IF('DF raw data'!B143="","",'DF raw data'!B143) -> -3.20894e-05 | C138: =IF('DF raw data'!C143="","",'DF raw data'!C143) -> 0.000172169 | D138: =IF('DF raw data'!D143="","",'DF raw data'!D143) -> -2.50378e-05 | F138: -3.224342912e-05 | G138: 0.0001729954112 | H138: -2.515798144e-05 | J138: -0.0008229499846 | K138: -0.01541782227 | L138: 0.006979390538 | M138: 0.136898507 | N138: 0.0006516195118
A139: =IF('DF raw data'!A144="","",'DF raw data'!A144) -> -261.5 | B139: =IF('DF raw data'!B144="","",'DF raw data'!B144) -> -3.14479e-05 | C139: =IF('DF raw data'!C144="","",'DF raw data'!C144) -> 0.000180672 | D139: =IF('DF raw data'!D144="","",'DF raw data'!D144) -> -2.6117e-05 | F139: -3.159884992e-05 | G139: 0.0001815392256 | H139: -2.62423616e-05 | J139: -0.0008387494096 | K139: -0.01583719697 | L139: 0.00707016015 | M139: 0.1404335871 | N139: 0.0006769648444
A140: =IF('DF raw data'!A145="","",'DF raw data'!A145) -> -261 | B140: =IF('DF raw data'!B145="","",'DF raw data'!B145) -> -9.59477e-06 | C140: =IF('DF raw data'!C145="","",'DF raw data'!C145) -> 0.000177749 | D140: =IF('DF raw data'!D145="","",'DF raw data'!D145) -> -3.05351e-05 | F140: -9.640824896e-06 | G140: 0.0001786021952 | H140: -3.068166848e-05 | J140: -0.000843569822 | K140: -0.01625898188 | L140: 0.007159461248 | M140: 0.1440133177 | N140: 0.0007029495921
A141: =IF('DF raw data'!A146="","",'DF raw data'!A146) -> -260.5 | B141: =IF('DF raw data'!B146="","",'DF raw data'!B146) -> -1.25511e-05 | C141: =IF('DF raw data'!C146="","",'DF raw data'!C146) -> 0.00017916 | D141: =IF('DF raw data'!D146="","",'DF raw data'!D146) -> -1.72461e-05 | F141: -1.261134528e-05 | G141: 0.000180019968 | H141: -1.732888128e-05 | J141: -0.0008498754947 | K141: -0.01668391963 | L141: 0.007249471232 | M141: 0.1476380533 | N141: 0.0007295881529
A142: =IF('DF raw data'!A147="","",'DF raw data'!A147) -> -260 | B142: =IF('DF raw data'!B147="","",'DF raw data'!B147) -> -2.05029e-05 | C142: =IF('DF raw data'!C147="","",'DF raw data'!C147) -> 0.000178367 | D142: =IF('DF raw data'!D147="","",'DF raw data'!D147) -> -7.48838e-06 | F142: -2.060131392e-05 | G142: 0.0001792231616 | H142: -7.524324224e-06 | J142: -0.0008601761516 | K142: -0.0171140077 | L142: 0.007339082813 | M142: 0.1513075947 | N142: 0.0007568891726
A143: =IF('DF raw data'!A148="","",'DF raw data'!A148) -> -259.5 | B143: =IF('DF raw data'!B148="","",'DF raw data'!B148) -> -1.72933e-05 | C143: =IF('DF raw data'!C148="","",'DF raw data'!C148) -> 0.000176513 | D143: =IF('DF raw data'!D148="","",'DF raw data'!D148) -> -1.609e-05 | F143: -1.737630784e-05 | G143: 0.0001773602624 | H143: -1.6167232e-05 | J143: -0.0008688643056 | K143: -0.01754843986 | L143: 0.007427762944 | M143: 0.1550214762 | N143: 0.0007848524664
A144: =IF('DF raw data'!A149="","",'DF raw data'!A149) -> -259 | B144: =IF('DF raw data'!B149="","",'DF raw data'!B149) -> -2.37646e-05 | C144: =IF('DF raw data'!C149="","",'DF raw data'!C149) -> 0.000187321 | D144: =IF('DF raw data'!D149="","",'DF raw data'!D149) -> -1.70342e-05 | F144: -2.387867008e-05 | G144: 0.0001882201408 | H144: -1.711596416e-05 | J144: -0.0008808036406 | K144: -0.01798884168 | L144: 0.007521873014 | M144: 0.1587824127 | N144: 0.0008135296607
A145: =IF('DF raw data'!A150="","",'DF raw data'!A150) -> -258.5 | B145: =IF('DF raw data'!B150="","",'DF raw data'!B150) -> -2.19066e-05 | C145: =IF('DF raw data'!C150="","",'DF raw data'!C150) -> 0.000180871 | D145: =IF('DF raw data'!D150="","",'DF raw data'!D150) -> -1.6673e-05 | F145: -2.201175168e-05 | G145: 0.0001817391808 | H145: -1.67530304e-05 | J145: -0.0008918095164 | K145: -0.01843474644 | L145: 0.007612742605 | M145: 0.162588784 | N145: 0.0008429042478
A146: =IF('DF raw data'!A151="","",'DF raw data'!A151) -> -258 | B146: =IF('DF raw data'!B151="","",'DF raw data'!B151) -> -2.22272e-05 | C146: =IF('DF raw data'!C151="","",'DF raw data'!C151) -> 0.000170663 | D146: =IF('DF raw data'!D151="","",'DF raw data'!D151) -> -1.64462e-05 | F146: -2.233389056e-05 | G146: 0.0001714821824 | H146: -1.652514176e-05 | J146: -0.0009029764617 | K146: -0.01888623467 | L146: 0.007698483696 | M146: 0.1664380259 | N146: 0.0008729452567
A147: =IF('DF raw data'!A152="","",'DF raw data'!A152) -> -257.5 | B147: =IF('DF raw data'!B152="","",'DF raw data'!B152) -> -1.20379e-05 | C147: =IF('DF raw data'!C152="","",'DF raw data'!C152) -> 0.000174111 | D147: =IF('DF raw data'!D152="","",'DF raw data'!D152) -> -1.81635e-05 | F147: -1.209568192e-05 | G147: 0.0001749467328 | H147: -1.82506848e-05 | J147: -0.0009090243027 | K147: -0.01934074682 | L147: 0.007785957062 | M147: 0.1703310044 | N147: 0.000903668983
A148: =IF('DF raw data'!A153="","",'DF raw data'!A153) -> -257 | B148: =IF('DF raw data'!B153="","",'DF raw data'!B153) -> -1.42073e-05 | C148: =IF('DF raw data'!C153="","",'DF raw data'!C153) -> 0.000175506 | D148: =IF('DF raw data'!D153="","",'DF raw data'!D153) -> -3.22237e-05 | F148: -1.427549504e-05 | G148: 0.0001763484288 | H148: -3.237837376e-05 | J148: -0.0009161620502 | K148: -0.01979882784 | L148: 0.007874131277 | M148: 0.17426807 | N148: 0.0009350896311
A149: =IF('DF raw data'!A154="","",'DF raw data'!A154) -> -256.5 | B149: =IF('DF raw data'!B154="","",'DF raw data'!B154) -> -1.67804e-05 | C149: =IF('DF raw data'!C154="","",'DF raw data'!C154) -> 0.000166859 | D149: =IF('DF raw data'!D154="","",'DF raw data'!D154) -> -1.66046e-05 | F149: -1.686094592e-05 | G149: 0.0001676599232 | H149: -1.668430208e-05 | J149: -0.0009245925232 | K149: -0.0202611241 | L149: 0.007957961238 | M149: 0.1782470506 | N149: 0.0009671816403
A150: =IF('DF raw data'!A155="","",'DF raw data'!A155) -> -256 | B150: =IF('DF raw data'!B155="","",'DF raw data'!B155) -> -2.248e-05 | C150: =IF('DF raw data'!C155="","",'DF raw data'!C155) -> 0.000165954 | D150: =IF('DF raw data'!D155="","",'DF raw data'!D155) -> -2.19239e-05 | F150: -2.2587904e-05 | G150: 0.0001667505792 | H150: -2.202913472e-05 | J150: -0.0009358864752 | K150: -0.02072906734 | L150: 0.008041336528 | M150: 0.1822677189 | N150: 0.0009999511286
A151: =IF('DF raw data'!A156="","",'DF raw data'!A156) -> -255.5 | B151: =IF('DF raw data'!B156="","",'DF raw data'!B156) -> -1.7802e-05 | C151: =IF('DF raw data'!C156="","",'DF raw data'!C156) -> 0.000171427 | D151: =IF('DF raw data'!D156="","",'DF raw data'!D156) -> -2.25349e-05 | F151: -1.78874496e-05 | G151: 0.0001722498496 | H151: -2.264306752e-05 | J151: -0.0009448302 | K151: -0.02120148244 | L151: 0.008127461453 | M151: 0.1863314496 | N151: 0.001033425296
A152: =IF('DF raw data'!A157="","",'DF raw data'!A157) -> -255 | B152: =IF('DF raw data'!B157="","",'DF raw data'!B157) -> -1.52426e-05 | C152: =IF('DF raw data'!C157="","",'DF raw data'!C157) -> 0.000181402 | D152: =IF('DF raw data'!D157="","",'DF raw data'!D157) -> -1.6564e-05 | F152: -1.531576448e-05 | G152: 0.0001822727296 | H152: -1.66435072e-05 | J152: -0.0009524880822 | K152: -0.02167772648 | L152: 0.008218597818 | M152: 0.1904407485 | N152: 0.001067651587
A153: =IF('DF raw data'!A158="","",'DF raw data'!A158) -> -254.5 | B153: =IF('DF raw data'!B158="","",'DF raw data'!B158) -> -2.61972e-05 | C153: =IF('DF raw data'!C158="","",'DF raw data'!C158) -> 0.000176367 | D153: =IF('DF raw data'!D158="","",'DF raw data'!D158) -> -2.04809e-05 | F153: -2.632294656e-05 | G153: 0.0001772135616 | H153: -2.057920832e-05 | J153: -0.0009656495555 | K153: -0.02216055126 | L153: 0.008307204598 | M153: 0.1945943508 | N153: 0.001102622651
A154: =IF('DF raw data'!A159="","",'DF raw data'!A159) -> -254 | B154: =IF('DF raw data'!B159="","",'DF raw data'!B159) -> -2.575e-05 | C154: =IF('DF raw data'!C159="","",'DF raw data'!C159) -> 0.00016565 | D154: =IF('DF raw data'!D159="","",'DF raw data'!D159) -> -1.86091e-05 | F154: -2.58736e-05 | G154: 0.00016644512 | H154: -1.869842368e-05 | J154: -0.0009785863555 | K154: -0.02264984444 | L154: 0.008390427158 | M154: 0.1987895644 | N154: 0.001138301101
A155: =IF('DF raw data'!A160="","",'DF raw data'!A160) -> -253.5 | B155: =IF('DF raw data'!B160="","",'DF raw data'!B160) -> -1.74904e-05 | C155: =IF('DF raw data'!C160="","",'DF raw data'!C160) -> 0.000169184 | D155: =IF('DF raw data'!D160="","",'DF raw data'!D160) -> -8.80956e-06 | F155: -1.757435392e-05 | G155: 0.0001699960832 | H155: -8.851845888e-06 | J155: -0.0009873735324 | K155: -0.0231435312 | L155: 0.0084754252 | M155: 0.203027277 | N155: 0.00117470497
A156: =IF('DF raw data'!A161="","",'DF raw data'!A161) -> -253 | B156: =IF('DF raw data'!B161="","",'DF raw data'!B161) -> -1.63273e-05 | C156: =IF('DF raw data'!C161="","",'DF raw data'!C161) -> 0.000164618 | D156: =IF('DF raw data'!D161="","",'DF raw data'!D161) -> -2.38651e-05 | F156: -1.640567104e-05 | G156: 0.0001654081664 | H156: -2.397965248e-05 | J156: -0.000995576368 | K156: -0.02364131939 | L156: 0.008558129283 | M156: 0.2073063417 | N156: 0.001211821345
A157: =IF('DF raw data'!A162="","",'DF raw data'!A162) -> -252.5 | B157: =IF('DF raw data'!B162="","",'DF raw data'!B162) -> -1.30682e-05 | C157: =IF('DF raw data'!C162="","",'DF raw data'!C162) -> 0.000169856 | D157: =IF('DF raw data'!D162="","",'DF raw data'!D162) -> -1.02181e-05 | F157: -1.313092736e-05 | G157: 0.0001706713088 | H157: -1.026714688e-05 | J157: -0.001002141832 | K157: -0.0241423903 | L157: 0.008643464938 | M157: 0.2116280741 | N157: 0.001249678232
A158: =IF('DF raw data'!A163="","",'DF raw data'!A163) -> -252 | B158: =IF('DF raw data'!B163="","",'DF raw data'!B163) -> -2.03008e-05 | C158: =IF('DF raw data'!C163="","",'DF raw data'!C163) -> 0.000172738 | D158: =IF('DF raw data'!D163="","",'DF raw data'!D163) -> -2.25366e-05 | F158: -2.039824384e-05 | G158: 0.0001735671424 | H158: -2.264477568e-05 | J158: -0.001012340954 | K158: -0.02464856078 | L158: 0.008730248509 | M158: 0.2159931984 | N158: 0.001288299268
A159: =IF('DF raw data'!A164="","",'DF raw data'!A164) -> -251.5 | B159: =IF('DF raw data'!B164="","",'DF raw data'!B164) -> -2.49897e-05 | C159: =IF('DF raw data'!C164="","",'DF raw data'!C164) -> 0.000167086 | D159: =IF('DF raw data'!D164="","",'DF raw data'!D164) -> -5.38327e-06 | F159: -2.510965056e-05 | G159: 0.0001678880128 | H159: -5.409109696e-06 | J159: -0.001024895779 | K159: -0.02516100867 | L159: 0.008814192515 | M159: 0.2204002946 | N159: 0.001327669469
A160: =IF('DF raw data'!A165="","",'DF raw data'!A165) -> -251 | B160: =IF('DF raw data'!B165="","",'DF raw data'!B165) -> -1.43453e-05 | C160: =IF('DF raw data'!C165="","",'DF raw data'!C165) -> 0.00016211 | D160: =IF('DF raw data'!D165="","",'DF raw data'!D165) -> -1.70847e-05 | F160: -1.441415744e-05 | G160: 0.000162888128 | H160: -1.716670656e-05 | J160: -0.001032102858 | K160: -0.0256770601 | L160: 0.008895636579 | M160: 0.2248481129 | N160: 0.001367768262
A161: =IF('DF raw data'!A166="","",'DF raw data'!A166) -> -250.5 | B161: =IF('DF raw data'!B166="","",'DF raw data'!B166) -> -1.86991e-05 | C161: =IF('DF raw data'!C166="","",'DF raw data'!C166) -> 0.000158728 | D161: =IF('DF raw data'!D166="","",'DF raw data'!D166) -> -2.25178e-05 | F161: -1.878885568e-05 | G161: 0.0001594898944 | H161: -2.262588544e-05 | J161: -0.001041497285 | K161: -0.02619780874 | L161: 0.008975381526 | M161: 0.2293358037 | N161: 0.001408589357
A162: =IF('DF raw data'!A167="","",'DF raw data'!A167) -> -250 | B162: =IF('DF raw data'!B167="","",'DF raw data'!B167) -> -1.85646e-05 | C162: =IF('DF raw data'!C167="","",'DF raw data'!C167) -> 0.000167853 | D162: =IF('DF raw data'!D167="","",'DF raw data'!D167) -> -3.22752e-05 | F162: -1.865371008e-05 | G162: 0.0001686586944 | H162: -3.243012096e-05 | J162: -0.00105082414 | K162: -0.02672322081 | L162: 0.009059710874 | M162: 0.2338656591 | N162: 0.001450180653
A163: =IF('DF raw data'!A168="","",'DF raw data'!A168) -> -249.5 | B163: =IF('DF raw data'!B168="","",'DF raw data'!B168) -> -1.28692e-05 | C163: =IF('DF raw data'!C168="","",'DF raw data'!C168) -> 0.000168956 | D163: =IF('DF raw data'!D168="","",'DF raw data'!D168) -> -2.05588e-05 | F163: -1.293097216e-05 | G163: 0.0001697669888 | H163: -2.065748224e-05 | J163: -0.001057289627 | K163: -0.02725186563 | L163: 0.009144594368 | M163: 0.2384379563 | N163: 0.001492551387
A164: =IF('DF raw data'!A169="","",'DF raw data'!A169) -> -249 | B164: =IF('DF raw data'!B169="","",'DF raw data'!B169) -> -2.53631e-05 | C164: =IF('DF raw data'!C169="","",'DF raw data'!C169) -> 0.00016473 | D164: =IF('DF raw data'!D169="","",'DF raw data'!D169) -> -2.23786e-05 | F164: -2.548484288e-05 | G164: 0.000165520704 | H164: -2.248601728e-05 | J164: -0.001070032048 | K164: -0.02778688165 | L164: 0.00922735472 | M164: 0.2430516337 | N164: 0.001535695909
A165: =IF('DF raw data'!A170="","",'DF raw data'!A170) -> -248.5 | B165: =IF('DF raw data'!B170="","",'DF raw data'!B170) -> -1.05633e-05 | C165: =IF('DF raw data'!C170="","",'DF raw data'!C170) -> 0.000163817 | D165: =IF('DF raw data'!D170="","",'DF raw data'!D170) -> -1.93249e-05 | F165: -1.061400384e-05 | G165: 0.0001646033216 | H165: -1.941765952e-05 | J165: -0.00107533905 | K165: -0.02832455117 | L165: 0.009309656381 | M165: 0.2477064619 | N165: 0.001579608937
A166: =IF('DF raw data'!A171="","",'DF raw data'!A171) -> -248 | B166: =IF('DF raw data'!B171="","",'DF raw data'!B171) -> -9.34312e-06 | C166: =IF('DF raw data'!C171="","",'DF raw data'!C171) -> 0.000166677 | D166: =IF('DF raw data'!D171="","",'DF raw data'!D171) -> -2.33586e-05 | F166: -9.387966976e-06 | G166: 0.0001674770496 | H166: -2.347072128e-05 | J166: -0.001080033033 | K166: -0.02886456769 | L166: 0.009393394906 | M166: 0.2524031593 | N166: 0.001624310107
A167: =IF('DF raw data'!A172="","",'DF raw data'!A172) -> -247.5 | B167: =IF('DF raw data'!B172="","",'DF raw data'!B172) -> -1.27371e-05 | C167: =IF('DF raw data'!C172="","",'DF raw data'!C172) -> 0.000177119 | D167: =IF('DF raw data'!D172="","",'DF raw data'!D172) -> -2.66042e-05 | F167: -1.279823808e-05 | G167: 0.0001779691712 | H167: -2.673190016e-05 | J167: -0.001086432152 | K167: -0.02940778377 | L167: 0.009482379491 | M167: 0.2571443491 | N167: 0.001669858034
A168: =IF('DF raw data'!A173="","",'DF raw data'!A173) -> -247 | B168: =IF('DF raw data'!B173="","",'DF raw data'!B173) -> -2.25422e-05 | C168: =IF('DF raw data'!C173="","",'DF raw data'!C173) -> 0.000173258 | D168: =IF('DF raw data'!D173="","",'DF raw data'!D173) -> -2.44792e-05 | F168: -2.265040256e-05 | G168: 0.0001740896384 | H168: -2.459670016e-05 | J168: -0.001097757354 | K168: -0.02995666244 | L168: 0.00956942431 | M168: 0.2619290612 | N168: 0.001716247511
A169: =IF('DF raw data'!A174="","",'DF raw data'!A174) -> -246.5 | B169: =IF('DF raw data'!B174="","",'DF raw data'!B174) -> -2.7288e-05 | C169: =IF('DF raw data'!C174="","",'DF raw data'!C174) -> 0.000169071 | D169: =IF('DF raw data'!D174="","",'DF raw data'!D174) -> -1.82318e-05 | F169: -2.74189824e-05 | G169: 0.0001698825408 | H169: -1.831931264e-05 | J169: -0.001111466845 | K169: -0.03051239587 | L169: 0.009654365581 | M169: 0.266756244 | N169: 0.001763468578
A170: =IF('DF raw data'!A175="","",'DF raw data'!A175) -> -246 | B170: =IF('DF raw data'!B175="","",'DF raw data'!B175) -> -2.76069e-05 | C170: =IF('DF raw data'!C175="","",'DF raw data'!C175) -> 0.000175498 | D170: =IF('DF raw data'!D175="","",'DF raw data'!D175) -> -2.07331e-05 | F170: -2.773941312e-05 | G170: 0.0001763403904 | H170: -2.083261888e-05 | J170: -0.001125336551 | K170: -0.03107506414 | L170: 0.009742535776 | M170: 0.2716275119 | N170: 0.00181156027
A171: =IF('DF raw data'!A176="","",'DF raw data'!A176) -> -245.5 | B171: =IF('DF raw data'!B176="","",'DF raw data'!B176) -> -1.16485e-05 | C171: =IF('DF raw data'!C176="","",'DF raw data'!C176) -> 0.000166925 | D171: =IF('DF raw data'!D176="","",'DF raw data'!D176) -> -2.58291e-05 | F171: -1.17044128e-05 | G171: 0.00016772624 | H171: -2.595307968e-05 | J171: -0.001131188758 | K171: -0.03164065852 | L171: 0.009826398896 | M171: 0.2765407114 | N171: 0.001860479122
A172: =IF('DF raw data'!A177="","",'DF raw data'!A177) -> -245 | B172: =IF('DF raw data'!B177="","",'DF raw data'!B177) -> -1.92774e-05 | C172: =IF('DF raw data'!C177="","",'DF raw data'!C177) -> 0.000163724 | D172: =IF('DF raw data'!D177="","",'DF raw data'!D177) -> -1.96347e-05 | F172: -1.936993152e-05 | G172: 0.0001645098752 | H172: -1.972894656e-05 | J172: -0.001140873724 | K172: -0.03221109538 | L172: 0.009908653834 | M172: 0.2814950383 | N172: 0.001910220629
A173: =IF('DF raw data'!A178="","",'DF raw data'!A178) -> -244.5 | B173: =IF('DF raw data'!B178="","",'DF raw data'!B178) -> -2.21589e-05 | C173: =IF('DF raw data'!C178="","",'DF raw data'!C178) -> 0.000167211 | D173: =IF('DF raw data'!D178="","",'DF raw data'!D178) -> -2.27613e-05 | F173: -2.226526272e-05 | G173: 0.0001680136128 | H173: -2.287055424e-05 | J173: -0.001152006355 | K173: -0.03278709856 | L173: 0.00999266064 | M173: 0.2864913686 | N173: 0.001960810821
A174: =IF('DF raw data'!A179="","",'DF raw data'!A179) -> -244 | B174: =IF('DF raw data'!B179="","",'DF raw data'!B179) -> -1.88248e-05 | C174: =IF('DF raw data'!C179="","",'DF raw data'!C179) -> 0.000168727 | D174: =IF('DF raw data'!D179="","",'DF raw data'!D179) -> -2.62667e-05 | F174: -1.891515904e-05 | G174: 0.0001695368896 | H174: -2.639278016e-05 | J174: -0.001161463934 | K174: -0.03336783053 | L174: 0.01007742908 | M174: 0.2915300831 | N174: 0.002012262609
A175: =IF('DF raw data'!A180="","",'DF raw data'!A180) -> -243.5 | B175: =IF('DF raw data'!B180="","",'DF raw data'!B180) -> -1.91431e-05 | C175: =IF('DF raw data'!C180="","",'DF raw data'!C180) -> 0.000176345 | D175: =IF('DF raw data'!D180="","",'DF raw data'!D180) -> -2.91248e-05 | F175: -1.923498688e-05 | G175: 0.000177191456 | H175: -2.926459904e-05 | J175: -0.001171081428 | K175: -0.03395337124 | L175: 0.01016602481 | M175: 0.2966130955 | N175: 0.002064622355
A176: =IF('DF raw data'!A181="","",'DF raw data'!A181) -> -243 | B176: =IF('DF raw data'!B181="","",'DF raw data'!B181) -> -1.59479e-05 | C176: =IF('DF raw data'!C181="","",'DF raw data'!C181) -> 0.000178368 | D176: =IF('DF raw data'!D181="","",'DF raw data'!D181) -> -1.60432e-05 | F176: -1.602444992e-05 | G176: 0.0001792241664 | H176: -1.612020736e-05 | J176: -0.001179093653 | K176: -0.03454291807 | L176: 0.0102556369 | M176: 0.301740914 | N176: 0.00211790653
A177: =IF('DF raw data'!A182="","",'DF raw data'!A182) -> -242.5 | B177: =IF('DF raw data'!B182="","",'DF raw data'!B182) -> -1.93394e-05 | C177: =IF('DF raw data'!C182="","",'DF raw data'!C182) -> 0.000182708 | D177: =IF('DF raw data'!D182="","",'DF raw data'!D182) -> -2.31141e-05 | F177: -1.943222912e-05 | G177: 0.0001835849984 | H177: -2.322504768e-05 | J177: -0.001188809767 | K177: -0.03513732295 | L177: 0.0103474294 | M177: 0.3069146287 | N177: 0.002172147812
A178: =IF('DF raw data'!A183="","",'DF raw data'!A183) -> -242 | B178: =IF('DF raw data'!B183="","",'DF raw data'!B183) -> -1.10102e-05 | C178: =IF('DF raw data'!C183="","",'DF raw data'!C183) -> 0.000178628 | D178: =IF('DF raw data'!D183="","",'DF raw data'!D183) -> -2.15314e-05 | F178: -1.106304896e-05 | G178: 0.0001794854144 | H178: -2.163475072e-05 | J178: -0.001194341292 | K178: -0.0357344936 | L178: 0.0104371721 | M178: 0.3121332147 | N178: 0.002227328318
A179: =IF('DF raw data'!A184="","",'DF raw data'!A184) -> -241.5 | B179: =IF('DF raw data'!B184="","",'DF raw data'!B184) -> -2.22241e-05 | C179: =IF('DF raw data'!C184="","",'DF raw data'!C184) -> 0.000175448 | D179: =IF('DF raw data'!D184="","",'DF raw data'!D184) -> -2.12966e-05 | F179: -2.233077568e-05 | G179: 0.0001762901504 | H179: -2.139882368e-05 | J179: -0.00120550668 | K179: -0.03633724694 | L179: 0.01052531718 | M179: 0.3173958733 | N179: 0.002283446092
A180: =IF('DF raw data'!A185="","",'DF raw data'!A185) -> -241 | B180: =IF('DF raw data'!B185="","",'DF raw data'!B185) -> -2.31847e-05 | C180: =IF('DF raw data'!C185="","",'DF raw data'!C185) -> 0.000167752 | D180: =IF('DF raw data'!D185="","",'DF raw data'!D185) -> -2.18421e-05 | F180: -2.329598656e-05 | G180: 0.0001685572096 | H180: -2.194694208e-05 | J180: -0.001217154673 | K180: -0.03694582427 | L180: 0.01060959578 | M180: 0.3227006712 | N180: 0.002340468587
A181: =IF('DF raw data'!A186="","",'DF raw data'!A186) -> -240.5 | B181: =IF('DF raw data'!B186="","",'DF raw data'!B186) -> -1.04976e-05 | C181: =IF('DF raw data'!C186="","",'DF raw data'!C186) -> 0.000173636 | D181: =IF('DF raw data'!D186="","",'DF raw data'!D186) -> -2.1533e-05 | F181: -1.054798848e-05 | G181: 0.0001744694528 | H181: -2.16363584e-05 | J181: -0.001222428667 | K181: -0.03755703861 | L181: 0.01069683051 | M181: 0.3280490865 | N181: 0.002398426844
A182: =IF('DF raw data'!A187="","",'DF raw data'!A187) -> -240 | B182: =IF('DF raw data'!B187="","",'DF raw data'!B187) -> -1.69664e-05 | C182: =IF('DF raw data'!C187="","",'DF raw data'!C187) -> 0.000180152 | D182: =IF('DF raw data'!D187="","",'DF raw data'!D187) -> -2.63862e-05 | F182: -1.704783872e-05 | G182: 0.0001810167296 | H182: -2.651285376e-05 | J182: -0.001230952587 | K182: -0.0381725149 | L182: 0.01078733887 | M182: 0.3334427559 | N182: 0.002457367806
A183: =IF('DF raw data'!A188="","",'DF raw data'!A188) -> -239.5 | B183: =IF('DF raw data'!B188="","",'DF raw data'!B188) -> -1.86915e-05 | C183: =IF('DF raw data'!C188="","",'DF raw data'!C188) -> 0.000185949 | D183: =IF('DF raw data'!D188="","",'DF raw data'!D188) -> -3.41386e-05 | F183: -1.87812192e-05 | G183: 0.0001868415552 | H183: -3.430246528e-05 | J183: -0.001240343196 | K183: -0.0387926865 | L183: 0.01088075965 | M183: 0.3388831357 | N183: 0.002517332497
A184: =IF('DF raw data'!A189="","",'DF raw data'!A189) -> -239 | B184: =IF('DF raw data'!B189="","",'DF raw data'!B189) -> -2.4592e-05 | C184: =IF('DF raw data'!C189="","",'DF raw data'!C189) -> 0.000181657 | D184: =IF('DF raw data'!D189="","",'DF raw data'!D189) -> -2.58246e-05 | F184: -2.47100416e-05 | G184: 0.0001825289536 | H184: -2.594855808e-05 | J184: -0.001252698217 | K184: -0.03941903561 | L184: 0.01097202413 | M184: 0.3443691478 | N184: 0.00257830978
A185: =IF('DF raw data'!A190="","",'DF raw data'!A190) -> -238.5 | B185: =IF('DF raw data'!B190="","",'DF raw data'!B190) -> -2.51668e-05 | C185: =IF('DF raw data'!C190="","",'DF raw data'!C190) -> 0.000176329 | D185: =IF('DF raw data'!D190="","",'DF raw data'!D190) -> -2.85107e-05 | F185: -2.528760064e-05 | G185: 0.0001771753792 | H185: -2.864755136e-05 | J185: -0.001265342017 | K185: -0.04005170662 | L185: 0.01106061182 | M185: 0.3498994537 | N185: 0.002640278892
A186: =IF('DF raw data'!A191="","",'DF raw data'!A191) -> -238 | B186: =IF('DF raw data'!B191="","",'DF raw data'!B191) -> -2.84358e-05 | C186: =IF('DF raw data'!C191="","",'DF raw data'!C191) -> 0.000180887 | D186: =IF('DF raw data'!D191="","",'DF raw data'!D191) -> -2.6819e-05 | F186: -2.857229184e-05 | G186: 0.0001817552576 | H186: -2.69477312e-05 | J186: -0.001279628163 | K186: -0.0406915207 | L186: 0.01115148945 | M186: 0.3554751984 | N186: 0.002703275475
A187: =IF('DF raw data'!A192="","",'DF raw data'!A192) -> -237.5 | B187: =IF('DF raw data'!B192="","",'DF raw data'!B192) -> -1.59431e-05 | C187: =IF('DF raw data'!C192="","",'DF raw data'!C192) -> 0.000180168 | D187: =IF('DF raw data'!D192="","",'DF raw data'!D192) -> -2.33987e-05 | F187: -1.601962688e-05 | G187: 0.0001810328064 | H187: -2.351101376e-05 | J187: -0.001287637977 | K187: -0.04133533969 | L187: 0.01124200585 | M187: 0.3610962014 | N187: 0.002767295828
A188: =IF('DF raw data'!A193="","",'DF raw data'!A193) -> -237 | B188: =IF('DF raw data'!B193="","",'DF raw data'!B193) -> -2.31756e-05 | C188: =IF('DF raw data'!C193="","",'DF raw data'!C193) -> 0.000179973 | D188: =IF('DF raw data'!D193="","",'DF raw data'!D193) -> -3.58817e-05 | F188: -2.328684288e-05 | G188: 0.0001808368704 | H188: -3.605393216e-05 | J188: -0.001299281398 | K188: -0.04198498039 | L188: 0.01133242428 | M188: 0.3667624135 | N188: 0.002832351815
A189: =IF('DF raw data'!A194="","",'DF raw data'!A194) -> -236.5 | B189: =IF('DF raw data'!B194="","",'DF raw data'!B194) -> -1.84971e-05 | C189: =IF('DF raw data'!C194="","",'DF raw data'!C194) -> 0.000179333 | D189: =IF('DF raw data'!D194="","",'DF raw data'!D194) -> -3.72969e-05 | F189: -1.858588608e-05 | G189: 0.0001801937984 | H189: -3.747592512e-05 | J189: -0.001308574341 | K189: -0.04263926756 | L189: 0.01142252118 | M189: 0.3724736741 | N189: 0.002898444993
A190: =IF('DF raw data'!A195="","",'DF raw data'!A195) -> -236 | B190: =IF('DF raw data'!B195="","",'DF raw data'!B195) -> -2.13232e-05 | C190: =IF('DF raw data'!C195="","",'DF raw data'!C195) -> 0.000187577 | D190: =IF('DF raw data'!D195="","",'DF raw data'!D195) -> -2.71286e-05 | F190: -2.142555136e-05 | G190: 0.0001884773696 | H190: -2.725881728e-05 | J190: -0.001319287117 | K190: -0.04329891111 | L190: 0.01151675987 | M190: 0.378232054 | N190: 0.002965633131
A191: =IF('DF raw data'!A196="","",'DF raw data'!A196) -> -235.5 | B191: =IF('DF raw data'!B196="","",'DF raw data'!B196) -> -1.95342e-05 | C191: =IF('DF raw data'!C196="","",'DF raw data'!C196) -> 0.000191681 | D191: =IF('DF raw data'!D196="","",'DF raw data'!D196) -> -1.88802e-05 | F191: -1.962796416e-05 | G191: 0.0001926010688 | H191: -1.897082496e-05 | J191: -0.001329101099 | K191: -0.04396346166 | L191: 0.0116130604 | M191: 0.3840385842 | N191: 0.003033947972
A192: =IF('DF raw data'!A197="","",'DF raw data'!A197) -> -235 | B192: =IF('DF raw data'!B197="","",'DF raw data'!B197) -> -1.06871e-05 | C192: =IF('DF raw data'!C197="","",'DF raw data'!C197) -> 0.000192203 | D192: =IF('DF raw data'!D197="","",'DF raw data'!D197) -> -2.59789e-05 | F192: =(1-$G$1*($B$49-$G$2))*B192 -> -1.073839808e-05 | G192: 0.0001931255744 | H192: -2.610359872e-05 | J192: =F192*$G$3+J191 -> -0.001334470298 | K192: =J192*$G$3+K191 -> -0.04463069681 | L192: =G192*$G$3+L191 -> 0.01170962319 | M192: =L192*$G$3+M191 -> 0.3898933958 | N192: =(J192^2+L192^2)*$G$3+N191 -> 0.003103396015
A193: =IF('DF raw data'!A198="","",'DF raw data'!A198) -> -234.5 | B193: =IF('DF raw data'!B198="","",'DF raw data'!B198) -> -2.78631e-05 | C193: =IF('DF raw data'!C198="","",'DF raw data'!C198) -> 0.000183503 | D193: =IF('DF raw data'!D198="","",'DF raw data'!D198) -> -2.09057e-05 | F193: -2.799684288e-05 | G193: 0.0001843838144 | H193: -2.100604736e-05 | J193: -0.001348468719 | K193: -0.04530493117 | L193: 0.0118018151 | M193: 0.3957943034 | N193: 0.003173946619
A194: =IF('DF raw data'!A199="","",'DF raw data'!A199) -> -234 | B194: =IF('DF raw data'!B199="","",'DF raw data'!B199) -> -1.39562e-05 | C194: =IF('DF raw data'!C199="","",'DF raw data'!C199) -> 0.000187896 | D194: =IF('DF raw data'!D199="","",'DF raw data'!D199) -> -2.42099e-05 | F194: -1.402318976e-05 | G194: 0.0001887979008 | H194: -2.432610752e-05 | J194: -0.001355480314 | K194: -0.04598267133 | L194: 0.01189621405 | M194: 0.4017424104 | N194: 0.003245625237
A195: =IF('DF raw data'!A200="","",'DF raw data'!A200) -> -233.5 | B195: =IF('DF raw data'!B200="","",'DF raw data'!B200) -> -1.63292e-05 | C195: =IF('DF raw data'!C200="","",'DF raw data'!C200) -> 0.000184266 | D195: =IF('DF raw data'!D200="","",'DF raw data'!D200) -> -2.09603e-05 | F195: -1.640758016e-05 | G195: 0.0001851504768 | H195: -2.106090944e-05 | J195: -0.001363684104 | K195: -0.04666451338 | L195: 0.01198878929 | M195: 0.407736805 | N195: 0.003318420588
A196: =IF('DF raw data'!A201="","",'DF raw data'!A201) -> -233 | B196: =IF('DF raw data'!B201="","",'DF raw data'!B201) -> -1.37606e-05 | C196: =IF('DF raw data'!C201="","",'DF raw data'!C201) -> 0.00017369 | D196: =IF('DF raw data'!D201="","",'DF raw data'!D201) -> -2.91626e-05 | F196: -1.382665088e-05 | G196: 0.000174523712 | H196: -2.930258048e-05 | J196: -0.00137059743 | K196: -0.0473498121 | L196: 0.01207605114 | M196: 0.4137748306 | N196: 0.003392275362
A197: =IF('DF raw data'!A202="","",'DF raw data'!A202) -> -232.5 | B197: =IF('DF raw data'!B202="","",'DF raw data'!B202) -> -1.51086e-05 | C197: =IF('DF raw data'!C202="","",'DF raw data'!C202) -> 0.000180646 | D197: =IF('DF raw data'!D202="","",'DF raw data'!D202) -> -2.55782e-05 | F197: -1.518112128e-05 | G197: 0.0001815131008 | H197: -2.570097536e-05 | J197: -0.00137818799 | K197: -0.04803890609 | L197: 0.01216680769 | M197: 0.4198582345 | N197: 0.003467240668
A198: =IF('DF raw data'!A203="","",'DF raw data'!A203) -> -232 | B198: =IF('DF raw data'!B203="","",'DF raw data'!B203) -> -3.43318e-05 | C198: =IF('DF raw data'!C203="","",'DF raw data'!C203) -> 0.000184282 | D198: =IF('DF raw data'!D203="","",'DF raw data'!D203) -> -2.54792e-05 | F198: -3.449659264e-05 | G198: 0.0001851665536 | H198: -2.560150016e-05 | J198: -0.001395436287 | K198: -0.04873662424 | L198: 0.01225939097 | M198: 0.4259879299 | N198: 0.003543360623
A199: =IF('DF raw data'!A204="","",'DF raw data'!A204) -> -231.5 | B199: =IF('DF raw data'!B204="","",'DF raw data'!B204) -> -2.09418e-05 | C199: =IF('DF raw data'!C204="","",'DF raw data'!C204) -> 0.00018635 | D199: =IF('DF raw data'!D204="","",'DF raw data'!D204) -> -2.25182e-05 | F199: -2.104232064e-05 | G199: 0.00018724448 | H199: -2.262628736e-05 | J199: -0.001405957447 | K199: -0.04943960296 | L199: 0.01235301321 | M199: 0.4321644365 | N199: 0.003620647449
A200: =IF('DF raw data'!A205="","",'DF raw data'!A205) -> -231 | B200: =IF('DF raw data'!B205="","",'DF raw data'!B205) -> -2.47312e-05 | C200: =IF('DF raw data'!C205="","",'DF raw data'!C205) -> 0.000187467 | D200: =IF('DF raw data'!D205="","",'DF raw data'!D205) -> -8.7486e-06 | F200: -2.484990976e-05 | G200: 0.0001883668416 | H200: -8.79059328e-06 | J200: -0.001418382402 | K200: -0.05014879416 | L200: 0.01244719663 | M200: 0.4383880349 | N200: 0.003699119705
A201: =IF('DF raw data'!A206="","",'DF raw data'!A206) -> -230.5 | B201: =IF('DF raw data'!B206="","",'DF raw data'!B206) -> -2.24156e-05 | C201: =IF('DF raw data'!C206="","",'DF raw data'!C206) -> 0.0001872 | D201: =IF('DF raw data'!D206="","",'DF raw data'!D206) -> -2.20814e-05 | F201: -2.252319488e-05 | G201: 0.00018809856 | H201: -2.218739072e-05 | J201: -0.001429643999 | K201: -0.05086361616 | L201: 0.01254124591 | M201: 0.4446586578 | N201: 0.00377878307
... 1061 more rows

Sheet 10 x=-1
A1: =IF('DF raw data'!E1="","",'DF raw data'!E1) -> Number of header lines | B1: =IF('DF raw data'!F1="","",'DF raw data'!F1) -> 54 | C1: =IF('DF raw data'!G1="","",'DF raw data'!G1) ->  | D1: =IF('DF raw data'!H1="","",'DF raw data'!H1) ->  | F1: T_coeff | G1: -0.001 | H1: /degC | J1: IBy total | K1: =J1262*1000 -> -4.577265063 | L1: muTm | M1: =L1262*1000 -> 9.852000436 | R1: DF ref | S1: ='10 x=-2'!S1 -> 1
A2: =IF('DF raw data'!E2="","",'DF raw data'!E2) -> Measured by | B2: =IF('DF raw data'!F2="","",'DF raw data'!F2) -> Danfysik | C2: =IF('DF raw data'!G2="","",'DF raw data'!G2) ->  | D2: =IF('DF raw data'!H2="","",'DF raw data'!H2) ->  | F2: Tcorr | G2: 20 | H2: degC | J2: JBy total | K2: =K1262 -> -14.28664673 | L2: muTm^2 | M2: =M1262 -> 5.365935169
A3: =IF('DF raw data'!E3="","",'DF raw data'!E3) -> Operator | B3: =IF('DF raw data'!F3="","",'DF raw data'!F3) -> PMHA | C3: =IF('DF raw data'!G3="","",'DF raw data'!G3) ->  | D3: =IF('DF raw data'!H3="","",'DF raw data'!H3) ->  | F3: Step | G3: =A63-A62 -> 0.5 | H3: mm | J3: PI total | K3: =N1262 -> 10678.43845 | L3: T^2mm^3
A4: =IF('DF raw data'!E4="","",'DF raw data'!E4) -> Data-time | B4: =IF('DF raw data'!F4="","",'DF raw data'!F4) -> 28-08-2024, 09:13:45 | C4: =IF('DF raw data'!G4="","",'DF raw data'!G4) ->  | D4: =IF('DF raw data'!H4="","",'DF raw data'!H4) -> 
A5: =IF('DF raw data'!E5="","",'DF raw data'!E5) -> Project | B5: =IF('DF raw data'!F5="","",'DF raw data'!F5) -> 504314 | C5: =IF('DF raw data'!G5="","",'DF raw data'!G5) ->  | D5: =IF('DF raw data'!H5="","",'DF raw data'!H5) -> 
A6: =IF('DF raw data'!E6="","",'DF raw data'!E6) -> Magnet type | B6: =IF('DF raw data'!F6="","",'DF raw data'!F6) -> Dipole | C6: =IF('DF raw data'!G6="","",'DF raw data'!G6) ->  | D6: =IF('DF raw data'!H6="","",'DF raw data'!H6) -> 
A7: =IF('DF raw data'!E7="","",'DF raw data'!E7) -> Magnet nr. | B7: =IF('DF raw data'!F7="","",'DF raw data'!F7) -> 2410092 | C7: =IF('DF raw data'!G7="","",'DF raw data'!G7) ->  | D7: =IF('DF raw data'!H7="","",'DF raw data'!H7) -> 
A8: =IF('DF raw data'!E8="","",'DF raw data'!E8) -> Meas. number | B8: =IF('DF raw data'!F8="","",'DF raw data'!F8) -> 214 | C8: =IF('DF raw data'!G8="","",'DF raw data'!G8) ->  | D8: =IF('DF raw data'!H8="","",'DF raw data'!H8) -> 
A9: =IF('DF raw data'!E9="","",'DF raw data'!E9) -> Add. info | B9: =IF('DF raw data'!F9="","",'DF raw data'!F9) -> X-alignment scan 2) | C9: =IF('DF raw data'!G9="","",'DF raw data'!G9) ->  | D9: =IF('DF raw data'!H9="","",'DF raw data'!H9) -> 
A10: =IF('DF raw data'!E10="","",'DF raw data'!E10) -> Device | B10: =IF('DF raw data'!F10="","",'DF raw data'!F10) -> (HAL) HALL-PROBE | C10: =IF('DF raw data'!G10="","",'DF raw data'!G10) ->  | D10: =IF('DF raw data'!H10="","",'DF raw data'!H10) -> 
A11: =IF('DF raw data'!E11="","",'DF raw data'!E11) -> Goal | B11: =IF('DF raw data'!F11="","",'DF raw data'!F11) -> (AXI) AXis Integral (Line, EFB) | C11: =IF('DF raw data'!G11="","",'DF raw data'!G11) ->  | D11: =IF('DF raw data'!H11="","",'DF raw data'!H11) -> 
A12: =IF('DF raw data'!E12="","",'DF raw data'!E12) -> Power supply mode | B12: =IF('DF raw data'!F12="","",'DF raw data'!F12) -> (PM) Permanent Magnet (no MPS in use) | C12: =IF('DF raw data'!G12="","",'DF raw data'!G12) ->  | D12: =IF('DF raw data'!H12="","",'DF raw data'!H12) -> 
A13: =IF('DF raw data'!E13="","",'DF raw data'!E13) -> Data format | B13: =IF('DF raw data'!F13="","",'DF raw data'!F13) -> Raw data text file | C13: =IF('DF raw data'!G13="","",'DF raw data'!G13) ->  | D13: =IF('DF raw data'!H13="","",'DF raw data'!H13) -> 
A14: =IF('DF raw data'!E14="","",'DF raw data'!E14) -> Direction of the pos. x-axis | B14: =IF('DF raw data'!F14="","",'DF raw data'!F14) -> See test program | C14: =IF('DF raw data'!G14="","",'DF raw data'!G14) ->  | D14: =IF('DF raw data'!H14="","",'DF raw data'!H14) -> 
A15: =IF('DF raw data'!E15="","",'DF raw data'!E15) -> Direction of the pos. y-axis | B15: =IF('DF raw data'!F15="","",'DF raw data'!F15) -> Vertical up | C15: =IF('DF raw data'!G15="","",'DF raw data'!G15) ->  | D15: =IF('DF raw data'!H15="","",'DF raw data'!H15) -> 
A16: =IF('DF raw data'!E16="","",'DF raw data'!E16) -> Direction of the pos. z-axis | B16: =IF('DF raw data'!F16="","",'DF raw data'!F16) -> See test program | C16: =IF('DF raw data'!G16="","",'DF raw data'!G16) ->  | D16: =IF('DF raw data'!H16="","",'DF raw data'!H16) -> 
A17: =IF('DF raw data'!E17="","",'DF raw data'!E17) -> Mapper type | B17: =IF('DF raw data'!F17="","",'DF raw data'!F17) -> Precision Hall Mapper | C17: =IF('DF raw data'!G17="","",'DF raw data'!G17) ->  | D17: =IF('DF raw data'!H17="","",'DF raw data'!H17) -> 
A18: =IF('DF raw data'!E18="","",'DF raw data'!E18) -> Mapper Danfysik Reg. Number | B18: =IF('DF raw data'!F18="","",'DF raw data'!F18) -> 2033-D (mapper 1) | C18: =IF('DF raw data'!G18="","",'DF raw data'!G18) ->  | D18: =IF('DF raw data'!H18="","",'DF raw data'!H18) -> 
A19: =IF('DF raw data'!E19="","",'DF raw data'!E19) -> Measurement consept | B19: =IF('DF raw data'!F19="","",'DF raw data'!F19) -> Square line grid | C19: =IF('DF raw data'!G19="","",'DF raw data'!G19) ->  | D19: =IF('DF raw data'!H19="","",'DF raw data'!H19) -> 
A20: =IF('DF raw data'!E20="","",'DF raw data'!E20) -> Mode | B20: =IF('DF raw data'!F20="","",'DF raw data'!F20) -> On-the-fly measurement | C20: =IF('DF raw data'!G20="","",'DF raw data'!G20) ->  | D20: =IF('DF raw data'!H20="","",'DF raw data'!H20) -> 
A21: =IF('DF raw data'!E21="","",'DF raw data'!E21) ->  | B21: =IF('DF raw data'!F21="","",'DF raw data'!F21) ->  | C21: =IF('DF raw data'!G21="","",'DF raw data'!G21) ->  | D21: =IF('DF raw data'!H21="","",'DF raw data'!H21) -> 
A22: =IF('DF raw data'!E22="","",'DF raw data'!E22) -> Probe Name | B22: =IF('DF raw data'!F22="","",'DF raw data'!F22) -> ID12_By | C22: =IF('DF raw data'!G22="","",'DF raw data'!G22) ->  | D22: =IF('DF raw data'!H22="","",'DF raw data'!H22) -> 
A23: =IF('DF raw data'!E23="","",'DF raw data'!E23) -> Probe Type | B23: =IF('DF raw data'!F23="","",'DF raw data'!F23) -> DF_ID_3D_Bxyz | C23: =IF('DF raw data'!G23="","",'DF raw data'!G23) ->  | D23: =IF('DF raw data'!H23="","",'DF raw data'!H23) -> 
A24: =IF('DF raw data'!E24="","",'DF raw data'!E24) -> Probe Danfysik Reg. Number | B24: =IF('DF raw data'!F24="","",'DF raw data'!F24) -> 2277 | C24: =IF('DF raw data'!G24="","",'DF raw data'!G24) ->  | D24: =IF('DF raw data'!H24="","",'DF raw data'!H24) -> 
A25: =IF('DF raw data'!E25="","",'DF raw data'!E25) -> Probe Axis | B25: =IF('DF raw data'!F25="","",'DF raw data'!F25) -> By | C25: =IF('DF raw data'!G25="","",'DF raw data'!G25) ->  | D25: =IF('DF raw data'!H25="","",'DF raw data'!H25) -> 
A26: =IF('DF raw data'!E26="","",'DF raw data'!E26) -> Probe Current Supply | B26: =IF('DF raw data'!F26="","",'DF raw data'!F26) -> 1825-D | C26: =IF('DF raw data'!G26="","",'DF raw data'!G26) ->  | D26: =IF('DF raw data'!H26="","",'DF raw data'!H26) -> 
A27: =IF('DF raw data'!E27="","",'DF raw data'!E27) -> Probe Gain Correction | B27: =IF('DF raw data'!F27="","",'DF raw data'!F27) -> 0.99615 | C27: =IF('DF raw data'!G27="","",'DF raw data'!G27) ->  | D27: =IF('DF raw data'!H27="","",'DF raw data'!H27) -> 
A28: =IF('DF raw data'!E28="","",'DF raw data'!E28) -> Probe Offset Correction | B28: =IF('DF raw data'!F28="","",'DF raw data'!F28) -> 0.0027485 | C28: =IF('DF raw data'!G28="","",'DF raw data'!G28) ->  | D28: =IF('DF raw data'!H28="","",'DF raw data'!H28) -> 
A29: =IF('DF raw data'!E29="","",'DF raw data'!E29) -> DVM Number | B29: =IF('DF raw data'!F29="","",'DF raw data'!F29) -> 2 | C29: =IF('DF raw data'!G29="","",'DF raw data'!G29) ->  | D29: =IF('DF raw data'!H29="","",'DF raw data'!H29) -> 
A30: =IF('DF raw data'!E30="","",'DF raw data'!E30) -> DVM Type | B30: =IF('DF raw data'!F30="","",'DF raw data'!F30) -> K2701 | C30: =IF('DF raw data'!G30="","",'DF raw data'!G30) ->  | D30: =IF('DF raw data'!H30="","",'DF raw data'!H30) -> 
A31: =IF('DF raw data'!E31="","",'DF raw data'!E31) -> DVM Danfysik Reg. Number | B31: =IF('DF raw data'!F31="","",'DF raw data'!F31) -> 1743-D | C31: =IF('DF raw data'!G31="","",'DF raw data'!G31) ->  | D31: =IF('DF raw data'!H31="","",'DF raw data'!H31) -> 
A32: =IF('DF raw data'!E32="","",'DF raw data'!E32) -> Probe Name | B32: =IF('DF raw data'!F32="","",'DF raw data'!F32) -> ID12_Bx | C32: =IF('DF raw data'!G32="","",'DF raw data'!G32) ->  | D32: =IF('DF raw data'!H32="","",'DF raw data'!H32) -> 
A33: =IF('DF raw data'!E33="","",'DF raw data'!E33) -> Probe Type | B33: =IF('DF raw data'!F33="","",'DF raw data'!F33) -> DF_ID_3D_Bxyz | C33: =IF('DF raw data'!G33="","",'DF raw data'!G33) ->  | D33: =IF('DF raw data'!H33="","",'DF raw data'!H33) -> 
A34: =IF('DF raw data'!E34="","",'DF raw data'!E34) -> Probe Danfysik Reg. Number | B34: =IF('DF raw data'!F34="","",'DF raw data'!F34) -> 2277 | C34: =IF('DF raw data'!G34="","",'DF raw data'!G34) ->  | D34: =IF('DF raw data'!H34="","",'DF raw data'!H34) -> 
A35: =IF('DF raw data'!E35="","",'DF raw data'!E35) -> Probe Axis | B35: =IF('DF raw data'!F35="","",'DF raw data'!F35) -> Bx | C35: =IF('DF raw data'!G35="","",'DF raw data'!G35) ->  | D35: =IF('DF raw data'!H35="","",'DF raw data'!H35) -> 
A36: =IF('DF raw data'!E36="","",'DF raw data'!E36) -> Probe Current Supply | B36: =IF('DF raw data'!F36="","",'DF raw data'!F36) -> 1825-D | C36: =IF('DF raw data'!G36="","",'DF raw data'!G36) ->  | D36: =IF('DF raw data'!H36="","",'DF raw data'!H36) -> 
A37: =IF('DF raw data'!E37="","",'DF raw data'!E37) -> Probe Gain Correction | B37: =IF('DF raw data'!F37="","",'DF raw data'!F37) -> 1 | C37: =IF('DF raw data'!G37="","",'DF raw data'!G37) ->  | D37: =IF('DF raw data'!H37="","",'DF raw data'!H37) -> 
A38: =IF('DF raw data'!E38="","",'DF raw data'!E38) -> Probe Offset Correction | B38: =IF('DF raw data'!F38="","",'DF raw data'!F38) -> -0.17548 | C38: =IF('DF raw data'!G38="","",'DF raw data'!G38) ->  | D38: =IF('DF raw data'!H38="","",'DF raw data'!H38) -> 
A39: =IF('DF raw data'!E39="","",'DF raw data'!E39) -> DVM Number | B39: =IF('DF raw data'!F39="","",'DF raw data'!F39) -> 3 | C39: =IF('DF raw data'!G39="","",'DF raw data'!G39) ->  | D39: =IF('DF raw data'!H39="","",'DF raw data'!H39) -> 
A40: =IF('DF raw data'!E40="","",'DF raw data'!E40) -> DVM Type | B40: =IF('DF raw data'!F40="","",'DF raw data'!F40) -> K2701 | C40: =IF('DF raw data'!G40="","",'DF raw data'!G40) ->  | D40: =IF('DF raw data'!H40="","",'DF raw data'!H40) -> 
A41: =IF('DF raw data'!E41="","",'DF raw data'!E41) -> DVM Danfysik Reg. Number | B41: =IF('DF raw data'!F41="","",'DF raw data'!F41) -> 1744-D | C41: =IF('DF raw data'!G41="","",'DF raw data'!G41) ->  | D41: =IF('DF raw data'!H41="","",'DF raw data'!H41) -> 
A42: =IF('DF raw data'!E42="","",'DF raw data'!E42) -> Probe Name | B42: =IF('DF raw data'!F42="","",'DF raw data'!F42) -> ID12_Bz | C42: =IF('DF raw data'!G42="","",'DF raw data'!G42) ->  | D42: =IF('DF raw data'!H42="","",'DF raw data'!H42) -> 
A43: =IF('DF raw data'!E43="","",'DF raw data'!E43) -> Probe Type | B43: =IF('DF raw data'!F43="","",'DF raw data'!F43) -> DF_ID_3D_Bxyz | C43: =IF('DF raw data'!G43="","",'DF raw data'!G43) ->  | D43: =IF('DF raw data'!H43="","",'DF raw data'!H43) -> 
A44: =IF('DF raw data'!E44="","",'DF raw data'!E44) -> Probe Danfysik Reg. Number | B44: =IF('DF raw data'!F44="","",'DF raw data'!F44) -> 2277 | C44: =IF('DF raw data'!G44="","",'DF raw data'!G44) ->  | D44: =IF('DF raw data'!H44="","",'DF raw data'!H44) -> 
A45: =IF('DF raw data'!E45="","",'DF raw data'!E45) -> Probe Axis | B45: =IF('DF raw data'!F45="","",'DF raw data'!F45) -> Bz | C45: =IF('DF raw data'!G45="","",'DF raw data'!G45) ->  | D45: =IF('DF raw data'!H45="","",'DF raw data'!H45) -> 
A46: =IF('DF raw data'!E46="","",'DF raw data'!E46) -> Probe Current Supply | B46: =IF('DF raw data'!F46="","",'DF raw data'!F46) -> 1825-D | C46: =IF('DF raw data'!G46="","",'DF raw data'!G46) ->  | D46: =IF('DF raw data'!H46="","",'DF raw data'!H46) -> 
A47: =IF('DF raw data'!E47="","",'DF raw data'!E47) -> Probe Gain Correction | B47: =IF('DF raw data'!F47="","",'DF raw data'!F47) -> 1 | C47: =IF('DF raw data'!G47="","",'DF raw data'!G47) ->  | D47: =IF('DF raw data'!H47="","",'DF raw data'!H47) -> 
A48: =IF('DF raw data'!E53="","",'DF raw data'!E53) -> PS-Gap: | B48: =IF('DF raw data'!F53="","",'DF raw data'!F53) -> 10 | C48: =IF('DF raw data'!G53="","",'DF raw data'!G53) ->  | D48: =IF('DF raw data'!H53="","",'DF raw data'!H53) -> 
A49: =IF('DF raw data'!E54="","",'DF raw data'!E54) -> PS-Temperature: | B49: =IF('DF raw data'!F54="","",'DF raw data'!F54) -> 24.8 | C49: =IF('DF raw data'!G54="","",'DF raw data'!G54) ->  | D49: =IF('DF raw data'!H54="","",'DF raw data'!H54) -> 
A50: =IF('DF raw data'!E55="","",'DF raw data'!E55) -> PS-Encoder: | B50: =IF('DF raw data'!F55="","",'DF raw data'!F55) -> 19.5407 | C50: =IF('DF raw data'!G55="","",'DF raw data'!G55) ->  | D50: =IF('DF raw data'!H55="","",'DF raw data'!H55) -> 
A51: =IF('DF raw data'!E56="","",'DF raw data'!E56) ->  | B51: =IF('DF raw data'!F56="","",'DF raw data'!F56) ->  | C51: =IF('DF raw data'!G56="","",'DF raw data'!G56) ->  | D51: =IF('DF raw data'!H56="","",'DF raw data'!H56) -> 
A52: =IF('DF raw data'!E57="","",'DF raw data'!E57) -> Monitor-Index | B52: =IF('DF raw data'!F57="","",'DF raw data'!F57) -> [1,1,4] | C52: =IF('DF raw data'!G57="","",'DF raw data'!G57) ->  | D52: =IF('DF raw data'!H57="","",'DF raw data'!H57) -> 
A53: =IF('DF raw data'!E58="","",'DF raw data'!E58) ->  | B53: =IF('DF raw data'!F58="","",'DF raw data'!F58) ->  | C53: =IF('DF raw data'!G58="","",'DF raw data'!G58) ->  | D53: =IF('DF raw data'!H58="","",'DF raw data'!H58) -> 
A54: =IF('DF raw data'!E59="","",'DF raw data'!E59) -> Time [s] | B54: =IF('DF raw data'!F59="","",'DF raw data'!F59) -> Y [mm] | C54: =IF('DF raw data'!G59="","",'DF raw data'!G59) -> X [mm] | D54: =IF('DF raw data'!H59="","",'DF raw data'!H59) -> Nominal current [A]
A55: =IF('DF raw data'!E60="","",'DF raw data'!E60) ->  | B55: =IF('DF raw data'!F60="","",'DF raw data'!F60) ->  | C55: =IF('DF raw data'!G60="","",'DF raw data'!G60) ->  | D55: =IF('DF raw data'!H60="","",'DF raw data'!H60) -> 
A56: =IF('DF raw data'!E61="","",'DF raw data'!E61) -> 210.4 | B56: =IF('DF raw data'!F61="","",'DF raw data'!F61) -> 31.16 | C56: =IF('DF raw data'!G61="","",'DF raw data'!G61) -> 300.8 | D56: =IF('DF raw data'!H61="","",'DF raw data'!H61) -> 0
A57: =IF('DF raw data'!E62="","",'DF raw data'!E62) ->  | B57: =IF('DF raw data'!F62="","",'DF raw data'!F62) ->  | C57: =IF('DF raw data'!G62="","",'DF raw data'!G62) ->  | D57: =IF('DF raw data'!H62="","",'DF raw data'!H62) -> 
A58: =IF('DF raw data'!E63="","",'DF raw data'!E63) -> Measurement-Index | B58: =IF('DF raw data'!F63="","",'DF raw data'!F63) -> [1,1,1201,2] | C58: =IF('DF raw data'!G63="","",'DF raw data'!G63) ->  | D58: =IF('DF raw data'!H63="","",'DF raw data'!H63) -> 
A59: =IF('DF raw data'!E64="","",'DF raw data'!E64) ->  | B59: =IF('DF raw data'!F64="","",'DF raw data'!F64) ->  | C59: =IF('DF raw data'!G64="","",'DF raw data'!G64) ->  | D59: =IF('DF raw data'!H64="","",'DF raw data'!H64) -> 
A60: =IF('DF raw data'!E65="","",'DF raw data'!E65) -> Z [mm] | B60: By [T] | C60: Bx [T] | D60: Bz [T] | F60: By_corr | G60: Bx_corr | H60: Bz_corr | J60: Iy | K60: Jy | L60: Ix | M60: Jx | N60: PI
A62: =IF('DF raw data'!E67="","",'DF raw data'!E67) -> -300 | B62: =IF('DF raw data'!F67="","",'DF raw data'!F67) -> -8.38177e-06 | C62: =IF('DF raw data'!G67="","",'DF raw data'!G67) -> 0.000122223 | D62: =IF('DF raw data'!H67="","",'DF raw data'!H67) -> -2.72218e-05 | F62: =(1-$G$1*($B$49))*B62 -> -8.589637896e-06 | G62: =(1-$G$1*($B$49-$G$2))*C62 -> 0.0001228096704 | H62: =(1-$G$1*($B$49-$G$2))*D62 -> -2.735246464e-05 | J62: =F62*$G$3 -> -4.294818948e-06 | K62: =J62*$G$3 -> -2.147409474e-06 | L62: =G62*$G$3 -> 6.14048352e-05 | M62: =L62*$G$3 -> 3.07024176e-05 | N62: =(J62^2+L62^2)*$G$3 -> 1.894499628e-09
A63: =IF('DF raw data'!E68="","",'DF raw data'!E68) -> -299.5 | B63: =IF('DF raw data'!F68="","",'DF raw data'!F68) -> -7.93341e-06 | C63: =IF('DF raw data'!G68="","",'DF raw data'!G68) -> 0.000130151 | D63: =IF('DF raw data'!H68="","",'DF raw data'!H68) -> -2.71368e-05 | F63: =(1-$G$1*($B$49-$G$2))*B63 -> -7.971490368e-06 | G63: =(1-$G$1*($B$49-$G$2))*C63 -> 0.0001307757248 | H63: -2.726705664e-05 | J63: =F63*$G$3+J62 -> -8.280564132e-06 | K63: =J63*$G$3+K62 -> -6.28769154e-06 | L63: =G63*$G$3+L62 -> 0.0001267926976 | M63: =L63*$G$3+M62 -> 9.40987664e-05 | N63: =(J63^2+L63^2)*$G$3+N62 -> 9.966977581e-09
A64: =IF('DF raw data'!E69="","",'DF raw data'!E69) -> -299 | B64: =IF('DF raw data'!F69="","",'DF raw data'!F69) -> -1.70973e-05 | C64: =IF('DF raw data'!G69="","",'DF raw data'!G69) -> 0.000125861 | D64: =IF('DF raw data'!H69="","",'DF raw data'!H69) -> -2.68052e-05 | F64: =(1-$G$1*($B$49-$G$2))*B64 -> -1.717936704e-05 | G64: 0.0001264651328 | H64: -2.693386496e-05 | J64: =F64*$G$3+J63 -> -1.687024765e-05 | K64: =J64*$G$3+K63 -> -1.472281537e-05 | L64: =G64*$G$3+L63 -> 0.000190025264 | M64: =L64*$G$3+M63 -> 0.0001891113984 | N64: =(J64^2+L64^2)*$G$3+N63 -> 2.816408069e-08
A65: =IF('DF raw data'!E70="","",'DF raw data'!E70) -> -298.5 | B65: =IF('DF raw data'!F70="","",'DF raw data'!F70) -> -8.89483e-06 | C65: =IF('DF raw data'!G70="","",'DF raw data'!G70) -> 0.000114908 | D65: =IF('DF raw data'!H70="","",'DF raw data'!H70) -> -2.65574e-05 | F65: -8.937525184e-06 | G65: 0.0001154595584 | H65: -2.668487552e-05 | J65: -2.133901024e-05 | K65: -2.539232049e-05 | L65: 0.0002477550432 | M65: 0.00031298892 | N65: 5.908303808e-08
A66: =IF('DF raw data'!E71="","",'DF raw data'!E71) -> -298 | B66: =IF('DF raw data'!F71="","",'DF raw data'!F71) -> -1.35087e-05 | C66: =IF('DF raw data'!G71="","",'DF raw data'!G71) -> 0.000119381 | D66: =IF('DF raw data'!H71="","",'DF raw data'!H71) -> -2.66126e-05 | F66: -1.357354176e-05 | G66: 0.0001199540288 | H66: -2.674034048e-05 | J66: -2.812578112e-05 | K66: -3.945521105e-05 | L66: 0.0003077320576 | M66: 0.0004668549488 | N66: 1.068280775e-07
A67: =IF('DF raw data'!E72="","",'DF raw data'!E72) -> -297.5 | B67: =IF('DF raw data'!F72="","",'DF raw data'!F72) -> -1.10735e-05 | C67: =IF('DF raw data'!G72="","",'DF raw data'!G72) -> 0.000122776 | D67: =IF('DF raw data'!H72="","",'DF raw data'!H72) -> -2.69213e-05 | F67: -1.11266528e-05 | G67: 0.0001233653248 | H67: -2.705052224e-05 | J67: -3.368910752e-05 | K67: -5.629976481e-05 | L67: 0.00036941472 | M67: 0.0006515623088 | N67: 1.756291732e-07
A68: =IF('DF raw data'!E73="","",'DF raw data'!E73) -> -297 | B68: =IF('DF raw data'!F73="","",'DF raw data'!F73) -> -1.41492e-05 | C68: =IF('DF raw data'!G73="","",'DF raw data'!G73) -> 0.000128551 | D68: =IF('DF raw data'!H73="","",'DF raw data'!H73) -> -2.71116e-05 | F68: -1.421711616e-05 | G68: 0.0001291680448 | H68: -2.724173568e-05 | J68: -4.07976656e-05 | K68: -7.669859761e-05 | L68: 0.0004339987424 | M68: 0.00086856168 | N68: 2.706388521e-07
A69: =IF('DF raw data'!E74="","",'DF raw data'!E74) -> -296.5 | B69: =IF('DF raw data'!F74="","",'DF raw data'!F74) -> -1.6136e-05 | C69: =IF('DF raw data'!G74="","",'DF raw data'!G74) -> 0.000125798 | D69: =IF('DF raw data'!H74="","",'DF raw data'!H74) -> -2.67115e-05 | F69: -1.62134528e-05 | G69: 0.0001264018304 | H69: -2.68397152e-05 | J69: -4.8904392e-05 | K69: -0.0001011507936 | L69: 0.0004971996576 | M69: 0.001117161509 | N69: 3.954384217e-07
A70: =IF('DF raw data'!E75="","",'DF raw data'!E75) -> -296 | B70: =IF('DF raw data'!F75="","",'DF raw data'!F75) -> -2.21602e-05 | C70: =IF('DF raw data'!G75="","",'DF raw data'!G75) -> 0.000127273 | D70: =IF('DF raw data'!H75="","",'DF raw data'!H75) -> -2.58101e-05 | F70: -2.226656896e-05 | G70: 0.0001278839104 | H70: -2.593398848e-05 | J70: -6.003767648e-05 | K70: -0.0001311696319 | L70: 0.0005611416128 | M70: 0.001397732315 | N70: 5.546806378e-07
A71: =IF('DF raw data'!E76="","",'DF raw data'!E76) -> -295.5 | B71: =IF('DF raw data'!F76="","",'DF raw data'!F76) -> -6.07611e-06 | C71: =IF('DF raw data'!G76="","",'DF raw data'!G76) -> 0.000128582 | D71: =IF('DF raw data'!H76="","",'DF raw data'!H76) -> -2.5429e-05 | F71: -6.105275328e-06 | G71: 0.0001291991936 | H71: -2.55510592e-05 | J71: -6.309031415e-05 | K71: -0.0001627147889 | L71: 0.0006257412096 | M71: 0.00171060292 | N71: 7.524468623e-07
A72: =IF('DF raw data'!E77="","",'DF raw data'!E77) -> -295 | B72: =IF('DF raw data'!F77="","",'DF raw data'!F77) -> -1.13945e-05 | C72: =IF('DF raw data'!G77="","",'DF raw data'!G77) -> 0.000119337 | D72: =IF('DF raw data'!H77="","",'DF raw data'!H77) -> -2.58333e-05 | F72: -1.14491936e-05 | G72: 0.0001199098176 | H72: -2.595729984e-05 | J72: -6.881491095e-05 | K72: -0.0001971222444 | L72: 0.0006856961184 | M72: 0.002053450979 | N72: 9.899041917e-07
A73: =IF('DF raw data'!E78="","",'DF raw data'!E78) -> -294.5 | B73: =IF('DF raw data'!F78="","",'DF raw data'!F78) -> -2.61481e-06 | C73: =IF('DF raw data'!G78="","",'DF raw data'!G78) -> 0.000126954 | D73: =IF('DF raw data'!H78="","",'DF raw data'!H78) -> -2.66563e-05 | F73: -2.627361088e-06 | G73: 0.0001275633792 | H73: -2.678425024e-05 | J73: -7.012859149e-05 | K73: -0.0002321865402 | L73: 0.000749477808 | M73: 0.002428189883 | N73: 1.273221694e-06
A74: =IF('DF raw data'!E79="","",'DF raw data'!E79) -> -294 | B74: =IF('DF raw data'!F79="","",'DF raw data'!F79) -> -9.40705e-06 | C74: =IF('DF raw data'!G79="","",'DF raw data'!G79) -> 0.000128269 | D74: =IF('DF raw data'!H79="","",'DF raw data'!H79) -> -2.7196e-05 | F74: -9.45220384e-06 | G74: 0.0001288846912 | H74: -2.73265408e-05 | J74: -7.485469341e-05 | K74: -0.0002696138869 | L74: 0.0008139201536 | M74: 0.00283514996 | N74: 1.607256315e-06
A75: =IF('DF raw data'!E80="","",'DF raw data'!E80) -> -293.5 | B75: =IF('DF raw data'!F80="","",'DF raw data'!F80) -> -1.36364e-05 | C75: =IF('DF raw data'!G80="","",'DF raw data'!G80) -> 0.000126999 | D75: =IF('DF raw data'!H80="","",'DF raw data'!H80) -> -2.73291e-05 | F75: -1.370185472e-05 | G75: 0.0001276085952 | H75: -2.746027968e-05 | J75: -8.170562077e-05 | K75: -0.0003104666972 | L75: 0.0008777244512 | M75: 0.003274012186 | N75: 1.995794325e-06
A76: =IF('DF raw data'!E81="","",'DF raw data'!E81) -> -293 | B76: =IF('DF raw data'!F81="","",'DF raw data'!F81) -> -1.0112e-05 | C76: =IF('DF raw data'!G81="","",'DF raw data'!G81) -> 0.000132922 | D76: =IF('DF raw data'!H81="","",'DF raw data'!H81) -> -2.72557e-05 | F76: -1.01605376e-05 | G76: 0.0001335600256 | H76: -2.738652736e-05 | J76: -8.678588957e-05 | K76: -0.000353859642 | L76: 0.000944504464 | M76: 0.003746264418 | N76: 2.445604561e-06
A77: =IF('DF raw data'!E82="","",'DF raw data'!E82) -> -292.5 | B77: =IF('DF raw data'!F82="","",'DF raw data'!F82) -> -2.01091e-05 | C77: =IF('DF raw data'!G82="","",'DF raw data'!G82) -> 0.000126748 | D77: =IF('DF raw data'!H82="","",'DF raw data'!H82) -> -2.67487e-05 | F77: -2.020562368e-05 | G77: 0.0001273563904 | H77: -2.687709376e-05 | J77: -9.688870141e-05 | K77: -0.0004023039927 | L77: 0.001008182659 | M77: 0.004250355747 | N77: 2.958514409e-06
A78: =IF('DF raw data'!E83="","",'DF raw data'!E83) -> -292 | B78: =IF('DF raw data'!F83="","",'DF raw data'!F83) -> -1.64568e-05 | C78: =IF('DF raw data'!G83="","",'DF raw data'!G83) -> 0.000119029 | D78: =IF('DF raw data'!H83="","",'DF raw data'!H83) -> -2.59626e-05 | F78: -1.653579264e-05 | G78: 0.0001196003392 | H78: -2.608722048e-05 | J78: -0.0001051565977 | K78: -0.0004548822916 | L78: 0.001067982829 | M78: 0.004784347162 | N78: 3.534337025e-06
A79: =IF('DF raw data'!E84="","",'DF raw data'!E84) -> -291.5 | B79: =IF('DF raw data'!F84="","",'DF raw data'!F84) -> -1.22291e-05 | C79: =IF('DF raw data'!G84="","",'DF raw data'!G84) -> 0.000125854 | D79: =IF('DF raw data'!H84="","",'DF raw data'!H84) -> -2.36364e-05 | F79: -1.228779968e-05 | G79: 0.0001264580992 | H79: -2.374985472e-05 | J79: -0.0001113004976 | K79: -0.0005105325404 | L79: 0.001131211878 | M79: 0.005349953101 | N79: 4.180351082e-06
A80: =IF('DF raw data'!E85="","",'DF raw data'!E85) -> -291 | B80: =IF('DF raw data'!F85="","",'DF raw data'!F85) -> -6.20242e-06 | C80: =IF('DF raw data'!G85="","",'DF raw data'!G85) -> 0.000127207 | D80: =IF('DF raw data'!H85="","",'DF raw data'!H85) -> -2.82734e-05 | F80: -6.232191616e-06 | G80: 0.0001278175936 | H80: -2.840911232e-05 | J80: -0.0001144165934 | K80: -0.0005677408371 | L80: 0.001195120675 | M80: 0.005947513438 | N80: 4.901053375e-06
A81: =IF('DF raw data'!E86="","",'DF raw data'!E86) -> -290.5 | B81: =IF('DF raw data'!F86="","",'DF raw data'!F86) -> -1.22946e-05 | C81: =IF('DF raw data'!G86="","",'DF raw data'!G86) -> 0.000116797 | D81: =IF('DF raw data'!H86="","",'DF raw data'!H86) -> -2.12419e-05 | F81: -1.235361408e-05 | G81: 0.0001173576256 | H81: -2.134386112e-05 | J81: -0.0001205934004 | K81: -0.0006280375373 | L81: 0.001253799488 | M81: 0.006574413182 | N81: 5.694331337e-06
A82: =IF('DF raw data'!E87="","",'DF raw data'!E87) -> -290 | B82: =IF('DF raw data'!F87="","",'DF raw data'!F87) -> -1.27387e-05 | C82: =IF('DF raw data'!G87="","",'DF raw data'!G87) -> 0.000121634 | D82: =IF('DF raw data'!H87="","",'DF raw data'!H87) -> -2.83376e-05 | F82: -1.279984576e-05 | G82: 0.0001222178432 | H82: -2.847362048e-05 | J82: -0.0001269933233 | K82: -0.0006915341989 | L82: 0.00131490841 | M82: 0.007231867387 | N82: 6.566887052e-06
A83: =IF('DF raw data'!E88="","",'DF raw data'!E88) -> -289.5 | B83: =IF('DF raw data'!F88="","",'DF raw data'!F88) -> -1.00518e-05 | C83: =IF('DF raw data'!G88="","",'DF raw data'!G88) -> 0.000117056 | D83: =IF('DF raw data'!H88="","",'DF raw data'!H88) -> -2.10118e-05 | F83: -1.010004864e-05 | G83: 0.0001176178688 | H83: -2.111265664e-05 | J83: -0.0001320433476 | K83: -0.0007575558727 | L83: 0.001373717344 | M83: 0.007918726059 | N83: 7.519154446e-06
A84: =IF('DF raw data'!E89="","",'DF raw data'!E89) -> -289 | B84: =IF('DF raw data'!F89="","",'DF raw data'!F89) -> -2.02291e-05 | C84: =IF('DF raw data'!G89="","",'DF raw data'!G89) -> 0.000116477 | D84: =IF('DF raw data'!H89="","",'DF raw data'!H89) -> -3.92802e-05 | F84: -2.032619968e-05 | G84: 0.0001170360896 | H84: -3.946874496e-05 | J84: -0.0001422064475 | K84: -0.0008286590965 | L84: 0.001432235389 | M84: 0.008634843754 | N84: 8.554914887e-06
A85: =IF('DF raw data'!E90="","",'DF raw data'!E90) -> -288.5 | B85: =IF('DF raw data'!F90="","",'DF raw data'!F90) -> -2.21693e-05 | C85: =IF('DF raw data'!G90="","",'DF raw data'!G90) -> 0.000118079 | D85: =IF('DF raw data'!H90="","",'DF raw data'!H90) -> -1.18437e-05 | F85: -2.227571264e-05 | G85: 0.0001186457792 | H85: -1.190054976e-05 | J85: -0.0001533443038 | K85: -0.0009053312484 | L85: 0.001491558278 | M85: 0.009380622893 | N85: 9.679045174e-06
A86: =IF('DF raw data'!E91="","",'DF raw data'!E91) -> -288 | B86: =IF('DF raw data'!F91="","",'DF raw data'!F91) -> -1.21104e-05 | C86: =IF('DF raw data'!G91="","",'DF raw data'!G91) -> 0.000117261 | D86: =IF('DF raw data'!H91="","",'DF raw data'!H91) -> -9.09388e-06 | F86: -1.216852992e-05 | G86: 0.0001178238528 | H86: -9.137530624e-06 | J86: -0.0001594285687 | K86: -0.0009850455327 | L86: 0.001550470205 | M86: 0.010155858 | N86: 1.089373284e-05
A87: =IF('DF raw data'!E92="","",'DF raw data'!E92) -> -287.5 | B87: =IF('DF raw data'!F92="","",'DF raw data'!F92) -> -1.28037e-05 | C87: =IF('DF raw data'!G92="","",'DF raw data'!G92) -> 0.000114317 | D87: =IF('DF raw data'!H92="","",'DF raw data'!H92) -> -2.6617e-05 | F87: -1.286515776e-05 | G87: 0.0001148657216 | H87: -2.67447616e-05 | J87: -0.0001658611476 | K87: -0.001067976107 | L87: 0.001607903066 | M87: 0.01095980953 | N87: 1.220016393e-05
A88: =IF('DF raw data'!E93="","",'DF raw data'!E93) -> -287 | B88: =IF('DF raw data'!F93="","",'DF raw data'!F93) -> -1.97795e-05 | C88: =IF('DF raw data'!G93="","",'DF raw data'!G93) -> 0.000116445 | D88: =IF('DF raw data'!H93="","",'DF raw data'!H93) -> -4.07637e-05 | F88: -1.98744416e-05 | G88: 0.000117003936 | H88: -4.095936576e-05 | J88: -0.0001757983684 | K88: -0.001155875291 | L88: 0.001666405034 | M88: 0.01179301204 | N88: 1.360406933e-05
A89: =IF('DF raw data'!E94="","",'DF raw data'!E94) -> -286.5 | B89: =IF('DF raw data'!F94="","",'DF raw data'!F94) -> -7.35536e-06 | C89: =IF('DF raw data'!G94="","",'DF raw data'!G94) -> 0.000123613 | D89: =IF('DF raw data'!H94="","",'DF raw data'!H94) -> -2.90095e-05 | F89: -7.390665728e-06 | G89: 0.0001242063424 | H89: -2.91487456e-05 | J89: -0.0001794937013 | K89: -0.001245622141 | L89: 0.001728508205 | M89: 0.01265726615 | N89: 1.511404863e-05
A90: =IF('DF raw data'!E95="","",'DF raw data'!E95) -> -286 | B90: =IF('DF raw data'!F95="","",'DF raw data'!F95) -> -1.13376e-05 | C90: =IF('DF raw data'!G95="","",'DF raw data'!G95) -> 0.000127568 | D90: =IF('DF raw data'!H95="","",'DF raw data'!H95) -> -1.49956e-05 | F90: -1.139202048e-05 | G90: 0.0001281803264 | H90: -1.506757888e-05 | J90: -0.0001851897115 | K90: -0.001338216997 | L90: 0.001792598368 | M90: 0.01355356533 | N90: 1.67379007e-05
A91: =IF('DF raw data'!E96="","",'DF raw data'!E96) -> -285.5 | B91: =IF('DF raw data'!F96="","",'DF raw data'!F96) -> -1.85113e-05 | C91: =IF('DF raw data'!G96="","",'DF raw data'!G96) -> 0.000132367 | D91: =IF('DF raw data'!H96="","",'DF raw data'!H96) -> -2.01273e-05 | F91: -1.860015424e-05 | G91: 0.0001330023616 | H91: -2.022391104e-05 | J91: -0.0001944897886 | K91: -0.001435461891 | L91: 0.001859099549 | M91: 0.01448311511 | N91: 1.848493941e-05
A92: =IF('DF raw data'!E97="","",'DF raw data'!E97) -> -285 | B92: =IF('DF raw data'!F97="","",'DF raw data'!F97) -> -8.38664e-06 | C92: =IF('DF raw data'!G97="","",'DF raw data'!G97) -> 0.000125663 | D92: =IF('DF raw data'!H97="","",'DF raw data'!H97) -> -1.97265e-05 | F92: -8.426895872e-06 | G92: 0.0001262661824 | H92: -1.98211872e-05 | J92: -0.0001987032366 | K92: -0.00153481351 | L92: 0.00192223264 | M92: 0.01544423143 | N92: 2.035217006e-05
A93: =IF('DF raw data'!E98="","",'DF raw data'!E98) -> -284.5 | B93: =IF('DF raw data'!F98="","",'DF raw data'!F98) -> -1.00441e-05 | C93: =IF('DF raw data'!G98="","",'DF raw data'!G98) -> 0.000115453 | D93: =IF('DF raw data'!H98="","",'DF raw data'!H98) -> -3.29397e-05 | F93: -1.009231168e-05 | G93: 0.0001160071744 | H93: -3.309781056e-05 | J93: -0.0002037493924 | K93: -0.001636688206 | L93: 0.001980236227 | M93: 0.01643434954 | N93: 2.233359472e-05
A94: =IF('DF raw data'!E99="","",'DF raw data'!E99) -> -284 | B94: =IF('DF raw data'!F99="","",'DF raw data'!F99) -> -1.35088e-05 | C94: =IF('DF raw data'!G99="","",'DF raw data'!G99) -> 0.000117675 | D94: =IF('DF raw data'!H99="","",'DF raw data'!H99) -> -2.65459e-05 | F94: -1.357364224e-05 | G94: 0.00011823984 | H94: -2.667332032e-05 | J94: -0.0002105362135 | K94: -0.001741956313 | L94: 0.002039356147 | M94: 0.01745402761 | N94: 2.443524422e-05
A95: =IF('DF raw data'!E100="","",'DF raw data'!E100) -> -283.5 | B95: =IF('DF raw data'!F100="","",'DF raw data'!F100) -> -2.06877e-05 | C95: =IF('DF raw data'!G100="","",'DF raw data'!G100) -> 0.000118708 | D95: =IF('DF raw data'!H100="","",'DF raw data'!H100) -> -2.37125e-05 | F95: -2.078700096e-05 | G95: 0.0001192777984 | H95: -2.382632e-05 | J95: -0.000220929714 | K95: -0.00185242117 | L95: 0.002098995046 | M95: 0.01850352514 | N95: 2.666253929e-05
A96: =IF('DF raw data'!E101="","",'DF raw data'!E101) -> -283 | B96: =IF('DF raw data'!F101="","",'DF raw data'!F101) -> -2.75475e-05 | C96: =IF('DF raw data'!G101="","",'DF raw data'!G101) -> 0.000118851 | D96: =IF('DF raw data'!H101="","",'DF raw data'!H101) -> -1.90278e-05 | F96: -2.7679728e-05 | G96: 0.0001194214848 | H96: -1.911913344e-05 | J96: -0.000234769578 | K96: -0.001969805959 | L96: 0.002158705789 | M96: 0.01958287803 | N96: 2.902010301e-05
A97: =IF('DF raw data'!E102="","",'DF raw data'!E102) -> -282.5 | B97: =IF('DF raw data'!F102="","",'DF raw data'!F102) -> -3.22278e-05 | C97: =IF('DF raw data'!G102="","",'DF raw data'!G102) -> 0.000118223 | D97: =IF('DF raw data'!H102="","",'DF raw data'!H102) -> -1.53286e-05 | F97: -3.238249344e-05 | G97: 0.0001187904704 | H97: -1.540217728e-05 | J97: -0.0002509608247 | K97: -0.002095286371 | L97: 0.002218101024 | M97: 0.02069192854 | N97: 3.151157975e-05
A98: =IF('DF raw data'!E103="","",'DF raw data'!E103) -> -282 | B98: =IF('DF raw data'!F103="","",'DF raw data'!F103) -> -1.31232e-05 | C98: =IF('DF raw data'!G103="","",'DF raw data'!G103) -> 0.000117715 | D98: =IF('DF raw data'!H103="","",'DF raw data'!H103) -> -2.82617e-05 | F98: -1.318619136e-05 | G98: 0.000118280032 | H98: -2.839735616e-05 | J98: -0.0002575539204 | K98: -0.002224063331 | L98: 0.00227724104 | M98: 0.02183054906 | N98: 3.413766014e-05
A99: =IF('DF raw data'!E104="","",'DF raw data'!E104) -> -281.5 | B99: =IF('DF raw data'!F104="","",'DF raw data'!F104) -> -1.31876e-05 | C99: =IF('DF raw data'!G104="","",'DF raw data'!G104) -> 0.000123844 | D99: =IF('DF raw data'!H104="","",'DF raw data'!H104) -> -2.75093e-05 | F99: -1.325090048e-05 | G99: 0.0001244384512 | H99: -2.764134464e-05 | J99: -0.0002641793707 | K99: -0.002356153017 | L99: 0.002339460266 | M99: 0.0230002792 | N99: 3.690909268e-05
A100: =IF('DF raw data'!E105="","",'DF raw data'!E105) -> -281 | B100: =IF('DF raw data'!F105="","",'DF raw data'!F105) -> -2.36337e-05 | C100: =IF('DF raw data'!G105="","",'DF raw data'!G105) -> 0.000120645 | D100: =IF('DF raw data'!H105="","",'DF raw data'!H105) -> -2.65924e-05 | F100: -2.374714176e-05 | G100: 0.000121224096 | H100: -2.672004352e-05 | J100: -0.0002760529415 | K100: -0.002494179487 | L100: 0.002400072314 | M100: 0.02420031535 | N100: 3.982736885e-05
A101: =IF('DF raw data'!E106="","",'DF raw data'!E106) -> -280.5 | B101: =IF('DF raw data'!F106="","",'DF raw data'!F106) -> -2.011e-05 | C101: =IF('DF raw data'!G106="","",'DF raw data'!G106) -> 0.000128184 | D101: =IF('DF raw data'!H106="","",'DF raw data'!H106) -> -2.54466e-05 | F101: -2.0206528e-05 | G101: 0.0001287992832 | H101: -2.556874368e-05 | J101: -0.0002861562055 | K101: -0.00263725759 | L101: 0.002464471955 | M101: 0.02543255133 | N101: 4.290512254e-05
A102: =IF('DF raw data'!E107="","",'DF raw data'!E107) -> -280 | B102: =IF('DF raw data'!F107="","",'DF raw data'!F107) -> -8.83043e-06 | C102: =IF('DF raw data'!G107="","",'DF raw data'!G107) -> 0.00013103 | D102: =IF('DF raw data'!H107="","",'DF raw data'!H107) -> -2.72599e-05 | F102: -8.872816064e-06 | G102: 0.000131658944 | H102: -2.739074752e-05 | J102: -0.0002905926136 | K102: -0.002782553897 | L102: 0.002530301427 | M102: 0.02669770204 | N102: 4.614855723e-05
A103: =IF('DF raw data'!E108="","",'DF raw data'!E108) -> -279.5 | B103: =IF('DF raw data'!F108="","",'DF raw data'!F108) -> -1.14648e-05 | C103: =IF('DF raw data'!G108="","",'DF raw data'!G108) -> 0.000120828 | D103: =IF('DF raw data'!H108="","",'DF raw data'!H108) -> -1.63852e-05 | F103: -1.151983104e-05 | G103: 0.0001214079744 | H103: -1.646384896e-05 | J103: -0.0002963525291 | K103: -0.002930730162 | L103: 0.002591005414 | M103: 0.02799320475 | N103: 4.954912417e-05
A104: =IF('DF raw data'!E109="","",'DF raw data'!E109) -> -279 | B104: =IF('DF raw data'!F109="","",'DF raw data'!F109) -> -1.61363e-05 | C104: =IF('DF raw data'!G109="","",'DF raw data'!G109) -> 0.000121606 | D104: =IF('DF raw data'!H109="","",'DF raw data'!H109) -> -2.63009e-05 | F104: -1.621375424e-05 | G104: 0.0001221897088 | H104: -2.642714432e-05 | J104: -0.0003044594062 | K104: -0.003082959865 | L104: 0.002652100269 | M104: 0.02931925488 | N104: 5.311228985e-05
A105: =IF('DF raw data'!E110="","",'DF raw data'!E110) -> -278.5 | B105: =IF('DF raw data'!F110="","",'DF raw data'!F110) -> -1.34479e-05 | C105: =IF('DF raw data'!G110="","",'DF raw data'!G110) -> 0.000126648 | D105: =IF('DF raw data'!H110="","",'DF raw data'!H110) -> -2.14346e-05 | F105: -1.351244992e-05 | G105: 0.0001272559104 | H105: -2.153748608e-05 | J105: -0.0003112156312 | K105: -0.00323856768 | L105: 0.002715728224 | M105: 0.030677119 | N105: 5.684830733e-05
A106: =IF('DF raw data'!E111="","",'DF raw data'!E111) -> -278 | B106: =IF('DF raw data'!F111="","",'DF raw data'!F111) -> -9.93217e-06 | C106: =IF('DF raw data'!G111="","",'DF raw data'!G111) -> 0.000137206 | D106: =IF('DF raw data'!H111="","",'DF raw data'!H111) -> -7.93796e-06 | F106: -9.979844416e-06 | G106: 0.0001378645888 | H106: -7.976062208e-06 | J106: -0.0003162055534 | K106: -0.003396670457 | L106: 0.002784660518 | M106: 0.03206944926 | N106: 6.077546741e-05
A107: =IF('DF raw data'!E112="","",'DF raw data'!E112) -> -277.5 | B107: =IF('DF raw data'!F112="","",'DF raw data'!F112) -> -1.75514e-05 | C107: =IF('DF raw data'!G112="","",'DF raw data'!G112) -> 0.000135948 | D107: =IF('DF raw data'!H112="","",'DF raw data'!H112) -> -1.80534e-05 | F107: -1.763564672e-05 | G107: 0.0001366005504 | H107: -1.814005632e-05 | J107: -0.0003250233767 | K107: -0.003559182145 | L107: 0.002852960794 | M107: 0.03349592965 | N107: 6.489798015e-05
A108: =IF('DF raw data'!E113="","",'DF raw data'!E113) -> -277 | B108: =IF('DF raw data'!F113="","",'DF raw data'!F113) -> -2.24882e-05 | C108: =IF('DF raw data'!G113="","",'DF raw data'!G113) -> 0.000134506 | D108: =IF('DF raw data'!H113="","",'DF raw data'!H113) -> -1.39414e-05 | F108: -2.259614336e-05 | G108: 0.0001351516288 | H108: -1.400831872e-05 | J108: -0.0003363214484 | K108: -0.00372734287 | L108: 0.002920536608 | M108: 0.03495619796 | N108: 6.921930325e-05
A109: =IF('DF raw data'!E114="","",'DF raw data'!E114) -> -276.5 | B109: =IF('DF raw data'!F114="","",'DF raw data'!F114) -> -1.45368e-05 | C109: =IF('DF raw data'!G114="","",'DF raw data'!G114) -> 0.000132835 | D109: =IF('DF raw data'!H114="","",'DF raw data'!H114) -> -2.22897e-05 | F109: -1.460657664e-05 | G109: 0.000133472608 | H109: -2.239669056e-05 | J109: -0.0003436247367 | K109: -0.003899155238 | L109: 0.002987272912 | M109: 0.03644983441 | N109: 7.374024195e-05
A110: =IF('DF raw data'!E115="","",'DF raw data'!E115) -> -276 | B110: =IF('DF raw data'!F115="","",'DF raw data'!F115) -> -2.37663e-05 | C110: =IF('DF raw data'!G115="","",'DF raw data'!G115) -> 0.000130931 | D110: =IF('DF raw data'!H115="","",'DF raw data'!H115) -> -1.97133e-05 | F110: -2.388037824e-05 | G110: 0.0001315594688 | H110: -1.980792384e-05 | J110: -0.0003555649259 | K110: -0.004076937701 | L110: 0.003053052646 | M110: 0.03797636074 | N110: 7.846402039e-05
A111: =IF('DF raw data'!E116="","",'DF raw data'!E116) -> -275.5 | B111: =IF('DF raw data'!F116="","",'DF raw data'!F116) -> -2.59414e-05 | C111: =IF('DF raw data'!G116="","",'DF raw data'!G116) -> 0.000124129 | D111: =IF('DF raw data'!H116="","",'DF raw data'!H116) -> -2.52499e-05 | F111: -2.606591872e-05 | G111: 0.0001247248192 | H111: -2.537109952e-05 | J111: -0.0003685978852 | K111: -0.004261236643 | L111: 0.003115415056 | M111: 0.03953406826 | N111: 8.338485808e-05
A112: =IF('DF raw data'!E117="","",'DF raw data'!E117) -> -275 | B112: =IF('DF raw data'!F117="","",'DF raw data'!F117) -> -1.05623e-05 | C112: =IF('DF raw data'!G117="","",'DF raw data'!G117) -> 0.00012149 | D112: =IF('DF raw data'!H117="","",'DF raw data'!H117) -> -2.43646e-05 | F112: -1.061299904e-05 | G112: 0.000122073152 | H112: -2.448155008e-05 | J112: -0.0003739043847 | K112: -0.004448188836 | L112: 0.003176451632 | M112: 0.04112229408 | N112: 8.849968281e-05
A113: =IF('DF raw data'!E118="","",'DF raw data'!E118) -> -274.5 | B113: =IF('DF raw data'!F118="","",'DF raw data'!F118) -> -2.05644e-05 | C113: =IF('DF raw data'!G118="","",'DF raw data'!G118) -> 0.00011765 | D113: =IF('DF raw data'!H118="","",'DF raw data'!H118) -> -1.61761e-05 | F113: -2.066310912e-05 | G113: 0.00011821472 | H113: -1.625374528e-05 | J113: -0.0003842359393 | K113: -0.004640306805 | L113: 0.003235558992 | M113: 0.04274007358 | N113: 9.380792243e-05
A114: =IF('DF raw data'!E119="","",'DF raw data'!E119) -> -274 | B114: =IF('DF raw data'!F119="","",'DF raw data'!F119) -> -2.01728e-05 | C114: =IF('DF raw data'!G119="","",'DF raw data'!G119) -> 0.000116744 | D114: =IF('DF raw data'!H119="","",'DF raw data'!H119) -> -2.72017e-05 | F114: -2.026962944e-05 | G114: 0.0001173043712 | H114: -2.733226816e-05 | J114: -0.000394370754 | K114: -0.004837492182 | L114: 0.003294211178 | M114: 0.04438717916 | N114: 9.931160022e-05
A115: =IF('DF raw data'!E120="","",'DF raw data'!E120) -> -273.5 | B115: =IF('DF raw data'!F120="","",'DF raw data'!F120) -> -2.10769e-05 | C115: =IF('DF raw data'!G120="","",'DF raw data'!G120) -> 0.00011559 | D115: =IF('DF raw data'!H120="","",'DF raw data'!H120) -> -1.64576e-05 | F115: -2.117806912e-05 | G115: 0.000116144832 | H115: -1.653659648e-05 | J115: -0.0004049597886 | K115: -0.005039972077 | L115: 0.003352283594 | M115: 0.04606332096 | N115: 0.0001050124991
A116: =IF('DF raw data'!E121="","",'DF raw data'!E121) -> -273 | B116: =IF('DF raw data'!F121="","",'DF raw data'!F121) -> -3.0421e-05 | C116: =IF('DF raw data'!G121="","",'DF raw data'!G121) -> 0.000119674 | D116: =IF('DF raw data'!H121="","",'DF raw data'!H121) -> -3.47851e-05 | F116: -3.05670208e-05 | G116: 0.0001202484352 | H116: -3.495206848e-05 | J116: -0.000420243299 | K116: -0.005250093726 | L116: 0.003412407811 | M116: 0.04776952487 | N116: 0.0001109230648
A117: =IF('DF raw data'!E122="","",'DF raw data'!E122) -> -272.5 | B117: =IF('DF raw data'!F122="","",'DF raw data'!F122) -> -1.97893e-05 | C117: =IF('DF raw data'!G122="","",'DF raw data'!G122) -> 0.000120078 | D117: =IF('DF raw data'!H122="","",'DF raw data'!H122) -> -2.56552e-05 | F117: -1.988428864e-05 | G117: 0.0001206543744 | H117: -2.577834496e-05 | J117: -0.0004301854433 | K117: -0.005465186448 | L117: 0.003472734998 | M117: 0.04950589237 | N117: 0.0001170455388
A118: =IF('DF raw data'!E123="","",'DF raw data'!E123) -> -272 | B118: =IF('DF raw data'!F123="","",'DF raw data'!F123) -> -9.08504e-06 | C118: =IF('DF raw data'!G123="","",'DF raw data'!G123) -> 0.000113089 | D118: =IF('DF raw data'!H123="","",'DF raw data'!H123) -> -2.99033e-05 | F118: -9.128648192e-06 | G118: 0.0001136318272 | H118: -3.004683584e-05 | J118: -0.0004347497674 | K118: -0.005682561332 | L118: 0.003529550912 | M118: 0.05127066782 | N118: 0.0001233689073
A119: =IF('DF raw data'!E124="","",'DF raw data'!E124) -> -271.5 | B119: =IF('DF raw data'!F124="","",'DF raw data'!F124) -> -2.16506e-05 | C119: =IF('DF raw data'!G124="","",'DF raw data'!G124) -> 0.000113543 | D119: =IF('DF raw data'!H124="","",'DF raw data'!H124) -> -2.11623e-05 | F119: -2.175452288e-05 | G119: 0.0001140880064 | H119: -2.126387904e-05 | J119: -0.0004456270288 | K119: -0.005905374846 | L119: 0.003586594915 | M119: 0.05306396528 | N119: 0.0001299000305
A120: =IF('DF raw data'!E125="","",'DF raw data'!E125) -> -271 | B120: =IF('DF raw data'!F125="","",'DF raw data'!F125) -> -2.03664e-05 | C120: =IF('DF raw data'!G125="","",'DF raw data'!G125) -> 0.000124901 | D120: =IF('DF raw data'!H125="","",'DF raw data'!H125) -> -2.5225e-05 | F120: -2.046415872e-05 | G120: 0.0001255005248 | H120: -2.534608e-05 | J120: -0.0004558591082 | K120: -0.0061333044 | L120: 0.003649345178 | M120: 0.05488863787 | N120: 0.0001366627944
A121: =IF('DF raw data'!E126="","",'DF raw data'!E126) -> -270.5 | B121: =IF('DF raw data'!F126="","",'DF raw data'!F126) -> -1.08213e-05 | C121: =IF('DF raw data'!G126="","",'DF raw data'!G126) -> 0.000120727 | D121: =IF('DF raw data'!H126="","",'DF raw data'!H126) -> -2.06111e-05 | F121: -1.087324224e-05 | G121: 0.0001213064896 | H121: -2.071003328e-05 | J121: -0.0004612957293 | K121: -0.006363952265 | L121: 0.003709998422 | M121: 0.05674363708 | N121: 0.0001436512354
A122: =IF('DF raw data'!E127="","",'DF raw data'!E127) -> -270 | B122: =IF('DF raw data'!F127="","",'DF raw data'!F127) -> -2.11365e-05 | C122: =IF('DF raw data'!G127="","",'DF raw data'!G127) -> 0.000122566 | D122: =IF('DF raw data'!H127="","",'DF raw data'!H127) -> -2.3493e-05 | F122: -2.12379552e-05 | G122: 0.0001231543168 | H122: -2.36057664e-05 | J122: -0.0004719147069 | K122: -0.006599909618 | L122: 0.003771575581 | M122: 0.05862942487 | N122: 0.0001508749784
A123: =IF('DF raw data'!E128="","",'DF raw data'!E128) -> -269.5 | B123: =IF('DF raw data'!F128="","",'DF raw data'!F128) -> -1.74178e-05 | C123: =IF('DF raw data'!G128="","",'DF raw data'!G128) -> 0.000119547 | D123: =IF('DF raw data'!H128="","",'DF raw data'!H128) -> -2.63871e-05 | F123: -1.750140544e-05 | G123: 0.0001201208256 | H123: -2.651375808e-05 | J123: -0.0004806654096 | K123: -0.006840242323 | L123: 0.003831635994 | M123: 0.06054524287 | N123: 0.0001583312152
A124: =IF('DF raw data'!E129="","",'DF raw data'!E129) -> -269 | B124: =IF('DF raw data'!F129="","",'DF raw data'!F129) -> -6.58951e-06 | C124: =IF('DF raw data'!G129="","",'DF raw data'!G129) -> 0.000112981 | D124: =IF('DF raw data'!H129="","",'DF raw data'!H129) -> -2.42485e-05 | F124: -6.621139648e-06 | G124: 0.0001135233088 | H124: -2.43648928e-05 | J124: -0.0004839759795 | K124: -0.007082230313 | L124: 0.003888397648 | M124: 0.06248944169 | N124: 0.0001660081497
A125: =IF('DF raw data'!E130="","",'DF raw data'!E130) -> -268.5 | B125: =IF('DF raw data'!F130="","",'DF raw data'!F130) -> -1.44679e-05 | C125: =IF('DF raw data'!G130="","",'DF raw data'!G130) -> 0.000111652 | D125: =IF('DF raw data'!H130="","",'DF raw data'!H130) -> -2.98511e-05 | F125: -1.453734592e-05 | G125: 0.0001121879296 | H125: -2.999438528e-05 | J125: -0.0004912446524 | K125: -0.007327852639 | L125: 0.003944491613 | M125: 0.0644616875 | N125: 0.0001739083174
A126: =IF('DF raw data'!E131="","",'DF raw data'!E131) -> -268 | B126: =IF('DF raw data'!F131="","",'DF raw data'!F131) -> 8.4113e-07 | C126: =IF('DF raw data'!G131="","",'DF raw data'!G131) -> 0.000114035 | D126: =IF('DF raw data'!H131="","",'DF raw data'!H131) -> -2.00197e-05 | F126: 8.45167424e-07 | G126: 0.000114582368 | H126: -2.011579456e-05 | J126: -0.0004908220687 | K126: -0.007573263673 | L126: 0.004001782797 | M126: 0.0664625789 | N126: 0.0001820359033
A127: =IF('DF raw data'!E132="","",'DF raw data'!E132) -> -267.5 | B127: =IF('DF raw data'!F132="","",'DF raw data'!F132) -> -1.15911e-05 | C127: =IF('DF raw data'!G132="","",'DF raw data'!G132) -> 0.000115623 | D127: =IF('DF raw data'!H132="","",'DF raw data'!H132) -> -1.9281e-05 | F127: -1.164673728e-05 | G127: 0.0001161779904 | H127: -1.93735488e-05 | J127: -0.0004966454373 | K127: -0.007821586392 | L127: 0.004059871792 | M127: 0.06849251479 | N127: 0.0001904005111
A128: =IF('DF raw data'!E133="","",'DF raw data'!E133) -> -267 | B128: =IF('DF raw data'!F133="","",'DF raw data'!F133) -> -1.38309e-05 | C128: =IF('DF raw data'!G133="","",'DF raw data'!G133) -> 0.000110151 | D128: =IF('DF raw data'!H133="","",'DF raw data'!H133) -> -2.41017e-05 | F128: =(1-$G$1*($B$49-$G$2))*B128 -> -1.389728832e-05 | G128: 0.0001106797248 | H128: -2.421738816e-05 | J128: =F128*$G$3+J127 -> -0.0005035940815 | K128: =J128*$G$3+K127 -> -0.008073383433 | L128: =G128*$G$3+L127 -> 0.004115211654 | M128: =L128*$G$3+M127 -> 0.07055012062 | N128: =(J128^2+L128^2)*$G$3+N127 -> 0.0001989947981
A129: =IF('DF raw data'!E134="","",'DF raw data'!E134) -> -266.5 | B129: =IF('DF raw data'!F134="","",'DF raw data'!F134) -> -2.51067e-05 | C129: =IF('DF raw data'!G134="","",'DF raw data'!G134) -> 0.000106393 | D129: =IF('DF raw data'!H134="","",'DF raw data'!H134) -> -2.77047e-05 | F129: -2.522721216e-05 | G129: 0.0001069036864 | H129: -2.783768256e-05 | J129: -0.0005162076876 | K129: -0.008331487277 | L129: 0.004168663498 | M129: 0.07263445237 | N129: 0.000207816911
A130: =IF('DF raw data'!E135="","",'DF raw data'!E135) -> -266 | B130: =IF('DF raw data'!F135="","",'DF raw data'!F135) -> -1.20284e-05 | C130: =IF('DF raw data'!G135="","",'DF raw data'!G135) -> 0.000111385 | D130: =IF('DF raw data'!H135="","",'DF raw data'!H135) -> -3.63895e-05 | F130: -1.208613632e-05 | G130: 0.000111919648 | H130: -3.65641696e-05 | J130: -0.0005222507557 | K130: -0.008592612654 | L130: 0.004224623322 | M130: 0.07474676403 | N130: 0.000216877005
A131: =IF('DF raw data'!E136="","",'DF raw data'!E136) -> -265.5 | B131: =IF('DF raw data'!F136="","",'DF raw data'!F136) -> -1.52413e-05 | C131: =IF('DF raw data'!G136="","",'DF raw data'!G136) -> 0.000113387 | D131: =IF('DF raw data'!H136="","",'DF raw data'!H136) -> -2.30197e-05 | F131: -1.531445824e-05 | G131: 0.0001139312576 | H131: -2.313019456e-05 | J131: -0.0005299079849 | K131: -0.008857566647 | L131: 0.00428158895 | M131: 0.0768875585 | N131: 0.0002261834082
A132: =IF('DF raw data'!E137="","",'DF raw data'!E137) -> -265 | B132: =IF('DF raw data'!F137="","",'DF raw data'!F137) -> -1.78658e-05 | C132: =IF('DF raw data'!G137="","",'DF raw data'!G137) -> 0.000110711 | D132: =IF('DF raw data'!H137="","",'DF raw data'!H137) -> -2.74422e-05 | F132: -1.795155584e-05 | G132: 0.0001112424128 | H132: -2.757392256e-05 | J132: -0.0005388837628 | K132: -0.009127008528 | L132: 0.004337210157 | M132: 0.07905616358 | N132: 0.000235734302
A133: =IF('DF raw data'!E138="","",'DF raw data'!E138) -> -264.5 | B133: =IF('DF raw data'!F138="","",'DF raw data'!F138) -> -3.42742e-05 | C133: =IF('DF raw data'!G138="","",'DF raw data'!G138) -> 0.000109772 | D133: =IF('DF raw data'!H138="","",'DF raw data'!H138) -> -2.165e-05 | F133: -3.443871616e-05 | G133: 0.0001102989056 | H133: -2.175392e-05 | J133: -0.0005561031209 | K133: -0.009405060089 | L133: 0.00439235961 | M133: 0.08125234339 | N133: 0.0002455353389
A134: =IF('DF raw data'!E139="","",'DF raw data'!E139) -> -264 | B134: =IF('DF raw data'!F139="","",'DF raw data'!F139) -> -1.35096e-05 | C134: =IF('DF raw data'!G139="","",'DF raw data'!G139) -> 0.000116407 | D134: =IF('DF raw data'!H139="","",'DF raw data'!H139) -> -2.52876e-05 | F134: -1.357444608e-05 | G134: 0.0001169657536 | H134: -2.540898048e-05 | J134: -0.0005628903439 | K134: -0.009686505261 | L134: 0.004450842486 | M134: 0.08347776463 | N134: 0.000255598761
A135: =IF('DF raw data'!E140="","",'DF raw data'!E140) -> -263.5 | B135: =IF('DF raw data'!F140="","",'DF raw data'!F140) -> -2.48525e-05 | C135: =IF('DF raw data'!G140="","",'DF raw data'!G140) -> 0.000117713 | D135: =IF('DF raw data'!H140="","",'DF raw data'!H140) -> -2.4313e-05 | F135: -2.4971792e-05 | G135: 0.0001182780224 | H135: -2.44297024e-05 | J135: -0.0005753762399 | K135: -0.009974193381 | L135: 0.004509981498 | M135: 0.08573275538 | N135: 0.0002659342565
A136: =IF('DF raw data'!E141="","",'DF raw data'!E141) -> -263 | B136: =IF('DF raw data'!F141="","",'DF raw data'!F141) -> -1.93418e-05 | C136: =IF('DF raw data'!G141="","",'DF raw data'!G141) -> 0.000115959 | D136: =IF('DF raw data'!H141="","",'DF raw data'!H141) -> -2.38433e-05 | F136: -1.943464064e-05 | G136: 0.0001165156032 | H136: -2.395774784e-05 | J136: -0.0005850935602 | K136: -0.01026674016 | L136: 0.004568239299 | M136: 0.08801687503 | N136: 0.0002765398289
A137: =IF('DF raw data'!E142="","",'DF raw data'!E142) -> -262.5 | B137: =IF('DF raw data'!F142="","",'DF raw data'!F142) -> -3.0428e-05 | C137: =IF('DF raw data'!G142="","",'DF raw data'!G142) -> 0.000115414 | D137: =IF('DF raw data'!H142="","",'DF raw data'!H142) -> -2.40659e-05 | F137: -3.05740544e-05 | G137: 0.0001159679872 | H137: -2.418141632e-05 | J137: -0.0006003805874 | K137: -0.01056693045 | L137: 0.004626223293 | M137: 0.09032998668 | N137: 0.0002874210283
A138: =IF('DF raw data'!E143="","",'DF raw data'!E143) -> -262 | B138: =IF('DF raw data'!F143="","",'DF raw data'!F143) -> -2.29214e-05 | C138: =IF('DF raw data'!G143="","",'DF raw data'!G143) -> 0.000113555 | D138: =IF('DF raw data'!H143="","",'DF raw data'!H143) -> -3.77933e-05 | F138: -2.303142272e-05 | G138: 0.000114100064 | H138: -3.797470784e-05 | J138: -0.0006118962988 | K138: -0.0108728786 | L138: 0.004683273325 | M138: 0.09267162334 | N138: 0.0002985747614
A139: =IF('DF raw data'!E144="","",'DF raw data'!E144) -> -261.5 | B139: =IF('DF raw data'!F144="","",'DF raw data'!F144) -> -2.6136e-05 | C139: =IF('DF raw data'!G144="","",'DF raw data'!G144) -> 0.000109188 | D139: =IF('DF raw data'!H144="","",'DF raw data'!H144) -> -2.18843e-05 | F139: -2.62614528e-05 | G139: 0.0001097121024 | H139: -2.198934464e-05 | J139: -0.0006250270252 | K139: -0.01118539212 | L139: 0.004738129376 | M139: 0.09504068803 | N139: 0.0003099950257
A140: =IF('DF raw data'!E145="","",'DF raw data'!E145) -> -261 | B140: =IF('DF raw data'!F145="","",'DF raw data'!F145) -> -1.47296e-05 | C140: =IF('DF raw data'!G145="","",'DF raw data'!G145) -> 0.000112462 | D140: =IF('DF raw data'!H145="","",'DF raw data'!H145) -> -2.16743e-05 | F140: -1.480030208e-05 | G140: 0.0001130018176 | H140: -2.177833664e-05 | J140: -0.0006324271762 | K140: -0.0115016057 | L140: 0.004794630285 | M140: 0.09743800317 | N140: 0.0003216892476
A141: =IF('DF raw data'!E146="","",'DF raw data'!E146) -> -260.5 | B141: =IF('DF raw data'!F146="","",'DF raw data'!F146) -> -6.97337e-06 | C141: =IF('DF raw data'!G146="","",'DF raw data'!G146) -> 0.000116403 | D141: =IF('DF raw data'!H146="","",'DF raw data'!H146) -> -2.51994e-05 | F141: -7.006842176e-06 | G141: 0.0001169617344 | H141: -2.532035712e-05 | J141: -0.0006359305973 | K141: -0.011819571 | L141: 0.004853111152 | M141: 0.09986455874 | N141: 0.0003336677954
A142: =IF('DF raw data'!E147="","",'DF raw data'!E147) -> -260 | B142: =IF('DF raw data'!F147="","",'DF raw data'!F147) -> -1.99896e-05 | C142: =IF('DF raw data'!G147="","",'DF raw data'!G147) -> 0.000116291 | D142: =IF('DF raw data'!H147="","",'DF raw data'!H147) -> -1.3511e-05 | F142: -2.008555008e-05 | G142: 0.0001168491968 | H142: -1.35758528e-05 | J142: -0.0006459733724 | K142: -0.01214255769 | L142: 0.00491153575 | M142: 0.1023203266 | N142: 0.0003459380279
A143: =IF('DF raw data'!E148="","",'DF raw data'!E148) -> -259.5 | B143: =IF('DF raw data'!F148="","",'DF raw data'!F148) -> -1.93408e-05 | C143: =IF('DF raw data'!G148="","",'DF raw data'!G148) -> 0.000113666 | D143: =IF('DF raw data'!H148="","",'DF raw data'!H148) -> -2.54329e-05 | F143: -1.943363584e-05 | G143: 0.0001142115968 | H143: -2.555497792e-05 | J143: -0.0006556901903 | K143: -0.01247040278 | L143: 0.004968641549 | M143: 0.1048046474 | N143: 0.0003584966921
A144: =IF('DF raw data'!E149="","",'DF raw data'!E149) -> -259 | B144: =IF('DF raw data'!F149="","",'DF raw data'!F149) -> -1.61317e-05 | C144: =IF('DF raw data'!G149="","",'DF raw data'!G149) -> 0.000113246 | D144: =IF('DF raw data'!H149="","",'DF raw data'!H149) -> -3.33688e-05 | F144: -1.620913216e-05 | G144: 0.0001137895808 | H144: -3.352897024e-05 | J144: -0.0006637947564 | K144: -0.01280230016 | L144: 0.005025536339 | M144: 0.1073174156 | N144: 0.0003713450116
A145: =IF('DF raw data'!E150="","",'DF raw data'!E150) -> -258.5 | B145: =IF('DF raw data'!F150="","",'DF raw data'!F150) -> -1.97904e-05 | C145: =IF('DF raw data'!G150="","",'DF raw data'!G150) -> 0.0001083 | D145: =IF('DF raw data'!H150="","",'DF raw data'!H150) -> -2.40596e-05 | F145: -1.988539392e-05 | G145: 0.00010881984 | H145: -2.417508608e-05 | J145: -0.0006737374533 | K145: -0.01313916889 | L145: 0.005079946259 | M145: 0.1098573887 | N145: 0.0003844748997
A146: =IF('DF raw data'!E151="","",'DF raw data'!E151) -> -258 | B146: =IF('DF raw data'!F151="","",'DF raw data'!F151) -> -1.45279e-06 | C146: =IF('DF raw data'!G151="","",'DF raw data'!G151) -> 0.000107904 | D146: =IF('DF raw data'!H151="","",'DF raw data'!H151) -> -3.99328e-05 | F146: -1.459763392e-06 | G146: 0.0001084219392 | H146: -4.012447744e-05 | J146: -0.000674467335 | K146: -0.01347640256 | L146: 0.005134157229 | M146: 0.1124244673 | N146: 0.000397882138
A147: =IF('DF raw data'!E152="","",'DF raw data'!E152) -> -257.5 | B147: =IF('DF raw data'!F152="","",'DF raw data'!F152) -> -1.76658e-05 | C147: =IF('DF raw data'!G152="","",'DF raw data'!G152) -> 0.000110751 | D147: =IF('DF raw data'!H152="","",'DF raw data'!H152) -> -3.91745e-05 | F147: -1.775059584e-05 | G147: 0.0001112826048 | H147: -3.93625376e-05 | J147: -0.0006833426329 | K147: -0.01381807387 | L147: 0.005189798531 | M147: 0.1150193666 | N147: 0.000411582621
A148: =IF('DF raw data'!E153="","",'DF raw data'!E153) -> -257 | B148: =IF('DF raw data'!F153="","",'DF raw data'!F153) -> -1.36979e-05 | C148: =IF('DF raw data'!G153="","",'DF raw data'!G153) -> 0.000119932 | D148: =IF('DF raw data'!H153="","",'DF raw data'!H153) -> -3.11584e-05 | F148: -1.376364992e-05 | G148: 0.0001205076736 | H148: -3.130796032e-05 | J148: -0.0006902244579 | K148: -0.0141631861 | L148: 0.005250052368 | M148: 0.1176443928 | N148: 0.0004256023508
A149: =IF('DF raw data'!E154="","",'DF raw data'!E154) -> -256.5 | B149: =IF('DF raw data'!F154="","",'DF raw data'!F154) -> -1.70985e-05 | C149: =IF('DF raw data'!G154="","",'DF raw data'!G154) -> 0.000108626 | D149: =IF('DF raw data'!H154="","",'DF raw data'!H154) -> -2.4941e-05 | F149: -1.71805728e-05 | G149: 0.0001091474048 | H149: -2.50607168e-05 | J149: -0.0006988147443 | K149: -0.01451259347 | L149: 0.00530462607 | M149: 0.1202967058 | N149: 0.0004399160507
A150: =IF('DF raw data'!E155="","",'DF raw data'!E155) -> -256 | B150: =IF('DF raw data'!F155="","",'DF raw data'!F155) -> -1.48524e-05 | C150: =IF('DF raw data'!G155="","",'DF raw data'!G155) -> 0.000109269 | D150: =IF('DF raw data'!H155="","",'DF raw data'!H155) -> -2.99057e-05 | F150: -1.492369152e-05 | G150: 0.0001097934912 | H150: -3.004924736e-05 | J150: -0.0007062765901 | K150: -0.01486573177 | L150: 0.005359522816 | M150: 0.1229764672 | N150: 0.0004545277064
A151: =IF('DF raw data'!E156="","",'DF raw data'!E156) -> -255.5 | B151: =IF('DF raw data'!F156="","",'DF raw data'!F156) -> -3.70026e-06 | C151: =IF('DF raw data'!G156="","",'DF raw data'!G156) -> 0.000112927 | D151: =IF('DF raw data'!H156="","",'DF raw data'!H156) -> -3.28592e-05 | F151: -3.718021248e-06 | G151: 0.0001134690496 | H151: -3.301692416e-05 | J151: -0.0007081356007 | K151: -0.01521979957 | L151: 0.005416257341 | M151: 0.1256845959 | N151: 0.0004694463562
A152: =IF('DF raw data'!E157="","",'DF raw data'!E157) -> -255 | B152: =IF('DF raw data'!F157="","",'DF raw data'!F157) -> -3.51407e-06 | C152: =IF('DF raw data'!G157="","",'DF raw data'!G157) -> 0.000120553 | D152: =IF('DF raw data'!H157="","",'DF raw data'!H157) -> -2.33365e-05 | F152: -3.530937536e-06 | G152: 0.0001211316544 | H152: -2.34485152e-05 | J152: -0.0007099010694 | K152: -0.0155747501 | L152: 0.005476823168 | M152: 0.1284230075 | N152: 0.000484696132
A153: =IF('DF raw data'!E158="","",'DF raw data'!E158) -> -254.5 | B153: =IF('DF raw data'!F158="","",'DF raw data'!F158) -> -5.05129e-06 | C153: =IF('DF raw data'!G158="","",'DF raw data'!G158) -> 0.000114564 | D153: =IF('DF raw data'!H158="","",'DF raw data'!H158) -> -2.47786e-05 | F153: -5.075536192e-06 | G153: 0.0001151139072 | H153: -2.489753728e-05 | J153: -0.0007124388375 | K153: -0.01593096952 | L153: 0.005534380122 | M153: 0.1311901975 | N153: 0.0005002645982
A154: =IF('DF raw data'!E159="","",'DF raw data'!E159) -> -254 | B154: =IF('DF raw data'!F159="","",'DF raw data'!F159) -> -3.64073e-06 | C154: =IF('DF raw data'!G159="","",'DF raw data'!G159) -> 0.000118278 | D154: =IF('DF raw data'!H159="","",'DF raw data'!H159) -> -2.56385e-05 | F154: -3.658205504e-06 | G154: 0.0001188457344 | H154: -2.57615648e-05 | J154: -0.0007142679403 | K154: -0.01628810349 | L154: 0.005593802989 | M154: 0.133987099 | N154: 0.0005161650035
A155: =IF('DF raw data'!E160="","",'DF raw data'!E160) -> -253.5 | B155: =IF('DF raw data'!F160="","",'DF raw data'!F160) -> -1.62653e-05 | C155: =IF('DF raw data'!G160="","",'DF raw data'!G160) -> 0.000109718 | D155: =IF('DF raw data'!H160="","",'DF raw data'!H160) -> -2.50553e-05 | F155: -1.634337344e-05 | G155: 0.0001102446464 | H155: -2.517556544e-05 | J155: -0.000722439627 | K155: -0.01664932331 | L155: 0.005648925312 | M155: 0.1368115617 | N155: 0.0005323811416
A156: =IF('DF raw data'!E161="","",'DF raw data'!E161) -> -253 | B156: =IF('DF raw data'!F161="","",'DF raw data'!F161) -> -1.80002e-05 | C156: =IF('DF raw data'!G161="","",'DF raw data'!G161) -> 0.00011205 | D156: =IF('DF raw data'!H161="","",'DF raw data'!H161) -> -1.78505e-05 | F156: -1.808660096e-05 | G156: 0.00011258784 | H156: -1.79361824e-05 | J156: -0.0007314829275 | K156: -0.01701506477 | L156: 0.005705219232 | M156: 0.1396641713 | N156: 0.0005489234385
A157: =IF('DF raw data'!E162="","",'DF raw data'!E162) -> -252.5 | B157: =IF('DF raw data'!F162="","",'DF raw data'!F162) -> -2.04353e-05 | C157: =IF('DF raw data'!G162="","",'DF raw data'!G162) -> 0.000111352 | D157: =IF('DF raw data'!H162="","",'DF raw data'!H162) -> -1.77433e-05 | F157: -2.053338944e-05 | G157: 0.0001118864896 | H157: -1.782846784e-05 | J157: -0.0007417496222 | K157: -0.01738593958 | L157: 0.005761162477 | M157: 0.1425447525 | N157: 0.0005657940313
A158: =IF('DF raw data'!E163="","",'DF raw data'!E163) -> -252 | B158: =IF('DF raw data'!F163="","",'DF raw data'!F163) -> -2.23515e-05 | C158: =IF('DF raw data'!G163="","",'DF raw data'!G163) -> 0.000112164 | D158: =IF('DF raw data'!H163="","",'DF raw data'!H163) -> -2.72448e-05 | F158: -2.24587872e-05 | G158: 0.0001127023872 | H158: -2.737557504e-05 | J158: -0.0007529790158 | K158: -0.01776242909 | L158: 0.00581751367 | M158: 0.1454535094 | N158: 0.0005829992526
A159: =IF('DF raw data'!E164="","",'DF raw data'!E164) -> -251.5 | B159: =IF('DF raw data'!F164="","",'DF raw data'!F164) -> -2.45256e-05 | C159: =IF('DF raw data'!G164="","",'DF raw data'!G164) -> 0.000112675 | D159: =IF('DF raw data'!H164="","",'DF raw data'!H164) -> -3.4733e-05 | F159: -2.464332288e-05 | G159: 0.00011321584 | H159: -3.48997184e-05 | J159: -0.0007653006773 | K159: -0.01814507943 | L159: 0.00587412159 | M159: 0.1483905702 | N159: 0.0006005447474
A160: =IF('DF raw data'!E165="","",'DF raw data'!E165) -> -251 | B160: =IF('DF raw data'!F165="","",'DF raw data'!F165) -> -1.88188e-05 | C160: =IF('DF raw data'!G165="","",'DF raw data'!G165) -> 0.000117518 | D160: =IF('DF raw data'!H165="","",'DF raw data'!H165) -> -3.99197e-05 | F160: -1.890913024e-05 | G160: 0.0001180820864 | H160: -4.011131456e-05 | J160: -0.0007747552424 | K160: -0.01853245705 | L160: 0.005933162634 | M160: 0.1513571515 | N160: 0.0006184460797
A161: =IF('DF raw data'!E166="","",'DF raw data'!E166) -> -250.5 | B161: =IF('DF raw data'!F166="","",'DF raw data'!F166) -> -1.49187e-05 | C161: =IF('DF raw data'!G166="","",'DF raw data'!G166) -> 0.000109937 | D161: =IF('DF raw data'!H166="","",'DF raw data'!H166) -> -2.62802e-05 | F161: -1.499030976e-05 | G161: 0.0001104646976 | H161: -2.640634496e-05 | J161: -0.0007822503973 | K161: -0.01892358225 | L161: 0.005988394982 | M161: 0.154351349 | N161: 0.0006366824748
A162: =IF('DF raw data'!E167="","",'DF raw data'!E167) -> -250 | B162: =IF('DF raw data'!F167="","",'DF raw data'!F167) -> -8.70152e-06 | C162: =IF('DF raw data'!G167="","",'DF raw data'!G167) -> 0.000110961 | D162: =IF('DF raw data'!H167="","",'DF raw data'!H167) -> -2.84507e-05 | F162: -8.743287296e-06 | G162: 0.0001114936128 | H162: -2.858726336e-05 | J162: -0.0007866220409 | K162: -0.01931689327 | L162: 0.006044141789 | M162: 0.1573734199 | N162: 0.0006552576869
A163: =IF('DF raw data'!E168="","",'DF raw data'!E168) -> -249.5 | B163: =IF('DF raw data'!F168="","",'DF raw data'!F168) -> -1.4157e-05 | C163: =IF('DF raw data'!G168="","",'DF raw data'!G168) -> 0.000115935 | D163: =IF('DF raw data'!H168="","",'DF raw data'!H168) -> -1.51062e-05 | F163: -1.42249536e-05 | G163: 0.000116491488 | H163: -1.517870976e-05 | J163: -0.0007937345177 | K163: -0.01971376053 | L163: 0.006102387533 | M163: 0.1604246136 | N163: 0.0006741922609
A164: =IF('DF raw data'!E169="","",'DF raw data'!E169) -> -249 | B164: =IF('DF raw data'!F169="","",'DF raw data'!F169) -> -1.79414e-05 | C164: =IF('DF raw data'!G169="","",'DF raw data'!G169) -> 0.000122051 | D164: =IF('DF raw data'!H169="","",'DF raw data'!H169) -> -9.4752e-06 | F164: -1.802751872e-05 | G164: 0.0001226368448 | H164: -9.52068096e-06 | J164: -0.0008027482771 | K164: -0.02011513467 | L164: 0.006163705955 | M164: 0.1635064666 | N164: 0.0006935100988
A165: =IF('DF raw data'!E170="","",'DF raw data'!E170) -> -248.5 | B165: =IF('DF raw data'!F170="","",'DF raw data'!F170) -> -2.46622e-05 | C165: =IF('DF raw data'!G170="","",'DF raw data'!G170) -> 0.000120599 | D165: =IF('DF raw data'!H170="","",'DF raw data'!H170) -> -2.1571e-05 | F165: -2.478057856e-05 | G165: 0.0001211778752 | H165: -2.16745408e-05 | J165: -0.0008151385663 | K165: -0.02052270395 | L165: 0.006224294893 | M165: 0.166618614 | N165: 0.0007132132477
A166: =IF('DF raw data'!E171="","",'DF raw data'!E171) -> -248 | B166: =IF('DF raw data'!F171="","",'DF raw data'!F171) -> -9.02725e-06 | C166: =IF('DF raw data'!G171="","",'DF raw data'!G171) -> 0.000117922 | D166: =IF('DF raw data'!H171="","",'DF raw data'!H171) -> -2.00225e-05 | F166: -9.0705808e-06 | G166: 0.0001184880256 | H166: -2.0118608e-05 | J166: -0.0008196738567 | K166: -0.02093254088 | L166: 0.006283538906 | M166: 0.1697603835 | N166: 0.0007332906109
A167: =IF('DF raw data'!E172="","",'DF raw data'!E172) -> -247.5 | B167: =IF('DF raw data'!F172="","",'DF raw data'!F172) -> -2.21642e-05 | C167: =IF('DF raw data'!G172="","",'DF raw data'!G172) -> 0.00011103 | D167: =IF('DF raw data'!H172="","",'DF raw data'!H172) -> -1.97549e-05 | F167: -2.227058816e-05 | G167: 0.000111562944 | H167: -1.984972352e-05 | J167: -0.0008308091508 | K167: -0.02134794545 | L167: 0.006339320378 | M167: 0.1729300437 | N167: 0.0007537292243
A168: =IF('DF raw data'!E173="","",'DF raw data'!E173) -> -247 | B168: =IF('DF raw data'!F173="","",'DF raw data'!F173) -> -2.83123e-05 | C168: =IF('DF raw data'!G173="","",'DF raw data'!G173) -> 0.000119361 | D168: =IF('DF raw data'!H173="","",'DF raw data'!H173) -> -2.5514e-05 | F168: -2.844819904e-05 | G168: 0.0001199339328 | H168: -2.56364672e-05 | J168: -0.0008450332503 | K168: -0.02177046208 | L168: 0.006399287344 | M168: 0.1761296874 | N168: 0.0007745617041
A169: =IF('DF raw data'!E174="","",'DF raw data'!E174) -> -246.5 | B169: =IF('DF raw data'!F174="","",'DF raw data'!F174) -> -1.82543e-05 | C169: =IF('DF raw data'!G174="","",'DF raw data'!G174) -> 0.000118042 | D169: =IF('DF raw data'!H174="","",'DF raw data'!H174) -> -2.13359e-05 | F169: -1.834192064e-05 | G169: 0.0001186086016 | H169: -2.143831232e-05 | J169: -0.0008542042107 | K169: -0.02219756418 | L169: 0.006458591645 | M169: 0.1793589832 | N169: 0.0007957832396
A170: =IF('DF raw data'!E175="","",'DF raw data'!E175) -> -246 | B170: =IF('DF raw data'!F175="","",'DF raw data'!F175) -> 3.92717e-07 | C170: =IF('DF raw data'!G175="","",'DF raw data'!G175) -> 0.000114179 | D170: =IF('DF raw data'!H175="","",'DF raw data'!H175) -> -2.00261e-05 | F170: 3.946020416e-07 | G170: 0.0001147270592 | H170: -2.012222528e-05 | J170: -0.0008540069096 | K170: -0.02262456764 | L170: 0.006515955174 | M170: 0.1826169608 | N170: 0.0008173767394
A171: =IF('DF raw data'!E176="","",'DF raw data'!E176) -> -245.5 | B171: =IF('DF raw data'!F176="","",'DF raw data'!F176) -> -1.94089e-05 | C171: =IF('DF raw data'!G176="","",'DF raw data'!G176) -> 0.000111697 | D171: =IF('DF raw data'!H176="","",'DF raw data'!H176) -> -1.94469e-05 | F171: -1.950206272e-05 | G171: 0.0001122331456 | H171: -1.954024512e-05 | J171: -0.000863757941 | K171: -0.02305644661 | L171: 0.006572071747 | M171: 0.1859029966 | N171: 0.0008393458418
A172: =IF('DF raw data'!E177="","",'DF raw data'!E177) -> -245 | B172: =IF('DF raw data'!F177="","",'DF raw data'!F177) -> -1.28013e-05 | C172: =IF('DF raw data'!G177="","",'DF raw data'!G177) -> 0.000112971 | D172: =IF('DF raw data'!H177="","",'DF raw data'!H177) -> -3.04393e-05 | F172: -1.286274624e-05 | G172: 0.0001135132608 | H172: -3.058540864e-05 | J172: -0.0008701893141 | K172: -0.02349154127 | L172: 0.006628828378 | M172: 0.1892174108 | N172: 0.0008616951394
A173: =IF('DF raw data'!E178="","",'DF raw data'!E178) -> -244.5 | B173: =IF('DF raw data'!F178="","",'DF raw data'!F178) -> -3.22821e-05 | C173: =IF('DF raw data'!G178="","",'DF raw data'!G178) -> 0.000115771 | D173: =IF('DF raw data'!H178="","",'DF raw data'!H178) -> -3.07235e-05 | F173: -3.243705408e-05 | G173: 0.0001163267008 | H173: -3.08709728e-05 | J173: -0.0008864078412 | K173: -0.02393474519 | L173: 0.006686991728 | M173: 0.1925609067 | N173: 0.000884445928
A174: =IF('DF raw data'!E179="","",'DF raw data'!E179) -> -244 | B174: =IF('DF raw data'!F179="","",'DF raw data'!F179) -> -9.08724e-06 | C174: =IF('DF raw data'!G179="","",'DF raw data'!G179) -> 0.000122535 | D174: =IF('DF raw data'!H179="","",'DF raw data'!H179) -> -2.65447e-05 | F174: -9.130858752e-06 | G174: 0.000123123168 | H174: -2.667211456e-05 | J174: -0.0008909732705 | K174: -0.02438023182 | L174: 0.006748553312 | M174: 0.1959351833 | N174: 0.0009076143306
A175: =IF('DF raw data'!E180="","",'DF raw data'!E180) -> -243.5 | B175: =IF('DF raw data'!F180="","",'DF raw data'!F180) -> -1.31923e-05 | C175: =IF('DF raw data'!G180="","",'DF raw data'!G180) -> 0.000119062 | D175: =IF('DF raw data'!H180="","",'DF raw data'!H180) -> -2.03335e-05 | F175: -1.325562304e-05 | G175: 0.0001196334976 | H175: -2.04311008e-05 | J175: -0.0008976010821 | K175: -0.02482903236 | L175: 0.006808370061 | M175: 0.1993393684 | N175: 0.0009311941259
A176: =IF('DF raw data'!E181="","",'DF raw data'!E181) -> -243 | B176: =IF('DF raw data'!F181="","",'DF raw data'!F181) -> -1.17138e-05 | C176: =IF('DF raw data'!G181="","",'DF raw data'!G181) -> 0.000121783 | D176: =IF('DF raw data'!H181="","",'DF raw data'!H181) -> -2.78379e-05 | F176: -1.177002624e-05 | G176: 0.0001223675584 | H176: -2.797152192e-05 | J176: -0.0009034860952 | K176: -0.02528077541 | L176: 0.00686955384 | M176: 0.2027741453 | N176: 0.0009551976544
A177: =IF('DF raw data'!E182="","",'DF raw data'!E182) -> -242.5 | B177: =IF('DF raw data'!F182="","",'DF raw data'!F182) -> -1.93414e-05 | C177: =IF('DF raw data'!G182="","",'DF raw data'!G182) -> 0.000115657 | D177: =IF('DF raw data'!H182="","",'DF raw data'!H182) -> -2.45356e-05 | F177: -1.943423872e-05 | G177: 0.0001162121536 | H177: -2.465337088e-05 | J177: -0.0009132032145 | K177: -0.02573737702 | L177: 0.006927659917 | M177: 0.2062379753 | N177: 0.0009796108604
A178: =IF('DF raw data'!E183="","",'DF raw data'!E183) -> -242 | B178: =IF('DF raw data'!F183="","",'DF raw data'!F183) -> -1.03008e-05 | C178: =IF('DF raw data'!G183="","",'DF raw data'!G183) -> 0.00011194 | D178: =IF('DF raw data'!H183="","",'DF raw data'!H183) -> -3.24535e-05 | F178: -1.035024384e-05 | G178: 0.000112477312 | H178: -3.26092768e-05 | J178: -0.0009183783365 | K178: -0.02619656619 | L178: 0.006983898573 | M178: 0.2097299245 | N178: 0.001004419989
A179: =IF('DF raw data'!E184="","",'DF raw data'!E184) -> -241.5 | B179: =IF('DF raw data'!F184="","",'DF raw data'!F184) -> -1.97204e-05 | C179: =IF('DF raw data'!G184="","",'DF raw data'!G184) -> 0.000121792 | D179: =IF('DF raw data'!H184="","",'DF raw data'!H184) -> -3.30075e-05 | F179: -1.981505792e-05 | G179: 0.0001223766016 | H179: -3.3165936e-05 | J179: -0.0009282858654 | K179: -0.02666070912 | L179: 0.007045086874 | M179: 0.213252468 | N179: 0.001029667471
A180: =IF('DF raw data'!E185="","",'DF raw data'!E185) -> -241 | B180: =IF('DF raw data'!F185="","",'DF raw data'!F185) -> -9.15008e-06 | C180: =IF('DF raw data'!G185="","",'DF raw data'!G185) -> 0.000125928 | D180: =IF('DF raw data'!H185="","",'DF raw data'!H185) -> -2.82544e-05 | F180: -9.194000384e-06 | G180: 0.0001265324544 | H180: -2.839002112e-05 | J180: -0.0009328828656 | K180: -0.02712715055 | L180: 0.007108353101 | M180: 0.2168066445 | N180: 0.001055366948
A181: =IF('DF raw data'!E186="","",'DF raw data'!E186) -> -240.5 | B181: =IF('DF raw data'!F186="","",'DF raw data'!F186) -> -8.4412e-06 | C181: =IF('DF raw data'!G186="","",'DF raw data'!G186) -> 0.000121797 | D181: =IF('DF raw data'!H186="","",'DF raw data'!H186) -> -3.46526e-05 | F181: -8.48171776e-06 | G181: 0.0001223816256 | H181: -3.481893248e-05 | J181: -0.0009371237245 | K181: -0.02759571241 | L181: 0.007169543914 | M181: 0.2203914165 | N181: 0.001081507229
A182: =IF('DF raw data'!E187="","",'DF raw data'!E187) -> -240 | B182: =IF('DF raw data'!F187="","",'DF raw data'!F187) -> -1.3568e-05 | C182: =IF('DF raw data'!G187="","",'DF raw data'!G187) -> 0.000114464 | D182: =IF('DF raw data'!H187="","",'DF raw data'!H187) -> -3.38359e-05 | F182: -1.36331264e-05 | G182: 0.0001150134272 | H182: -3.399831232e-05 | J182: -0.0009439402877 | K182: -0.02806768256 | L182: 0.007227050627 | M182: 0.2240049418 | N182: 0.001108067871
A183: =IF('DF raw data'!E188="","",'DF raw data'!E188) -> -239.5 | B183: =IF('DF raw data'!F188="","",'DF raw data'!F188) -> -3.05531e-05 | C183: =IF('DF raw data'!G188="","",'DF raw data'!G188) -> 0.000109831 | D183: =IF('DF raw data'!H188="","",'DF raw data'!H188) -> -2.88126e-05 | F183: -3.069975488e-05 | G183: 0.0001103581888 | H183: -2.895090048e-05 | J183: -0.0009592901651 | K183: -0.02854732764 | L183: 0.007282229722 | M183: 0.2276460567 | N183: 0.001135043425
A184: =IF('DF raw data'!E189="","",'DF raw data'!E189) -> -239 | B184: =IF('DF raw data'!F189="","",'DF raw data'!F189) -> -1.9081e-05 | C184: =IF('DF raw data'!G189="","",'DF raw data'!G189) -> 0.000106766 | D184: =IF('DF raw data'!H189="","",'DF raw data'!H189) -> -3.0808e-05 | F184: -1.91725888e-05 | G184: 0.0001072784768 | H184: -3.09558784e-05 | J184: -0.0009688764595 | K184: -0.02903176587 | L184: 0.00733586896 | M184: 0.2313139911 | N184: 0.001162420272
A185: =IF('DF raw data'!E190="","",'DF raw data'!E190) -> -238.5 | B185: =IF('DF raw data'!F190="","",'DF raw data'!F190) -> -1.71667e-05 | C185: =IF('DF raw data'!G190="","",'DF raw data'!G190) -> 0.000113248 | D185: =IF('DF raw data'!H190="","",'DF raw data'!H190) -> -1.83868e-05 | F185: -1.724910016e-05 | G185: 0.0001137915904 | H185: -1.847505664e-05 | J185: -0.0009775010096 | K185: -0.02952051637 | L185: 0.007392764755 | M185: 0.2350103735 | N185: 0.001190224511
A186: =IF('DF raw data'!E191="","",'DF raw data'!E191) -> -238 | B186: =IF('DF raw data'!F191="","",'DF raw data'!F191) -> -1.99208e-05 | C186: =IF('DF raw data'!G191="","",'DF raw data'!G191) -> 0.000112852 | D186: =IF('DF raw data'!H191="","",'DF raw data'!H191) -> -2.06786e-05 | F186: -2.001641984e-05 | G186: 0.0001133936896 | H186: -2.077785728e-05 | J186: -0.0009875092195 | K186: -0.03001427098 | L186: 0.0074494616 | M186: 0.2387351043 | N186: 0.001218459338
A187: =IF('DF raw data'!E192="","",'DF raw data'!E192) -> -237.5 | B187: =IF('DF raw data'!F192="","",'DF raw data'!F192) -> -2.06955e-05 | C187: =IF('DF raw data'!G192="","",'DF raw data'!G192) -> 0.000111611 | D187: =IF('DF raw data'!H192="","",'DF raw data'!H192) -> -1.17425e-05 | F187: -2.07948384e-05 | G187: 0.0001121467328 | H187: -1.1798864e-05 | J187: -0.0009979066387 | K187: -0.0305132243 | L187: 0.007505534966 | M187: 0.2424878718 | N187: 0.001247123774
A188: =IF('DF raw data'!E193="","",'DF raw data'!E193) -> -237 | B188: =IF('DF raw data'!F193="","",'DF raw data'!F193) -> -2.19059e-05 | C188: =IF('DF raw data'!G193="","",'DF raw data'!G193) -> 0.000110916 | D188: =IF('DF raw data'!H193="","",'DF raw data'!H193) -> -2.2921e-05 | F188: -2.201104832e-05 | G188: 0.0001114483968 | H188: -2.30310208e-05 | J188: -0.001008912163 | K188: -0.03101768039 | L188: 0.007561259165 | M188: 0.2462685014 | N188: 0.001276219046
A189: =IF('DF raw data'!E194="","",'DF raw data'!E194) -> -236.5 | B189: =IF('DF raw data'!F194="","",'DF raw data'!F194) -> -2.24177e-05 | C189: =IF('DF raw data'!G194="","",'DF raw data'!G194) -> 9.67662e-05 | D189: =IF('DF raw data'!H194="","",'DF raw data'!H194) -> -2.41934e-05 | F189: -2.252530496e-05 | G189: 9.723067776e-05 | H189: -2.430952832e-05 | J189: -0.001020174815 | K189: -0.03152776779 | L189: 0.007609874504 | M189: 0.2500734386 | N189: 0.001305694519
A190: =IF('DF raw data'!E195="","",'DF raw data'!E195) -> -236 | B190: =IF('DF raw data'!F195="","",'DF raw data'!F195) -> -1.41494e-05 | C190: =IF('DF raw data'!G195="","",'DF raw data'!G195) -> 0.000108583 | D190: =IF('DF raw data'!H195="","",'DF raw data'!H195) -> -2.68546e-05 | F190: -1.421731712e-05 | G190: 0.0001091041984 | H190: -2.698350208e-05 | J190: -0.001027283474 | K190: -0.03204140953 | L190: 0.007664426603 | M190: 0.2539056519 | N190: 0.001335593893
A191: =IF('DF raw data'!E196="","",'DF raw data'!E196) -> -235.5 | B191: =IF('DF raw data'!F196="","",'DF raw data'!F196) -> -2.38246e-05 | C191: =IF('DF raw data'!G196="","",'DF raw data'!G196) -> 0.000109755 | D191: =IF('DF raw data'!H196="","",'DF raw data'!H196) -> -2.85135e-05 | F191: -2.393895808e-05 | G191: 0.000110281824 | H191: -2.86503648e-05 | J191: -0.001039252953 | K191: -0.03256103601 | L191: 0.007719567515 | M191: 0.2577654357 | N191: 0.001365929777
A192: =IF('DF raw data'!E197="","",'DF raw data'!E197) -> -235 | B192: =IF('DF raw data'!F197="","",'DF raw data'!F197) -> -2.43346e-05 | C192: =IF('DF raw data'!G197="","",'DF raw data'!G197) -> 0.000113549 | D192: =IF('DF raw data'!H197="","",'DF raw data'!H197) -> -3.2607e-05 | F192: =(1-$G$1*($B$49-$G$2))*B192 -> -2.445140608e-05 | G192: 0.0001140940352 | H192: -3.27635136e-05 | J192: =F192*$G$3+J191 -> -0.001051478656 | K192: =J192*$G$3+K191 -> -0.03308677533 | L192: =G192*$G$3+L191 -> 0.007776614532 | M192: =L192*$G$3+M191 -> 0.261653743 | N192: =(J192^2+L192^2)*$G$3+N191 -> 0.001396720448
A193: =IF('DF raw data'!E198="","",'DF raw data'!E198) -> -234.5 | B193: =IF('DF raw data'!F198="","",'DF raw data'!F198) -> -1.94662e-05 | C193: =IF('DF raw data'!G198="","",'DF raw data'!G198) -> 0.000118534 | D193: =IF('DF raw data'!H198="","",'DF raw data'!H198) -> -2.96816e-05 | F193: -1.955963776e-05 | G193: 0.0001191029632 | H193: -2.982407168e-05 | J193: -0.001061258475 | K193: -0.03361740457 | L193: 0.007836166014 | M193: 0.265571826 | N193: 0.001427986331
A194: =IF('DF raw data'!E199="","",'DF raw data'!E199) -> -234 | B194: =IF('DF raw data'!F199="","",'DF raw data'!F199) -> -6.00366e-06 | C194: =IF('DF raw data'!G199="","",'DF raw data'!G199) -> 0.000108702 | D194: =IF('DF raw data'!H199="","",'DF raw data'!H199) -> -3.81703e-05 | F194: -6.032477568e-06 | G194: 0.0001092237696 | H194: -3.835351744e-05 | J194: -0.001064274714 | K194: -0.03414954193 | L194: 0.007890777899 | M194: 0.2695172149 | N194: 0.00145968486
A195: =IF('DF raw data'!E200="","",'DF raw data'!E200) -> -233.5 | B195: =IF('DF raw data'!F200="","",'DF raw data'!F200) -> -2.10693e-05 | C195: =IF('DF raw data'!G200="","",'DF raw data'!G200) -> 0.000111237 | D195: =IF('DF raw data'!H200="","",'DF raw data'!H200) -> -2.8234e-05 | F195: -2.117043264e-05 | G195: 0.0001117709376 | H195: -2.83695232e-05 | J195: -0.00107485993 | K195: -0.03468697189 | L195: 0.007946663368 | M195: 0.2734905466 | N195: 0.001491837251
A196: =IF('DF raw data'!E201="","",'DF raw data'!E201) -> -233 | B196: =IF('DF raw data'!F201="","",'DF raw data'!F201) -> -2.07487e-05 | C196: =IF('DF raw data'!G201="","",'DF raw data'!G201) -> 0.000119919 | D196: =IF('DF raw data'!H201="","",'DF raw data'!H201) -> -2.8668e-05 | F196: -2.084829376e-05 | G196: 0.0001204946112 | H196: -2.88056064e-05 | J196: -0.001085284077 | K196: -0.03522961393 | L196: 0.008006910673 | M196: 0.2774940019 | N196: 0.001524481481
A197: =IF('DF raw data'!E202="","",'DF raw data'!E202) -> -232.5 | B197: =IF('DF raw data'!F202="","",'DF raw data'!F202) -> -2.0952e-05 | C197: =IF('DF raw data'!G202="","",'DF raw data'!G202) -> 0.000124799 | D197: =IF('DF raw data'!H202="","",'DF raw data'!H202) -> -1.14314e-05 | F197: -2.10525696e-05 | G197: 0.0001253980352 | H197: -1.148627072e-05 | J197: -0.001095810362 | K197: -0.03577751911 | L197: 0.008069609691 | M197: 0.2815288068 | N197: 0.001557641182
A198: =IF('DF raw data'!E203="","",'DF raw data'!E203) -> -232 | B198: =IF('DF raw data'!F203="","",'DF raw data'!F203) -> -1.44686e-05 | C198: =IF('DF raw data'!G203="","",'DF raw data'!G203) -> 0.0001166 | D198: =IF('DF raw data'!H203="","",'DF raw data'!H203) -> -2.89199e-05 | F198: -1.453804928e-05 | G198: 0.00011715968 | H198: -2.905871552e-05 | J198: -0.001103079386 | K198: -0.03632905881 | L198: 0.008128189531 | M198: 0.2855929016 | N198: 0.001591283306
A199: =IF('DF raw data'!E204="","",'DF raw data'!E204) -> -231.5 | B199: =IF('DF raw data'!F204="","",'DF raw data'!F204) -> -2.43401e-05 | C199: =IF('DF raw data'!G204="","",'DF raw data'!G204) -> 0.000113559 | D199: =IF('DF raw data'!H204="","",'DF raw data'!H204) -> -2.41296e-05 | F199: -2.445693248e-05 | G199: 0.0001141040832 | H199: -2.424542208e-05 | J199: -0.001115307853 | K199: -0.03688671273 | L199: 0.008185241572 | M199: 0.2896855223 | N199: 0.001625404352
A200: =IF('DF raw data'!E205="","",'DF raw data'!E205) -> -231 | B200: =IF('DF raw data'!F205="","",'DF raw data'!F205) -> -1.67769e-05 | C200: =IF('DF raw data'!G205="","",'DF raw data'!G205) -> 0.000112572 | D200: =IF('DF raw data'!H205="","",'DF raw data'!H205) -> -2.66047e-05 | F200: -1.685742912e-05 | G200: 0.0001131123456 | H200: -2.673240256e-05 | J200: -0.001123736567 | K200: -0.03744858102 | L200: 0.008241797745 | M200: 0.2938064212 | N200: 0.001659999359
A201: =IF('DF raw data'!E206="","",'DF raw data'!E206) -> -230.5 | B201: =IF('DF raw data'!F206="","",'DF raw data'!F206) -> -1.71627e-05 | C201: =IF('DF raw data'!G206="","",'DF raw data'!G206) -> 0.000116564 | D201: =IF('DF raw data'!H206="","",'DF raw data'!H206) -> -2.46055e-05 | F201: -1.724508096e-05 | G201: 0.0001171235072 | H201: -2.47236064e-05 | J201: -0.001132359108 | K201: -0.03801476057 | L201: 0.008300359499 | M201: 0.297956601 | N201: 0.001695088461
... 1061 more rows

Sheet 10 x=0
A1: =IF('DF raw data'!I1="","",'DF raw data'!I1) -> Number of header lines | B1: =IF('DF raw data'!J1="","",'DF raw data'!J1) -> 54 | C1: =IF('DF raw data'!K1="","",'DF raw data'!K1) ->  | D1: =IF('DF raw data'!L1="","",'DF raw data'!L1) ->  | F1: T_coeff | G1: -0.001 | H1: /degC | J1: IBy total | K1: =J1262*1000 -> -0.2188805386 | L1: muTm | M1: =L1262*1000 -> 45.68397255 | R1: DF ref | S1: ='10 x=-2'!S1 -> 1
A2: =IF('DF raw data'!I2="","",'DF raw data'!I2) -> Measured by | B2: =IF('DF raw data'!J2="","",'DF raw data'!J2) -> Danfysik | C2: =IF('DF raw data'!K2="","",'DF raw data'!K2) ->  | D2: =IF('DF raw data'!L2="","",'DF raw data'!L2) ->  | F2: Tcorr | G2: 20 | H2: degC | J2: JBy total | K2: =K1262 -> -12.97740976 | L2: muTm^2 | M2: =M1262 -> 16.95610249
A3: =IF('DF raw data'!I3="","",'DF raw data'!I3) -> Operator | B3: =IF('DF raw data'!J3="","",'DF raw data'!J3) -> PMHA | C3: =IF('DF raw data'!K3="","",'DF raw data'!K3) ->  | D3: =IF('DF raw data'!L3="","",'DF raw data'!L3) ->  | F3: Step | G3: =A63-A62 -> 0.5 | H3: mm | J3: PI total | K3: =N1262 -> 10683.41913 | L3: T^2mm^3
A4: =IF('DF raw data'!I4="","",'DF raw data'!I4) -> Data-time | B4: =IF('DF raw data'!J4="","",'DF raw data'!J4) -> 28-08-2024, 09:17:16 | C4: =IF('DF raw data'!K4="","",'DF raw data'!K4) ->  | D4: =IF('DF raw data'!L4="","",'DF raw data'!L4) -> 
A5: =IF('DF raw data'!I5="","",'DF raw data'!I5) -> Project | B5: =IF('DF raw data'!J5="","",'DF raw data'!J5) -> 504314 | C5: =IF('DF raw data'!K5="","",'DF raw data'!K5) ->  | D5: =IF('DF raw data'!L5="","",'DF raw data'!L5) -> 
A6: =IF('DF raw data'!I6="","",'DF raw data'!I6) -> Magnet type | B6: =IF('DF raw data'!J6="","",'DF raw data'!J6) -> Dipole | C6: =IF('DF raw data'!K6="","",'DF raw data'!K6) ->  | D6: =IF('DF raw data'!L6="","",'DF raw data'!L6) -> 
A7: =IF('DF raw data'!I7="","",'DF raw data'!I7) -> Magnet nr. | B7: =IF('DF raw data'!J7="","",'DF raw data'!J7) -> 2410092 | C7: =IF('DF raw data'!K7="","",'DF raw data'!K7) ->  | D7: =IF('DF raw data'!L7="","",'DF raw data'!L7) -> 
A8: =IF('DF raw data'!I8="","",'DF raw data'!I8) -> Meas. number | B8: =IF('DF raw data'!J8="","",'DF raw data'!J8) -> 215 | C8: =IF('DF raw data'!K8="","",'DF raw data'!K8) ->  | D8: =IF('DF raw data'!L8="","",'DF raw data'!L8) -> 
A9: =IF('DF raw data'!I9="","",'DF raw data'!I9) -> Add. info | B9: =IF('DF raw data'!J9="","",'DF raw data'!J9) -> X-alignment scan 3) | C9: =IF('DF raw data'!K9="","",'DF raw data'!K9) ->  | D9: =IF('DF raw data'!L9="","",'DF raw data'!L9) -> 
A10: =IF('DF raw data'!I10="","",'DF raw data'!I10) -> Device | B10: =IF('DF raw data'!J10="","",'DF raw data'!J10) -> (HAL) HALL-PROBE | C10: =IF('DF raw data'!K10="","",'DF raw data'!K10) ->  | D10: =IF('DF raw data'!L10="","",'DF raw data'!L10) -> 
A11: =IF('DF raw data'!I11="","",'DF raw data'!I11) -> Goal | B11: =IF('DF raw data'!J11="","",'DF raw data'!J11) -> (AXI) AXis Integral (Line, EFB) | C11: =IF('DF raw data'!K11="","",'DF raw data'!K11) ->  | D11: =IF('DF raw data'!L11="","",'DF raw data'!L11) -> 
A12: =IF('DF raw data'!I12="","",'DF raw data'!I12) -> Power supply mode | B12: =IF('DF raw data'!J12="","",'DF raw data'!J12) -> (PM) Permanent Magnet (no MPS in use) | C12: =IF('DF raw data'!K12="","",'DF raw data'!K12) ->  | D12: =IF('DF raw data'!L12="","",'DF raw data'!L12) -> 
A13: =IF('DF raw data'!I13="","",'DF raw data'!I13) -> Data format | B13: =IF('DF raw data'!J13="","",'DF raw data'!J13) -> Raw data text file | C13: =IF('DF raw data'!K13="","",'DF raw data'!K13) ->  | D13: =IF('DF raw data'!L13="","",'DF raw data'!L13) -> 
A14: =IF('DF raw data'!I14="","",'DF raw data'!I14) -> Direction of the pos. x-axis | B14: =IF('DF raw data'!J14="","",'DF raw data'!J14) -> See test program | C14: =IF('DF raw data'!K14="","",'DF raw data'!K14) ->  | D14: =IF('DF raw data'!L14="","",'DF raw data'!L14) -> 
A15: =IF('DF raw data'!I15="","",'DF raw data'!I15) -> Direction of the pos. y-axis | B15: =IF('DF raw data'!J15="","",'DF raw data'!J15) -> Vertical up | C15: =IF('DF raw data'!K15="","",'DF raw data'!K15) ->  | D15: =IF('DF raw data'!L15="","",'DF raw data'!L15) -> 
A16: =IF('DF raw data'!I16="","",'DF raw data'!I16) -> Direction of the pos. z-axis | B16: =IF('DF raw data'!J16="","",'DF raw data'!J16) -> See test program | C16: =IF('DF raw data'!K16="","",'DF raw data'!K16) ->  | D16: =IF('DF raw data'!L16="","",'DF raw data'!L16) -> 
A17: =IF('DF raw data'!I17="","",'DF raw data'!I17) -> Mapper type | B17: =IF('DF raw data'!J17="","",'DF raw data'!J17) -> Precision Hall Mapper | C17: =IF('DF raw data'!K17="","",'DF raw data'!K17) ->  | D17: =IF('DF raw data'!L17="","",'DF raw data'!L17) -> 
A18: =IF('DF raw data'!I18="","",'DF raw data'!I18) -> Mapper Danfysik Reg. Number | B18: =IF('DF raw data'!J18="","",'DF raw data'!J18) -> 2033-D (mapper 1) | C18: =IF('DF raw data'!K18="","",'DF raw data'!K18) ->  | D18: =IF('DF raw data'!L18="","",'DF raw data'!L18) -> 
A19: =IF('DF raw data'!I19="","",'DF raw data'!I19) -> Measurement consept | B19: =IF('DF raw data'!J19="","",'DF raw data'!J19) -> Square line grid | C19: =IF('DF raw data'!K19="","",'DF raw data'!K19) ->  | D19: =IF('DF raw data'!L19="","",'DF raw data'!L19) -> 
A20: =IF('DF raw data'!I20="","",'DF raw data'!I20) -> Mode | B20: =IF('DF raw data'!J20="","",'DF raw data'!J20) -> On-the-fly measurement | C20: =IF('DF raw data'!K20="","",'DF raw data'!K20) ->  | D20: =IF('DF raw data'!L20="","",'DF raw data'!L20) -> 
A21: =IF('DF raw data'!I21="","",'DF raw data'!I21) ->  | B21: =IF('DF raw data'!J21="","",'DF raw data'!J21) ->  | C21: =IF('DF raw data'!K21="","",'DF raw data'!K21) ->  | D21: =IF('DF raw data'!L21="","",'DF raw data'!L21) -> 
A22: =IF('DF raw data'!I22="","",'DF raw data'!I22) -> Probe Name | B22: =IF('DF raw data'!J22="","",'DF raw data'!J22) -> ID12_By | C22: =IF('DF raw data'!K22="","",'DF raw data'!K22) ->  | D22: =IF('DF raw data'!L22="","",'DF raw data'!L22) -> 
A23: =IF('DF raw data'!I23="","",'DF raw data'!I23) -> Probe Type | B23: =IF('DF raw data'!J23="","",'DF raw data'!J23) -> DF_ID_3D_Bxyz | C23: =IF('DF raw data'!K23="","",'DF raw data'!K23) ->  | D23: =IF('DF raw data'!L23="","",'DF raw data'!L23) -> 
A24: =IF('DF raw data'!I24="","",'DF raw data'!I24) -> Probe Danfysik Reg. Number | B24: =IF('DF raw data'!J24="","",'DF raw data'!J24) -> 2277 | C24: =IF('DF raw data'!K24="","",'DF raw data'!K24) ->  | D24: =IF('DF raw data'!L24="","",'DF raw data'!L24) -> 
A25: =IF('DF raw data'!I25="","",'DF raw data'!I25) -> Probe Axis | B25: =IF('DF raw data'!J25="","",'DF raw data'!J25) -> By | C25: =IF('DF raw data'!K25="","",'DF raw data'!K25) ->  | D25: =IF('DF raw data'!L25="","",'DF raw data'!L25) -> 
A26: =IF('DF raw data'!I26="","",'DF raw data'!I26) -> Probe Current Supply | B26: =IF('DF raw data'!J26="","",'DF raw data'!J26) -> 1825-D | C26: =IF('DF raw data'!K26="","",'DF raw data'!K26) ->  | D26: =IF('DF raw data'!L26="","",'DF raw data'!L26) -> 
A27: =IF('DF raw data'!I27="","",'DF raw data'!I27) -> Probe Gain Correction | B27: =IF('DF raw data'!J27="","",'DF raw data'!J27) -> 0.99615 | C27: =IF('DF raw data'!K27="","",'DF raw data'!K27) ->  | D27: =IF('DF raw data'!L27="","",'DF raw data'!L27) -> 
A28: =IF('DF raw data'!I28="","",'DF raw data'!I28) -> Probe Offset Correction | B28: =IF('DF raw data'!J28="","",'DF raw data'!J28) -> 0.0027485 | C28: =IF('DF raw data'!K28="","",'DF raw data'!K28) ->  | D28: =IF('DF raw data'!L28="","",'DF raw data'!L28) -> 
A29: =IF('DF raw data'!I29="","",'DF raw data'!I29) -> DVM Number | B29: =IF('DF raw data'!J29="","",'DF raw data'!J29) -> 2 | C29: =IF('DF raw data'!K29="","",'DF raw data'!K29) ->  | D29: =IF('DF raw data'!L29="","",'DF raw data'!L29) -> 
A30: =IF('DF raw data'!I30="","",'DF raw data'!I30) -> DVM Type | B30: =IF('DF raw data'!J30="","",'DF raw data'!J30) -> K2701 | C30: =IF('DF raw data'!K30="","",'DF raw data'!K30) ->  | D30: =IF('DF raw data'!L30="","",'DF raw data'!L30) -> 
A31: =IF('DF raw data'!I31="","",'DF raw data'!I31) -> DVM Danfysik Reg. Number | B31: =IF('DF raw data'!J31="","",'DF raw data'!J31) -> 1743-D | C31: =IF('DF raw data'!K31="","",'DF raw data'!K31) ->  | D31: =IF('DF raw data'!L31="","",'DF raw data'!L31) -> 
A32: =IF('DF raw data'!I32="","",'DF raw data'!I32) -> Probe Name | B32: =IF('DF raw data'!J32="","",'DF raw data'!J32) -> ID12_Bx | C32: =IF('DF raw data'!K32="","",'DF raw data'!K32) ->  | D32: =IF('DF raw data'!L32="","",'DF raw data'!L32) -> 
A33: =IF('DF raw data'!I33="","",'DF raw data'!I33) -> Probe Type | B33: =IF('DF raw data'!J33="","",'DF raw data'!J33) -> DF_ID_3D_Bxyz | C33: =IF('DF raw data'!K33="","",'DF raw data'!K33) ->  | D33: =IF('DF raw data'!L33="","",'DF raw data'!L33) -> 
A34: =IF('DF raw data'!I34="","",'DF raw data'!I34) -> Probe Danfysik Reg. Number | B34: =IF('DF raw data'!J34="","",'DF raw data'!J34) -> 2277 | C34: =IF('DF raw data'!K34="","",'DF raw data'!K34) ->  | D34: =IF('DF raw data'!L34="","",'DF raw data'!L34) -> 
A35: =IF('DF raw data'!I35="","",'DF raw data'!I35) -> Probe Axis | B35: =IF('DF raw data'!J35="","",'DF raw data'!J35) -> Bx | C35: =IF('DF raw data'!K35="","",'DF raw data'!K35) ->  | D35: =IF('DF raw data'!L35="","",'DF raw data'!L35) -> 
A36: =IF('DF raw data'!I36="","",'DF raw data'!I36) -> Probe Current Supply | B36: =IF('DF raw data'!J36="","",'DF raw data'!J36) -> 1825-D | C36: =IF('DF raw data'!K36="","",'DF raw data'!K36) ->  | D36: =IF('DF raw data'!L36="","",'DF raw data'!L36) -> 
A37: =IF('DF raw data'!I37="","",'DF raw data'!I37) -> Probe Gain Correction | B37: =IF('DF raw data'!J37="","",'DF raw data'!J37) -> 1 | C37: =IF('DF raw data'!K37="","",'DF raw data'!K37) ->  | D37: =IF('DF raw data'!L37="","",'DF raw data'!L37) -> 
A38: =IF('DF raw data'!I38="","",'DF raw data'!I38) -> Probe Offset Correction | B38: =IF('DF raw data'!J38="","",'DF raw data'!J38) -> -0.17548 | C38: =IF('DF raw data'!K38="","",'DF raw data'!K38) ->  | D38: =IF('DF raw data'!L38="","",'DF raw data'!L38) -> 
A39: =IF('DF raw data'!I39="","",'DF raw data'!I39) -> DVM Number | B39: =IF('DF raw data'!J39="","",'DF raw data'!J39) -> 3 | C39: =IF('DF raw data'!K39="","",'DF raw data'!K39) ->  | D39: =IF('DF raw data'!L39="","",'DF raw data'!L39) -> 
A40: =IF('DF raw data'!I40="","",'DF raw data'!I40) -> DVM Type | B40: =IF('DF raw data'!J40="","",'DF raw data'!J40) -> K2701 | C40: =IF('DF raw data'!K40="","",'DF raw data'!K40) ->  | D40: =IF('DF raw data'!L40="","",'DF raw data'!L40) -> 
A41: =IF('DF raw data'!I41="","",'DF raw data'!I41) -> DVM Danfysik Reg. Number | B41: =IF('DF raw data'!J41="","",'DF raw data'!J41) -> 1744-D | C41: =IF('DF raw data'!K41="","",'DF raw data'!K41) ->  | D41: =IF('DF raw data'!L41="","",'DF raw data'!L41) -> 
A42: =IF('DF raw data'!I42="","",'DF raw data'!I42) -> Probe Name | B42: =IF('DF raw data'!J42="","",'DF raw data'!J42) -> ID12_Bz | C42: =IF('DF raw data'!K42="","",'DF raw data'!K42) ->  | D42: =IF('DF raw data'!L42="","",'DF raw data'!L42) -> 
A43: =IF('DF raw data'!I43="","",'DF raw data'!I43) -> Probe Type | B43: =IF('DF raw data'!J43="","",'DF raw data'!J43) -> DF_ID_3D_Bxyz | C43: =IF('DF raw data'!K43="","",'DF raw data'!K43) ->  | D43: =IF('DF raw data'!L43="","",'DF raw data'!L43) -> 
A44: =IF('DF raw data'!I44="","",'DF raw data'!I44) -> Probe Danfysik Reg. Number | B44: =IF('DF raw data'!J44="","",'DF raw data'!J44) -> 2277 | C44: =IF('DF raw data'!K44="","",'DF raw data'!K44) ->  | D44: =IF('DF raw data'!L44="","",'DF raw data'!L44) -> 
A45: =IF('DF raw data'!I45="","",'DF raw data'!I45) -> Probe Axis | B45: =IF('DF raw data'!J45="","",'DF raw data'!J45) -> Bz | C45: =IF('DF raw data'!K45="","",'DF raw data'!K45) ->  | D45: =IF('DF raw data'!L45="","",'DF raw data'!L45) -> 
A46: =IF('DF raw data'!I46="","",'DF raw data'!I46) -> Probe Current Supply | B46: =IF('DF raw data'!J46="","",'DF raw data'!J46) -> 1825-D | C46: =IF('DF raw data'!K46="","",'DF raw data'!K46) ->  | D46: =IF('DF raw data'!L46="","",'DF raw data'!L46) -> 
A47: =IF('DF raw data'!I47="","",'DF raw data'!I47) -> Probe Gain Correction | B47: =IF('DF raw data'!J47="","",'DF raw data'!J47) -> 1 | C47: =IF('DF raw data'!K47="","",'DF raw data'!K47) ->  | D47: =IF('DF raw data'!L47="","",'DF raw data'!L47) -> 
A48: =IF('DF raw data'!I53="","",'DF raw data'!I53) -> PS-Gap: | B48: =IF('DF raw data'!J53="","",'DF raw data'!J53) -> 10 | C48: =IF('DF raw data'!K53="","",'DF raw data'!K53) ->  | D48: =IF('DF raw data'!L53="","",'DF raw data'!L53) -> 
A49: =IF('DF raw data'!I54="","",'DF raw data'!I54) -> PS-Temperature: | B49: =IF('DF raw data'!J54="","",'DF raw data'!J54) -> 24.8 | C49: =IF('DF raw data'!K54="","",'DF raw data'!K54) ->  | D49: =IF('DF raw data'!L54="","",'DF raw data'!L54) -> 
A50: =IF('DF raw data'!I55="","",'DF raw data'!I55) -> PS-Encoder: | B50: =IF('DF raw data'!J55="","",'DF raw data'!J55) -> 19.5407 | C50: =IF('DF raw data'!K55="","",'DF raw data'!K55) ->  | D50: =IF('DF raw data'!L55="","",'DF raw data'!L55) -> 
A51: =IF('DF raw data'!I56="","",'DF raw data'!I56) ->  | B51: =IF('DF raw data'!J56="","",'DF raw data'!J56) ->  | C51: =IF('DF raw data'!K56="","",'DF raw data'!K56) ->  | D51: =IF('DF raw data'!L56="","",'DF raw data'!L56) -> 
A52: =IF('DF raw data'!I57="","",'DF raw data'!I57) -> Monitor-Index | B52: =IF('DF raw data'!J57="","",'DF raw data'!J57) -> [1,1,4] | C52: =IF('DF raw data'!K57="","",'DF raw data'!K57) ->  | D52: =IF('DF raw data'!L57="","",'DF raw data'!L57) -> 
A53: =IF('DF raw data'!I58="","",'DF raw data'!I58) ->  | B53: =IF('DF raw data'!J58="","",'DF raw data'!J58) ->  | C53: =IF('DF raw data'!K58="","",'DF raw data'!K58) ->  | D53: =IF('DF raw data'!L58="","",'DF raw data'!L58) -> 
A54: =IF('DF raw data'!I59="","",'DF raw data'!I59) -> Time [s] | B54: =IF('DF raw data'!J59="","",'DF raw data'!J59) -> Y [mm] | C54: =IF('DF raw data'!K59="","",'DF raw data'!K59) -> X [mm] | D54: =IF('DF raw data'!L59="","",'DF raw data'!L59) -> Nominal current [A]
A55: =IF('DF raw data'!I60="","",'DF raw data'!I60) ->  | B55: =IF('DF raw data'!J60="","",'DF raw data'!J60) ->  | C55: =IF('DF raw data'!K60="","",'DF raw data'!K60) ->  | D55: =IF('DF raw data'!L60="","",'DF raw data'!L60) -> 
A56: =IF('DF raw data'!I61="","",'DF raw data'!I61) -> 210.8 | B56: =IF('DF raw data'!J61="","",'DF raw data'!J61) -> 31.16 | C56: =IF('DF raw data'!K61="","",'DF raw data'!K61) -> 301.8 | D56: =IF('DF raw data'!L61="","",'DF raw data'!L61) -> 0
A57: =IF('DF raw data'!I62="","",'DF raw data'!I62) ->  | B57: =IF('DF raw data'!J62="","",'DF raw data'!J62) ->  | C57: =IF('DF raw data'!K62="","",'DF raw data'!K62) ->  | D57: =IF('DF raw data'!L62="","",'DF raw data'!L62) -> 
A58: =IF('DF raw data'!I63="","",'DF raw data'!I63) -> Measurement-Index | B58: =IF('DF raw data'!J63="","",'DF raw data'!J63) -> [1,1,1201,2] | C58: =IF('DF raw data'!K63="","",'DF raw data'!K63) ->  | D58: =IF('DF raw data'!L63="","",'DF raw data'!L63) -> 
A59: =IF('DF raw data'!I64="","",'DF raw data'!I64) ->  | B59: =IF('DF raw data'!J64="","",'DF raw data'!J64) ->  | C59: =IF('DF raw data'!K64="","",'DF raw data'!K64) ->  | D59: =IF('DF raw data'!L64="","",'DF raw data'!L64) -> 
A60: =IF('DF raw data'!I65="","",'DF raw data'!I65) -> Z [mm] | B60: By [T] | C60: Bx [T] | D60: Bz [T] | F60: By_corr | G60: Bx_corr | H60: Bz_corr | J60: Iy | K60: Jy | L60: Ix | M60: Jx | N60: PI
A62: =IF('DF raw data'!I67="","",'DF raw data'!I67) -> -300 | B62: =IF('DF raw data'!J67="","",'DF raw data'!J67) -> -1.85595e-05 | C62: =IF('DF raw data'!K67="","",'DF raw data'!K67) -> 0.00013026 | D62: =IF('DF raw data'!L67="","",'DF raw data'!L67) -> -1.61297e-05 | F62: =(1-$G$1*($B$49))*B62 -> -1.90197756e-05 | G62: =(1-$G$1*($B$49-$G$2))*C62 -> 0.000130885248 | H62: =(1-$G$1*($B$49-$G$2))*D62 -> -1.620712256e-05 | J62: =F62*$G$3 -> -9.5098878e-06 | K62: =J62*$G$3 -> -4.7549439e-06 | L62: =G62*$G$3 -> 6.5442624e-05 | M62: =L62*$G$3 -> 3.2721312e-05 | N62: =(J62^2+L62^2)*$G$3 -> 2.186587501e-09
A63: =IF('DF raw data'!I68="","",'DF raw data'!I68) -> -299.5 | B63: =IF('DF raw data'!J68="","",'DF raw data'!J68) -> 4.12646e-06 | C63: =IF('DF raw data'!K68="","",'DF raw data'!K68) -> 0.000138573 | D63: =IF('DF raw data'!L68="","",'DF raw data'!L68) -> -1.76317e-05 | F63: =(1-$G$1*($B$49-$G$2))*B63 -> 4.146267008e-06 | G63: =(1-$G$1*($B$49-$G$2))*C63 -> 0.0001392381504 | H63: -1.771633216e-05 | J63: =F63*$G$3+J62 -> -7.436754296e-06 | K63: =J63*$G$3+K62 -> -8.473321048e-06 | L63: =G63*$G$3+L62 -> 0.0001350616992 | M63: =L63*$G$3+M62 -> 0.0001002521616 | N63: =(J63^2+L63^2)*$G$3+N62 -> 1.133507145e-08
A64: =IF('DF raw data'!I69="","",'DF raw data'!I69) -> -299 | B64: =IF('DF raw data'!J69="","",'DF raw data'!J69) -> -4.26664e-06 | C64: =IF('DF raw data'!K69="","",'DF raw data'!K69) -> 0.000138298 | D64: =IF('DF raw data'!L69="","",'DF raw data'!L69) -> -2.00038e-05 | F64: =(1-$G$1*($B$49-$G$2))*B64 -> -4.287119872e-06 | G64: 0.0001389618304 | H64: -2.009981824e-05 | J64: =F64*$G$3+J63 -> -9.580314232e-06 | K64: =J64*$G$3+K63 -> -1.326347816e-05 | L64: =G64*$G$3+L63 -> 0.0002045426144 | M64: =L64*$G$3+M63 -> 0.0002025234688 | N64: =(J64^2+L64^2)*$G$3+N63 -> 3.229980322e-08
A65: =IF('DF raw data'!I70="","",'DF raw data'!I70) -> -298.5 | B65: =IF('DF raw data'!J70="","",'DF raw data'!J70) -> -8.75189e-06 | C65: =IF('DF raw data'!K70="","",'DF raw data'!K70) -> 0.000137046 | D65: =IF('DF raw data'!L70="","",'DF raw data'!L70) -> -2.07621e-05 | F65: -8.793899072e-06 | G65: 0.0001377038208 | H65: -2.086175808e-05 | J65: -1.397726377e-05 | K65: -2.025211005e-05 | L65: 0.0002733945248 | M65: 0.0003392207312 | N65: 6.976976826e-08
A66: =IF('DF raw data'!I71="","",'DF raw data'!I71) -> -298 | B66: =IF('DF raw data'!J71="","",'DF raw data'!J71) -> -1.57373e-05 | C66: =IF('DF raw data'!K71="","",'DF raw data'!K71) -> 0.000138582 | D66: =IF('DF raw data'!L71="","",'DF raw data'!L71) -> -2.00434e-05 | F66: -1.581283904e-05 | G66: 0.0001392471936 | H66: -2.013960832e-05 | J66: -2.188368329e-05 | K66: -3.119395169e-05 | L66: 0.0003430181216 | M66: 0.000510729792 | N66: 1.288399319e-07
A67: =IF('DF raw data'!I72="","",'DF raw data'!I72) -> -297.5 | B67: =IF('DF raw data'!J72="","",'DF raw data'!J72) -> -7.98388e-06 | C67: =IF('DF raw data'!K72="","",'DF raw data'!K72) -> 0.000136753 | D67: =IF('DF raw data'!L72="","",'DF raw data'!L72) -> -1.93269e-05 | F67: -8.022202624e-06 | G67: 0.0001374094144 | H67: -1.941966912e-05 | J67: -2.58947846e-05 | K67: -4.414134399e-05 | L67: 0.0004117228288 | M67: 0.0007165912064 | N67: 2.139330457e-07
A68: =IF('DF raw data'!I73="","",'DF raw data'!I73) -> -297 | B68: =IF('DF raw data'!J73="","",'DF raw data'!J73) -> -9.39377e-06 | C68: =IF('DF raw data'!K73="","",'DF raw data'!K73) -> 0.000135995 | D68: =IF('DF raw data'!L73="","",'DF raw data'!L73) -> -1.90543e-05 | F68: -9.438860096e-06 | G68: 0.000136647776 | H68: -1.914576064e-05 | J68: -3.061421465e-05 | K68: -5.944845132e-05 | L68: 0.0004800467168 | M68: 0.0009566145648 | N68: 3.29624086e-07
A69: =IF('DF raw data'!I74="","",'DF raw data'!I74) -> -296.5 | B69: =IF('DF raw data'!J74="","",'DF raw data'!J74) -> -6.57419e-06 | C69: =IF('DF raw data'!K74="","",'DF raw data'!K74) -> 0.000135661 | D69: =IF('DF raw data'!L74="","",'DF raw data'!L74) -> -1.92803e-05 | F69: -6.605746112e-06 | G69: 0.0001363121728 | H69: -1.937284544e-05 | J69: -3.39170877e-05 | K69: -7.640699517e-05 | L69: 0.0005482028032 | M69: 0.001230715966 | N69: 4.804624271e-07
A70: =IF('DF raw data'!I75="","",'DF raw data'!I75) -> -296 | B70: =IF('DF raw data'!J75="","",'DF raw data'!J75) -> 1.56453e-06 | C70: =IF('DF raw data'!K75="","",'DF raw data'!K75) -> 0.000132326 | D70: =IF('DF raw data'!L75="","",'DF raw data'!L75) -> -1.98898e-05 | F70: 1.572039744e-06 | G70: 0.0001329611648 | H70: -1.998527104e-05 | J70: -3.313106783e-05 | K70: -9.297252908e-05 | L70: 0.0006146833856 | M70: 0.001538057659 | N70: 6.699290932e-07
A71: =IF('DF raw data'!I76="","",'DF raw data'!I76) -> -295.5 | B71: =IF('DF raw data'!J76="","",'DF raw data'!J76) -> -1.20845e-05 | C71: =IF('DF raw data'!K76="","",'DF raw data'!K76) -> 0.000136843 | D71: =IF('DF raw data'!L76="","",'DF raw data'!L76) -> -2.02399e-05 | F71: -1.21425056e-05 | G71: 0.0001374998464 | H71: -2.033705152e-05 | J71: -3.920232063e-05 | K71: -0.0001125736894 | L71: 0.0006834333088 | M71: 0.001879774314 | N71: 9.04238048e-07
A72: =IF('DF raw data'!I77="","",'DF raw data'!I77) -> -295 | B72: =IF('DF raw data'!J77="","",'DF raw data'!J77) -> -2.79285e-06 | C72: =IF('DF raw data'!K77="","",'DF raw data'!K77) -> 0.000134746 | D72: =IF('DF raw data'!L77="","",'DF raw data'!L77) -> -2.01973e-05 | F72: -2.80625568e-06 | G72: 0.0001353927808 | H72: -2.029424704e-05 | J72: -4.060544847e-05 | K72: -0.0001328764136 | L72: 0.0007511296992 | M72: 0.002255339163 | N72: 1.187160362e-06
A73: =IF('DF raw data'!I78="","",'DF raw data'!I78) -> -294.5 | B73: =IF('DF raw data'!J78="","",'DF raw data'!J78) -> -1.35587e-05 | C73: =IF('DF raw data'!K78="","",'DF raw data'!K78) -> 0.000127231 | D73: =IF('DF raw data'!L78="","",'DF raw data'!L78) -> -1.99213e-05 | F73: -1.362378176e-05 | G73: 0.0001278417088 | H73: -2.001692224e-05 | J73: -4.741733935e-05 | K73: -0.0001565850833 | L73: 0.0008150505536 | M73: 0.00266286444 | N73: 1.520438266e-06
A74: =IF('DF raw data'!I79="","",'DF raw data'!I79) -> -294 | B74: =IF('DF raw data'!J79="","",'DF raw data'!J79) -> -5.42047e-06 | C74: =IF('DF raw data'!K79="","",'DF raw data'!K79) -> 0.000127296 | D74: =IF('DF raw data'!L79="","",'DF raw data'!L79) -> -1.97494e-05 | F74: -5.446488256e-06 | G74: 0.0001279070208 | H74: -1.984419712e-05 | J74: -5.014058348e-05 | K74: -0.0001816553751 | L74: 0.000879004064 | M74: 0.003102366472 | N74: 1.908019378e-06
A75: =IF('DF raw data'!I80="","",'DF raw data'!I80) -> -293.5 | B75: =IF('DF raw data'!J80="","",'DF raw data'!J80) -> -9.90605e-06 | C75: =IF('DF raw data'!K80="","",'DF raw data'!K80) -> 0.000133374 | D75: =IF('DF raw data'!L80="","",'DF raw data'!L80) -> -1.95742e-05 | F75: -9.95359904e-06 | G75: 0.0001340141952 | H75: -1.966815616e-05 | J75: -5.5117383e-05 | K75: -0.0002092140666 | L75: 0.0009460111616 | M75: 0.003575372053 | N75: 2.357006899e-06
A76: =IF('DF raw data'!I81="","",'DF raw data'!I81) -> -293 | B76: =IF('DF raw data'!J81="","",'DF raw data'!J81) -> -8.56052e-06 | C76: =IF('DF raw data'!K81="","",'DF raw data'!K81) -> 0.000135852 | D76: =IF('DF raw data'!L81="","",'DF raw data'!L81) -> -1.9619e-05 | F76: -8.601610496e-06 | G76: 0.0001365040896 | H76: -1.97131712e-05 | J76: -5.941818825e-05 | K76: -0.0002389231607 | L76: 0.001014263206 | M76: 0.004082503656 | N76: 2.873137086e-06
A77: =IF('DF raw data'!I82="","",'DF raw data'!I82) -> -292.5 | B77: =IF('DF raw data'!J82="","",'DF raw data'!J82) -> -2.21619e-06 | C77: =IF('DF raw data'!K82="","",'DF raw data'!K82) -> 0.000133209 | D77: =IF('DF raw data'!L82="","",'DF raw data'!L82) -> -1.9918e-05 | F77: -2.226827712e-06 | G77: 0.0001338484032 | H77: -2.00136064e-05 | J77: -6.05316021e-05 | K77: -0.0002691889617 | L77: 0.001081187408 | M77: 0.00462309736 | N77: 3.459452229e-06
A78: =IF('DF raw data'!I83="","",'DF raw data'!I83) -> -292 | B78: =IF('DF raw data'!J83="","",'DF raw data'!J83) -> -1.13799e-05 | C78: =IF('DF raw data'!K83="","",'DF raw data'!K83) -> 0.000128971 | D78: =IF('DF raw data'!L83="","",'DF raw data'!L83) -> -1.9685e-05 | F78: -1.143452352e-05 | G78: 0.0001295900608 | H78: -1.9779488e-05 | J78: -6.624886386e-05 | K78: -0.0003023133937 | L78: 0.001145982438 | M78: 0.005196088579 | N78: 4.118284559e-06
A79: =IF('DF raw data'!I84="","",'DF raw data'!I84) -> -291.5 | B79: =IF('DF raw data'!J84="","",'DF raw data'!J84) -> -1.11238e-05 | C79: =IF('DF raw data'!K84="","",'DF raw data'!K84) -> 0.00013419 | D79: =IF('DF raw data'!L84="","",'DF raw data'!L84) -> -1.93726e-05 | F79: -1.117719424e-05 | G79: 0.000134834112 | H79: -1.946558848e-05 | J79: -7.183746098e-05 | K79: -0.0003382321242 | L79: 0.001213399494 | M79: 0.005802788326 | N79: 4.857034036e-06
A80: =IF('DF raw data'!I85="","",'DF raw data'!I85) -> -291 | B80: =IF('DF raw data'!J85="","",'DF raw data'!J85) -> 2.84768e-06 | C80: =IF('DF raw data'!K85="","",'DF raw data'!K85) -> 0.000135993 | D80: =IF('DF raw data'!L85="","",'DF raw data'!L85) -> -2.23405e-05 | F80: 2.861348864e-06 | G80: 0.0001366457664 | H80: -2.24477344e-05 | J80: -7.040678655e-05 | K80: -0.0003734355174 | L80: 0.001281722378 | M80: 0.006443649515 | N80: 5.680918721e-06
A81: =IF('DF raw data'!I86="","",'DF raw data'!I86) -> -290.5 | B81: =IF('DF raw data'!J86="","",'DF raw data'!J86) -> -1.37763e-06 | C81: =IF('DF raw data'!K86="","",'DF raw data'!K86) -> 0.000136155 | D81: =IF('DF raw data'!L86="","",'DF raw data'!L86) -> -2.82781e-05 | F81: -1.384242624e-06 | G81: 0.000136808544 | H81: -2.841383488e-05 | J81: -7.109890786e-05 | K81: -0.0004089849714 | L81: 0.00135012665 | M81: 0.00711871284 | N81: 6.594867233e-06
A82: =IF('DF raw data'!I87="","",'DF raw data'!I87) -> -290 | B82: =IF('DF raw data'!J87="","",'DF raw data'!J87) -> -1.63707e-06 | C82: =IF('DF raw data'!K87="","",'DF raw data'!K87) -> 0.000138137 | D82: =IF('DF raw data'!L87="","",'DF raw data'!L87) -> -2.34401e-05 | F82: -1.644927936e-06 | G82: 0.0001388000576 | H82: -2.355261248e-05 | J82: -7.192137183e-05 | K82: -0.0004449456573 | L82: 0.001419526678 | M82: 0.007828476179 | N82: 7.60498157e-06
A83: =IF('DF raw data'!I88="","",'DF raw data'!I88) -> -289.5 | B83: =IF('DF raw data'!J88="","",'DF raw data'!J88) -> -1.77234e-05 | C83: =IF('DF raw data'!K88="","",'DF raw data'!K88) -> 0.00013194 | D83: =IF('DF raw data'!L88="","",'DF raw data'!L88) -> -2.06658e-05 | F83: -1.780847232e-05 | G83: 0.000132573312 | H83: -2.076499584e-05 | J83: -8.082560799e-05 | K83: -0.0004853584613 | L83: 0.001485813334 | M83: 0.008571382846 | N83: 8.712068592e-06
A84: =IF('DF raw data'!I89="","",'DF raw data'!I89) -> -289 | B84: =IF('DF raw data'!J89="","",'DF raw data'!J89) -> -2.74047e-05 | C84: =IF('DF raw data'!K89="","",'DF raw data'!K89) -> 0.000127748 | D84: =IF('DF raw data'!L89="","",'DF raw data'!L89) -> -1.27632e-05 | F84: -2.753624256e-05 | G84: 0.0001283611904 | H84: -1.282446336e-05 | J84: -9.459372927e-05 | K84: -0.0005326553259 | L84: 0.00154999393 | M84: 0.009346379811 | N84: 9.91778317e-06
A85: =IF('DF raw data'!I90="","",'DF raw data'!I90) -> -288.5 | B85: =IF('DF raw data'!J90="","",'DF raw data'!J90) -> -1.29237e-05 | C85: =IF('DF raw data'!K90="","",'DF raw data'!K90) -> 0.000125703 | D85: =IF('DF raw data'!L90="","",'DF raw data'!L90) -> -1.09331e-05 | F85: -1.298573376e-05 | G85: 0.0001263063744 | H85: -1.098557888e-05 | J85: -0.0001010865962 | K85: -0.000583198624 | L85: 0.001613147117 | M85: 0.01015295337 | N85: 1.122401423e-05
A86: =IF('DF raw data'!I91="","",'DF raw data'!I91) -> -288 | B86: =IF('DF raw data'!J91="","",'DF raw data'!J91) -> -9.39392e-06 | C86: =IF('DF raw data'!K91="","",'DF raw data'!K91) -> 0.000130457 | D86: =IF('DF raw data'!L91="","",'DF raw data'!L91) -> -1.88141e-05 | F86: -9.439010816e-06 | G86: 0.0001310831936 | H86: -1.890440768e-05 | J86: -0.0001058061016 | K86: -0.0006361016748 | L86: 0.001678688714 | M86: 0.01099229773 | N86: 1.263860959e-05
A87: =IF('DF raw data'!I92="","",'DF raw data'!I92) -> -287.5 | B87: =IF('DF raw data'!J92="","",'DF raw data'!J92) -> -1.13847e-05 | C87: =IF('DF raw data'!K92="","",'DF raw data'!K92) -> 0.000141575 | D87: =IF('DF raw data'!L92="","",'DF raw data'!L92) -> -1.23136e-05 | F87: -1.143934656e-05 | G87: 0.00014225456 | H87: -1.237270528e-05 | J87: -0.0001115257748 | K87: -0.0006918645622 | L87: 0.001749815994 | M87: 0.01186720572 | N87: 1.41757566e-05
A88: =IF('DF raw data'!I93="","",'DF raw data'!I93) -> -287 | B88: =IF('DF raw data'!J93="","",'DF raw data'!J93) -> -5.92474e-06 | C88: =IF('DF raw data'!K93="","",'DF raw data'!K93) -> 0.000143291 | D88: =IF('DF raw data'!L93="","",'DF raw data'!L93) -> -3.2629e-05 | F88: -5.953178752e-06 | G88: 0.0001439787968 | H88: -3.27856192e-05 | J88: -0.0001145023642 | K88: -0.0007491157443 | L88: 0.001821805392 | M88: 0.01277810842 | N88: 1.584179944e-05
A89: =IF('DF raw data'!I94="","",'DF raw data'!I94) -> -286.5 | B89: =IF('DF raw data'!J94="","",'DF raw data'!J94) -> -1.72735e-05 | C89: =IF('DF raw data'!K94="","",'DF raw data'!K94) -> 0.000138788 | D89: =IF('DF raw data'!L94="","",'DF raw data'!L94) -> -2.24687e-05 | F89: -1.73564128e-05 | G89: 0.0001394541824 | H89: -2.257654976e-05 | J89: -0.0001231805706 | K89: -0.0008107060296 | L89: 0.001891532483 | M89: 0.01372387466 | N89: 1.763833373e-05
A90: =IF('DF raw data'!I95="","",'DF raw data'!I95) -> -286 | B90: =IF('DF raw data'!J95="","",'DF raw data'!J95) -> -1.33045e-05 | C90: =IF('DF raw data'!K95="","",'DF raw data'!K95) -> 0.000142046 | D90: =IF('DF raw data'!L95="","",'DF raw data'!L95) -> -1.66626e-05 | F90: -1.33683616e-05 | G90: 0.0001427278208 | H90: -1.674258048e-05 | J90: -0.0001298647514 | K90: -0.0008756384053 | L90: 0.001962896394 | M90: 0.01470532286 | N90: 1.957324728e-05
A91: =IF('DF raw data'!I96="","",'DF raw data'!I96) -> -285.5 | B91: =IF('DF raw data'!J96="","",'DF raw data'!J96) -> -1.00342e-05 | C91: =IF('DF raw data'!K96="","",'DF raw data'!K96) -> 0.000131208 | D91: =IF('DF raw data'!L96="","",'DF raw data'!L96) -> -2.00369e-05 | F91: -1.008236416e-05 | G91: 0.0001318377984 | H91: -2.013307712e-05 | J91: -0.0001349059335 | K91: -0.0009430913721 | L91: 0.002028815293 | M91: 0.0157197305 | N91: 2.164039284e-05
A92: =IF('DF raw data'!I97="","",'DF raw data'!I97) -> -285 | B92: =IF('DF raw data'!J97="","",'DF raw data'!J97) -> -1.394e-05 | C92: =IF('DF raw data'!K97="","",'DF raw data'!K97) -> 0.00012929 | D92: =IF('DF raw data'!L97="","",'DF raw data'!L97) -> -2.47074e-05 | F92: -1.4006912e-05 | G92: 0.000129910592 | H92: -2.482599552e-05 | J92: -0.0001419093895 | K92: -0.001014046067 | L92: 0.002093770589 | M92: 0.0167666158 | N92: 2.384239961e-05
A93: =IF('DF raw data'!I98="","",'DF raw data'!I98) -> -284.5 | B93: =IF('DF raw data'!J98="","",'DF raw data'!J98) -> -1.54853e-05 | C93: =IF('DF raw data'!K98="","",'DF raw data'!K98) -> 0.000136672 | D93: =IF('DF raw data'!L98="","",'DF raw data'!L98) -> -1.32977e-05 | F93: -1.555962944e-05 | G93: 0.0001373280256 | H93: -1.336152896e-05 | J93: -0.0001496892042 | K93: -0.001088890669 | L93: 0.002162434602 | M93: 0.0178478331 | N93: 2.619166475e-05
A94: =IF('DF raw data'!I99="","",'DF raw data'!I99) -> -284 | B94: =IF('DF raw data'!J99="","",'DF raw data'!J99) -> -1.60542e-05 | C94: =IF('DF raw data'!K99="","",'DF raw data'!K99) -> 0.000138644 | D94: =IF('DF raw data'!L99="","",'DF raw data'!L99) -> -2.55401e-05 | F94: -1.613126016e-05 | G94: 0.0001393094912 | H94: -2.566269248e-05 | J94: -0.0001577548343 | K94: -0.001167768086 | L94: 0.002232089347 | M94: 0.01896387777 | N94: 2.869521947e-05
A95: =IF('DF raw data'!I100="","",'DF raw data'!I100) -> -283.5 | B95: =IF('DF raw data'!J100="","",'DF raw data'!J100) -> -7.97786e-06 | C95: =IF('DF raw data'!K100="","",'DF raw data'!K100) -> 0.000140474 | D95: =IF('DF raw data'!L100="","",'DF raw data'!L100) -> -2.85805e-05 | F95: -8.016153728e-06 | G95: 0.0001411482752 | H95: -2.87176864e-05 | J95: -0.0001617629112 | K95: -0.001248649542 | L95: 0.002302663485 | M95: 0.02011520952 | N95: 3.135943265e-05
A96: =IF('DF raw data'!I101="","",'DF raw data'!I101) -> -283 | B96: =IF('DF raw data'!J101="","",'DF raw data'!J101) -> -4.01222e-06 | C96: =IF('DF raw data'!K101="","",'DF raw data'!K101) -> 0.000140322 | D96: =IF('DF raw data'!L101="","",'DF raw data'!L101) -> -1.70743e-05 | F96: -4.031478656e-06 | G96: 0.0001409955456 | H96: -1.715625664e-05 | J96: -0.0001637786505 | K96: -0.001330538867 | L96: 0.002373161258 | M96: 0.02130179014 | N96: 3.418879155e-05
A97: =IF('DF raw data'!I102="","",'DF raw data'!I102) -> -282.5 | B97: =IF('DF raw data'!J102="","",'DF raw data'!J102) -> -1.00358e-05 | C97: =IF('DF raw data'!K102="","",'DF raw data'!K102) -> 0.000136352 | D97: =IF('DF raw data'!L102="","",'DF raw data'!L102) -> -1.74756e-05 | F97: -1.008397184e-05 | G97: 0.0001370064896 | H97: -1.755948288e-05 | J97: -0.0001688206364 | K97: -0.001414949185 | L97: 0.002441664502 | M97: 0.0225226224 | N97: 3.718390452e-05
A98: =IF('DF raw data'!I103="","",'DF raw data'!I103) -> -282 | B98: =IF('DF raw data'!J103="","",'DF raw data'!J103) -> -1.0352e-05 | C98: =IF('DF raw data'!K103="","",'DF raw data'!K103) -> 0.000131436 | D98: =IF('DF raw data'!L103="","",'DF raw data'!L103) -> -2.37289e-05 | F98: -1.04016896e-05 | G98: 0.0001320668928 | H98: -2.384279872e-05 | J98: -0.0001740214812 | K98: -0.001501959926 | L98: 0.002507697949 | M98: 0.02377647137 | N98: 4.034332076e-05
A99: =IF('DF raw data'!I104="","",'DF raw data'!I104) -> -281.5 | B99: =IF('DF raw data'!J104="","",'DF raw data'!J104) -> -1.3619e-05 | C99: =IF('DF raw data'!K104="","",'DF raw data'!K104) -> 0.000130112 | D99: =IF('DF raw data'!L104="","",'DF raw data'!L104) -> -2.54754e-05 | F99: -1.36843712e-05 | G99: 0.0001307365376 | H99: -2.559768192e-05 | J99: -0.0001808636668 | K99: -0.001592391759 | L99: 0.002573066218 | M99: 0.02506300448 | N99: 4.367001148e-05
A100: =IF('DF raw data'!I105="","",'DF raw data'!I105) -> -281 | B100: =IF('DF raw data'!J105="","",'DF raw data'!J105) -> -1.5223e-05 | C100: =IF('DF raw data'!K105="","",'DF raw data'!K105) -> 0.000127515 | D100: =IF('DF raw data'!L105="","",'DF raw data'!L105) -> -2.25467e-05 | F100: -1.52960704e-05 | G100: 0.000128127072 | H100: -2.265492416e-05 | J100: -0.000188511702 | K100: -0.00168664761 | L100: 0.002637129754 | M100: 0.02638156936 | N100: 4.716500647e-05
A101: =IF('DF raw data'!I106="","",'DF raw data'!I106) -> -280.5 | B101: =IF('DF raw data'!J106="","",'DF raw data'!J106) -> -6.71157e-06 | C101: =IF('DF raw data'!K106="","",'DF raw data'!K106) -> 0.000128494 | D101: =IF('DF raw data'!L106="","",'DF raw data'!L106) -> -5.01968e-06 | F101: -6.743785536e-06 | G101: 0.0001291107712 | H101: -5.043774464e-06 | J101: -0.0001918835948 | K101: -0.001782589407 | L101: 0.002701685139 | M101: 0.02773241192 | N101: 5.083296743e-05
A102: =IF('DF raw data'!I107="","",'DF raw data'!I107) -> -280 | B102: =IF('DF raw data'!J107="","",'DF raw data'!J107) -> -1.33026e-05 | C102: =IF('DF raw data'!K107="","",'DF raw data'!K107) -> 0.000136897 | D102: =IF('DF raw data'!L107="","",'DF raw data'!L107) -> -1.95813e-05 | F102: -1.336645248e-05 | G102: 0.0001375541056 | H102: -1.967529024e-05 | J102: -0.000198566821 | K102: -0.001881872818 | L102: 0.002770462192 | M102: 0.02911764302 | N102: 5.46904122e-05
A103: =IF('DF raw data'!I108="","",'DF raw data'!I108) -> -279.5 | B103: =IF('DF raw data'!J108="","",'DF raw data'!J108) -> -1.18845e-05 | C103: =IF('DF raw data'!K108="","",'DF raw data'!K108) -> 0.000138738 | D103: =IF('DF raw data'!L108="","",'DF raw data'!L108) -> -3.20151e-05 | F103: -1.19415456e-05 | G103: 0.0001394039424 | H103: -3.216877248e-05 | J103: -0.0002045375938 | K103: -0.001984141615 | L103: 0.002840164163 | M103: 0.0305377251 | N103: 5.874459625e-05
A104: =IF('DF raw data'!I109="","",'DF raw data'!I109) -> -279 | B104: =IF('DF raw data'!J109="","",'DF raw data'!J109) -> -1.49054e-05 | C104: =IF('DF raw data'!K109="","",'DF raw data'!K109) -> 0.000141485 | D104: =IF('DF raw data'!L109="","",'DF raw data'!L109) -> -1.80221e-05 | F104: -1.497694592e-05 | G104: 0.000142164128 | H104: -1.810860608e-05 | J104: -0.0002120260668 | K104: -0.002090154648 | L104: 0.002911246227 | M104: 0.03199334822 | N104: 6.300475107e-05
A105: =IF('DF raw data'!I110="","",'DF raw data'!I110) -> -278.5 | B105: =IF('DF raw data'!J110="","",'DF raw data'!J110) -> -8.00978e-07 | C105: =IF('DF raw data'!K110="","",'DF raw data'!K110) -> 0.000140277 | D105: =IF('DF raw data'!L110="","",'DF raw data'!L110) -> -2.8393e-05 | F105: -8.048226944e-07 | G105: 0.0001409503296 | H105: -2.85292864e-05 | J105: -0.0002124284781 | K105: -0.002196368887 | L105: 0.002981721392 | M105: 0.03348420891 | N105: 6.747264523e-05
A106: =IF('DF raw data'!I111="","",'DF raw data'!I111) -> -278 | B106: =IF('DF raw data'!J111="","",'DF raw data'!J111) -> -1.13089e-05 | C106: =IF('DF raw data'!K111="","",'DF raw data'!K111) -> 0.000134298 | D106: =IF('DF raw data'!L111="","",'DF raw data'!L111) -> -3.05011e-05 | F106: -1.136318272e-05 | G106: 0.0001349426304 | H106: -3.064750528e-05 | J106: -0.0002181100695 | K106: -0.002305423922 | L106: 0.003049192707 | M106: 0.03500880527 | N106: 7.214521932e-05
A107: =IF('DF raw data'!I112="","",'DF raw data'!I112) -> -277.5 | B107: =IF('DF raw data'!J112="","",'DF raw data'!J112) -> -2.11202e-05 | C107: =IF('DF raw data'!K112="","",'DF raw data'!K112) -> 0.000137282 | D107: =IF('DF raw data'!L112="","",'DF raw data'!L112) -> -1.97953e-05 | F107: -2.122157696e-05 | G107: 0.0001379409536 | H107: -1.989031744e-05 | J107: -0.000228720858 | K107: -0.002419784351 | L107: 0.003118163184 | M107: 0.03656788686 | N107: 7.703284675e-05
A108: =IF('DF raw data'!I113="","",'DF raw data'!I113) -> -277 | B108: =IF('DF raw data'!J113="","",'DF raw data'!J113) -> -2.02594e-06 | C108: =IF('DF raw data'!K113="","",'DF raw data'!K113) -> 0.000138585 | D108: =IF('DF raw data'!L113="","",'DF raw data'!L113) -> -1.70612e-05 | F108: -2.035664512e-06 | G108: 0.000139250208 | H108: -1.714309376e-05 | J108: -0.0002297386902 | K108: -0.002534653696 | L108: 0.003187788288 | M108: 0.038161781 | N108: 8.214023377e-05
A109: =IF('DF raw data'!I114="","",'DF raw data'!I114) -> -276.5 | B109: =IF('DF raw data'!J114="","",'DF raw data'!J114) -> 9.85262e-07 | C109: =IF('DF raw data'!K114="","",'DF raw data'!K114) -> 0.000133767 | D109: =IF('DF raw data'!L114="","",'DF raw data'!L114) -> -1.57384e-05 | F109: 9.899912576e-07 | G109: 0.0001344090816 | H109: -1.581394432e-05 | J109: -0.0002292436946 | K109: -0.002649275543 | L109: 0.003254992829 | M109: 0.03978927742 | N109: 8.746399926e-05
A110: =IF('DF raw data'!I115="","",'DF raw data'!I115) -> -276 | B110: =IF('DF raw data'!J115="","",'DF raw data'!J115) -> -2.98328e-05 | C110: =IF('DF raw data'!K115="","",'DF raw data'!K115) -> 0.000121203 | D110: =IF('DF raw data'!L115="","",'DF raw data'!L115) -> -2.36712e-05 | F110: -2.997599744e-05 | G110: 0.0001217847744 | H110: -2.378482176e-05 | J110: -0.0002442316933 | K110: -0.00277139139 | L110: 0.003315885216 | M110: 0.04144722002 | N110: 9.299137121e-05
A111: =IF('DF raw data'!I116="","",'DF raw data'!I116) -> -275.5 | B111: =IF('DF raw data'!J116="","",'DF raw data'!J116) -> -2.09907e-05 | C111: =IF('DF raw data'!K116="","",'DF raw data'!K116) -> 0.000125241 | D111: =IF('DF raw data'!L116="","",'DF raw data'!L116) -> -2.18783e-05 | F111: -2.109145536e-05 | G111: 0.0001258421568 | H111: -2.198331584e-05 | J111: -0.000254777421 | K111: -0.002898780101 | L111: 0.003378806294 | M111: 0.04313662317 | N111: 9.873199296e-05
A112: =IF('DF raw data'!I117="","",'DF raw data'!I117) -> -275 | B112: =IF('DF raw data'!J117="","",'DF raw data'!J117) -> -7.02487e-06 | C112: =IF('DF raw data'!K117="","",'DF raw data'!K117) -> 0.000136399 | D112: =IF('DF raw data'!L117="","",'DF raw data'!L117) -> -1.5743e-05 | F112: -7.058589376e-06 | G112: 0.0001370537152 | H112: -1.58185664e-05 | J112: -0.0002583067157 | K112: -0.003027933458 | L112: 0.003447333152 | M112: 0.04486028975 | N112: 0.0001047074071
A113: =IF('DF raw data'!I118="","",'DF raw data'!I118) -> -274.5 | B113: =IF('DF raw data'!J118="","",'DF raw data'!J118) -> 5.86064e-06 | C113: =IF('DF raw data'!K118="","",'DF raw data'!K118) -> 0.000136301 | D113: =IF('DF raw data'!L118="","",'DF raw data'!L118) -> -2.41592e-05 | F113: 5.888771072e-06 | G113: 0.0001369552448 | H113: -2.427516416e-05 | J113: -0.0002553623301 | K113: -0.003155614624 | L113: 0.003515810774 | M113: 0.04661819513 | N113: 0.0001109204747
A114: =IF('DF raw data'!I119="","",'DF raw data'!I119) -> -274 | B114: =IF('DF raw data'!J119="","",'DF raw data'!J119) -> 6.24104e-06 | C114: =IF('DF raw data'!K119="","",'DF raw data'!K119) -> 0.00013589 | D114: =IF('DF raw data'!L119="","",'DF raw data'!L119) -> -1.78871e-05 | F114: 6.270996992e-06 | G114: 0.000136542272 | H114: -1.797295808e-05 | J114: -0.0002522268316 | K114: -0.003281728039 | L114: 0.00358408191 | M114: 0.04841023609 | N114: 0.0001173751055
A115: =IF('DF raw data'!I120="","",'DF raw data'!I120) -> -273.5 | B115: =IF('DF raw data'!J120="","",'DF raw data'!J120) -> -3.11246e-06 | C115: =IF('DF raw data'!K120="","",'DF raw data'!K120) -> 0.000133358 | D115: =IF('DF raw data'!L120="","",'DF raw data'!L120) -> -2.11813e-05 | F115: -3.127399808e-06 | G115: 0.0001339981184 | H115: -2.128297024e-05 | J115: -0.0002537905316 | K115: -0.003408623305 | L115: 0.00365108097 | M115: 0.05023577657 | N115: 0.0001240725064
A116: =IF('DF raw data'!I121="","",'DF raw data'!I121) -> -273 | B116: =IF('DF raw data'!J121="","",'DF raw data'!J121) -> -3.94494e-06 | C116: =IF('DF raw data'!K121="","",'DF raw data'!K121) -> 0.000134664 | D116: =IF('DF raw data'!L121="","",'DF raw data'!L121) -> -2.22049e-05 | F116: -3.963875712e-06 | G116: 0.0001353103872 | H116: -2.231148352e-05 | J116: -0.0002557724694 | K116: -0.00353650954 | L116: 0.003718736163 | M116: 0.05209514466 | N116: 0.0001310197155
A117: =IF('DF raw data'!I122="","",'DF raw data'!I122) -> -272.5 | B117: =IF('DF raw data'!J122="","",'DF raw data'!J122) -> -8.81251e-06 | C117: =IF('DF raw data'!K122="","",'DF raw data'!K122) -> 0.000132596 | D117: =IF('DF raw data'!L122="","",'DF raw data'!L122) -> -2.62344e-05 | F117: -8.854810048e-06 | G117: 0.0001332324608 | H117: -2.636032512e-05 | J117: -0.0002601998744 | K117: -0.003666609477 | L117: 0.003785352394 | M117: 0.05398782085 | N117: 0.0001382180139
A118: =IF('DF raw data'!I123="","",'DF raw data'!I123) -> -272 | B118: =IF('DF raw data'!J123="","",'DF raw data'!J123) -> -4.96925e-06 | C118: =IF('DF raw data'!K123="","",'DF raw data'!K123) -> 0.000137292 | D118: =IF('DF raw data'!L123="","",'DF raw data'!L123) -> -2.36476e-05 | F118: -4.9931024e-06 | G118: 0.0001379510016 | H118: -2.376110848e-05 | J118: -0.0002626964256 | K118: -0.00379795769 | L118: 0.003854327894 | M118: 0.0559149848 | N118: 0.0001456804404
A119: =IF('DF raw data'!I124="","",'DF raw data'!I124) -> -271.5 | B119: =IF('DF raw data'!J124="","",'DF raw data'!J124) -> -1.09926e-05 | C119: =IF('DF raw data'!K124="","",'DF raw data'!K124) -> 0.000144282 | D119: =IF('DF raw data'!L124="","",'DF raw data'!L124) -> -2.40677e-05 | F119: -1.104536448e-05 | G119: 0.0001449745536 | H119: -2.418322496e-05 | J119: -0.0002682191079 | K119: -0.003932067244 | L119: 0.003926815171 | M119: 0.05787839239 | N119: 0.0001534263498
A120: =IF('DF raw data'!I125="","",'DF raw data'!I125) -> -271 | B120: =IF('DF raw data'!J125="","",'DF raw data'!J125) -> -1.29896e-05 | C120: =IF('DF raw data'!K125="","",'DF raw data'!K125) -> 0.00014051 | D120: =IF('DF raw data'!L125="","",'DF raw data'!L125) -> -7.89895e-06 | F120: -1.305195008e-05 | G120: 0.000141184448 | H120: -7.93686496e-06 | J120: -0.0002747450829 | K120: -0.004069439785 | L120: 0.003997407395 | M120: 0.05987709608 | N120: 0.0001614537252
A121: =IF('DF raw data'!I126="","",'DF raw data'!I126) -> -270.5 | B121: =IF('DF raw data'!J126="","",'DF raw data'!J126) -> -1.45924e-05 | C121: =IF('DF raw data'!K126="","",'DF raw data'!K126) -> 0.000135303 | D121: =IF('DF raw data'!L126="","",'DF raw data'!L126) -> -6.76705e-06 | F121: -1.466244352e-05 | G121: 0.0001359524544 | H121: -6.79953184e-06 | J121: -0.0002820763047 | K121: -0.004210477938 | L121: 0.004065383622 | M121: 0.06190978789 | N121: 0.0001697571807
A122: =IF('DF raw data'!I127="","",'DF raw data'!I127) -> -270 | B122: =IF('DF raw data'!J127="","",'DF raw data'!J127) -> -4.71966e-06 | C122: =IF('DF raw data'!K127="","",'DF raw data'!K127) -> 0.000133926 | D122: =IF('DF raw data'!L127="","",'DF raw data'!L127) -> -1.32867e-05 | F122: -4.742314368e-06 | G122: 0.0001345688448 | H122: -1.335047616e-05 | J122: -0.0002844474619 | K122: -0.004352701669 | L122: 0.004132668045 | M122: 0.06397612192 | N122: 0.0001783371085
A123: =IF('DF raw data'!I128="","",'DF raw data'!I128) -> -269.5 | B123: =IF('DF raw data'!J128="","",'DF raw data'!J128) -> -1.28519e-05 | C123: =IF('DF raw data'!K128="","",'DF raw data'!K128) -> 0.000129837 | D123: =IF('DF raw data'!L128="","",'DF raw data'!L128) -> -2.26196e-05 | F123: -1.291358912e-05 | G123: 0.0001304602176 | H123: -2.272817408e-05 | J123: -0.0002909042564 | K123: -0.004498153797 | L123: 0.004197898154 | M123: 0.06607507099 | N123: 0.0001871905955
A124: =IF('DF raw data'!I129="","",'DF raw data'!I129) -> -269 | B124: =IF('DF raw data'!J129="","",'DF raw data'!J129) -> -8.56028e-06 | C124: =IF('DF raw data'!K129="","",'DF raw data'!K129) -> 0.000137483 | D124: =IF('DF raw data'!L129="","",'DF raw data'!L129) -> -1.99348e-05 | F124: -8.601369344e-06 | G124: 0.0001381429184 | H124: -2.003048704e-05 | J124: -0.0002952049411 | K124: -0.004645756267 | L124: 0.004266969613 | M124: 0.0682085558 | N124: 0.0001963376834
A125: =IF('DF raw data'!I130="","",'DF raw data'!I130) -> -268.5 | B125: =IF('DF raw data'!J130="","",'DF raw data'!J130) -> -1.59887e-05 | C125: =IF('DF raw data'!K130="","",'DF raw data'!K130) -> 0.000135588 | D125: =IF('DF raw data'!L130="","",'DF raw data'!L130) -> -2.75285e-05 | F125: -1.606544576e-05 | G125: 0.0001362388224 | H125: -2.76606368e-05 | J125: -0.000303237664 | K125: -0.004797375099 | L125: 0.004335089024 | M125: 0.07037610031 | N125: 0.0002057801583
A126: =IF('DF raw data'!I131="","",'DF raw data'!I131) -> -268 | B126: =IF('DF raw data'!J131="","",'DF raw data'!J131) -> -1.18956e-05 | C126: =IF('DF raw data'!K131="","",'DF raw data'!K131) -> 0.000130866 | D126: =IF('DF raw data'!L131="","",'DF raw data'!L131) -> -1.48891e-05 | F126: -1.195269888e-05 | G126: 0.0001314941568 | H126: -1.496056768e-05 | J126: -0.0003092140134 | K126: -0.004951982106 | L126: 0.004400836102 | M126: 0.07257651836 | N126: 0.0002155116442
A127: =IF('DF raw data'!I132="","",'DF raw data'!I132) -> -267.5 | B127: =IF('DF raw data'!J132="","",'DF raw data'!J132) -> -4.91654e-06 | C127: =IF('DF raw data'!K132="","",'DF raw data'!K132) -> 0.000137209 | D127: =IF('DF raw data'!L132="","",'DF raw data'!L132) -> -6.32319e-06 | F127: -4.940139392e-06 | G127: 0.0001378676032 | H127: -6.353541312e-06 | J127: -0.0003116840831 | K127: -0.005107824148 | L127: 0.004469769904 | M127: 0.07481140332 | N127: 0.0002255496392
A128: =IF('DF raw data'!I133="","",'DF raw data'!I133) -> -267 | B128: =IF('DF raw data'!J133="","",'DF raw data'!J133) -> -4.45835e-06 | C128: =IF('DF raw data'!K133="","",'DF raw data'!K133) -> 0.000141172 | D128: =IF('DF raw data'!L133="","",'DF raw data'!L133) -> -2.09875e-05 | F128: =(1-$G$1*($B$49-$G$2))*B128 -> -4.47975008e-06 | G128: 0.0001418496256 | H128: -2.108824e-05 | J128: =F128*$G$3+J127 -> -0.0003139239581 | K128: =J128*$G$3+K127 -> -0.005264786127 | L128: =G128*$G$3+L127 -> 0.004540694717 | M128: =L128*$G$3+M127 -> 0.07708175067 | N128: =(J128^2+L128^2)*$G$3+N127 -> 0.0002359078675
A129: =IF('DF raw data'!I134="","",'DF raw data'!I134) -> -266.5 | B129: =IF('DF raw data'!J134="","",'DF raw data'!J134) -> -9.00611e-06 | C129: =IF('DF raw data'!K134="","",'DF raw data'!K134) -> 0.000142119 | D129: =IF('DF raw data'!L134="","",'DF raw data'!L134) -> -2.39132e-05 | F129: -9.049339328e-06 | G129: 0.0001428011712 | H129: -2.402798336e-05 | J129: -0.0003184486278 | K129: -0.00542401044 | L129: 0.004612095302 | M129: 0.07938779832 | N129: 0.0002465942838
A130: =IF('DF raw data'!I135="","",'DF raw data'!I135) -> -266 | B130: =IF('DF raw data'!J135="","",'DF raw data'!J135) -> -2.27577e-06 | C130: =IF('DF raw data'!K135="","",'DF raw data'!K135) -> 0.000126526 | D130: =IF('DF raw data'!L135="","",'DF raw data'!L135) -> -2.70499e-05 | F130: -2.286693696e-06 | G130: 0.0001271333248 | H130: -2.717973952e-05 | J130: -0.0003195919747 | K130: -0.005583806428 | L130: 0.004675661965 | M130: 0.08172562931 | N130: 0.0002575762608
A131: =IF('DF raw data'!I136="","",'DF raw data'!I136) -> -265.5 | B131: =IF('DF raw data'!J136="","",'DF raw data'!J136) -> -9.78069e-06 | C131: =IF('DF raw data'!K136="","",'DF raw data'!K136) -> 0.000124524 | D131: =IF('DF raw data'!L136="","",'DF raw data'!L136) -> -1.52096e-05 | F131: -9.827637312e-06 | G131: 0.0001251217152 | H131: -1.528260608e-05 | J131: -0.0003245057933 | K131: -0.005746059324 | L131: 0.004738222822 | M131: 0.08409474072 | N131: 0.0002688542905
A132: =IF('DF raw data'!I137="","",'DF raw data'!I137) -> -265 | B132: =IF('DF raw data'!J137="","",'DF raw data'!J137) -> -8.75086e-06 | C132: =IF('DF raw data'!K137="","",'DF raw data'!K137) -> 0.000140901 | D132: =IF('DF raw data'!L137="","",'DF raw data'!L137) -> -2.22737e-05 | F132: -8.792864128e-06 | G132: 0.0001415773248 | H132: -2.238061376e-05 | J132: -0.0003289022254 | K132: -0.005910510437 | L132: 0.004809011485 | M132: 0.08649924646 | N132: 0.0002804716746
A133: =IF('DF raw data'!I138="","",'DF raw data'!I138) -> -264.5 | B133: =IF('DF raw data'!J138="","",'DF raw data'!J138) -> 8.16795e-06 | C133: =IF('DF raw data'!K138="","",'DF raw data'!K138) -> 0.000145003 | D133: =IF('DF raw data'!L138="","",'DF raw data'!L138) -> -2.4539e-05 | F133: 8.20715616e-06 | G133: 0.0001456990144 | H133: -2.46567872e-05 | J133: -0.0003247986473 | K133: -0.006072909761 | L133: 0.004881860992 | M133: 0.08894017696 | N133: 0.000292440705
A134: =IF('DF raw data'!I139="","",'DF raw data'!I139) -> -264 | B134: =IF('DF raw data'!J139="","",'DF raw data'!J139) -> -9.2627e-06 | C134: =IF('DF raw data'!K139="","",'DF raw data'!K139) -> 0.000149864 | D134: =IF('DF raw data'!L139="","",'DF raw data'!L139) -> -2.34723e-05 | F134: -9.30716096e-06 | G134: 0.0001505833472 | H134: -2.358496704e-05 | J134: -0.0003294522278 | K134: -0.006237635875 | L134: 0.004957152666 | M134: 0.09141875329 | N134: 0.0003047816557
A135: =IF('DF raw data'!I140="","",'DF raw data'!I140) -> -263.5 | B135: =IF('DF raw data'!J140="","",'DF raw data'!J140) -> -1.88742e-05 | C135: =IF('DF raw data'!K140="","",'DF raw data'!K140) -> 0.00014401 | D135: =IF('DF raw data'!L140="","",'DF raw data'!L140) -> -2.45196e-05 | F135: -1.896479616e-05 | G135: 0.000144701248 | H135: -2.463729408e-05 | J135: -0.0003389346259 | K135: -0.006407103188 | L135: 0.00502950329 | M135: 0.09393350493 | N135: 0.0003174870457
A136: =IF('DF raw data'!I141="","",'DF raw data'!I141) -> -263 | B136: =IF('DF raw data'!J141="","",'DF raw data'!J141) -> -6.89205e-06 | C136: =IF('DF raw data'!K141="","",'DF raw data'!K141) -> 0.000136347 | D136: =IF('DF raw data'!L141="","",'DF raw data'!L141) -> -2.29252e-05 | F136: -6.92513184e-06 | G136: 0.0001370014656 | H136: -2.303524096e-05 | J136: -0.0003423971918 | K136: -0.006578301784 | L136: 0.005098004022 | M136: 0.09648250695 | N136: 0.0003305404861
A137: =IF('DF raw data'!I142="","",'DF raw data'!I142) -> -262.5 | B137: =IF('DF raw data'!J142="","",'DF raw data'!J142) -> -1.75957e-05 | C137: =IF('DF raw data'!K142="","",'DF raw data'!K142) -> 0.000132649 | D137: =IF('DF raw data'!L142="","",'DF raw data'!L142) -> -1.9804e-05 | F137: -1.768015936e-05 | G137: 0.0001332857152 | H137: -1.98990592e-05 | J137: -0.0003512372715 | K137: -0.006753920419 | L137: 0.00516464688 | M137: 0.09906483039 | N137: 0.0003439389587
A138: =IF('DF raw data'!I143="","",'DF raw data'!I143) -> -262 | B138: =IF('DF raw data'!J143="","",'DF raw data'!J143) -> -5.35272e-06 | C138: =IF('DF raw data'!K143="","",'DF raw data'!K143) -> 0.000137688 | D138: =IF('DF raw data'!L143="","",'DF raw data'!L143) -> -2.51789e-05 | F138: -5.378413056e-06 | G138: 0.0001383489024 | H138: -2.529975872e-05 | J138: -0.000353926478 | K138: -0.006930883658 | L138: 0.005233821331 | M138: 0.1016817411 | N138: 0.0003576980335
A139: =IF('DF raw data'!I144="","",'DF raw data'!I144) -> -261.5 | B139: =IF('DF raw data'!J144="","",'DF raw data'!J144) -> -9.2643e-06 | C139: =IF('DF raw data'!K144="","",'DF raw data'!K144) -> 0.000143093 | D139: =IF('DF raw data'!L144="","",'DF raw data'!L144) -> -2.10009e-05 | F139: -9.30876864e-06 | G139: 0.0001437798464 | H139: -2.110170432e-05 | J139: -0.0003585808623 | K139: -0.007110174089 | L139: 0.005305711254 | M139: 0.1043345967 | N139: 0.0003718376096
A140: =IF('DF raw data'!I145="","",'DF raw data'!I145) -> -261 | B140: =IF('DF raw data'!J145="","",'DF raw data'!J145) -> 9.19806e-07 | C140: =IF('DF raw data'!K145="","",'DF raw data'!K145) -> 0.000139569 | D140: =IF('DF raw data'!L145="","",'DF raw data'!L145) -> -1.38204e-05 | F140: 9.242210688e-07 | G140: 0.0001402389312 | H140: -1.388673792e-05 | J140: -0.0003581187518 | K140: -0.007289233465 | L140: 0.00537583072 | M140: 0.107022512 | N140: 0.0003863515121
A141: =IF('DF raw data'!I146="","",'DF raw data'!I146) -> -260.5 | B141: =IF('DF raw data'!J146="","",'DF raw data'!J146) -> -1.40128e-05 | C141: =IF('DF raw data'!K146="","",'DF raw data'!K146) -> 0.00013695 | D141: =IF('DF raw data'!L146="","",'DF raw data'!L146) -> -1.10245e-05 | F141: -1.408006144e-05 | G141: 0.00013760736 | H141: -1.10774176e-05 | J141: -0.0003651587825 | K141: -0.007471812857 | L141: 0.0054446344 | M141: 0.1097448292 | N141: 0.0004012402044
A142: =IF('DF raw data'!I147="","",'DF raw data'!I147) -> -260 | B142: =IF('DF raw data'!J147="","",'DF raw data'!J147) -> -3.75323e-06 | C142: =IF('DF raw data'!K147="","",'DF raw data'!K147) -> 0.000132127 | D142: =IF('DF raw data'!L147="","",'DF raw data'!L147) -> -2.11877e-05 | F142: -3.771245504e-06 | G142: 0.0001327612096 | H142: -2.128940096e-05 | J142: -0.0003670444052 | K142: -0.007655335059 | L142: 0.005511015005 | M142: 0.1125003367 | N142: 0.0004164932084
A143: =IF('DF raw data'!I148="","",'DF raw data'!I148) -> -259.5 | B143: =IF('DF raw data'!J148="","",'DF raw data'!J148) -> -1.64416e-05 | C143: =IF('DF raw data'!K148="","",'DF raw data'!K148) -> 0.000124469 | D143: =IF('DF raw data'!L148="","",'DF raw data'!L148) -> -2.08325e-05 | F143: -1.652051968e-05 | G143: 0.0001250664512 | H143: -2.0932496e-05 | J143: -0.0003753046651 | K143: -0.007842987392 | L143: 0.00557354823 | M143: 0.1152871109 | N143: 0.0004320958551
A144: =IF('DF raw data'!I149="","",'DF raw data'!I149) -> -259 | B144: =IF('DF raw data'!J149="","",'DF raw data'!J149) -> -1.43943e-05 | C144: =IF('DF raw data'!K149="","",'DF raw data'!K149) -> 0.00013337 | D144: =IF('DF raw data'!L149="","",'DF raw data'!L149) -> -1.55407e-05 | F144: -1.446339264e-05 | G144: 0.000134010176 | H144: -1.561529536e-05 | J144: -0.0003825363614 | K144: -0.008034255572 | L144: 0.005640553318 | M144: 0.1181073875 | N144: 0.000448076943
A145: =IF('DF raw data'!I150="","",'DF raw data'!I150) -> -258.5 | B145: =IF('DF raw data'!J150="","",'DF raw data'!J150) -> -1.20192e-05 | C145: =IF('DF raw data'!K150="","",'DF raw data'!K150) -> 0.000131781 | D145: =IF('DF raw data'!L150="","",'DF raw data'!L150) -> -2.18473e-05 | F145: -1.207689216e-05 | G145: 0.0001324135488 | H145: -2.195216704e-05 | J145: -0.0003885748075 | K145: -0.008228542976 | L145: 0.005706760093 | M145: 0.1209607676 | N145: 0.0004644359936
A146: =IF('DF raw data'!I151="","",'DF raw data'!I151) -> -258 | B146: =IF('DF raw data'!J151="","",'DF raw data'!J151) -> -1.66968e-05 | C146: =IF('DF raw data'!K151="","",'DF raw data'!K151) -> 0.000131254 | D146: =IF('DF raw data'!L151="","",'DF raw data'!L151) -> -2.25947e-05 | F146: -1.677694464e-05 | G146: 0.0001318840192 | H146: -2.270315456e-05 | J146: -0.0003969632798 | K146: -0.008427024616 | L146: 0.005772702102 | M146: 0.1238471186 | N146: 0.0004811768283
A147: =IF('DF raw data'!I152="","",'DF raw data'!I152) -> -257.5 | B147: =IF('DF raw data'!J152="","",'DF raw data'!J152) -> -1.4199e-05 | C147: =IF('DF raw data'!K152="","",'DF raw data'!K152) -> 0.000133329 | D147: =IF('DF raw data'!L152="","",'DF raw data'!L152) -> -2.04616e-05 | F147: -1.42671552e-05 | G147: 0.0001339689792 | H147: -2.055981568e-05 | J147: -0.0004040968574 | K147: -0.008629073045 | L147: 0.005839686592 | M147: 0.1267669619 | N147: 0.0004983094452
A148: =IF('DF raw data'!I153="","",'DF raw data'!I153) -> -257 | B148: =IF('DF raw data'!J153="","",'DF raw data'!J153) -> -1.12484e-05 | C148: =IF('DF raw data'!K153="","",'DF raw data'!K153) -> 0.000132031 | D148: =IF('DF raw data'!L153="","",'DF raw data'!L153) -> -2.47947e-05 | F148: -1.130239232e-05 | G148: 0.0001326647488 | H148: -2.491371456e-05 | J148: -0.0004097480536 | K148: -0.008833947071 | L148: 0.005906018966 | M148: 0.1297199714 | N148: 0.0005158339219
A149: =IF('DF raw data'!I154="","",'DF raw data'!I154) -> -256.5 | B149: =IF('DF raw data'!J154="","",'DF raw data'!J154) -> -1.68256e-05 | C149: =IF('DF raw data'!K154="","",'DF raw data'!K154) -> 0.000134145 | D149: =IF('DF raw data'!L154="","",'DF raw data'!L154) -> -2.15499e-05 | F149: -1.690636288e-05 | G149: 0.000134788896 | H149: -2.165333952e-05 | J149: -0.000418201235 | K149: -0.009043047689 | L149: 0.005973413414 | M149: 0.1327066781 | N149: 0.000533762202
A150: =IF('DF raw data'!I155="","",'DF raw data'!I155) -> -256 | B150: =IF('DF raw data'!J155="","",'DF raw data'!J155) -> -8.74603e-06 | C150: =IF('DF raw data'!K155="","",'DF raw data'!K155) -> 0.000133827 | D150: =IF('DF raw data'!L155="","",'DF raw data'!L155) -> -2.97067e-05 | F150: -8.788010944e-06 | G150: 0.0001344693696 | H150: -2.984929216e-05 | J150: -0.0004225952405 | K150: -0.009254345309 | L150: 0.006040648099 | M150: 0.1357270021 | N150: 0.0005520962101
A151: =IF('DF raw data'!I156="","",'DF raw data'!I156) -> -255.5 | B151: =IF('DF raw data'!J156="","",'DF raw data'!J156) -> -7.86338e-06 | C151: =IF('DF raw data'!K156="","",'DF raw data'!K156) -> 0.000136389 | D151: =IF('DF raw data'!L156="","",'DF raw data'!L156) -> -7.4381e-06 | F151: -7.901124224e-06 | G151: 0.0001370436672 | H151: -7.47380288e-06 | J151: -0.0004265458026 | K151: -0.009467618211 | L151: 0.006109169933 | M151: 0.1387815871 | N151: 0.0005708481594
A152: =IF('DF raw data'!I157="","",'DF raw data'!I157) -> -255 | B152: =IF('DF raw data'!J157="","",'DF raw data'!J157) -> -1.67037e-05 | C152: =IF('DF raw data'!K157="","",'DF raw data'!K157) -> 0.000133424 | D152: =IF('DF raw data'!L157="","",'DF raw data'!L157) -> -1.19145e-05 | F152: -1.678387776e-05 | G152: 0.0001340644352 | H152: -1.19716896e-05 | J152: -0.0004349377415 | K152: -0.009685087081 | L152: 0.00617620215 | M152: 0.1418696882 | N152: 0.0005900154813
A153: =IF('DF raw data'!I158="","",'DF raw data'!I158) -> -254.5 | B153: =IF('DF raw data'!J158="","",'DF raw data'!J158) -> -1.79132e-05 | C153: =IF('DF raw data'!K158="","",'DF raw data'!K158) -> 0.000131749 | D153: =IF('DF raw data'!L158="","",'DF raw data'!L158) -> -2.40572e-05 | F153: -1.799918336e-05 | G153: 0.0001323813952 | H153: -2.417267456e-05 | J153: -0.0004439373331 | K153: -0.009907055748 | L153: 0.006242392848 | M153: 0.1449908846 | N153: 0.0006095977557
A154: =IF('DF raw data'!I159="","",'DF raw data'!I159) -> -254 | B154: =IF('DF raw data'!J159="","",'DF raw data'!J159) -> -1.24041e-05 | C154: =IF('DF raw data'!K159="","",'DF raw data'!K159) -> 0.000144083 | D154: =IF('DF raw data'!L159="","",'DF raw data'!L159) -> -2.1263e-05 | F154: -1.246363968e-05 | G154: 0.0001447745984 | H154: -2.13650624e-05 | J154: -0.000450169153 | K154: -0.01013214032 | L154: 0.006314780147 | M154: 0.1481482747 | N154: 0.000629637306
A155: =IF('DF raw data'!I160="","",'DF raw data'!I160) -> -253.5 | B155: =IF('DF raw data'!J160="","",'DF raw data'!J160) -> -1.22098e-05 | C155: =IF('DF raw data'!K160="","",'DF raw data'!K160) -> 0.00014427 | D155: =IF('DF raw data'!L160="","",'DF raw data'!L160) -> -2.45815e-05 | F155: -1.226840704e-05 | G155: 0.000144962496 | H155: -2.46994912e-05 | J155: -0.0004563033565 | K155: -0.010360292 | L155: 0.006387261395 | M155: 0.1513419054 | N155: 0.0006501399664
A156: =IF('DF raw data'!I161="","",'DF raw data'!I161) -> -253 | B156: =IF('DF raw data'!J161="","",'DF raw data'!J161) -> -9.13296e-06 | C156: =IF('DF raw data'!K161="","",'DF raw data'!K161) -> 0.000146149 | D156: =IF('DF raw data'!L161="","",'DF raw data'!L161) -> -2.58954e-05 | F156: -9.176798208e-06 | G156: 0.0001468505152 | H156: -2.601969792e-05 | J156: -0.0004608917556 | K156: -0.01059073788 | L156: 0.006460686653 | M156: 0.1545722487 | N156: 0.000671116413
A157: =IF('DF raw data'!I162="","",'DF raw data'!I162) -> -252.5 | B157: =IF('DF raw data'!J162="","",'DF raw data'!J162) -> -1.28477e-05 | C157: =IF('DF raw data'!K162="","",'DF raw data'!K162) -> 0.000145992 | D157: =IF('DF raw data'!L162="","",'DF raw data'!L162) -> -2.90101e-05 | F157: -1.290936896e-05 | G157: 0.0001466927616 | H157: -2.914934848e-05 | J157: -0.0004673464401 | K157: -0.0108244111 | L157: 0.006534033034 | M157: 0.1578392652 | N157: 0.0006925724132
A158: =IF('DF raw data'!I163="","",'DF raw data'!I163) -> -252 | B158: =IF('DF raw data'!J163="","",'DF raw data'!J163) -> -8.22907e-06 | C158: =IF('DF raw data'!K163="","",'DF raw data'!K163) -> 0.00014424 | D158: =IF('DF raw data'!L163="","",'DF raw data'!L163) -> -3.63803e-05 | F158: -8.268569536e-06 | G158: 0.000144932352 | H158: -3.655492544e-05 | J158: -0.0004714807249 | K158: -0.01106015146 | L158: 0.00660649921 | M158: 0.1611425148 | N158: 0.0007145064762
A159: =IF('DF raw data'!I164="","",'DF raw data'!I164) -> -251.5 | B159: =IF('DF raw data'!J164="","",'DF raw data'!J164) -> -2.28415e-05 | C159: =IF('DF raw data'!K164="","",'DF raw data'!K164) -> 0.000150577 | D159: =IF('DF raw data'!L164="","",'DF raw data'!L164) -> -3.34707e-05 | F159: -2.29511392e-05 | G159: 0.0001512997696 | H159: -3.363135936e-05 | J159: -0.0004829562945 | K159: -0.01130162961 | L159: 0.006682149094 | M159: 0.1644835894 | N159: 0.0007369486578
A160: =IF('DF raw data'!I165="","",'DF raw data'!I165) -> -251 | B160: =IF('DF raw data'!J165="","",'DF raw data'!J165) -> -1.05403e-05 | C160: =IF('DF raw data'!K165="","",'DF raw data'!K165) -> 0.000146546 | D160: =IF('DF raw data'!L165="","",'DF raw data'!L165) -> -3.00342e-05 | F160: -1.059089344e-05 | G160: 0.0001472494208 | H160: -3.017836416e-05 | J160: -0.0004882517412 | K160: -0.01154575548 | L160: 0.006755773805 | M160: 0.1678614763 | N160: 0.0007598880926
A161: =IF('DF raw data'!I166="","",'DF raw data'!I166) -> -250.5 | B161: =IF('DF raw data'!J166="","",'DF raw data'!J166) -> -9.38603e-06 | C161: =IF('DF raw data'!K166="","",'DF raw data'!K166) -> 0.000141593 | D161: =IF('DF raw data'!L166="","",'DF raw data'!L166) -> -3.08934e-05 | F161: -9.431082944e-06 | G161: 0.0001422726464 | H161: -3.104168832e-05 | J161: -0.0004929672826 | K161: -0.01179223912 | L161: 0.006826910128 | M161: 0.1712749313 | N161: 0.0007833129519
A162: =IF('DF raw data'!I167="","",'DF raw data'!I167) -> -250 | B162: =IF('DF raw data'!J167="","",'DF raw data'!J167) -> -2.22128e-05 | C162: =IF('DF raw data'!K167="","",'DF raw data'!K167) -> 0.00013554 | D162: =IF('DF raw data'!L167="","",'DF raw data'!L167) -> -1.47304e-05 | F162: -2.231942144e-05 | G162: 0.000136190592 | H162: -1.480110592e-05 | J162: -0.0005041269934 | K162: -0.01204430262 | L162: 0.006895005424 | M162: 0.1747224341 | N162: 0.0008072105738
A163: =IF('DF raw data'!I168="","",'DF raw data'!I168) -> -249.5 | B163: =IF('DF raw data'!J168="","",'DF raw data'!J168) -> -1.72111e-05 | C163: =IF('DF raw data'!K168="","",'DF raw data'!K168) -> 0.000139073 | D163: =IF('DF raw data'!L168="","",'DF raw data'!L168) -> -1.99331e-05 | F163: -1.729371328e-05 | G163: 0.0001397405504 | H163: -2.002877888e-05 | J163: -0.00051277385 | K163: -0.01230068954 | L163: 0.006964875699 | M163: 0.1782048719 | N163: 0.0008315967891
A164: =IF('DF raw data'!I169="","",'DF raw data'!I169) -> -249 | B164: =IF('DF raw data'!J169="","",'DF raw data'!J169) -> -1.34254e-05 | C164: =IF('DF raw data'!K169="","",'DF raw data'!K169) -> 0.00013978 | D164: =IF('DF raw data'!L169="","",'DF raw data'!L169) -> -2.76156e-05 | F164: -1.348984192e-05 | G164: 0.000140450944 | H164: -2.774815488e-05 | J164: -0.000519518771 | K164: -0.01256044893 | L164: 0.007035101171 | M164: 0.1817224225 | N164: 0.0008564780632
A165: =IF('DF raw data'!I170="","",'DF raw data'!I170) -> -248.5 | B165: =IF('DF raw data'!J170="","",'DF raw data'!J170) -> -1.48422e-05 | C165: =IF('DF raw data'!K170="","",'DF raw data'!K170) -> 0.000147434 | D165: =IF('DF raw data'!L170="","",'DF raw data'!L170) -> -1.66823e-05 | F165: -1.491344256e-05 | G165: 0.0001481416832 | H165: -1.676237504e-05 | J165: -0.0005269754922 | K165: -0.01282393668 | L165: 0.007109172013 | M165: 0.1852770085 | N165: 0.0008818870781
A166: =IF('DF raw data'!I171="","",'DF raw data'!I171) -> -248 | B166: =IF('DF raw data'!J171="","",'DF raw data'!J171) -> -4.12933e-06 | C166: =IF('DF raw data'!K171="","",'DF raw data'!K171) -> 0.000150985 | D166: =IF('DF raw data'!L171="","",'DF raw data'!L171) -> -3.40736e-05 | F166: -4.149150784e-06 | G166: 0.000151709728 | H166: -3.423715328e-05 | J166: -0.0005290500676 | K166: -0.01308846171 | L166: 0.007185026877 | M166: 0.1888695219 | N166: 0.0009078393307
A167: =IF('DF raw data'!I172="","",'DF raw data'!I172) -> -247.5 | B167: =IF('DF raw data'!J172="","",'DF raw data'!J172) -> -1.8318e-06 | C167: =IF('DF raw data'!K172="","",'DF raw data'!K172) -> 0.000151033 | D167: =IF('DF raw data'!L172="","",'DF raw data'!L172) -> -1.97854e-05 | F167: -1.84059264e-06 | G167: 0.0001517579584 | H167: -1.988036992e-05 | J167: -0.000529970364 | K167: -0.01335344689 | L167: 0.007260905856 | M167: 0.1924999749 | N167: 0.0009343401419
A168: =IF('DF raw data'!I173="","",'DF raw data'!I173) -> -247 | B168: =IF('DF raw data'!J173="","",'DF raw data'!J173) -> -1.36823e-05 | C168: =IF('DF raw data'!K173="","",'DF raw data'!K173) -> 0.000146269 | D168: =IF('DF raw data'!L173="","",'DF raw data'!L173) -> -2.67769e-05 | F168: -1.374797504e-05 | G168: 0.0001469710912 | H168: -2.690542912e-05 | J168: -0.0005368443515 | K168: -0.01362186907 | L168: 0.007334391402 | M168: 0.1961671706 | N168: 0.0009613808915
A169: =IF('DF raw data'!I174="","",'DF raw data'!I174) -> -246.5 | B169: =IF('DF raw data'!J174="","",'DF raw data'!J174) -> -1.87434e-05 | C169: =IF('DF raw data'!K174="","",'DF raw data'!K174) -> 0.000142344 | D169: =IF('DF raw data'!L174="","",'DF raw data'!L174) -> -2.84948e-05 | F169: -1.883336832e-05 | G169: 0.0001430272512 | H169: -2.863157504e-05 | J169: -0.0005462610356 | K169: -0.01389499958 | L169: 0.007405905027 | M169: 0.1998701231 | N169: 0.0009889538067
A170: =IF('DF raw data'!I175="","",'DF raw data'!I175) -> -246 | B170: =IF('DF raw data'!J175="","",'DF raw data'!J175) -> -1.34294e-05 | C170: =IF('DF raw data'!K175="","",'DF raw data'!K175) -> 0.000147934 | D170: =IF('DF raw data'!L175="","",'DF raw data'!L175) -> -2.14352e-05 | F170: -1.349386112e-05 | G170: 0.0001486440832 | H170: -2.153808896e-05 | J170: -0.0005530079662 | K170: -0.01417150357 | L170: 0.007480227069 | M170: 0.2036102366 | N170: 0.001017083614
A171: =IF('DF raw data'!I176="","",'DF raw data'!I176) -> -245.5 | B171: =IF('DF raw data'!J176="","",'DF raw data'!J176) -> -8.4311e-06 | C171: =IF('DF raw data'!K176="","",'DF raw data'!K176) -> 0.000145247 | D171: =IF('DF raw data'!L176="","",'DF raw data'!L176) -> -2.1472e-05 | F171: -8.47156928e-06 | G171: 0.0001459441856 | H171: -2.15750656e-05 | J171: -0.0005572437508 | K171: -0.01445012544 | L171: 0.007553199162 | M171: 0.2073868362 | N171: 0.001045764283
A172: =IF('DF raw data'!I177="","",'DF raw data'!I177) -> -245 | B172: =IF('DF raw data'!J177="","",'DF raw data'!J177) -> -1.72685e-05 | C172: =IF('DF raw data'!K177="","",'DF raw data'!K177) -> 0.000142996 | D172: =IF('DF raw data'!L177="","",'DF raw data'!L177) -> -3.01499e-05 | F172: -1.73513888e-05 | G172: 0.0001436823808 | H172: -3.029461952e-05 | J172: -0.0005659194452 | K172: -0.01473308517 | L172: 0.007625040352 | M172: 0.2111993564 | N172: 0.001074995036
A173: =IF('DF raw data'!I178="","",'DF raw data'!I178) -> -244.5 | B173: =IF('DF raw data'!J178="","",'DF raw data'!J178) -> -4.90826e-06 | C173: =IF('DF raw data'!K178="","",'DF raw data'!K178) -> 0.000150347 | D173: =IF('DF raw data'!L178="","",'DF raw data'!L178) -> -1.90682e-05 | F173: -4.931819648e-06 | G173: 0.0001510686656 | H173: -1.915972736e-05 | J173: -0.0005683853551 | K173: -0.01501727784 | L173: 0.007700574685 | M173: 0.2150496437 | N173: 0.001104805992
A174: =IF('DF raw data'!I179="","",'DF raw data'!I179) -> -244 | B174: =IF('DF raw data'!J179="","",'DF raw data'!J179) -> -1.54151e-05 | C174: =IF('DF raw data'!K179="","",'DF raw data'!K179) -> 0.000151627 | D174: =IF('DF raw data'!L179="","",'DF raw data'!L179) -> -2.2814e-05 | F174: -1.548909248e-05 | G174: 0.0001523548096 | H174: -2.29235072e-05 | J174: -0.0005761299013 | K174: -0.01530534279 | L174: 0.00777675209 | M174: 0.2189380198 | N174: 0.001135210891
A175: =IF('DF raw data'!I180="","",'DF raw data'!I180) -> -243.5 | B175: =IF('DF raw data'!J180="","",'DF raw data'!J180) -> -2.00966e-05 | C175: =IF('DF raw data'!K180="","",'DF raw data'!K180) -> 0.000154619 | D175: =IF('DF raw data'!L180="","",'DF raw data'!L180) -> -1.70997e-05 | F175: -2.019306368e-05 | G175: 0.0001553611712 | H175: -1.718177856e-05 | J175: -0.0005862264331 | K175: -0.01559845601 | L175: 0.007854432675 | M175: 0.2228652361 | N175: 0.001166228778
A176: =IF('DF raw data'!I181="","",'DF raw data'!I181) -> -243 | B176: =IF('DF raw data'!J181="","",'DF raw data'!J181) -> -1.86832e-05 | C176: =IF('DF raw data'!K181="","",'DF raw data'!K181) -> 0.000146972 | D176: =IF('DF raw data'!L181="","",'DF raw data'!L181) -> -2.28193e-05 | F176: -1.877287936e-05 | G176: 0.0001476774656 | H176: -2.292883264e-05 | J176: -0.0005956128728 | K176: -0.01589626245 | L176: 0.007928271408 | M176: 0.2268293718 | N176: 0.001197834899
A177: =IF('DF raw data'!I182="","",'DF raw data'!I182) -> -242.5 | B177: =IF('DF raw data'!J182="","",'DF raw data'!J182) -> -1.57999e-05 | C177: =IF('DF raw data'!K182="","",'DF raw data'!K182) -> 0.000142728 | D177: =IF('DF raw data'!L182="","",'DF raw data'!L182) -> -2.22036e-05 | F177: -1.587573952e-05 | G177: 0.0001434130944 | H177: -2.231017728e-05 | J177: -0.0006035507426 | K177: -0.01619803782 | L177: 0.007999977955 | M177: 0.2308293608 | N177: 0.00123001686
A178: =IF('DF raw data'!I183="","",'DF raw data'!I183) -> -242 | B178: =IF('DF raw data'!J183="","",'DF raw data'!J183) -> -1.47072e-05 | C178: =IF('DF raw data'!K183="","",'DF raw data'!K183) -> 0.0001475 | D178: =IF('DF raw data'!L183="","",'DF raw data'!L183) -> -2.73417e-05 | F178: -1.477779456e-05 | G178: 0.000148208 | H178: -2.747294016e-05 | J178: -0.0006109396399 | K178: -0.01650350764 | L178: 0.008074081955 | M178: 0.2348664018 | N178: 0.001262798883
A179: =IF('DF raw data'!I184="","",'DF raw data'!I184) -> -241.5 | B179: =IF('DF raw data'!J184="","",'DF raw data'!J184) -> 3.55296e-06 | C179: =IF('DF raw data'!K184="","",'DF raw data'!K184) -> 0.000147434 | D179: =IF('DF raw data'!L184="","",'DF raw data'!L184) -> -2.28351e-05 | F179: 3.570014208e-06 | G179: 0.0001481416832 | H179: -2.294470848e-05 | J179: -0.0006091546328 | K179: -0.01680808495 | L179: 0.008148152797 | M179: 0.2389404782 | N179: 0.001296180615
A180: =IF('DF raw data'!I185="","",'DF raw data'!I185) -> -241 | B180: =IF('DF raw data'!J185="","",'DF raw data'!J185) -> -1.0611e-05 | C180: =IF('DF raw data'!K185="","",'DF raw data'!K185) -> 0.00015474 | D180: =IF('DF raw data'!L185="","",'DF raw data'!L185) -> -1.9458e-05 | F180: -1.06619328e-05 | G180: 0.000155482752 | H180: -1.95513984e-05 | J180: -0.0006144855992 | K180: -0.01711532775 | L180: 0.008225894173 | M180: 0.2430534252 | N180: 0.001330202079
A181: =IF('DF raw data'!I186="","",'DF raw data'!I186) -> -240.5 | B181: =IF('DF raw data'!J186="","",'DF raw data'!J186) -> -1.35579e-05 | C181: =IF('DF raw data'!K186="","",'DF raw data'!K186) -> 0.000154442 | D181: =IF('DF raw data'!L186="","",'DF raw data'!L186) -> -2.09249e-05 | F181: -1.362297792e-05 | G181: 0.0001551833216 | H181: -2.102533952e-05 | J181: -0.0006212970881 | K181: -0.0174259763 | L181: 0.008303485834 | M181: 0.2472051682 | N181: 0.001364869022
A182: =IF('DF raw data'!I187="","",'DF raw data'!I187) -> -240 | B182: =IF('DF raw data'!J187="","",'DF raw data'!J187) -> -1.50246e-05 | C182: =IF('DF raw data'!K187="","",'DF raw data'!K187) -> 0.000152001 | D182: =IF('DF raw data'!L187="","",'DF raw data'!L187) -> -3.16725e-05 | F182: -1.509671808e-05 | G182: 0.0001527306048 | H182: -3.1824528e-05 | J182: -0.0006288454472 | K182: -0.01774039902 | L182: 0.008379851136 | M182: 0.2513950937 | N182: 0.001400177698
A183: =IF('DF raw data'!I188="","",'DF raw data'!I188) -> -239.5 | B183: =IF('DF raw data'!J188="","",'DF raw data'!J188) -> -1.72671e-05 | C183: =IF('DF raw data'!K188="","",'DF raw data'!K188) -> 0.000155086 | D183: =IF('DF raw data'!L188="","",'DF raw data'!L188) -> -3.22882e-05 | F183: -1.734998208e-05 | G183: 0.0001558304128 | H183: -3.244318336e-05 | J183: -0.0006375204382 | K183: -0.01805915924 | L183: 0.008457766342 | M183: 0.2556239769 | N183: 0.00143614782
A184: =IF('DF raw data'!I189="","",'DF raw data'!I189) -> -239 | B184: =IF('DF raw data'!J189="","",'DF raw data'!J189) -> -1.57413e-05 | C184: =IF('DF raw data'!K189="","",'DF raw data'!K189) -> 0.000157895 | D184: =IF('DF raw data'!L189="","",'DF raw data'!L189) -> -1.36044e-05 | F184: -1.581685824e-05 | G184: 0.000158652896 | H184: -1.366970112e-05 | J184: -0.0006454288673 | K184: -0.01838187367 | L184: 0.00853709279 | M184: 0.2598925233 | N184: 0.001472797086
A185: =IF('DF raw data'!I190="","",'DF raw data'!I190) -> -238.5 | B185: =IF('DF raw data'!J190="","",'DF raw data'!J190) -> -1.29084e-05 | C185: =IF('DF raw data'!K190="","",'DF raw data'!K190) -> 0.000161179 | D185: =IF('DF raw data'!L190="","",'DF raw data'!L190) -> -3.43807e-05 | F185: -1.297036032e-05 | G185: 0.0001619526592 | H185: -3.454572736e-05 | J185: -0.0006519140475 | K185: -0.0187078307 | L185: 0.00861806912 | M185: 0.2642015579 | N185: 0.001510145139
A186: =IF('DF raw data'!I191="","",'DF raw data'!I191) -> -238 | B186: =IF('DF raw data'!J191="","",'DF raw data'!J191) -> -4.84557e-06 | C186: =IF('DF raw data'!K191="","",'DF raw data'!K191) -> 0.00016022 | D186: =IF('DF raw data'!L191="","",'DF raw data'!L191) -> -1.67153e-05 | F186: -4.868828736e-06 | G186: 0.000160989056 | H186: -1.679553344e-05 | J186: -0.0006543484618 | K186: -0.01903500493 | L186: 0.008698563648 | M186: 0.2685508397 | N186: 0.00154819173
A187: =IF('DF raw data'!I192="","",'DF raw data'!I192) -> -237.5 | B187: =IF('DF raw data'!J192="","",'DF raw data'!J192) -> -1.02867e-05 | C187: =IF('DF raw data'!K192="","",'DF raw data'!K192) -> 0.000150338 | D187: =IF('DF raw data'!L192="","",'DF raw data'!L192) -> -2.57702e-05 | F187: -1.033607616e-05 | G187: 0.0001510596224 | H187: -2.589389696e-05 | J187: -0.0006595164999 | K187: -0.01936476318 | L187: 0.008774093459 | M187: 0.2729378864 | N187: 0.001586901569
A188: =IF('DF raw data'!I193="","",'DF raw data'!I193) -> -237 | B188: =IF('DF raw data'!J193="","",'DF raw data'!J193) -> -1.85599e-05 | C188: =IF('DF raw data'!K193="","",'DF raw data'!K193) -> 0.000140657 | D188: =IF('DF raw data'!L193="","",'DF raw data'!L193) -> -1.53223e-05 | F188: -1.864898752e-05 | G188: 0.0001413321536 | H188: -1.539584704e-05 | J188: -0.0006688409937 | K188: -0.01969918368 | L188: 0.008844759536 | M188: 0.2773602662 | N188: 0.001626240129
A189: =IF('DF raw data'!I194="","",'DF raw data'!I194) -> -236.5 | B189: =IF('DF raw data'!J194="","",'DF raw data'!J194) -> -5.35744e-06 | C189: =IF('DF raw data'!K194="","",'DF raw data'!K194) -> 0.000144155 | D189: =IF('DF raw data'!L194="","",'DF raw data'!L194) -> -1.7871e-05 | F189: -5.383155712e-06 | G189: 0.000144846944 | H189: -1.79567808e-05 | J189: -0.0006715325715 | K189: -0.02003494996 | L189: 0.008917183008 | M189: 0.2818188577 | N189: 0.001666223683
A190: =IF('DF raw data'!I195="","",'DF raw data'!I195) -> -236 | B190: =IF('DF raw data'!J195="","",'DF raw data'!J195) -> -1.91309e-05 | C190: =IF('DF raw data'!K195="","",'DF raw data'!K195) -> 0.000145838 | D190: =IF('DF raw data'!L195="","",'DF raw data'!L195) -> -2.38954e-05 | F190: -1.922272832e-05 | G190: 0.0001465380224 | H190: -2.401009792e-05 | J190: -0.0006811439357 | K190: -0.02037552193 | L190: 0.008990452019 | M190: 0.2863140837 | N190: 0.001706869776
A191: =IF('DF raw data'!I196="","",'DF raw data'!I196) -> -235.5 | B191: =IF('DF raw data'!J196="","",'DF raw data'!J196) -> -1.06101e-05 | C191: =IF('DF raw data'!K196="","",'DF raw data'!K196) -> 0.000154708 | D191: =IF('DF raw data'!L196="","",'DF raw data'!L196) -> -2.09026e-05 | F191: -1.066102848e-05 | G191: 0.0001554505984 | H191: -2.100293248e-05 | J191: -0.0006864744499 | K191: -0.02071875915 | L191: 0.009068177318 | M191: 0.2908481723 | N191: 0.001748221319
A192: =IF('DF raw data'!I197="","",'DF raw data'!I197) -> -235 | B192: =IF('DF raw data'!J197="","",'DF raw data'!J197) -> -1.22122e-05 | C192: =IF('DF raw data'!K197="","",'DF raw data'!K197) -> 0.000157987 | D192: =IF('DF raw data'!L197="","",'DF raw data'!L197) -> -2.0909e-05 | F192: =(1-$G$1*($B$49-$G$2))*B192 -> -1.227081856e-05 | G192: 0.0001587453376 | H192: -2.10093632e-05 | J192: =F192*$G$3+J191 -> -0.0006926098592 | K192: =J192*$G$3+K191 -> -0.02106506408 | L192: =G192*$G$3+L191 -> 0.009147549987 | M192: =L192*$G$3+M191 -> 0.2954219473 | N192: =(J192^2+L192^2)*$G$3+N191 -> 0.001790300009
A193: =IF('DF raw data'!I198="","",'DF raw data'!I198) -> -234.5 | B193: =IF('DF raw data'!J198="","",'DF raw data'!J198) -> -1.41985e-05 | C193: =IF('DF raw data'!K198="","",'DF raw data'!K198) -> 0.000148356 | D193: =IF('DF raw data'!L198="","",'DF raw data'!L198) -> -2.11791e-05 | F193: -1.42666528e-05 | G193: 0.0001490681088 | H193: -2.128075968e-05 | J193: -0.0006997431856 | K193: -0.02141493568 | L193: 0.009222084042 | M193: 0.3000329894 | N193: 0.001833068246
A194: =IF('DF raw data'!I199="","",'DF raw data'!I199) -> -234 | B194: =IF('DF raw data'!J199="","",'DF raw data'!J199) -> -1.91343e-05 | C194: =IF('DF raw data'!K199="","",'DF raw data'!K199) -> 0.000151011 | D194: =IF('DF raw data'!L199="","",'DF raw data'!L199) -> -1.85714e-05 | F194: -1.922614464e-05 | G194: 0.0001517358528 | H194: -1.866054272e-05 | J194: -0.0007093562579 | K194: -0.02176961381 | L194: 0.009297951968 | M194: 0.3046819653 | N194: 0.001876545795
A195: =IF('DF raw data'!I200="","",'DF raw data'!I200) -> -233.5 | B195: =IF('DF raw data'!J200="","",'DF raw data'!J200) -> -1.29181e-05 | C195: =IF('DF raw data'!K200="","",'DF raw data'!K200) -> 0.0001588 | D195: =IF('DF raw data'!L200="","",'DF raw data'!L200) -> -1.93806e-05 | F195: -1.298010688e-05 | G195: 0.00015956224 | H195: -1.947362688e-05 | J195: -0.0007158463114 | K195: -0.02212753696 | L195: 0.009377733088 | M195: 0.3093708319 | N195: 0.001920772951
A196: =IF('DF raw data'!I201="","",'DF raw data'!I201) -> -233 | B196: =IF('DF raw data'!J201="","",'DF raw data'!J201) -> -1.08054e-05 | C196: =IF('DF raw data'!K201="","",'DF raw data'!K201) -> 0.000153378 | D196: =IF('DF raw data'!L201="","",'DF raw data'!L201) -> -1.63633e-05 | F196: -1.085726592e-05 | G196: 0.0001541142144 | H196: -1.644184384e-05 | J196: -0.0007212749443 | K196: -0.02248817443 | L196: 0.009454790195 | M196: 0.314098227 | N196: 0.001965729599
A197: =IF('DF raw data'!I202="","",'DF raw data'!I202) -> -232.5 | B197: =IF('DF raw data'!J202="","",'DF raw data'!J202) -> -8.30558e-06 | C197: =IF('DF raw data'!K202="","",'DF raw data'!K202) -> 0.000152254 | D197: =IF('DF raw data'!L202="","",'DF raw data'!L202) -> -1.74013e-05 | F197: -8.345446784e-06 | G197: 0.0001529848192 | H197: -1.748482624e-05 | J197: -0.0007254476677 | K197: -0.02285089827 | L197: 0.009531282605 | M197: 0.3188638683 | N197: 0.00201141541
A198: =IF('DF raw data'!I203="","",'DF raw data'!I203) -> -232 | B198: =IF('DF raw data'!J203="","",'DF raw data'!J203) -> -4.96614e-06 | C198: =IF('DF raw data'!K203="","",'DF raw data'!K203) -> 0.000151344 | D198: =IF('DF raw data'!L203="","",'DF raw data'!L203) -> -2.84108e-05 | F198: -4.989977472e-06 | G198: 0.0001520704512 | H198: -2.854717184e-05 | J198: -0.0007279426565 | K198: -0.0232148696 | L198: 0.00960731783 | M198: 0.3236675272 | N198: 0.002057830638
A199: =IF('DF raw data'!I204="","",'DF raw data'!I204) -> -231.5 | B199: =IF('DF raw data'!J204="","",'DF raw data'!J204) -> -6.63917e-06 | C199: =IF('DF raw data'!K204="","",'DF raw data'!K204) -> 0.000157799 | D199: =IF('DF raw data'!L204="","",'DF raw data'!L204) -> -1.75905e-05 | F199: -6.671038016e-06 | G199: 0.0001585564352 | H199: -1.76749344e-05 | J199: -0.0007312781755 | K199: -0.02358050868 | L199: 0.009686596048 | M199: 0.3285108252 | N199: 0.002105013094
A200: =IF('DF raw data'!I205="","",'DF raw data'!I205) -> -231 | B200: =IF('DF raw data'!J205="","",'DF raw data'!J205) -> -1.00997e-05 | C200: =IF('DF raw data'!K205="","",'DF raw data'!K205) -> 0.000159377 | D200: =IF('DF raw data'!L205="","",'DF raw data'!L205) -> -1.73974e-05 | F200: -1.014817856e-05 | G200: 0.0001601420096 | H200: -1.748090752e-05 | J200: -0.0007363522648 | K200: -0.02394868482 | L200: 0.009766667053 | M200: 0.3333941588 | N200: 0.002152978094
A201: =IF('DF raw data'!I206="","",'DF raw data'!I206) -> -230.5 | B201: =IF('DF raw data'!J206="","",'DF raw data'!J206) -> -8.05168e-06 | C201: =IF('DF raw data'!K206="","",'DF raw data'!K206) -> 0.000157827 | D201: =IF('DF raw data'!L206="","",'DF raw data'!L206) -> -1.36793e-05 | F201: -8.090328064e-06 | G201: 0.0001585845696 | H201: -1.374496064e-05 | J201: -0.0007403974288 | K201: -0.02431888353 | L201: 0.009845959338 | M201: 0.3383171384 | N201: 0.002201723646
... 1061 more rows

Sheet 10 x=1
A1: =IF('DF raw data'!M1="","",'DF raw data'!M1) -> Number of header lines | B1: =IF('DF raw data'!N1="","",'DF raw data'!N1) -> 54 | C1: =IF('DF raw data'!O1="","",'DF raw data'!O1) ->  | D1: =IF('DF raw data'!P1="","",'DF raw data'!P1) ->  | F1: T_coeff | G1: -0.001 | H1: /degC | J1: ='10 x=-2'!J1 -> IBy total | K1: ='10 x=-2'!K1 -> -7.825802517 | L1: ='10 x=-2'!L1 -> muTm | R1: ='10 x=-2'!R1 -> DF ref | S1: ='10 x=-2'!S1 -> 1
A2: =IF('DF raw data'!M2="","",'DF raw data'!M2) -> Measured by | B2: =IF('DF raw data'!N2="","",'DF raw data'!N2) -> Danfysik | C2: =IF('DF raw data'!O2="","",'DF raw data'!O2) ->  | D2: =IF('DF raw data'!P2="","",'DF raw data'!P2) ->  | F2: Tcorr | G2: 20 | H2: degC | J2: JBy total | K2: =K1262 -> -13.61283008 | L2: muTm^2 | M2: =M1262 -> 10.00860621
A3: =IF('DF raw data'!M3="","",'DF raw data'!M3) -> Operator | B3: =IF('DF raw data'!N3="","",'DF raw data'!N3) -> PMHA | C3: =IF('DF raw data'!O3="","",'DF raw data'!O3) ->  | D3: =IF('DF raw data'!P3="","",'DF raw data'!P3) ->  | F3: Step | G3: =A63-A62 -> 0.5 | H3: mm | J3: PI total | K3: =N1262 -> 10678.95251 | L3: T^2mm^3
A4: =IF('DF raw data'!M4="","",'DF raw data'!M4) -> Data-time | B4: =IF('DF raw data'!N4="","",'DF raw data'!N4) -> 28-08-2024, 09:20:48 | C4: =IF('DF raw data'!O4="","",'DF raw data'!O4) ->  | D4: =IF('DF raw data'!P4="","",'DF raw data'!P4) -> 
A5: =IF('DF raw data'!M5="","",'DF raw data'!M5) -> Project | B5: =IF('DF raw data'!N5="","",'DF raw data'!N5) -> 504314 | C5: =IF('DF raw data'!O5="","",'DF raw data'!O5) ->  | D5: =IF('DF raw data'!P5="","",'DF raw data'!P5) -> 
A6: =IF('DF raw data'!M6="","",'DF raw data'!M6) -> Magnet type | B6: =IF('DF raw data'!N6="","",'DF raw data'!N6) -> Dipole | C6: =IF('DF raw data'!O6="","",'DF raw data'!O6) ->  | D6: =IF('DF raw data'!P6="","",'DF raw data'!P6) -> 
A7: =IF('DF raw data'!M7="","",'DF raw data'!M7) -> Magnet nr. | B7: =IF('DF raw data'!N7="","",'DF raw data'!N7) -> 2410092 | C7: =IF('DF raw data'!O7="","",'DF raw data'!O7) ->  | D7: =IF('DF raw data'!P7="","",'DF raw data'!P7) -> 
A8: =IF('DF raw data'!M8="","",'DF raw data'!M8) -> Meas. number | B8: =IF('DF raw data'!N8="","",'DF raw data'!N8) -> 216 | C8: =IF('DF raw data'!O8="","",'DF raw data'!O8) ->  | D8: =IF('DF raw data'!P8="","",'DF raw data'!P8) -> 
A9: =IF('DF raw data'!M9="","",'DF raw data'!M9) -> Add. info | B9: =IF('DF raw data'!N9="","",'DF raw data'!N9) -> X-alignment scan 4) | C9: =IF('DF raw data'!O9="","",'DF raw data'!O9) ->  | D9: =IF('DF raw data'!P9="","",'DF raw data'!P9) -> 
A10: =IF('DF raw data'!M10="","",'DF raw data'!M10) -> Device | B10: =IF('DF raw data'!N10="","",'DF raw data'!N10) -> (HAL) HALL-PROBE | C10: =IF('DF raw data'!O10="","",'DF raw data'!O10) ->  | D10: =IF('DF raw data'!P10="","",'DF raw data'!P10) -> 
A11: =IF('DF raw data'!M11="","",'DF raw data'!M11) -> Goal | B11: =IF('DF raw data'!N11="","",'DF raw data'!N11) -> (AXI) AXis Integral (Line, EFB) | C11: =IF('DF raw data'!O11="","",'DF raw data'!O11) ->  | D11: =IF('DF raw data'!P11="","",'DF raw data'!P11) -> 
A12: =IF('DF raw data'!M12="","",'DF raw data'!M12) -> Power supply mode | B12: =IF('DF raw data'!N12="","",'DF raw data'!N12) -> (PM) Permanent Magnet (no MPS in use) | C12: =IF('DF raw data'!O12="","",'DF raw data'!O12) ->  | D12: =IF('DF raw data'!P12="","",'DF raw data'!P12) -> 
A13: =IF('DF raw data'!M13="","",'DF raw data'!M13) -> Data format | B13: =IF('DF raw data'!N13="","",'DF raw data'!N13) -> Raw data text file | C13: =IF('DF raw data'!O13="","",'DF raw data'!O13) ->  | D13: =IF('DF raw data'!P13="","",'DF raw data'!P13) -> 
A14: =IF('DF raw data'!M14="","",'DF raw data'!M14) -> Direction of the pos. x-axis | B14: =IF('DF raw data'!N14="","",'DF raw data'!N14) -> See test program | C14: =IF('DF raw data'!O14="","",'DF raw data'!O14) ->  | D14: =IF('DF raw data'!P14="","",'DF raw data'!P14) -> 
A15: =IF('DF raw data'!M15="","",'DF raw data'!M15) -> Direction of the pos. y-axis | B15: =IF('DF raw data'!N15="","",'DF raw data'!N15) -> Vertical up | C15: =IF('DF raw data'!O15="","",'DF raw data'!O15) ->  | D15: =IF('DF raw data'!P15="","",'DF raw data'!P15) -> 
A16: =IF('DF raw data'!M16="","",'DF raw data'!M16) -> Direction of the pos. z-axis | B16: =IF('DF raw data'!N16="","",'DF raw data'!N16) -> See test program | C16: =IF('DF raw data'!O16="","",'DF raw data'!O16) ->  | D16: =IF('DF raw data'!P16="","",'DF raw data'!P16) -> 
A17: =IF('DF raw data'!M17="","",'DF raw data'!M17) -> Mapper type | B17: =IF('DF raw data'!N17="","",'DF raw data'!N17) -> Precision Hall Mapper | C17: =IF('DF raw data'!O17="","",'DF raw data'!O17) ->  | D17: =IF('DF raw data'!P17="","",'DF raw data'!P17) -> 
A18: =IF('DF raw data'!M18="","",'DF raw data'!M18) -> Mapper Danfysik Reg. Number | B18: =IF('DF raw data'!N18="","",'DF raw data'!N18) -> 2033-D (mapper 1) | C18: =IF('DF raw data'!O18="","",'DF raw data'!O18) ->  | D18: =IF('DF raw data'!P18="","",'DF raw data'!P18) -> 
A19: =IF('DF raw data'!M19="","",'DF raw data'!M19) -> Measurement consept | B19: =IF('DF raw data'!N19="","",'DF raw data'!N19) -> Square line grid | C19: =IF('DF raw data'!O19="","",'DF raw data'!O19) ->  | D19: =IF('DF raw data'!P19="","",'DF raw data'!P19) -> 
A20: =IF('DF raw data'!M20="","",'DF raw data'!M20) -> Mode | B20: =IF('DF raw data'!N20="","",'DF raw data'!N20) -> On-the-fly measurement | C20: =IF('DF raw data'!O20="","",'DF raw data'!O20) ->  | D20: =IF('DF raw data'!P20="","",'DF raw data'!P20) -> 
A21: =IF('DF raw data'!M21="","",'DF raw data'!M21) ->  | B21: =IF('DF raw data'!N21="","",'DF raw data'!N21) ->  | C21: =IF('DF raw data'!O21="","",'DF raw data'!O21) ->  | D21: =IF('DF raw data'!P21="","",'DF raw data'!P21) -> 
A22: =IF('DF raw data'!M22="","",'DF raw data'!M22) -> Probe Name | B22: =IF('DF raw data'!N22="","",'DF raw data'!N22) -> ID12_By | C22: =IF('DF raw data'!O22="","",'DF raw data'!O22) ->  | D22: =IF('DF raw data'!P22="","",'DF raw data'!P22) -> 
A23: =IF('DF raw data'!M23="","",'DF raw data'!M23) -> Probe Type | B23: =IF('DF raw data'!N23="","",'DF raw data'!N23) -> DF_ID_3D_Bxyz | C23: =IF('DF raw data'!O23="","",'DF raw data'!O23) ->  | D23: =IF('DF raw data'!P23="","",'DF raw data'!P23) -> 
A24: =IF('DF raw data'!M24="","",'DF raw data'!M24) -> Probe Danfysik Reg. Number | B24: =IF('DF raw data'!N24="","",'DF raw data'!N24) -> 2277 | C24: =IF('DF raw data'!O24="","",'DF raw data'!O24) ->  | D24: =IF('DF raw data'!P24="","",'DF raw data'!P24) -> 
A25: =IF('DF raw data'!M25="","",'DF raw data'!M25) -> Probe Axis | B25: =IF('DF raw data'!N25="","",'DF raw data'!N25) -> By | C25: =IF('DF raw data'!O25="","",'DF raw data'!O25) ->  | D25: =IF('DF raw data'!P25="","",'DF raw data'!P25) -> 
A26: =IF('DF raw data'!M26="","",'DF raw data'!M26) -> Probe Current Supply | B26: =IF('DF raw data'!N26="","",'DF raw data'!N26) -> 1825-D | C26: =IF('DF raw data'!O26="","",'DF raw data'!O26) ->  | D26: =IF('DF raw data'!P26="","",'DF raw data'!P26) -> 
A27: =IF('DF raw data'!M27="","",'DF raw data'!M27) -> Probe Gain Correction | B27: =IF('DF raw data'!N27="","",'DF raw data'!N27) -> 0.99615 | C27: =IF('DF raw data'!O27="","",'DF raw data'!O27) ->  | D27: =IF('DF raw data'!P27="","",'DF raw data'!P27) -> 
A28: =IF('DF raw data'!M28="","",'DF raw data'!M28) -> Probe Offset Correction | B28: =IF('DF raw data'!N28="","",'DF raw data'!N28) -> 0.0027485 | C28: =IF('DF raw data'!O28="","",'DF raw data'!O28) ->  | D28: =IF('DF raw data'!P28="","",'DF raw data'!P28) -> 
A29: =IF('DF raw data'!M29="","",'DF raw data'!M29) -> DVM Number | B29: =IF('DF raw data'!N29="","",'DF raw data'!N29) -> 2 | C29: =IF('DF raw data'!O29="","",'DF raw data'!O29) ->  | D29: =IF('DF raw data'!P29="","",'DF raw data'!P29) -> 
A30: =IF('DF raw data'!M30="","",'DF raw data'!M30) -> DVM Type | B30: =IF('DF raw data'!N30="","",'DF raw data'!N30) -> K2701 | C30: =IF('DF raw data'!O30="","",'DF raw data'!O30) ->  | D30: =IF('DF raw data'!P30="","",'DF raw data'!P30) -> 
A31: =IF('DF raw data'!M31="","",'DF raw data'!M31) -> DVM Danfysik Reg. Number | B31: =IF('DF raw data'!N31="","",'DF raw data'!N31) -> 1743-D | C31: =IF('DF raw data'!O31="","",'DF raw data'!O31) ->  | D31: =IF('DF raw data'!P31="","",'DF raw data'!P31) -> 
A32: =IF('DF raw data'!M32="","",'DF raw data'!M32) -> Probe Name | B32: =IF('DF raw data'!N32="","",'DF raw data'!N32) -> ID12_Bx | C32: =IF('DF raw data'!O32="","",'DF raw data'!O32) ->  | D32: =IF('DF raw data'!P32="","",'DF raw data'!P32) -> 
A33: =IF('DF raw data'!M33="","",'DF raw data'!M33) -> Probe Type | B33: =IF('DF raw data'!N33="","",'DF raw data'!N33) -> DF_ID_3D_Bxyz | C33: =IF('DF raw data'!O33="","",'DF raw data'!O33) ->  | D33: =IF('DF raw data'!P33="","",'DF raw data'!P33) -> 
A34: =IF('DF raw data'!M34="","",'DF raw data'!M34) -> Probe Danfysik Reg. Number | B34: =IF('DF raw data'!N34="","",'DF raw data'!N34) -> 2277 | C34: =IF('DF raw data'!O34="","",'DF raw data'!O34) ->  | D34: =IF('DF raw data'!P34="","",'DF raw data'!P34) -> 
A35: =IF('DF raw data'!M35="","",'DF raw data'!M35) -> Probe Axis | B35: =IF('DF raw data'!N35="","",'DF raw data'!N35) -> Bx | C35: =IF('DF raw data'!O35="","",'DF raw data'!O35) ->  | D35: =IF('DF raw data'!P35="","",'DF raw data'!P35) -> 
A36: =IF('DF raw data'!M36="","",'DF raw data'!M36) -> Probe Current Supply | B36: =IF('DF raw data'!N36="","",'DF raw data'!N36) -> 1825-D | C36: =IF('DF raw data'!O36="","",'DF raw data'!O36) ->  | D36: =IF('DF raw data'!P36="","",'DF raw data'!P36) -> 
A37: =IF('DF raw data'!M37="","",'DF raw data'!M37) -> Probe Gain Correction | B37: =IF('DF raw data'!N37="","",'DF raw data'!N37) -> 1 | C37: =IF('DF raw data'!O37="","",'DF raw data'!O37) ->  | D37: =IF('DF raw data'!P37="","",'DF raw data'!P37) -> 
A38: =IF('DF raw data'!M38="","",'DF raw data'!M38) -> Probe Offset Correction | B38: =IF('DF raw data'!N38="","",'DF raw data'!N38) -> -0.17548 | C38: =IF('DF raw data'!O38="","",'DF raw data'!O38) ->  | D38: =IF('DF raw data'!P38="","",'DF raw data'!P38) -> 
A39: =IF('DF raw data'!M39="","",'DF raw data'!M39) -> DVM Number | B39: =IF('DF raw data'!N39="","",'DF raw data'!N39) -> 3 | C39: =IF('DF raw data'!O39="","",'DF raw data'!O39) ->  | D39: =IF('DF raw data'!P39="","",'DF raw data'!P39) -> 
A40: =IF('DF raw data'!M40="","",'DF raw data'!M40) -> DVM Type | B40: =IF('DF raw data'!N40="","",'DF raw data'!N40) -> K2701 | C40: =IF('DF raw data'!O40="","",'DF raw data'!O40) ->  | D40: =IF('DF raw data'!P40="","",'DF raw data'!P40) -> 
A41: =IF('DF raw data'!M41="","",'DF raw data'!M41) -> DVM Danfysik Reg. Number | B41: =IF('DF raw data'!N41="","",'DF raw data'!N41) -> 1744-D | C41: =IF('DF raw data'!O41="","",'DF raw data'!O41) ->  | D41: =IF('DF raw data'!P41="","",'DF raw data'!P41) -> 
A42: =IF('DF raw data'!M42="","",'DF raw data'!M42) -> Probe Name | B42: =IF('DF raw data'!N42="","",'DF raw data'!N42) -> ID12_Bz | C42: =IF('DF raw data'!O42="","",'DF raw data'!O42) ->  | D42: =IF('DF raw data'!P42="","",'DF raw data'!P42) -> 
A43: =IF('DF raw data'!M43="","",'DF raw data'!M43) -> Probe Type | B43: =IF('DF raw data'!N43="","",'DF raw data'!N43) -> DF_ID_3D_Bxyz | C43: =IF('DF raw data'!O43="","",'DF raw data'!O43) ->  | D43: =IF('DF raw data'!P43="","",'DF raw data'!P43) -> 
A44: =IF('DF raw data'!M44="","",'DF raw data'!M44) -> Probe Danfysik Reg. Number | B44: =IF('DF raw data'!N44="","",'DF raw data'!N44) -> 2277 | C44: =IF('DF raw data'!O44="","",'DF raw data'!O44) ->  | D44: =IF('DF raw data'!P44="","",'DF raw data'!P44) -> 
A45: =IF('DF raw data'!M45="","",'DF raw data'!M45) -> Probe Axis | B45: =IF('DF raw data'!N45="","",'DF raw data'!N45) -> Bz | C45: =IF('DF raw data'!O45="","",'DF raw data'!O45) ->  | D45: =IF('DF raw data'!P45="","",'DF raw data'!P45) -> 
A46: =IF('DF raw data'!M46="","",'DF raw data'!M46) -> Probe Current Supply | B46: =IF('DF raw data'!N46="","",'DF raw data'!N46) -> 1825-D | C46: =IF('DF raw data'!O46="","",'DF raw data'!O46) ->  | D46: =IF('DF raw data'!P46="","",'DF raw data'!P46) -> 
A47: =IF('DF raw data'!M47="","",'DF raw data'!M47) -> Probe Gain Correction | B47: =IF('DF raw data'!N47="","",'DF raw data'!N47) -> 1 | C47: =IF('DF raw data'!O47="","",'DF raw data'!O47) ->  | D47: =IF('DF raw data'!P47="","",'DF raw data'!P47) -> 
A48: =IF('DF raw data'!M53="","",'DF raw data'!M53) -> PS-Gap: | B48: =IF('DF raw data'!N53="","",'DF raw data'!N53) -> 10 | C48: =IF('DF raw data'!O53="","",'DF raw data'!O53) ->  | D48: =IF('DF raw data'!P53="","",'DF raw data'!P53) -> 
A49: =IF('DF raw data'!M54="","",'DF raw data'!M54) -> PS-Temperature: | B49: =IF('DF raw data'!N54="","",'DF raw data'!N54) -> 24.8 | C49: =IF('DF raw data'!O54="","",'DF raw data'!O54) ->  | D49: =IF('DF raw data'!P54="","",'DF raw data'!P54) -> 
A50: =IF('DF raw data'!M55="","",'DF raw data'!M55) -> PS-Encoder: | B50: =IF('DF raw data'!N55="","",'DF raw data'!N55) -> 19.5407 | C50: =IF('DF raw data'!O55="","",'DF raw data'!O55) ->  | D50: =IF('DF raw data'!P55="","",'DF raw data'!P55) -> 
A51: =IF('DF raw data'!M56="","",'DF raw data'!M56) ->  | B51: =IF('DF raw data'!N56="","",'DF raw data'!N56) ->  | C51: =IF('DF raw data'!O56="","",'DF raw data'!O56) ->  | D51: =IF('DF raw data'!P56="","",'DF raw data'!P56) -> 
A52: =IF('DF raw data'!M57="","",'DF raw data'!M57) -> Monitor-Index | B52: =IF('DF raw data'!N57="","",'DF raw data'!N57) -> [1,1,4] | C52: =IF('DF raw data'!O57="","",'DF raw data'!O57) ->  | D52: =IF('DF raw data'!P57="","",'DF raw data'!P57) -> 
A53: =IF('DF raw data'!M58="","",'DF raw data'!M58) ->  | B53: =IF('DF raw data'!N58="","",'DF raw data'!N58) ->  | C53: =IF('DF raw data'!O58="","",'DF raw data'!O58) ->  | D53: =IF('DF raw data'!P58="","",'DF raw data'!P58) -> 
A54: =IF('DF raw data'!M59="","",'DF raw data'!M59) -> Time [s] | B54: =IF('DF raw data'!N59="","",'DF raw data'!N59) -> Y [mm] | C54: =IF('DF raw data'!O59="","",'DF raw data'!O59) -> X [mm] | D54: =IF('DF raw data'!P59="","",'DF raw data'!P59) -> Nominal current [A]
A55: =IF('DF raw data'!M60="","",'DF raw data'!M60) ->  | B55: =IF('DF raw data'!N60="","",'DF raw data'!N60) ->  | C55: =IF('DF raw data'!O60="","",'DF raw data'!O60) ->  | D55: =IF('DF raw data'!P60="","",'DF raw data'!P60) -> 
A56: =IF('DF raw data'!M61="","",'DF raw data'!M61) -> 209.5 | B56: =IF('DF raw data'!N61="","",'DF raw data'!N61) -> 31.16 | C56: =IF('DF raw data'!O61="","",'DF raw data'!O61) -> 302.8 | D56: =IF('DF raw data'!P61="","",'DF raw data'!P61) -> 0
A57: =IF('DF raw data'!M62="","",'DF raw data'!M62) ->  | B57: =IF('DF raw data'!N62="","",'DF raw data'!N62) ->  | C57: =IF('DF raw data'!O62="","",'DF raw data'!O62) ->  | D57: =IF('DF raw data'!P62="","",'DF raw data'!P62) -> 
A58: =IF('DF raw data'!M63="","",'DF raw data'!M63) -> Measurement-Index | B58: =IF('DF raw data'!N63="","",'DF raw data'!N63) -> [1,1,1201,2] | C58: =IF('DF raw data'!O63="","",'DF raw data'!O63) ->  | D58: =IF('DF raw data'!P63="","",'DF raw data'!P63) -> 
A59: =IF('DF raw data'!M64="","",'DF raw data'!M64) ->  | B59: =IF('DF raw data'!N64="","",'DF raw data'!N64) ->  | C59: =IF('DF raw data'!O64="","",'DF raw data'!O64) ->  | D59: =IF('DF raw data'!P64="","",'DF raw data'!P64) -> 
A60: =IF('DF raw data'!M65="","",'DF raw data'!M65) -> Z [mm] | B60: By [T] | C60: Bx [T] | D60: Bz [T] | F60: By_corr | G60: Bx_corr | H60: Bz_corr | J60: Iy | K60: Jy | L60: Ix | M60: Jx | N60: PI
A62: =IF('DF raw data'!M67="","",'DF raw data'!M67) -> -300 | B62: =IF('DF raw data'!N67="","",'DF raw data'!N67) -> -8.70821e-06 | C62: =IF('DF raw data'!O67="","",'DF raw data'!O67) -> 0.000120314 | D62: =IF('DF raw data'!P67="","",'DF raw data'!P67) -> -1.91217e-05 | F62: =(1-$G$1*($B$49))*B62 -> -8.924173608e-06 | G62: =(1-$G$1*($B$49-$G$2))*C62 -> 0.0001208915072 | H62: =(1-$G$1*($B$49-$G$2))*D62 -> -1.921348416e-05 | J62: =F62*$G$3 -> -4.462086804e-06 | K62: =J62*$G$3 -> -2.231043402e-06 | L62: =G62*$G$3 -> 6.04457536e-05 | M62: =L62*$G$3 -> 3.02228768e-05 | N62: =(J62^2+L62^2)*$G$3 -> 1.836799673e-09
A63: =IF('DF raw data'!M68="","",'DF raw data'!M68) -> -299.5 | B63: =IF('DF raw data'!N68="","",'DF raw data'!N68) -> -2.46005e-05 | C63: =IF('DF raw data'!O68="","",'DF raw data'!O68) -> 0.000126684 | D63: =IF('DF raw data'!P68="","",'DF raw data'!P68) -> -1.83636e-05 | F63: =(1-$G$1*($B$49-$G$2))*B63 -> -2.47185824e-05 | G63: =(1-$G$1*($B$49-$G$2))*C63 -> 0.0001272920832 | H63: -1.845174528e-05 | J63: =F63*$G$3+J62 -> -1.6821378e-05 | K63: =J63*$G$3+K62 -> -1.06417324e-05 | L63: =G63*$G$3+L62 -> 0.0001240917952 | M63: =L63*$G$3+M62 -> 9.22687744e-05 | N63: =(J63^2+L63^2)*$G$3+N62 -> 9.67766587e-09
A64: =IF('DF raw data'!M69="","",'DF raw data'!M69) -> -299 | B64: =IF('DF raw data'!N69="","",'DF raw data'!N69) -> -1.35796e-05 | C64: =IF('DF raw data'!O69="","",'DF raw data'!O69) -> 0.000137645 | D64: =IF('DF raw data'!P69="","",'DF raw data'!P69) -> -1.72891e-05 | F64: =(1-$G$1*($B$49-$G$2))*B64 -> -1.364478208e-05 | G64: 0.000138305696 | H64: -1.737208768e-05 | J64: =F64*$G$3+J63 -> -2.364376904e-05 | K64: =J64*$G$3+K63 -> -2.246361693e-05 | L64: =G64*$G$3+L63 -> 0.0001932446432 | M64: =L64*$G$3+M63 -> 0.000188891096 | N64: =(J64^2+L64^2)*$G$3+N63 -> 2.862892584e-08
A65: =IF('DF raw data'!M70="","",'DF raw data'!M70) -> -298.5 | B65: =IF('DF raw data'!N70="","",'DF raw data'!N70) -> -2.02444e-05 | C65: =IF('DF raw data'!O70="","",'DF raw data'!O70) -> 0.000138509 | D65: =IF('DF raw data'!P70="","",'DF raw data'!P70) -> -1.65225e-05 | F65: -2.034157312e-05 | G65: 0.0001391738432 | H65: -1.6601808e-05 | J65: -3.38145556e-05 | K65: -3.937089473e-05 | L65: 0.0002628315648 | M65: 0.0003203068784 | N65: 6.374085365e-08
A66: =IF('DF raw data'!M71="","",'DF raw data'!M71) -> -298 | B66: =IF('DF raw data'!N71="","",'DF raw data'!N71) -> -2.03088e-05 | C66: =IF('DF raw data'!O71="","",'DF raw data'!O71) -> 0.000135851 | D66: =IF('DF raw data'!P71="","",'DF raw data'!P71) -> -1.58666e-05 | F66: -2.040628224e-05 | G66: 0.0001365030848 | H66: -1.594275968e-05 | J66: -4.401769672e-05 | K66: -6.137974309e-05 | L66: 0.0003310831072 | M66: 0.000485848432 | N66: 1.195176444e-07
A67: =IF('DF raw data'!M72="","",'DF raw data'!M72) -> -297.5 | B67: =IF('DF raw data'!N72="","",'DF raw data'!N72) -> -8.5179e-06 | C67: =IF('DF raw data'!O72="","",'DF raw data'!O72) -> 0.000137693 | D67: =IF('DF raw data'!P72="","",'DF raw data'!P72) -> -1.59582e-05 | F67: -8.55878592e-06 | G67: 0.0001383539264 | H67: -1.603479936e-05 | J67: -4.829708968e-05 | K67: -8.552828793e-05 | L67: 0.0004002600704 | M67: 0.0006859784672 | N67: 2.007880108e-07
A68: =IF('DF raw data'!M73="","",'DF raw data'!M73) -> -297 | B68: =IF('DF raw data'!N73="","",'DF raw data'!N73) -> -5.56975e-06 | C68: =IF('DF raw data'!O73="","",'DF raw data'!O73) -> 0.000119895 | D68: =IF('DF raw data'!P73="","",'DF raw data'!P73) -> -1.68577e-05 | F68: -5.5964848e-06 | G68: 0.000120470496 | H68: -1.693861696e-05 | J68: -5.109533208e-05 | K68: -0.000111075954 | L68: 0.0004604953184 | M68: 0.0009162261264 | N68: 3.081213464e-07
A69: =IF('DF raw data'!M74="","",'DF raw data'!M74) -> -296.5 | B69: =IF('DF raw data'!N74="","",'DF raw data'!N74) -> -1.62707e-05 | C69: =IF('DF raw data'!O74="","",'DF raw data'!O74) -> 0.000122786 | D69: =IF('DF raw data'!P74="","",'DF raw data'!P74) -> -1.7469e-05 | F69: -1.634879936e-05 | G69: 0.0001233753728 | H69: -1.75528512e-05 | J69: -5.926973176e-05 | K69: -0.0001407108199 | L69: 0.0005221830048 | M69: 0.001177317629 | N69: 4.462153422e-07
A70: =IF('DF raw data'!M75="","",'DF raw data'!M75) -> -296 | B70: =IF('DF raw data'!N75="","",'DF raw data'!N75) -> -9.60632e-06 | C70: =IF('DF raw data'!O75="","",'DF raw data'!O75) -> 0.000135944 | D70: =IF('DF raw data'!P75="","",'DF raw data'!P75) -> -1.75439e-05 | F70: -9.652430336e-06 | G70: 0.0001365965312 | H70: -1.762811072e-05 | J70: -6.409594693e-05 | K70: -0.0001727587933 | L70: 0.0005904812704 | M70: 0.001472558264 | N70: 6.226035528e-07
A71: =IF('DF raw data'!M76="","",'DF raw data'!M76) -> -295.5 | B71: =IF('DF raw data'!N76="","",'DF raw data'!N76) -> -1.92184e-05 | C71: =IF('DF raw data'!O76="","",'DF raw data'!O76) -> 0.00012902 | D71: =IF('DF raw data'!P76="","",'DF raw data'!P76) -> -1.7229e-05 | F71: -1.931064832e-05 | G71: 0.000129639296 | H71: -1.73116992e-05 | J71: -7.375127109e-05 | K71: -0.0002096344289 | L71: 0.0006553009184 | M71: 0.001800208723 | N71: 8.400328246e-07
A72: =IF('DF raw data'!M77="","",'DF raw data'!M77) -> -295 | B72: =IF('DF raw data'!N77="","",'DF raw data'!N77) -> -1.63354e-05 | C72: =IF('DF raw data'!O77="","",'DF raw data'!O77) -> 0.000127776 | D72: =IF('DF raw data'!P77="","",'DF raw data'!P77) -> -1.66849e-05 | F72: -1.641380992e-05 | G72: 0.0001283893248 | H72: -1.676498752e-05 | J72: -8.195817605e-05 | K72: -0.0002506135169 | L72: 0.0007194955808 | M72: 0.002159956514 | N72: 1.102228341e-06
A73: =IF('DF raw data'!M78="","",'DF raw data'!M78) -> -294.5 | B73: =IF('DF raw data'!N78="","",'DF raw data'!N78) -> -1.51182e-05 | C73: =IF('DF raw data'!O78="","",'DF raw data'!O78) -> 0.000127979 | D73: =IF('DF raw data'!P78="","",'DF raw data'!P78) -> -1.61652e-05 | F73: -1.519076736e-05 | G73: 0.0001285932992 | H73: -1.624279296e-05 | J73: -8.955355973e-05 | K73: -0.0002953902968 | L73: 0.0007837922304 | M73: 0.002551852629 | N73: 1.413403392e-06
A74: =IF('DF raw data'!M79="","",'DF raw data'!M79) -> -294 | B74: =IF('DF raw data'!N79="","",'DF raw data'!N79) -> -1.2619e-05 | C74: =IF('DF raw data'!O79="","",'DF raw data'!O79) -> 0.000136092 | D74: =IF('DF raw data'!P79="","",'DF raw data'!P79) -> -1.61917e-05 | F74: -1.26795712e-05 | G74: 0.0001367452416 | H74: -1.626942016e-05 | J74: -9.589334533e-05 | K74: -0.0003433369694 | L74: 0.0008521648512 | M74: 0.002977935054 | N74: 1.781093625e-06
A75: =IF('DF raw data'!M80="","",'DF raw data'!M80) -> -293.5 | B75: =IF('DF raw data'!N80="","",'DF raw data'!N80) -> -5.82605e-06 | C75: =IF('DF raw data'!O80="","",'DF raw data'!O80) -> 0.000143534 | D75: =IF('DF raw data'!P80="","",'DF raw data'!P80) -> -1.68685e-05 | F75: -5.85401504e-06 | G75: 0.0001442229632 | H75: -1.69494688e-05 | J75: -9.882035285e-05 | K75: -0.0003927471459 | L75: 0.0009242763328 | M75: 0.003440073221 | N75: 2.213119726e-06
A76: =IF('DF raw data'!M81="","",'DF raw data'!M81) -> -293 | B76: =IF('DF raw data'!N81="","",'DF raw data'!N81) -> -1.08241e-05 | C76: =IF('DF raw data'!O81="","",'DF raw data'!O81) -> 0.000136553 | D76: =IF('DF raw data'!P81="","",'DF raw data'!P81) -> -1.72204e-05 | F76: -1.087605568e-05 | G76: 0.0001372084544 | H76: -1.730305792e-05 | J76: -0.0001042583807 | K76: -0.0004448763362 | L76: 0.00099288056 | M76: 0.003936513501 | N76: 2.711460534e-06
A77: =IF('DF raw data'!M82="","",'DF raw data'!M82) -> -292.5 | B77: =IF('DF raw data'!N82="","",'DF raw data'!N82) -> -1.86423e-05 | C77: =IF('DF raw data'!O82="","",'DF raw data'!O82) -> 0.000136179 | D77: =IF('DF raw data'!P82="","",'DF raw data'!P82) -> -1.65223e-05 | F77: -1.873178304e-05 | G77: 0.0001368326592 | H77: -1.660160704e-05 | J77: -0.0001136242722 | K77: -0.0005016884723 | L77: 0.00106129689 | M77: 0.004467161946 | N77: 3.281091316e-06
A78: =IF('DF raw data'!M83="","",'DF raw data'!M83) -> -292 | B78: =IF('DF raw data'!N83="","",'DF raw data'!N83) -> -7.30064e-06 | C78: =IF('DF raw data'!O83="","",'DF raw data'!O83) -> 0.000147688 | D78: =IF('DF raw data'!P83="","",'DF raw data'!P83) -> -1.58318e-05 | F78: -7.335683072e-06 | G78: 0.0001483969024 | H78: -1.590779264e-05 | J78: -0.0001172921137 | K78: -0.0005603345292 | L78: 0.001135495341 | M78: 0.005034909616 | N78: 3.93264487e-06
A79: =IF('DF raw data'!M84="","",'DF raw data'!M84) -> -291.5 | B79: =IF('DF raw data'!N84="","",'DF raw data'!N84) -> -4.92474e-06 | C79: =IF('DF raw data'!O84="","",'DF raw data'!O84) -> 0.000147665 | D79: =IF('DF raw data'!P84="","",'DF raw data'!P84) -> -2.33868e-05 | F79: -4.948378752e-06 | G79: 0.000148373792 | H79: -2.349905664e-05 | J79: -0.0001197663031 | K79: -0.0006202176807 | L79: 0.001209682237 | M79: 0.005639750734 | N79: 4.671482411e-06
A80: =IF('DF raw data'!M85="","",'DF raw data'!M85) -> -291 | B80: =IF('DF raw data'!N85="","",'DF raw data'!N85) -> 5.22807e-07 | C80: =IF('DF raw data'!O85="","",'DF raw data'!O85) -> 0.000147056 | D80: =IF('DF raw data'!P85="","",'DF raw data'!P85) -> -2.42426e-05 | F80: 5.253164736e-07 | G80: 0.0001477618688 | H80: -2.435896448e-05 | J80: -0.0001195036449 | K80: -0.0006799695032 | L80: 0.001283563171 | M80: 0.00628153232 | N80: 5.502390179e-06
A81: =IF('DF raw data'!M86="","",'DF raw data'!M86) -> -290.5 | B81: =IF('DF raw data'!N86="","",'DF raw data'!N86) -> -1.32469e-05 | C81: =IF('DF raw data'!O86="","",'DF raw data'!O86) -> 0.000144585 | D81: =IF('DF raw data'!P86="","",'DF raw data'!P86) -> -3.5966e-05 | F81: -1.331048512e-05 | G81: 0.000145279008 | H81: -3.61386368e-05 | J81: -0.0001261588874 | K81: -0.0007430489469 | L81: 0.001356202675 | M81: 0.006959633658 | N81: 6.429991059e-06
A82: =IF('DF raw data'!M87="","",'DF raw data'!M87) -> -290 | B82: =IF('DF raw data'!N87="","",'DF raw data'!N87) -> -2.42813e-05 | C82: =IF('DF raw data'!O87="","",'DF raw data'!O87) -> 0.000128461 | D82: =IF('DF raw data'!P87="","",'DF raw data'!P87) -> -1.67381e-05 | F82: -2.439785024e-05 | G82: 0.0001290776128 | H82: -1.681844288e-05 | J82: -0.0001383578126 | K82: -0.0008122278532 | L82: 0.001420741482 | M82: 0.007670004398 | N82: 7.44881568e-06
A83: =IF('DF raw data'!M88="","",'DF raw data'!M88) -> -289.5 | B83: =IF('DF raw data'!N88="","",'DF raw data'!N88) -> -1.99876e-05 | C83: =IF('DF raw data'!O88="","",'DF raw data'!O88) -> 0.000127993 | D83: =IF('DF raw data'!P88="","",'DF raw data'!P88) -> -1.73411e-05 | F83: -2.008354048e-05 | G83: 0.0001286073664 | H83: -1.742433728e-05 | J83: -0.0001483995828 | K83: -0.0008864276446 | L83: 0.001485045165 | M83: 0.008412526981 | N83: 8.562506469e-06
A84: =IF('DF raw data'!M89="","",'DF raw data'!M89) -> -289 | B84: =IF('DF raw data'!N89="","",'DF raw data'!N89) -> 2.83077e-06 | C84: =IF('DF raw data'!O89="","",'DF raw data'!O89) -> 0.000131358 | D84: =IF('DF raw data'!P89="","",'DF raw data'!P89) -> -2.60454e-05 | F84: 2.844357696e-06 | G84: 0.0001319885184 | H84: -2.617041792e-05 | J84: -0.000146977404 | K84: -0.0009599163466 | L84: 0.001551039424 | M84: 0.009188046693 | N84: 9.776169295e-06
A85: =IF('DF raw data'!M90="","",'DF raw data'!M90) -> -288.5 | B85: =IF('DF raw data'!N90="","",'DF raw data'!N90) -> -1.10177e-05 | C85: =IF('DF raw data'!O90="","",'DF raw data'!O90) -> 0.000127125 | D85: =IF('DF raw data'!P90="","",'DF raw data'!P90) -> -1.49833e-05 | F85: -1.107058496e-05 | G85: 0.0001277352 | H85: -1.505521984e-05 | J85: -0.0001525126964 | K85: -0.001036172695 | L85: 0.001614907024 | M85: 0.009995500205 | N85: 1.10917617e-05
A86: =IF('DF raw data'!M91="","",'DF raw data'!M91) -> -288 | B86: =IF('DF raw data'!N91="","",'DF raw data'!N91) -> -2.21642e-05 | C86: =IF('DF raw data'!O91="","",'DF raw data'!O91) -> 0.00013199 | D86: =IF('DF raw data'!P91="","",'DF raw data'!P91) -> -2.03587e-05 | F86: -2.227058816e-05 | G86: 0.000132623552 | H86: -2.045642176e-05 | J86: -0.0001636479905 | K86: -0.00111799669 | L86: 0.0016812188 | M86: 0.0108361096 | N86: 1.251840036e-05
A87: =IF('DF raw data'!M92="","",'DF raw data'!M92) -> -287.5 | B87: =IF('DF raw data'!N92="","",'DF raw data'!N92) -> -1.35172e-05 | C87: =IF('DF raw data'!O92="","",'DF raw data'!O92) -> 0.000135722 | D87: =IF('DF raw data'!P92="","",'DF raw data'!P92) -> -1.45106e-05 | F87: -1.358208256e-05 | G87: 0.0001363734656 | H87: -1.458025088e-05 | J87: -0.0001704390318 | K87: -0.001203216206 | L87: 0.001749405533 | M87: 0.01171081237 | N87: 1.406313495e-05
A88: =IF('DF raw data'!M93="","",'DF raw data'!M93) -> -287 | B88: =IF('DF raw data'!N93="","",'DF raw data'!N93) -> -1.33911e-05 | C88: =IF('DF raw data'!O93="","",'DF raw data'!O93) -> 0.000128856 | D88: =IF('DF raw data'!P93="","",'DF raw data'!P93) -> -1.12817e-05 | F88: -1.345537728e-05 | G88: 0.0001294745088 | H88: -1.133585216e-05 | J88: -0.0001771667204 | K88: -0.001291799566 | L88: 0.001814142787 | M88: 0.01261788376 | N88: 1.5724386e-05
A89: =IF('DF raw data'!M94="","",'DF raw data'!M94) -> -286.5 | B89: =IF('DF raw data'!N94="","",'DF raw data'!N94) -> -1.80643e-05 | C89: =IF('DF raw data'!O94="","",'DF raw data'!O94) -> 0.000130803 | D89: =IF('DF raw data'!P94="","",'DF raw data'!P94) -> -1.83095e-05 | F89: -1.815100864e-05 | G89: 0.0001314308544 | H89: -1.83973856e-05 | J89: -0.0001862422248 | K89: -0.001384920679 | L89: 0.001879858214 | M89: 0.01355781287 | N89: 1.750866254e-05
A90: =IF('DF raw data'!M95="","",'DF raw data'!M95) -> -286 | B90: =IF('DF raw data'!N95="","",'DF raw data'!N95) -> -5.67131e-07 | C90: =IF('DF raw data'!O95="","",'DF raw data'!O95) -> 0.000134557 | D90: =IF('DF raw data'!P95="","",'DF raw data'!P95) -> -2.34929e-05 | F90: -5.698532288e-07 | G90: 0.0001352028736 | H90: -2.360566592e-05 | J90: -0.0001865271514 | K90: -0.001478184254 | L90: 0.001947459651 | M90: 0.0145315427 | N90: 1.942235828e-05
A91: =IF('DF raw data'!M96="","",'DF raw data'!M96) -> -285.5 | B91: =IF('DF raw data'!N96="","",'DF raw data'!N96) -> -1.05019e-05 | C91: =IF('DF raw data'!O96="","",'DF raw data'!O96) -> 0.000130381 | D91: =IF('DF raw data'!P96="","",'DF raw data'!P96) -> -1.99349e-05 | F91: -1.055230912e-05 | G91: 0.0001310068288 | H91: -2.003058752e-05 | J91: -0.0001918033059 | K91: -0.001574085907 | L91: 0.002012963066 | M91: 0.01553802423 | N91: 2.146676268e-05
A92: =IF('DF raw data'!M97="","",'DF raw data'!M97) -> -285 | B92: =IF('DF raw data'!N97="","",'DF raw data'!N97) -> -1.85092e-05 | C92: =IF('DF raw data'!O97="","",'DF raw data'!O97) -> 0.000130503 | D92: =IF('DF raw data'!P97="","",'DF raw data'!P97) -> -2.41962e-05 | F92: -1.859804416e-05 | G92: 0.0001311294144 | H92: -2.431234176e-05 | J92: -0.000201102328 | K92: -0.001674637071 | L92: 0.002078527773 | M92: 0.01657728812 | N92: 2.364712261e-05
A93: =IF('DF raw data'!M98="","",'DF raw data'!M98) -> -284.5 | B93: =IF('DF raw data'!N98="","",'DF raw data'!N98) -> -1.60086e-05 | C93: =IF('DF raw data'!O98="","",'DF raw data'!O98) -> 0.000127714 | D93: =IF('DF raw data'!P98="","",'DF raw data'!P98) -> -2.64335e-05 | F93: -1.608544128e-05 | G93: 0.0001283270272 | H93: -2.65603808e-05 | J93: -0.0002091450487 | K93: -0.001779209596 | L93: 0.002142691286 | M93: 0.01764863376 | N93: 2.596455641e-05
A94: =IF('DF raw data'!M99="","",'DF raw data'!M99) -> -284 | B94: =IF('DF raw data'!N99="","",'DF raw data'!N99) -> -2.72308e-05 | C94: =IF('DF raw data'!O99="","",'DF raw data'!O99) -> 0.000132837 | D94: =IF('DF raw data'!P99="","",'DF raw data'!P99) -> -1.37935e-05 | F94: -2.736150784e-05 | G94: 0.0001334746176 | H94: -1.38597088e-05 | J94: -0.0002228258026 | K94: -0.001890622497 | L94: 0.002209428595 | M94: 0.01875334806 | N94: 2.843016943e-05
A95: =IF('DF raw data'!M100="","",'DF raw data'!M100) -> -283.5 | B95: =IF('DF raw data'!N100="","",'DF raw data'!N100) -> -1.47931e-05 | C95: =IF('DF raw data'!O100="","",'DF raw data'!O100) -> 0.000141039 | D95: =IF('DF raw data'!P100="","",'DF raw data'!P100) -> -2.31806e-05 | F95: -1.486410688e-05 | G95: 0.0001417159872 | H95: -2.329186688e-05 | J95: -0.000230257856 | K95: -0.002005751425 | L95: 0.002280286589 | M95: 0.01989349135 | N95: 3.105653224e-05
A96: =IF('DF raw data'!M101="","",'DF raw data'!M101) -> -283 | B96: =IF('DF raw data'!N101="","",'DF raw data'!N101) -> -7.87024e-06 | C96: =IF('DF raw data'!O101="","",'DF raw data'!O101) -> 0.000138254 | D96: =IF('DF raw data'!P101="","",'DF raw data'!P101) -> -2.65943e-05 | F96: -7.908017152e-06 | G96: 0.0001389176192 | H96: -2.672195264e-05 | J96: -0.0002342118646 | K96: -0.002122857357 | L96: 0.002349745398 | M96: 0.02106836405 | N96: 3.384461155e-05
A97: =IF('DF raw data'!M102="","",'DF raw data'!M102) -> -282.5 | B97: =IF('DF raw data'!N102="","",'DF raw data'!N102) -> -1.79949e-05 | C97: =IF('DF raw data'!O102="","",'DF raw data'!O102) -> 0.000129584 | D97: =IF('DF raw data'!P102="","",'DF raw data'!P102) -> -2.68447e-05 | F97: -1.808127552e-05 | G97: 0.0001302060032 | H97: -2.697355456e-05 | J97: -0.0002432525023 | K97: -0.002244483608 | L97: 0.0024148484 | M97: 0.02227578825 | N97: 3.678994384e-05
A98: =IF('DF raw data'!M103="","",'DF raw data'!M103) -> -282 | B98: =IF('DF raw data'!N103="","",'DF raw data'!N103) -> -1.81338e-05 | C98: =IF('DF raw data'!O103="","",'DF raw data'!O103) -> 0.000130172 | D98: =IF('DF raw data'!P103="","",'DF raw data'!P103) -> -1.02921e-05 | F98: -1.822084224e-05 | G98: 0.0001307968256 | H98: -1.034150208e-05 | J98: -0.0002523629235 | K98: -0.00237066507 | L98: 0.002480246813 | M98: 0.02351591166 | N98: 3.989759949e-05
A99: =IF('DF raw data'!M104="","",'DF raw data'!M104) -> -281.5 | B99: =IF('DF raw data'!N104="","",'DF raw data'!N104) -> -8.8968e-06 | C99: =IF('DF raw data'!O104="","",'DF raw data'!O104) -> 0.000129634 | D99: =IF('DF raw data'!P104="","",'DF raw data'!P104) -> -2.45478e-05 | F99: -8.93950464e-06 | G99: 0.0001302562432 | H99: -2.466562944e-05 | J99: -0.0002568326758 | K99: -0.002499081408 | L99: 0.002545374934 | M99: 0.02478859912 | N99: 4.317004778e-05
A100: =IF('DF raw data'!M105="","",'DF raw data'!M105) -> -281 | B100: =IF('DF raw data'!N105="","",'DF raw data'!N105) -> -9.41804e-06 | C100: =IF('DF raw data'!O105="","",'DF raw data'!O105) -> 0.000128483 | D100: =IF('DF raw data'!P105="","",'DF raw data'!P105) -> -1.1269e-05 | F100: -9.463246592e-06 | G100: 0.0001290997184 | H100: -1.13230912e-05 | J100: -0.0002615642991 | K100: -0.002629863557 | L100: 0.002609924794 | M100: 0.02609356152 | N100: 4.661010944e-05
A101: =IF('DF raw data'!M106="","",'DF raw data'!M106) -> -280.5 | B101: =IF('DF raw data'!N106="","",'DF raw data'!N106) -> -5.31018e-06 | C101: =IF('DF raw data'!O106="","",'DF raw data'!O106) -> 0.000131457 | D101: =IF('DF raw data'!P106="","",'DF raw data'!P106) -> -2.18892e-05 | F101: -5.335668864e-06 | G101: 0.0001320879936 | H101: -2.199426816e-05 | J101: -0.0002642321335 | K101: -0.002761979624 | L101: 0.00267596879 | M101: 0.02743154592 | N101: 5.022542323e-05
A102: =IF('DF raw data'!M107="","",'DF raw data'!M107) -> -280 | B102: =IF('DF raw data'!N107="","",'DF raw data'!N107) -> -1.99204e-05 | C102: =IF('DF raw data'!O107="","",'DF raw data'!O107) -> 0.000130637 | D102: =IF('DF raw data'!P107="","",'DF raw data'!P107) -> -2.18441e-05 | F102: -2.001601792e-05 | G102: 0.0001312640576 | H102: -2.194895168e-05 | J102: -0.0002742401425 | K102: -0.002899099695 | L102: 0.002741600819 | M102: 0.02880234633 | N102: 5.402121458e-05
A103: =IF('DF raw data'!M108="","",'DF raw data'!M108) -> -279.5 | B103: =IF('DF raw data'!N108="","",'DF raw data'!N108) -> -6.66104e-06 | C103: =IF('DF raw data'!O108="","",'DF raw data'!O108) -> 0.000126879 | D103: =IF('DF raw data'!P108="","",'DF raw data'!P108) -> -1.36292e-05 | F103: -6.693012992e-06 | G103: 0.0001274880192 | H103: -1.369462016e-05 | J103: -0.000277586649 | K103: -0.00303789302 | L103: 0.002805344829 | M103: 0.03020501874 | N103: 5.799472156e-05
A104: =IF('DF raw data'!M109="","",'DF raw data'!M109) -> -279 | B104: =IF('DF raw data'!N109="","",'DF raw data'!N109) -> -1.11387e-05 | C104: =IF('DF raw data'!O109="","",'DF raw data'!O109) -> 0.000125261 | D104: =IF('DF raw data'!P109="","",'DF raw data'!P109) -> -2.60981e-05 | F104: -1.119216576e-05 | G104: 0.0001258622528 | H104: -2.622337088e-05 | J104: -0.0002831827319 | K104: -0.003179484386 | L104: 0.002868275955 | M104: 0.03163915672 | N104: 6.214832127e-05
A105: =IF('DF raw data'!M110="","",'DF raw data'!M110) -> -278.5 | B105: =IF('DF raw data'!N110="","",'DF raw data'!N110) -> -9.09556e-06 | C105: =IF('DF raw data'!O110="","",'DF raw data'!O110) -> 0.000128364 | D105: =IF('DF raw data'!P110="","",'DF raw data'!P110) -> -1.46947e-05 | F105: -9.139218688e-06 | G105: 0.0001289801472 | H105: -1.476523456e-05 | J105: -0.0002877523412 | K105: -0.003323360556 | L105: 0.002932766029 | M105: 0.03310553973 | N105: 6.649028026e-05
A106: =IF('DF raw data'!M111="","",'DF raw data'!M111) -> -278 | B106: =IF('DF raw data'!N111="","",'DF raw data'!N111) -> -1.29358e-05 | C106: =IF('DF raw data'!O111="","",'DF raw data'!O111) -> 0.000131034 | D106: =IF('DF raw data'!P111="","",'DF raw data'!P111) -> -2.1477e-05 | F106: -1.299789184e-05 | G106: 0.0001316629632 | H106: -2.15800896e-05 | J106: -0.0002942512871 | K106: -0.0034704862 | L106: 0.00299859751 | M106: 0.03460483849 | N106: 7.102936569e-05
A107: =IF('DF raw data'!M112="","",'DF raw data'!M112) -> -277.5 | B107: =IF('DF raw data'!N112="","",'DF raw data'!N112) -> -1.83234e-05 | C107: =IF('DF raw data'!O112="","",'DF raw data'!O112) -> 0.000127775 | D107: =IF('DF raw data'!P112="","",'DF raw data'!P112) -> -1.41644e-05 | F107: -1.841135232e-05 | G107: 0.00012838832 | H107: -1.423238912e-05 | J107: -0.0003034569633 | K107: -0.003622214682 | L107: 0.00306279167 | M107: 0.03613623432 | N107: 7.576575516e-05
A108: =IF('DF raw data'!M113="","",'DF raw data'!M113) -> -277 | B108: =IF('DF raw data'!N113="","",'DF raw data'!N113) -> -1.19794e-05 | C108: =IF('DF raw data'!O113="","",'DF raw data'!O113) -> 0.000129563 | D108: =IF('DF raw data'!P113="","",'DF raw data'!P113) -> -1.43734e-05 | F108: -1.203690112e-05 | G108: 0.0001301849024 | H108: -1.444239232e-05 | J108: -0.0003094754138 | K108: -0.003776952389 | L108: 0.003127884122 | M108: 0.03770017638 | N108: 8.070547222e-05
A109: =IF('DF raw data'!M114="","",'DF raw data'!M114) -> -276.5 | B109: =IF('DF raw data'!N114="","",'DF raw data'!N114) -> -1.23606e-05 | C109: =IF('DF raw data'!O114="","",'DF raw data'!O114) -> 0.00013791 | D109: =IF('DF raw data'!P114="","",'DF raw data'!P114) -> -1.93578e-05 | F109: -1.241993088e-05 | G109: 0.000138571968 | H109: -1.945071744e-05 | J109: -0.0003156853793 | K109: -0.003934795078 | L109: 0.003197170106 | M109: 0.03929876144 | N109: 8.586624919e-05
A110: =IF('DF raw data'!M115="","",'DF raw data'!M115) -> -276 | B110: =IF('DF raw data'!N115="","",'DF raw data'!N115) -> -1.28134e-05 | C110: =IF('DF raw data'!O115="","",'DF raw data'!O115) -> 0.000131505 | D110: =IF('DF raw data'!P115="","",'DF raw data'!P115) -> -1.27211e-05 | F110: -1.287490432e-05 | G110: 0.000132136224 | H110: -1.278216128e-05 | J110: -0.0003221228314 | K110: -0.004095856494 | L110: 0.003263238218 | M110: 0.04093038055 | N110: 9.124249258e-05
A111: =IF('DF raw data'!M116="","",'DF raw data'!M116) -> -275.5 | B111: =IF('DF raw data'!N116="","",'DF raw data'!N116) -> -1.36446e-05 | C111: =IF('DF raw data'!O116="","",'DF raw data'!O116) -> 0.000125754 | D111: =IF('DF raw data'!P116="","",'DF raw data'!P116) -> -1.56351e-05 | F111: -1.371009408e-05 | G111: 0.0001263576192 | H111: -1.571014848e-05 | J111: -0.0003289778785 | K111: -0.004260345433 | L111: 0.003326417027 | M111: 0.04259358906 | N111: 9.682913092e-05
A112: =IF('DF raw data'!M117="","",'DF raw data'!M117) -> -275 | B112: =IF('DF raw data'!N117="","",'DF raw data'!N117) -> -8.25952e-06 | C112: =IF('DF raw data'!O117="","",'DF raw data'!O117) -> 0.000127295 | D112: =IF('DF raw data'!P117="","",'DF raw data'!P117) -> -1.91791e-05 | F112: -8.299165696e-06 | G112: 0.000127906016 | H112: -1.927115968e-05 | J112: -0.0003331274613 | K112: -0.004426909164 | L112: 0.003390370035 | M112: 0.04428877408 | N112: 0.0001026319224
A113: =IF('DF raw data'!M118="","",'DF raw data'!M118) -> -274.5 | B113: =IF('DF raw data'!N118="","",'DF raw data'!N118) -> -5.95624e-06 | C113: =IF('DF raw data'!O118="","",'DF raw data'!O118) -> 0.00012031 | D113: =IF('DF raw data'!P118="","",'DF raw data'!P118) -> -1.37426e-05 | F113: -5.984829952e-06 | G113: 0.000120887488 | H113: -1.380856448e-05 | J113: -0.0003361198763 | K113: -0.004594969102 | L113: 0.003450813779 | M113: 0.04601418097 | N113: 0.0001086424685
A114: =IF('DF raw data'!M119="","",'DF raw data'!M119) -> -274 | B114: =IF('DF raw data'!N119="","",'DF raw data'!N119) -> -2.25492e-05 | C114: =IF('DF raw data'!O119="","",'DF raw data'!O119) -> 0.000120295 | D114: =IF('DF raw data'!P119="","",'DF raw data'!P119) -> -1.95755e-05 | F114: -2.265743616e-05 | G114: 0.000120872416 | H114: -1.96694624e-05 | J114: -0.0003474485944 | K114: -0.004768693399 | L114: 0.003511249987 | M114: 0.04776980596 | N114: 0.000114867267
A115: =IF('DF raw data'!M120="","",'DF raw data'!M120) -> -273.5 | B115: =IF('DF raw data'!N120="","",'DF raw data'!N120) -> -2.17172e-05 | C115: =IF('DF raw data'!O120="","",'DF raw data'!O120) -> 0.000123648 | D115: =IF('DF raw data'!P120="","",'DF raw data'!P120) -> -1.79111e-05 | F115: -2.182144256e-05 | G115: 0.0001242415104 | H115: -1.799707328e-05 | J115: -0.0003583593157 | K115: -0.004947873057 | L115: 0.003573370742 | M115: 0.04955649133 | N115: 0.0001213159669
A116: =IF('DF raw data'!M121="","",'DF raw data'!M121) -> -273 | B116: =IF('DF raw data'!N121="","",'DF raw data'!N121) -> -9.02747e-06 | C116: =IF('DF raw data'!O121="","",'DF raw data'!O121) -> 0.000119464 | D116: =IF('DF raw data'!P121="","",'DF raw data'!P121) -> -2.06969e-05 | F116: -9.070801856e-06 | G116: 0.0001200374272 | H116: -2.079624512e-05 | J116: -0.0003628947166 | K116: -0.005129320415 | L116: 0.003633389456 | M116: 0.05137318606 | N116: 0.0001279825727
A117: =IF('DF raw data'!M122="","",'DF raw data'!M122) -> -272.5 | B117: =IF('DF raw data'!N122="","",'DF raw data'!N122) -> -1.66585e-05 | C117: =IF('DF raw data'!O122="","",'DF raw data'!O122) -> 0.000124385 | D117: =IF('DF raw data'!P122="","",'DF raw data'!P122) -> -1.23747e-05 | F117: -1.67384608e-05 | G117: 0.000124982048 | H117: -1.243409856e-05 | J117: -0.000371263947 | K117: -0.005314952389 | L117: 0.00369588048 | M117: 0.0532211263 | N117: 0.0001348812574
A118: =IF('DF raw data'!M123="","",'DF raw data'!M123) -> -272 | B118: =IF('DF raw data'!N123="","",'DF raw data'!N123) -> -2.43436e-05 | C118: =IF('DF raw data'!O123="","",'DF raw data'!O123) -> 0.000119029 | D118: =IF('DF raw data'!P123="","",'DF raw data'!P123) -> -1.93206e-05 | F118: -2.446044928e-05 | G118: 0.0001196003392 | H118: -1.941333888e-05 | J118: -0.0003834941716 | K118: -0.005506699475 | L118: 0.00375568065 | M118: 0.05509896662 | N118: 0.0001420073599
A119: =IF('DF raw data'!M124="","",'DF raw data'!M124) -> -271.5 | B119: =IF('DF raw data'!N124="","",'DF raw data'!N124) -> -1.76158e-05 | C119: =IF('DF raw data'!O124="","",'DF raw data'!O124) -> 0.000120761 | D119: =IF('DF raw data'!P124="","",'DF raw data'!P124) -> -1.85391e-05 | F119: -1.770035584e-05 | G119: 0.0001213406528 | H119: -1.862808768e-05 | J119: -0.0003923443495 | K119: -0.005702871649 | L119: 0.003816350976 | M119: 0.05700714211 | N119: 0.0001493665943
A120: =IF('DF raw data'!M125="","",'DF raw data'!M125) -> -271 | B120: =IF('DF raw data'!N125="","",'DF raw data'!N125) -> -2.35052e-05 | C120: =IF('DF raw data'!O125="","",'DF raw data'!O125) -> 0.000122773 | D120: =IF('DF raw data'!P125="","",'DF raw data'!P125) -> -2.78541e-05 | F120: -2.361802496e-05 | G120: 0.0001233623104 | H120: -2.798779968e-05 | J120: -0.000404153362 | K120: -0.00590494833 | L120: 0.003878032131 | M120: 0.05894615818 | N120: 0.0001569678309
A121: =IF('DF raw data'!M126="","",'DF raw data'!M126) -> -270.5 | B121: =IF('DF raw data'!N126="","",'DF raw data'!N126) -> -8.83218e-06 | C121: =IF('DF raw data'!O126="","",'DF raw data'!O126) -> 0.000126675 | D121: =IF('DF raw data'!P126="","",'DF raw data'!P126) -> -2.56091e-05 | F121: -8.874574464e-06 | G121: 0.00012728304 | H121: -2.573202368e-05 | J121: -0.0004085906493 | K121: -0.006109243655 | L121: 0.003941673651 | M121: 0.060916995 | N121: 0.0001648196996
A122: =IF('DF raw data'!M127="","",'DF raw data'!M127) -> -270 | B122: =IF('DF raw data'!N127="","",'DF raw data'!N127) -> -2.60133e-05 | C122: =IF('DF raw data'!O127="","",'DF raw data'!O127) -> 0.000122614 | D122: =IF('DF raw data'!P127="","",'DF raw data'!P127) -> -1.40611e-05 | F122: -2.613816384e-05 | G122: 0.0001232025472 | H122: -1.412859328e-05 | J122: -0.0004216597312 | K122: -0.006320073521 | L122: 0.004003274925 | M122: 0.06291863247 | N122: 0.0001729217032
A123: =IF('DF raw data'!M128="","",'DF raw data'!M128) -> -269.5 | B123: =IF('DF raw data'!N128="","",'DF raw data'!N128) -> -1.53727e-05 | C123: =IF('DF raw data'!O128="","",'DF raw data'!O128) -> 0.000120669 | D123: =IF('DF raw data'!P128="","",'DF raw data'!P128) -> -1.89785e-05 | F123: -1.544648896e-05 | G123: 0.0001212482112 | H123: -1.90695968e-05 | J123: -0.0004293829757 | K123: -0.006534765008 | L123: 0.00406389903 | M123: 0.06495058198 | N123: 0.0001812715257
A124: =IF('DF raw data'!M129="","",'DF raw data'!M129) -> -269 | B124: =IF('DF raw data'!N129="","",'DF raw data'!N129) -> -2.62662e-05 | C124: =IF('DF raw data'!O129="","",'DF raw data'!O129) -> 0.000119352 | D124: =IF('DF raw data'!P129="","",'DF raw data'!P129) -> -1.92493e-05 | F124: -2.639227776e-05 | G124: 0.0001199248896 | H124: -1.934169664e-05 | J124: -0.0004425791145 | K124: -0.006756054566 | L124: 0.004123861475 | M124: 0.06701251272 | N124: 0.0001898725806
A125: =IF('DF raw data'!M130="","",'DF raw data'!M130) -> -268.5 | B125: =IF('DF raw data'!N130="","",'DF raw data'!N130) -> -2.1004e-05 | C125: =IF('DF raw data'!O130="","",'DF raw data'!O130) -> 0.000124245 | D125: =IF('DF raw data'!P130="","",'DF raw data'!P130) -> -3.09725e-05 | F125: -2.11048192e-05 | G125: 0.000124841376 | H125: -3.1121168e-05 | J125: -0.0004531315241 | K125: -0.006982620328 | L125: 0.004186282163 | M125: 0.0691056538 | N125: 0.0001987377238
A126: =IF('DF raw data'!M131="","",'DF raw data'!M131) -> -268 | B126: =IF('DF raw data'!N131="","",'DF raw data'!N131) -> -2.81225e-05 | C126: =IF('DF raw data'!O131="","",'DF raw data'!O131) -> 0.000120435 | D126: =IF('DF raw data'!P131="","",'DF raw data'!P131) -> -2.20834e-05 | F126: -2.8257488e-05 | G126: 0.000121013088 | H126: -2.218940032e-05 | J126: -0.0004672602681 | K126: -0.007216250462 | L126: 0.004246788707 | M126: 0.07122904815 | N126: 0.0002078644971
A127: =IF('DF raw data'!M132="","",'DF raw data'!M132) -> -267.5 | B127: =IF('DF raw data'!N132="","",'DF raw data'!N132) -> -1.89557e-05 | C127: =IF('DF raw data'!O132="","",'DF raw data'!O132) -> 0.000122017 | D127: =IF('DF raw data'!P132="","",'DF raw data'!P132) -> -2.71766e-05 | F127: -1.904668736e-05 | G127: 0.0001226026816 | H127: -2.730704768e-05 | J127: -0.0004767836118 | K127: -0.007454642268 | L127: 0.004308090048 | M127: 0.07338309318 | N127: 0.0002172579783
A128: =IF('DF raw data'!M133="","",'DF raw data'!M133) -> -267 | B128: =IF('DF raw data'!N133="","",'DF raw data'!N133) -> -2.26112e-05 | C128: =IF('DF raw data'!O133="","",'DF raw data'!O133) -> 0.000116016 | D128: =IF('DF raw data'!P133="","",'DF raw data'!P133) -> -2.31183e-05 | F128: =(1-$G$1*($B$49-$G$2))*B128 -> -2.271973376e-05 | G128: 0.0001165728768 | H128: -2.322926784e-05 | J128: =F128*$G$3+J127 -> -0.0004881434787 | K128: =J128*$G$3+K127 -> -0.007698714007 | L128: =G128*$G$3+L127 -> 0.004366376486 | M128: =L128*$G$3+M127 -> 0.07556628142 | N128: =(J128^2+L128^2)*$G$3+N127 -> 0.0002269097421
A129: =IF('DF raw data'!M134="","",'DF raw data'!M134) -> -266.5 | B129: =IF('DF raw data'!N134="","",'DF raw data'!N134) -> -1.50498e-05 | C129: =IF('DF raw data'!O134="","",'DF raw data'!O134) -> 0.000117123 | D129: =IF('DF raw data'!P134="","",'DF raw data'!P134) -> -2.25903e-05 | F129: -1.512203904e-05 | G129: 0.0001176851904 | H129: -2.269873344e-05 | J129: -0.0004957044982 | K129: -0.007946566256 | L129: 0.004425219082 | M129: 0.07777889096 | N129: 0.0002368238856
A130: =IF('DF raw data'!M135="","",'DF raw data'!M135) -> -266 | B130: =IF('DF raw data'!N135="","",'DF raw data'!N135) -> -1.47953e-05 | C130: =IF('DF raw data'!O135="","",'DF raw data'!O135) -> 0.000116847 | D130: =IF('DF raw data'!P135="","",'DF raw data'!P135) -> -1.97577e-05 | F130: -1.486631744e-05 | G130: 0.0001174078656 | H130: -1.985253696e-05 | J130: -0.0005031376569 | K130: -0.008198135085 | L130: 0.004483923014 | M130: 0.08002085247 | N130: 0.0002470032421
A131: =IF('DF raw data'!M136="","",'DF raw data'!M136) -> -265.5 | B131: =IF('DF raw data'!N136="","",'DF raw data'!N136) -> -1.71054e-05 | C131: =IF('DF raw data'!O136="","",'DF raw data'!O136) -> 0.000121927 | D131: =IF('DF raw data'!P136="","",'DF raw data'!P136) -> -1.52204e-05 | F131: -1.718750592e-05 | G131: 0.0001225122496 | H131: -1.529345792e-05 | J131: -0.0005117314099 | K131: -0.00845400079 | L131: 0.004545179139 | M131: 0.08229344204 | N131: 0.0002574635034
A132: =IF('DF raw data'!M137="","",'DF raw data'!M137) -> -265 | B132: =IF('DF raw data'!N137="","",'DF raw data'!N137) -> -7.30604e-06 | C132: =IF('DF raw data'!O137="","",'DF raw data'!O137) -> 0.000117691 | D132: =IF('DF raw data'!P137="","",'DF raw data'!P137) -> -7.54482e-06 | F132: -7.341108992e-06 | G132: 0.0001182559168 | H132: -7.581035136e-06 | J132: -0.0005154019644 | K132: -0.008711701772 | L132: 0.004604307098 | M132: 0.08459559559 | N132: 0.0002681961449
A133: =IF('DF raw data'!M138="","",'DF raw data'!M138) -> -264.5 | B133: =IF('DF raw data'!N138="","",'DF raw data'!N138) -> -1.36427e-05 | C133: =IF('DF raw data'!O138="","",'DF raw data'!O138) -> 0.000126268 | D133: =IF('DF raw data'!P138="","",'DF raw data'!P138) -> -1.85751e-05 | F133: -1.370818496e-05 | G133: 0.0001268740864 | H133: -1.866426048e-05 | J133: -0.0005222560569 | K133: -0.0089728298 | L133: 0.004667744141 | M133: 0.08692946766 | N133: 0.0002792264382
A134: =IF('DF raw data'!M139="","",'DF raw data'!M139) -> -264 | B134: =IF('DF raw data'!N139="","",'DF raw data'!N139) -> -1.44064e-05 | C134: =IF('DF raw data'!O139="","",'DF raw data'!O139) -> 0.000123342 | D134: =IF('DF raw data'!P139="","",'DF raw data'!P139) -> -2.66331e-05 | F134: -1.447555072e-05 | G134: 0.0001239340416 | H134: -2.676093888e-05 | J134: -0.0005294938322 | K134: -0.009237576716 | L134: 0.004729711162 | M134: 0.08929432324 | N134: 0.0002905517039
A135: =IF('DF raw data'!M140="","",'DF raw data'!M140) -> -263.5 | B135: =IF('DF raw data'!N140="","",'DF raw data'!N140) -> -1.85033e-05 | C135: =IF('DF raw data'!O140="","",'DF raw data'!O140) -> 0.000122569 | D135: =IF('DF raw data'!P140="","",'DF raw data'!P140) -> -3.3294e-05 | F135: -1.859211584e-05 | G135: 0.0001231573312 | H135: -3.34538112e-05 | J135: -0.0005387898902 | K135: -0.009506971662 | L135: 0.004791289827 | M135: 0.09168996815 | N135: 0.0003021750803
A136: =IF('DF raw data'!M141="","",'DF raw data'!M141) -> -263 | B136: =IF('DF raw data'!N141="","",'DF raw data'!N141) -> -1.78719e-05 | C136: =IF('DF raw data'!O141="","",'DF raw data'!O141) -> 0.00012416 | D136: =IF('DF raw data'!P141="","",'DF raw data'!P141) -> -1.89539e-05 | F136: -1.795768512e-05 | G136: 0.000124755968 | H136: -1.904487872e-05 | J136: -0.0005477687327 | K136: -0.009780856028 | L136: 0.004853667811 | M136: 0.09411680206 | N136: 0.0003141041512
A137: =IF('DF raw data'!M142="","",'DF raw data'!M142) -> -262.5 | B137: =IF('DF raw data'!N142="","",'DF raw data'!N142) -> -1.29931e-05 | C137: =IF('DF raw data'!O142="","",'DF raw data'!O142) -> 0.00012005 | D137: =IF('DF raw data'!P142="","",'DF raw data'!P142) -> -3.22433e-05 | F137: -1.305546688e-05 | G137: 0.00012062624 | H137: -3.239806784e-05 | J137: -0.0005542964662 | K137: -0.01005800426 | L137: 0.004913980931 | M137: 0.09657379252 | N137: 0.0003263313778
A138: =IF('DF raw data'!M143="","",'DF raw data'!M143) -> -262 | B138: =IF('DF raw data'!N143="","",'DF raw data'!N143) -> -1.39572e-05 | C138: =IF('DF raw data'!O143="","",'DF raw data'!O143) -> 0.000115255 | D138: =IF('DF raw data'!P143="","",'DF raw data'!P143) -> -2.79247e-05 | F138: -1.402419456e-05 | G138: 0.000115808224 | H138: -2.805873856e-05 | J138: -0.0005613085634 | K138: -0.01033865854 | L138: 0.004971885043 | M138: 0.09905973504 | N138: 0.0003388487319
A139: =IF('DF raw data'!M144="","",'DF raw data'!M144) -> -261.5 | B139: =IF('DF raw data'!N144="","",'DF raw data'!N144) -> -4.78992e-06 | C139: =IF('DF raw data'!O144="","",'DF raw data'!O144) -> 0.000121387 | D139: =IF('DF raw data'!P144="","",'DF raw data'!P144) -> -3.36908e-05 | F139: -4.812911616e-06 | G139: 0.0001219696576 | H139: -3.385251584e-05 | J139: -0.0005637150192 | K139: -0.01062051605 | L139: 0.005032869872 | M139: 0.10157617 | N139: 0.0003516725088
A140: =IF('DF raw data'!M145="","",'DF raw data'!M145) -> -261 | B140: =IF('DF raw data'!N145="","",'DF raw data'!N145) -> -2.66467e-05 | C140: =IF('DF raw data'!O145="","",'DF raw data'!O145) -> 0.000121439 | D140: =IF('DF raw data'!P145="","",'DF raw data'!P145) -> -2.54215e-05 | F140: -2.677460416e-05 | G140: 0.0001220219072 | H140: -2.55435232e-05 | J140: -0.0005771023213 | K140: -0.01090906721 | L140: 0.005093880826 | M140: 0.1041231104 | N140: 0.0003648128433
A141: =IF('DF raw data'!M146="","",'DF raw data'!M146) -> -260.5 | B141: =IF('DF raw data'!N146="","",'DF raw data'!N146) -> -1.54282e-05 | C141: =IF('DF raw data'!O146="","",'DF raw data'!O146) -> 0.000116314 | D141: =IF('DF raw data'!P146="","",'DF raw data'!P146) -> -3.19179e-05 | F141: -1.550225536e-05 | G141: 0.0001168723072 | H141: -3.207110592e-05 | J141: -0.000584853449 | K141: -0.01120149394 | L141: 0.005152316979 | M141: 0.1066992689 | N141: 0.0003782570552
A142: =IF('DF raw data'!M147="","",'DF raw data'!M147) -> -260 | B142: =IF('DF raw data'!N147="","",'DF raw data'!N147) -> -1.73524e-05 | C142: =IF('DF raw data'!O147="","",'DF raw data'!O147) -> 0.000116634 | D142: =IF('DF raw data'!P147="","",'DF raw data'!P147) -> -2.95821e-05 | F142: -1.743569152e-05 | G142: 0.0001171938432 | H142: -2.972409408e-05 | J142: -0.0005935712948 | K142: -0.01149827958 | L142: 0.005210913901 | M142: 0.1093047258 | N142: 0.0003920100304
A143: =IF('DF raw data'!M148="","",'DF raw data'!M148) -> -259.5 | B143: =IF('DF raw data'!N148="","",'DF raw data'!N148) -> -1.52367e-05 | C143: =IF('DF raw data'!O148="","",'DF raw data'!O148) -> 0.000123839 | D143: =IF('DF raw data'!P148="","",'DF raw data'!P148) -> -3.1135e-05 | F143: -1.530983616e-05 | G143: 0.0001244334272 | H143: -3.1284448e-05 | J143: -0.0006012262128 | K143: -0.01179889269 | L143: 0.005273130614 | M143: 0.1119412911 | N143: 0.0004060937202
